Workbook

Sheet Paramétrages
A1: Base de calcul 1/2journée: | C1: 3.25 | D1: Occupation Normale du personnel
A2: Usagers
D3: Lundi | F3: Mardi | H3: Mercredi | J3: Jeudi | L3: Vendredi
D4: M | E4: S | F4: M | G4: S | H4: M | I4: S | J4: M | K4: S | L4: M | M4: S
A7: 1 | B7: NOM | D7: 3.25 | E7: 3.25 | F7: 3.25 | G7: 3.25 | H7: 3.25 | I7: 3.25 | J7: 3.25 | K7: 3.25 | L7: 3.25 | M7: 3.25
B8: 0 | D8: 0 | E8: 0 | F8: 0 | G8: 0 | H8: 0 | I8: 0 | J8: 0 | K8: 0 | L8: 0 | M8: 0
B9: 0 | D9: 0 | E9: 0 | F9: 0 | G9: 0 | H9: 0 | I9: 0 | J9: 0 | K9: 0 | L9: 0 | M9: 0
A10: 2 | B10: NOM | D10: SAESAT | E10: SAESAT | F10: 3.25 | G10: SAESAT | H10: 3.25 | I10: SAESAT | J10: 3.25 | K10: SAESAT | L10: 3.25 | M10: 3.25
B11: 0 | D11: 0 | E11: 0 | F11: 0 | G11: 0 | H11: 0 | I11: 0 | J11: 0 | K11: 0 | L11: 0 | M11: 0
B12: 0 | D12: 0 | E12: 0 | F12: 0 | G12: 0 | H12: 0 | I12: 0 | J12: 0 | K12: 0 | L12: 0 | M12: 0
A13: 3 | B13: NOM | D13: 3.25 | E13: 3.25 | F13: 3.25 | G13: 3.25 | H13: 3.25 | I13: 3.25 | J13: 3.25 | K13: 3.25 | L13: 3.25 | M13: 3.25
B14: 0 | D14: 0 | E14: 0 | F14: 0 | G14: 0 | H14: 0 | I14: 0 | J14: 0 | K14: 0 | L14: 0 | M14: 0
B15: 0 | D15: 0 | E15: 0 | F15: 0 | G15: 0 | H15: 0 | I15: 0 | J15: 0 | K15: 0 | L15: 0 | M15: 0
A16: 4 | B16: NOM | D16: 3.25 | E16: 3.25 | F16: 3.25 | G16: 3.25 | H16: 3.25 | I16: 3.25 | J16: 3.25 | K16: 3.25 | L16: 3.25 | M16: 3.25
B17: 0 | D17: 0 | E17: 0 | F17: 0 | G17: 0 | H17: 0 | I17: 0 | J17: 0 | K17: 0 | L17: 0 | M17: 0
B18: 0 | D18: 0 | E18: 0 | F18: 0 | G18: 0 | H18: 0 | I18: 0 | J18: 0 | K18: 0 | L18: 0 | M18: 0
A19: 5 | B19: NOM | D19: 3.25 | E19: 3.25 | F19: 3.25 | G19: 3.25 | H19: 3.25 | I19: 3.25 | J19: 3.25 | K19: 3.25 | L19: 3.25 | M19: 3.25
B20: 0 | D20: 0 | E20: 0 | F20: 0 | G20: 0 | H20: 0 | I20: 0 | J20: 0 | K20: 0 | L20: 0 | M20: 0
B21: 0 | D21: 0 | E21: 0 | F21: 0 | G21: 0 | H21: 0 | I21: 0 | J21: 0 | K21: 0 | L21: 0 | M21: 0
A22: 6 | B22: NOM | D22: 3.25 | E22: 3.25 | F22: 3.25 | G22: 3.25 | H22: 3.25 | I22: 3.25 | J22: 3.25 | K22: 3.25 | L22: 3.25 | M22: 3.25
B23: 0 | D23: 0 | E23: 0 | F23: 0 | G23: 0 | H23: 0 | I23: 0 | J23: 0 | K23: 0 | L23: 0 | M23: 0
B24: 0 | D24: 0 | E24: 0 | F24: 0 | G24: 0 | H24: 0 | I24: 0 | J24: 0 | K24: 0 | L24: 0 | M24: 0
A25: 7 | B25: NOM | D25: 3.25 | E25: SAESAT | F25: 3.25 | G25: 3.25 | H25: SAESAT | I25: SAESAT | J25: 3.25 | K25: SAESAT | L25: SAESAT | M25: SAESAT
B26: 0 | D26: 0 | E26: 0 | F26: 0 | G26: 0 | H26: 0 | I26: 0 | J26: 0 | K26: 0 | L26: 0 | M26: 0
B27: 0 | D27: 0 | E27: 0 | F27: 0 | G27: 0 | H27: 0 | I27: 0 | J27: 0 | K27: 0 | L27: 0 | M27: 0
A28: 8 | B28: NOM | D28: 3.25 | E28: 3.25 | F28: 3.25 | G28: 3.25 | H28: 3.25 | I28: 3.25 | J28: 3.25 | K28: 3.25 | L28: 3.25 | M28: 3.25
B29: 0 | D29: 0 | E29: 0 | F29: 0 | G29: 0 | H29: 0 | I29: 0 | J29: 0 | K29: 0 | L29: 0 | M29: 0
B30: 0 | D30: 0 | E30: 0 | F30: 0 | G30: 0 | H30: 0 | I30: 0 | J30: 0 | K30: 0 | L30: 0 | M30: 0
A31: 9 | B31: NOM | D31: 3.25 | E31: 3.25 | F31: 3.25 | G31: 3.25 | H31: 3.25 | I31: 3.25 | J31: 3.25 | K31: 3.25 | L31: 3.25 | M31: 3.25
B32: 0 | D32: 0 | E32: 0 | F32: 0 | G32: 0 | H32: 0 | I32: 0 | J32: 0 | K32: 0 | L32: 0 | M32: 0
B33: 0 | D33: 0 | E33: 0 | F33: 0 | G33: 0 | H33: 0 | I33: 0 | J33: 0 | K33: 0 | L33: 0 | M33: 0
A34: 10 | B34: NOM | D34: 3.25 | E34: 3.25 | F34: 3.25 | G34: 3.25 | H34: 3.25 | I34: 3.25 | J34: 3.25 | K34: 3.25 | L34: 3.25 | M34: 3.25
B35: 0 | D35: 0 | E35: 0 | F35: 0 | G35: 0 | H35: 0 | I35: 0 | J35: 0 | K35: 0 | L35: 0 | M35: 0
B36: 0 | D36: 0 | E36: 0 | F36: 0 | G36: 0 | H36: 0 | I36: 0 | J36: 0 | K36: 0 | L36: 0 | M36: 0
A37: 11 | B37: NOM | D37: 3.25 | E37: 3.25 | F37: 3.25 | G37: 3.25 | H37: 3.25 | I37: 3.25 | J37: 3.25 | K37: 3.25 | L37: 3.25 | M37: 3.25
B38: 0 | D38: 0 | E38: 0 | F38: 0 | G38: 0 | H38: 0 | I38: 0 | J38: 0 | K38: 0 | L38: 0 | M38: 0
B39: 0 | D39: 0 | E39: 0 | F39: 0 | G39: 0 | H39: 0 | I39: 0 | J39: 0 | K39: 0 | L39: 0 | M39: 0
A40: 12 | B40: NOM | D40: 3.25 | E40: 3.25 | F40: 3.25 | G40: 3.25 | H40: 3.25 | I40: 3.25 | J40: 3.25 | K40: 3.25 | L40: 3.25 | M40: 3.25
B41: 0 | D41: 0 | E41: 0 | F41: 0 | G41: 0 | H41: 0 | I41: 0 | J41: 0 | K41: 0 | L41: 0 | M41: 0
B42: 0 | D42: 0 | E42: 0 | F42: 0 | G42: 0 | H42: 0 | I42: 0 | J42: 0 | K42: 0 | L42: 0 | M42: 0
A43: 13 | B43: NOM | D43: 3.25 | E43: 3.25 | F43: 3.25 | G43: 3.25 | H43: 3.25 | I43: 3.25 | J43: 3.25 | K43: 3.25 | L43: 3.25 | M43: 3.25
B44: 0 | D44: 0 | E44: 0 | F44: 0 | G44: 0 | H44: 0 | I44: 0 | J44: 0 | K44: 0 | L44: 0 | M44: 0
B45: 0 | D45: 0 | E45: 0 | F45: 0 | G45: 0 | H45: 0 | I45: 0 | J45: 0 | K45: 0 | L45: 0 | M45: 0
A46: 14 | B46: NOM | D46: 3.25 | E46: 3.25 | F46: 3.25 | G46: 3.25 | H46: 3.25 | I46: 3.25 | J46: 3.25 | K46: 3.25 | L46: 3.25 | M46: 3.25
B47: 0 | D47: 0 | E47: 0 | F47: 0 | G47: 0 | H47: 0 | I47: 0 | J47: 0 | K47: 0 | L47: 0 | M47: 0
B48: 0 | D48: 0 | E48: 0 | F48: 0 | G48: 0 | H48: 0 | I48: 0 | J48: 0 | K48: 0 | L48: 0 | M48: 0
A49: 15 | B49: NOM | D49: 0 | E49: 0 | F49: 0 | G49: 0 | H49: 0 | I49: 0 | J49: 0 | K49: 0 | L49: 0 | M49: 0
B50: 0 | D50: 0 | E50: 0 | F50: 0 | G50: 0 | H50: 0 | I50: 0 | J50: 0 | K50: 0 | L50: 0 | M50: 0
B51: 0 | D51: 0 | E51: 0 | F51: 0 | G51: 0 | H51: 0 | I51: 0 | J51: 0 | K51: 0 | L51: 0 | M51: 0
A52: 16 | B52: NOM | D52: SAESAT | E52: SAESAT | F52: 3.25 | G52: 3.25 | H52: SAESAT | I52: SAESAT | J52: 3.25 | K52: 3.25 | L52: 3.25 | M52: SAESAT
B53: 0 | D53: 0 | E53: 0 | F53: 0 | G53: 0 | H53: 0 | I53: 0 | J53: 0 | K53: 0 | L53: 0 | M53: 0
B54: 0 | D54: 0 | E54: 0 | F54: 0 | G54: 0 | H54: 0 | I54: 0 | J54: 0 | K54: 0 | L54: 0 | M54: 0
A55: 17 | B55: NOM | D55: 3.25 | E55: 3.25 | F55: 3.25 | G55: 3.25 | H55: 3.25 | I55: 3.25 | J55: 3.25 | K55: 3.25 | L55: 3.25 | M55: 3.25
B56: 0 | D56: 0 | E56: 0 | F56: 0 | G56: 0 | H56: 0 | I56: 0 | J56: 0 | K56: 0 | L56: 0 | M56: 0
B57: 0 | D57: 0 | E57: 0 | F57: 0 | G57: 0 | H57: 0 | I57: 0 | J57: 0 | K57: 0 | L57: 0 | M57: 0
A58: 18 | B58: NOM | D58: MENAGE | E58: 2 | F58: MENAGE | G58: 2 | H58: MENAGE | I58: 2 | J58: MENAGE | K58: 2 | L58: MENAGE | M58: 2
B59: 0 | D59: 0 | E59: 0 | F59: 0 | G59: 0 | H59: 0 | I59: 0 | J59: 0 | K59: 0 | L59: 0 | M59: 0
B60: 0 | D60: 0 | E60: 0 | F60: 0 | G60: 0 | H60: 0 | I60: 0 | J60: 0 | K60: 0 | L60: 0 | M60: 0
A61: 19 | B61: NOM | D61: 3.25 | E61: 3.25 | F61: 3.25 | G61: 3.25 | H61: ABSENCE 80% | I61: ABSENCE 80% | J61: 3.25 | K61: 3.25 | L61: 3.25 | M61: 3.25
B62: 0 | D62: 0 | E62: 0 | F62: 0 | G62: 0 | H62: 0 | I62: 0 | J62: 0 | K62: 0 | L62: 0 | M62: 0
B63: 0 | D63: 0 | E63: 0 | F63: 0 | G63: 0 | H63: 0 | I63: 0 | J63: 0 | K63: 0 | L63: 0 | M63: 0
A64: 20 | B64: NOM | D64: 3.25 | E64: 3.25 | F64: 3.25 | G64: 3.25 | H64: 3.25 | I64: 3.25 | J64: 3.25 | K64: 3.25 | L64: 3.25 | M64: EQUITATION
B65: 0 | D65: 0 | E65: 0 | F65: 0 | G65: 0 | H65: 0 | I65: 0 | J65: 0 | K65: 0 | L65: 0 | M65: 0
B66: 0 | D66: 0 | E66: 0 | F66: 0 | G66: 0 | H66: 0 | I66: 0 | J66: 0 | K66: 0 | L66: 0 | M66: 0
A67: 21 | B67: NOM | D67: 3.25 | E67: 3.25 | F67: 3.25 | G67: 2.25 | H67: 3.25 | I67: 3.25 | J67: 3.25 | K67: 3.25 | L67: 3.25 | M67: 3.25
B68: 0 | D68: 0 | E68: 0 | F68: 0 | G68: 0 | H68: 0 | I68: 0 | J68: 0 | K68: 0 | L68: 0 | M68: 0
B69: 0 | D69: 0 | E69: 0 | F69: 0 | G69: 0 | H69: 0 | I69: 0 | J69: 0 | K69: 0 | L69: 0 | M69: 0
A70: 22 | B70: NOM | D70: 3.25 | E70: 3.25 | F70: 3.25 | G70: 3.25 | H70: 3.25 | I70: 3.25 | J70: 3.25 | K70: 3.25 | L70: 3.25 | M70: 3.25
B71: 0 | D71: 0 | E71: 0 | F71: 0 | G71: 0 | H71: 0 | I71: 0 | J71: 0 | K71: 0 | L71: 0 | M71: 0
B72: 0 | D72: 0 | E72: 0 | F72: 0 | G72: 0 | H72: 0 | I72: 0 | J72: 0 | K72: 0 | L72: 0 | M72: 0
A73: 23 | B73: NOM | D73: 3.25 | E73: 3.25 | F73: 3.25 | G73: 3.25 | H73: 3.25 | I73: 3.25 | J73: 3.25 | K73: 3.25 | L73: 3.25 | M73: 3.25
B74: 0 | D74: 0 | E74: 0 | F74: 0 | G74: 0 | H74: 0 | I74: 0 | J74: 0 | K74: 0 | L74: 0 | M74: 0
B75: 0 | D75: 0 | E75: 0 | F75: 0 | G75: 0 | H75: 0 | I75: 0 | J75: 0 | K75: 0 | L75: 0 | M75: 0
A76: 24 | B76: NOM | D76: 3.25 | E76: 3.25 | F76: 3.25 | G76: 3.25 | H76: 3.25 | I76: 3.25 | J76: 3.25 | K76: 3.25 | L76: 3.25 | M76: 3.25
B77: 0 | D77: 0 | E77: 0 | F77: 0 | G77: 0 | H77: 0 | I77: 0 | J77: 0 | K77: 0 | L77: 0 | M77: 0
B78: 0 | D78: 0 | E78: 0 | F78: 0 | G78: 0 | H78: 0 | I78: 0 | J78: 0 | K78: 0 | L78: 0 | M78: 0
A79: 25 | B79: NOM | D79: 3.25 | E79: SAESAT | F79: 3.25 | G79: SAESAT | H79: 3.25 | I79: 3.25 | J79: 3.25 | K79: SAESAT | L79: 3.25 | M79: SAESAT
B80: 0 | D80: 0 | E80: 0 | F80: 0 | G80: 0 | H80: 0 | I80: 0 | J80: 0 | K80: 0 | L80: 0 | M80: 0
B81: 0 | D81: 0 | E81: 0 | F81: 0 | G81: 0 | H81: 0 | I81: 0 | J81: 0 | K81: 0 | L81: 0 | M81: 0
A82: 26 | B82: NOM | D82: SAESAT | E82: SAESAT | F82: 3.25 | G82: SAESAT | H82: 3.25 | I82: SAESAT | J82: SAESAT | K82: 3.25 | L82: 3.25 | M82: 3.25
B83: 0 | D83: 0 | E83: 0 | F83: 0 | G83: 0 | H83: 0 | I83: 0 | J83: 0 | K83: 0 | L83: 0 | M83: 0
B84: 0 | D84: 0 | E84: 0 | F84: 0 | G84: 0 | H84: 0 | I84: 0 | J84: 0 | K84: 0 | L84: 0 | M84: 0
A85: 27 | B85: NOM | D85: 3.25 | E85: 3.25 | F85: 3.25 | G85: 3.25 | H85: 3.25 | I85: 3.25 | J85: 3.25 | K85: 3.25 | L85: 3.25 | M85: 3.25
B86: 0 | D86: 0 | E86: 0 | F86: 0 | G86: 0 | H86: 0 | I86: 0 | J86: 0 | K86: 0 | L86: 0 | M86: 0
B87: 0 | D87: 0 | E87: 0 | F87: 0 | G87: 0 | H87: 0 | I87: 0 | J87: 0 | K87: 0 | L87: 0 | M87: 0
A88: 28 | B88: NOM | D88: 3.25 | E88: 3.25 | F88: 3.25 | G88: 3.25 | H88: 3.25 | I88: 3.25 | J88: 3.25 | K88: 3.25 | L88: 3.25 | M88: 3.25
B89: 0 | D89: 0 | E89: 0 | F89: 0 | G89: 0 | H89: 0 | I89: 0 | J89: 0 | K89: 0 | L89: 0 | M89: 0
B90: 0 | D90: 0 | E90: 0 | F90: 0 | G90: 0 | H90: 0 | I90: 0 | J90: 0 | K90: 0 | L90: 0 | M90: 0
A91: 29 | B91: NOM | D91: 3.25 | E91: 3.25 | F91: 3.25 | G91: 3.25 | H91: 3.25 | I91: 3.25 | J91: 3.25 | K91: 3.25 | L91: 3.25 | M91: 3.25
B92: 0 | D92: 0 | E92: 0 | F92: 0 | G92: 0 | H92: 0 | I92: 0 | J92: 0 | K92: 0 | L92: 0 | M92: 0
B93: 0 | D93: 0 | E93: 0 | F93: 0 | G93: 0 | H93: 0 | I93: 0 | J93: 0 | K93: 0 | L93: 0 | M93: 0
A94: 30 | B94: NOM | D94: 3.25 | E94: 3.25 | F94: 3.25 | G94: 3.25 | H94: 3.25 | I94: 3.25 | J94: 3.25 | K94: 3.25 | L94: 3.25 | M94: 3.25
B95: 0 | D95: 0 | E95: 0 | F95: 0 | G95: 0 | H95: 0 | I95: 0 | J95: 0 | K95: 0 | L95: 0 | M95: 0
B96: 0 | D96: 0 | E96: 0 | F96: 0 | G96: 0 | H96: 0 | I96: 0 | J96: 0 | K96: 0 | L96: 0 | M96: 0
A97: 31 | B97: NOM | D97: SAESAT | E97: 3.25 | F97: 3.25 | G97: SAESAT | H97: 3.25 | I97: 3.25 | J97: SAESAT | K97: SAESAT | L97: 3.25 | M97: SAESAT
B98: 0 | D98: 0 | E98: 0 | F98: 0 | G98: 0 | H98: 0 | I98: 0 | J98: 0 | K98: 0 | L98: 0 | M98: 0
B99: 0 | D99: 0 | E99: 0 | F99: 0 | G99: 0 | H99: 0 | I99: 0 | J99: 0 | K99: 0 | L99: 0 | M99: 0
A100: 32 | B100: NOM | D100: 3.25 | E100: 3.25 | F100: 3.25 | G100: 3.25 | H100: 3.25 | I100: 3.25 | J100: 3.25 | K100: 3.25 | L100: 3.25 | M100: 3.25
B101: 0 | D101: 0 | E101: 0 | F101: 0 | G101: 0 | H101: 0 | I101: 0 | J101: 0 | K101: 0 | L101: 0 | M101: 0
B102: 0 | D102: 0 | E102: 0 | F102: 0 | G102: 0 | H102: 0 | I102: 0 | J102: 0 | K102: 0 | L102: 0 | M102: 0
A103: 33 | B103: NOM | D103: 3.25 | E103: 3.25 | F103: 3.25 | G103: 3.25 | H103: 3.25 | I103: 3.25 | J103: 3.25 | K103: 3.25 | L103: 3.25 | M103: 3.25
B104: 0 | D104: 0 | E104: 0 | F104: 0 | G104: 0 | H104: 0 | I104: 0 | J104: 0 | K104: 0 | L104: 0 | M104: 0
B105: 0 | D105: 0 | E105: 0 | F105: 0 | G105: 0 | H105: 0 | I105: 0 | J105: 0 | K105: 0 | L105: 0 | M105: 0
A106: 34 | B106: NOM | D106: 3.25 | E106: 3.25 | F106: 3.25 | G106: 3.25 | H106: 3.25 | I106: 3.25 | J106: 3.25 | K106: 3.25 | L106: 3.25 | M106: 3.25
B107: 0 | D107: 0 | E107: 0 | F107: 0 | G107: 0 | H107: 0 | I107: 0 | J107: 0 | K107: 0 | L107: 0 | M107: 0
B108: 0 | D108: 0 | E108: 0 | F108: 0 | G108: 0 | H108: 0 | I108: 0 | J108: 0 | K108: 0 | L108: 0 | M108: 0
A109: 35 | B109: NOM | D109: 3.25 | E109: 3.25 | F109: 3.25 | G109: 3.25 | H109: 3.25 | I109: 3.25 | J109: 3.25 | K109: 3.25 | L109: 3.25 | M109: 3.25
B110: 0 | D110: 0 | E110: 0 | F110: 0 | G110: 0 | H110: 0 | I110: 0 | J110: 0 | K110: 0 | L110: 0 | M110: 0
B111: 0 | D111: 0 | E111: 0 | F111: 0 | G111: 0 | H111: 0 | I111: 0 | J111: 0 | K111: 0 | L111: 0 | M111: 0
A112: 36 | B112: NOM | D112: 3.25 | E112: 3.25 | F112: 3.25 | G112: 3.25 | H112: 3.25 | I112: 3.25 | J112: 3.25 | K112: 3.25 | L112: 3.25 | M112: 3.25
B113: 0 | D113: 0 | E113: 0 | F113: 0 | G113: 0 | H113: 0 | I113: 0 | J113: 0 | K113: 0 | L113: 0 | M113: 0
B114: 0 | D114: 0 | E114: 0 | F114: 0 | G114: 0 | H114: 0 | I114: 0 | J114: 0 | K114: 0 | L114: 0 | M114: 0
A115: 37 | B115: NOM | D115: 3.25 | E115: 3.25 | F115: 3.25 | G115: 3.25 | H115: 3.25 | I115: 3.25 | J115: 3.25 | K115: 3.25 | L115: 3.25 | M115: 3.25
B116: 0 | D116: 0 | E116: 0 | F116: 0 | G116: 0 | H116: 0 | I116: 0 | J116: 0 | K116: 0 | L116: 0 | M116: 0
B117: 0 | D117: 0 | E117: 0 | F117: 0 | G117: 0 | H117: 0 | I117: 0 | J117: 0 | K117: 0 | L117: 0 | M117: 0
A118: 38 | B118: NOM | D118: 3.25 | E118: 3.25 | F118: 3.25 | G118: 3.25 | H118: 3.25 | I118: 3.25 | J118: 3.25 | K118: 3.25 | L118: 3.25 | M118: 3.25
B119: 0 | D119: 0 | E119: 0 | F119: 0 | G119: 0 | H119: 0 | I119: 0 | J119: 0 | K119: 0 | L119: 0 | M119: 0
B120: 0 | D120: 0 | E120: 0 | F120: 0 | G120: 0 | H120: 0 | I120: 0 | J120: 0 | K120: 0 | L120: 0 | M120: 0
A121: 39 | B121: NOM | D121: 3.25 | E121: 3.25 | F121: 3.25 | G121: 3.25 | H121: 3.25 | I121: 3.25 | J121: 3.25 | K121: 3.25 | L121: 3.25 | M121: 3.25
B122: 0 | D122: 0 | E122: 0 | F122: 0 | G122: 0 | H122: 0 | I122: 0 | J122: 0 | K122: 0 | L122: 0 | M122: 0
B123: 0 | D123: 0 | E123: 0 | F123: 0 | G123: 0 | H123: 0 | I123: 0 | J123: 0 | K123: 0 | L123: 0 | M123: 0
A124: 40 | B124: NOM | D124: 3.25 | E124: 3.25 | F124: 3.25 | G124: 3.25 | H124: 3.25 | I124: 3.25 | J124: 3.25 | K124: 3.25 | L124: 3.25 | M124: 3.25
B125: 0 | D125: 0 | E125: 0 | F125: 0 | G125: 0 | H125: 0 | I125: 0 | J125: 0 | K125: 0 | L125: 0 | M125: 0
B126: 0 | D126: 0 | E126: 0 | F126: 0 | G126: 0 | H126: 0 | I126: 0 | J126: 0 | K126: 0 | L126: 0 | M126: 0
A127: 41 | B127: NOM | D127: 3.25 | E127: 3.25 | F127: 3.25 | G127: 3.25 | H127: 3.25 | I127: 3.25 | J127: 3.25 | K127: 3.25 | L127: 3.25 | M127: 3.25
B128: 0 | D128: 0 | E128: 0 | F128: 0 | G128: 0 | H128: 0 | I128: 0 | J128: 0 | K128: 0 | L128: 0 | M128: 0
B129: 0 | D129: 0 | E129: 0 | F129: 0 | G129: 0 | H129: 0 | I129: 0 | J129: 0 | K129: 0 | L129: 0 | M129: 0
A130: 42 | B130: NOM | D130: 3.25 | E130: 3.25 | F130: 3.25 | G130: 3.25 | H130: 3.25 | I130: 3.25 | J130: 3.25 | K130: 3.25 | L130: 3.25 | M130: 3.25
B131: 0 | D131: 0 | E131: 0 | F131: 0 | G131: 0 | H131: 0 | I131: 0 | J131: 0 | K131: 0 | L131: 0 | M131: 0
B132: 0 | D132: 0 | E132: 0 | F132: 0 | G132: 0 | H132: 0 | I132: 0 | J132: 0 | K132: 0 | L132: 0 | M132: 0
A133: 43 | B133: NOM | D133: 3.25 | E133: 3.25 | F133: 3.25 | G133: 3.25 | H133: 3.25 | I133: 3.25 | J133: 3.25 | K133: 3.25 | L133: 3.25 | M133: 3.25
B134: 0 | D134: 0 | E134: 0 | F134: 0 | G134: 0 | H134: 0 | I134: 0 | J134: 0 | K134: 0 | L134: 0 | M134: 0
B135: 0 | D135: 0 | E135: 0 | F135: 0 | G135: 0 | H135: 0 | I135: 0 | J135: 0 | K135: 0 | L135: 0 | M135: 0
A136: 44 | B136: NOM | D136: 3.25 | E136: 3.25 | F136: 3.25 | G136: 3.25 | H136: 3.25 | I136: 3.25 | J136: 3.25 | K136: 3.25 | L136: 3.25 | M136: 3.25
B137: 0 | D137: 0 | E137: 0 | F137: 0 | G137: 0 | H137: 0 | I137: 0 | J137: 0 | K137: 0 | L137: 0 | M137: 0
B138: 0 | D138: 0 | E138: 0 | F138: 0 | G138: 0 | H138: 0 | I138: 0 | J138: 0 | K138: 0 | L138: 0 | M138: 0
A139: 45 | B139: NOM | D139: CUISINE | E139: 3.25 | F139: CUISINE | G139: 3.25 | H139: CUISINE | I139: 3.25 | J139: CUISINE | K139: 3.25 | L139: CUISINE | M139: 3.25
B140: 0 | D140: 0 | E140: 0 | F140: 0 | G140: 0 | H140: 0 | I140: 0 | J140: 0 | K140: 0 | L140: 0 | M140: 0
B141: 0 | D141: 0 | E141: 0 | F141: 0 | G141: 0 | H141: 0 | I141: 0 | J141: 0 | K141: 0 | L141: 0 | M141: 0
A142: 46 | B142: NOM | D142: 3.25 | E142: 3.25 | F142: 3.25 | G142: 3.25 | H142: 3.25 | I142: 3.25 | J142: 3.25 | K142: 3.25 | L142: 3.25 | M142: 3.25
B143: 0 | D143: 0 | E143: 0 | F143: 0 | G143: 0 | H143: 0 | I143: 0 | J143: 0 | K143: 0 | L143: 0 | M143: 0
B144: 0 | D144: 0 | E144: 0 | F144: 0 | G144: 0 | H144: 0 | I144: 0 | J144: 0 | K144: 0 | L144: 0 | M144: 0
A145: 47 | B145: NOM | D145: 0 | E145: 0 | F145: 0 | G145: SAESAT | H145: 0 | I145: SAESAT | J145: 0 | K145: SAESAT | L145: 0 | M145: SAESAT
B146: 0 | D146: 0 | E146: 0 | F146: 0 | G146: 0 | H146: 0 | I146: 0 | J146: 0 | K146: 0 | L146: 0 | M146: 0
B147: 0 | D147: 0 | E147: 0 | F147: 0 | G147: 0 | H147: 0 | I147: 0 | J147: 0 | K147: 0 | L147: 0 | M147: 0
A148: 48 | B148: NOM | D148: 3.25 | E148: 3.25 | F148: 3.25 | G148: 3.25 | H148: 3.25 | I148: 3.25 | J148: 3.25 | K148: 3.25 | L148: 3.25 | M148: 3.25
B149: 0 | D149: 0 | E149: 0 | F149: 0 | G149: 0 | H149: 0 | I149: 0 | J149: 0 | K149: 0 | L149: 0 | M149: 0
B150: 0 | D150: 0 | E150: 0 | F150: 0 | G150: 0 | H150: 0 | I150: 0 | J150: 0 | K150: 0 | L150: 0 | M150: 0
A151: 49 | B151: NOM | D151: 3.25 | E151: 3.25 | F151: 3.25 | G151: 3.25 | H151: 3.25 | I151: 3.25 | J151: 3.25 | K151: 3.25 | L151: 3.25 | M151: 3.25
B152: 0 | D152: 0 | E152: 0 | F152: 0 | G152: 0 | H152: 0 | I152: 0 | J152: 0 | K152: 0 | L152: 0 | M152: 0
B153: 0 | D153: 0 | E153: 0 | F153: 0 | G153: 0 | H153: 0 | I153: 0 | J153: 0 | K153: 0 | L153: 0 | M153: 0
A154: 50 | B154: NOM | D154: 3.25 | E154: 3.25 | F154: 3.25 | G154: 3.25 | H154: 3.25 | I154: 3.25 | J154: 3.25 | K154: 3.25 | L154: 3.25 | M154: 3.25
B155: 0 | D155: 0 | E155: 0 | F155: 0 | G155: 0 | H155: 0 | I155: 0 | J155: 0 | K155: 0 | L155: 0 | M155: 0
B156: 0 | D156: 0 | E156: 0 | F156: 0 | G156: 0 | H156: 0 | I156: 0 | J156: 0 | K156: 0 | L156: 0 | M156: 0
A157: 51 | B157: NOM | D157: 0 | E157: 0 | F157: 0 | G157: 0 | H157: 0 | I157: 0 | J157: 0 | K157: 0 | L157: 0 | M157: 0
B158: 0 | D158: 0 | E158: 0 | F158: 0 | G158: 0 | H158: 0 | I158: 0 | J158: 0 | K158: 0 | L158: 0 | M158: 0
B159: 0 | D159: 0 | E159: 0 | F159: 0 | G159: 0 | H159: 0 | I159: 0 | J159: 0 | K159: 0 | L159: 0 | M159: 0
A160: 52 | B160: NOM | D160: 0 | E160: 0 | F160: 0 | G160: 0 | H160: 0 | I160: 0 | J160: 0 | K160: 0 | L160: 0 | M160: 0
B161: 0 | D161: 0 | E161: 0 | F161: 0 | G161: 0 | H161: 0 | I161: 0 | J161: 0 | K161: 0 | L161: 0 | M161: 0
B162: 0 | D162: 0 | E162: 0 | F162: 0 | G162: 0 | H162: 0 | I162: 0 | J162: 0 | K162: 0 | L162: 0 | M162: 0
A163: 53 | B163: NOM | D163: 0 | E163: 0 | F163: 0 | G163: 0 | H163: 0 | I163: 0 | J163: 0 | K163: 0 | L163: 0 | M163: 0
D164: 0 | E164: 0 | F164: 0 | G164: 0 | H164: 0 | I164: 0 | J164: 0 | K164: 0 | L164: 0 | M164: 0
D169: Horaires spéciaux
A170: 54 | B170: NOM | D170: 3.25 | E170: 3.25 | F170: 3.25 | G170: 3.25 | H170: 0 | I170: 0 | J170: 0 | K170: 0 | L170: 0 | M170: 0
D171: 3.25 | E171: 3.25 | F171: 3.25 | G171: 3.25 | H171: 3.25 | I171: 3.25 | J171: 0 | K171: 0 | L171: 0 | M171: 0
A173: 55 | B173: NOM | D173: 0 | E173: 0 | F173: 0 | G173: 0 | H173: 0 | I173: 0 | J173: 0 | K173: 0 | L173: 0 | M173: 0
D174: 0 | E174: 0 | F174: 0 | G174: 0 | H174: 0 | I174: 0 | J174: 0 | K174: 0 | L174: 0 | M174: 0
D180: Personnel à disposition ( hors absences exceptionnelles)
D181: Lundi | F181: Mardi | H181: Mercredi | J181: Jeudi | L181: Vendredi
D182: M | E182: S | F182: M | G182: S | H182: M | I182: S | J182: M | K182: S | L182: M | M182: S
D183: 43 | E183: 44 | F183: 47 | G183: 45 | H183: 44 | I183: 44 | J183: 44 | K183: 44 | L183: 45 | M183: 43

Sheet Trimestre 3
A1: Trimestre 3 | E1: =INT(MOD(INT((E2-2)/7)+0.6,52+5/28))+1 -> 27 | F1: =E1 -> 27 | G1: =INT(MOD(INT((G2-2)/7)+0.6,52+5/28))+1 -> 27 | H1: =G1 -> 27 | I1: =INT(MOD(INT((I2-2)/7)+0.6,52+5/28))+1 -> 27 | J1: =I1 -> 27 | K1: =INT(MOD(INT((K2-2)/7)+0.6,52+5/28))+1 -> 27 | L1: =K1 -> 27 | M1: =INT(MOD(INT((M2-2)/7)+0.6,52+5/28))+1 -> 27 | N1: =M1 -> 27 | O1: =INT(MOD(INT((O2-2)/7)+0.6,52+5/28))+1 -> 27 | P1: =O1 -> 27 | Q1: =INT(MOD(INT((Q2-2)/7)+0.6,52+5/28))+1 -> 27 | R1: =Q1 -> 27 | S1: =INT(MOD(INT((S2-2)/7)+0.6,52+5/28))+1 -> 28 | T1: =S1 -> 28 | U1: =INT(MOD(INT((U2-2)/7)+0.6,52+5/28))+1 -> 28 | V1: =U1 -> 28 | W1: =INT(MOD(INT((W2-2)/7)+0.6,52+5/28))+1 -> 28 | X1: =W1 -> 28 | Y1: =INT(MOD(INT((Y2-2)/7)+0.6,52+5/28))+1 -> 28 | Z1: =Y1 -> 28 | AA1: =INT(MOD(INT((AA2-2)/7)+0.6,52+5/28))+1 -> 28 | AB1: =AA1 -> 28 | AC1: =INT(MOD(INT((AC2-2)/7)+0.6,52+5/28))+1 -> 28 | AD1: =AC1 -> 28 | AE1: =INT(MOD(INT((AE2-2)/7)+0.6,52+5/28))+1 -> 28 | AF1: =AE1 -> 28 | AG1: =INT(MOD(INT((AG2-2)/7)+0.6,52+5/28))+1 -> 29 | AH1: =AG1 -> 29 | AI1: =INT(MOD(INT((AI2-2)/7)+0.6,52+5/28))+1 -> 29 | AJ1: =AI1 -> 29 | AK1: =INT(MOD(INT((AK2-2)/7)+0.6,52+5/28))+1 -> 29 | AL1: =AK1 -> 29 | AM1: =INT(MOD(INT((AM2-2)/7)+0.6,52+5/28))+1 -> 29 | AN1: =AM1 -> 29 | AO1: =INT(MOD(INT((AO2-2)/7)+0.6,52+5/28))+1 -> 29 | AP1: =AO1 -> 29 | AQ1: =INT(MOD(INT((AQ2-2)/7)+0.6,52+5/28))+1 -> 29 | AR1: =AQ1 -> 29 | AS1: =INT(MOD(INT((AS2-2)/7)+0.6,52+5/28))+1 -> 29 | AT1: =AS1 -> 29 | AU1: =INT(MOD(INT((AU2-2)/7)+0.6,52+5/28))+1 -> 30 | AV1: =AU1 -> 30 | AW1: =INT(MOD(INT((AW2-2)/7)+0.6,52+5/28))+1 -> 30 | AX1: =AW1 -> 30 | AY1: =INT(MOD(INT((AY2-2)/7)+0.6,52+5/28))+1 -> 30 | AZ1: =AY1 -> 30 | BA1: =INT(MOD(INT((BA2-2)/7)+0.6,52+5/28))+1 -> 30 | BB1: =BA1 -> 30 | BC1: =INT(MOD(INT((BC2-2)/7)+0.6,52+5/28))+1 -> 30 | BD1: =BC1 -> 30 | BE1: =INT(MOD(INT((BE2-2)/7)+0.6,52+5/28))+1 -> 30 | BF1: =BE1 -> 30 | BG1: =INT(MOD(INT((BG2-2)/7)+0.6,52+5/28))+1 -> 30 | BH1: =BG1 -> 30 | BI1: =INT(MOD(INT((BI2-2)/7)+0.6,52+5/28))+1 -> 31 | BJ1: =BI1 -> 31 | BK1: =INT(MOD(INT((BK2-2)/7)+0.6,52+5/28))+1 -> 31 | BL1: =BK1 -> 31 | BM1: =INT(MOD(INT((BM2-2)/7)+0.6,52+5/28))+1 -> 31 | BN1: =BM1 -> 31 | BO1: =INT(MOD(INT((BO2-2)/7)+0.6,52+5/28))+1 -> 31 | BP1: =BO1 -> 31 | BQ1: =INT(MOD(INT((BQ2-2)/7)+0.6,52+5/28))+1 -> 31 | BR1: =BQ1 -> 31 | BS1: =INT(MOD(INT((BS2-2)/7)+0.6,52+5/28))+1 -> 31 | BT1: =BS1 -> 31 | BU1: =INT(MOD(INT((BU2-2)/7)+0.6,52+5/28))+1 -> 31 | BV1: =BU1 -> 31 | BW1: =INT(MOD(INT((BW2-2)/7)+0.6,52+5/28))+1 -> 32 | BX1: =BW1 -> 32 | BY1: =INT(MOD(INT((BY2-2)/7)+0.6,52+5/28))+1 -> 32 | BZ1: =BY1 -> 32 | CA1: =INT(MOD(INT((CA2-2)/7)+0.6,52+5/28))+1 -> 32 | CB1: =CA1 -> 32 | CC1: =INT(MOD(INT((CC2-2)/7)+0.6,52+5/28))+1 -> 32 | CD1: =CC1 -> 32 | CE1: =INT(MOD(INT((CE2-2)/7)+0.6,52+5/28))+1 -> 32 | CF1: =CE1 -> 32 | CG1: =INT(MOD(INT((CG2-2)/7)+0.6,52+5/28))+1 -> 32 | CH1: =CG1 -> 32 | CI1: =INT(MOD(INT((CI2-2)/7)+0.6,52+5/28))+1 -> 32 | CJ1: =CI1 -> 32 | CK1: =INT(MOD(INT((CK2-2)/7)+0.6,52+5/28))+1 -> 33 | CL1: =CK1 -> 33 | CM1: =INT(MOD(INT((CM2-2)/7)+0.6,52+5/28))+1 -> 33 | CN1: =CM1 -> 33 | CO1: =INT(MOD(INT((CO2-2)/7)+0.6,52+5/28))+1 -> 33 | CP1: =CO1 -> 33 | CQ1: =INT(MOD(INT((CQ2-2)/7)+0.6,52+5/28))+1 -> 33 | CR1: =CQ1 -> 33 | CS1: =INT(MOD(INT((CS2-2)/7)+0.6,52+5/28))+1 -> 33 | CT1: =CS1 -> 33 | CU1: =INT(MOD(INT((CU2-2)/7)+0.6,52+5/28))+1 -> 33 | CV1: =CU1 -> 33 | CW1: =INT(MOD(INT((CW2-2)/7)+0.6,52+5/28))+1 -> 33 | CX1: =CW1 -> 33 | CY1: =INT(MOD(INT((CY2-2)/7)+0.6,52+5/28))+1 -> 34 | CZ1: =CY1 -> 34 | DA1: =INT(MOD(INT((DA2-2)/7)+0.6,52+5/28))+1 -> 34 | DB1: =DA1 -> 34 | DC1: =INT(MOD(INT((DC2-2)/7)+0.6,52+5/28))+1 -> 34 | DD1: =DC1 -> 34 | DE1: =INT(MOD(INT((DE2-2)/7)+0.6,52+5/28))+1 -> 34 | DF1: =DE1 -> 34 | DG1: =INT(MOD(INT((DG2-2)/7)+0.6,52+5/28))+1 -> 34 | DH1: =DG1 -> 34 | DI1: =INT(MOD(INT((DI2-2)/7)+0.6,52+5/28))+1 -> 34 | DJ1: =DI1 -> 34 | DK1: =INT(MOD(INT((DK2-2)/7)+0.6,52+5/28))+1 -> 34 | DL1: =DK1 -> 34 | DM1: =INT(MOD(INT((DM2-2)/7)+0.6,52+5/28))+1 -> 35 | DN1: =DM1 -> 35 | DO1: =INT(MOD(INT((DO2-2)/7)+0.6,52+5/28))+1 -> 35 | DP1: =DO1 -> 35 | DQ1: =INT(MOD(INT((DQ2-2)/7)+0.6,52+5/28))+1 -> 35 | DR1: =DQ1 -> 35 | DS1: =INT(MOD(INT((DS2-2)/7)+0.6,52+5/28))+1 -> 35 | DT1: =DS1 -> 35 | DU1: =INT(MOD(INT((DU2-2)/7)+0.6,52+5/28))+1 -> 35 | DV1: =DU1 -> 35 | DW1: =INT(MOD(INT((DW2-2)/7)+0.6,52+5/28))+1 -> 35 | DX1: =DW1 -> 35 | DY1: =INT(MOD(INT((DY2-2)/7)+0.6,52+5/28))+1 -> 35 | DZ1: =DY1 -> 35 | EA1: =INT(MOD(INT((EA2-2)/7)+0.6,52+5/28))+1 -> 36 | EB1: =EA1 -> 36 | EC1: =INT(MOD(INT((EC2-2)/7)+0.6,52+5/28))+1 -> 36 | ED1: =EC1 -> 36 | EE1: =INT(MOD(INT((EE2-2)/7)+0.6,52+5/28))+1 -> 36 | EF1: =EE1 -> 36 | EG1: =INT(MOD(INT((EG2-2)/7)+0.6,52+5/28))+1 -> 36 | EH1: =EG1 -> 36 | EI1: =INT(MOD(INT((EI2-2)/7)+0.6,52+5/28))+1 -> 36 | EJ1: =EI1 -> 36 | EK1: =INT(MOD(INT((EK2-2)/7)+0.6,52+5/28))+1 -> 36 | EL1: =EK1 -> 36 | EM1: =INT(MOD(INT((EM2-2)/7)+0.6,52+5/28))+1 -> 36 | EN1: =EM1 -> 36 | EO1: =INT(MOD(INT((EO2-2)/7)+0.6,52+5/28))+1 -> 37 | EP1: =EO1 -> 37 | EQ1: =INT(MOD(INT((EQ2-2)/7)+0.6,52+5/28))+1 -> 37 | ER1: =EQ1 -> 37 | ES1: =INT(MOD(INT((ES2-2)/7)+0.6,52+5/28))+1 -> 37 | ET1: =ES1 -> 37 | EU1: =INT(MOD(INT((EU2-2)/7)+0.6,52+5/28))+1 -> 37 | EV1: =EU1 -> 37 | EW1: =INT(MOD(INT((EW2-2)/7)+0.6,52+5/28))+1 -> 37 | EX1: =EW1 -> 37 | EY1: =INT(MOD(INT((EY2-2)/7)+0.6,52+5/28))+1 -> 37 | EZ1: =EY1 -> 37 | FA1: =INT(MOD(INT((FA2-2)/7)+0.6,52+5/28))+1 -> 37 | FB1: =FA1 -> 37 | FC1: =INT(MOD(INT((FC2-2)/7)+0.6,52+5/28))+1 -> 38 | FD1: =FC1 -> 38 | FE1: =INT(MOD(INT((FE2-2)/7)+0.6,52+5/28))+1 -> 38 | FF1: =FE1 -> 38 | FG1: =INT(MOD(INT((FG2-2)/7)+0.6,52+5/28))+1 -> 38 | FH1: =FG1 -> 38 | FI1: =INT(MOD(INT((FI2-2)/7)+0.6,52+5/28))+1 -> 38 | FJ1: =FI1 -> 38 | FK1: =INT(MOD(INT((FK2-2)/7)+0.6,52+5/28))+1 -> 38 | FL1: =FK1 -> 38 | FM1: =INT(MOD(INT((FM2-2)/7)+0.6,52+5/28))+1 -> 38 | FN1: =FM1 -> 38 | FO1: =INT(MOD(INT((FO2-2)/7)+0.6,52+5/28))+1 -> 38 | FP1: =FO1 -> 38 | FQ1: =INT(MOD(INT((FQ2-2)/7)+0.6,52+5/28))+1 -> 39 | FR1: =FQ1 -> 39 | FS1: =INT(MOD(INT((FS2-2)/7)+0.6,52+5/28))+1 -> 39 | FT1: =FS1 -> 39 | FU1: =INT(MOD(INT((FU2-2)/7)+0.6,52+5/28))+1 -> 39 | FV1: =FU1 -> 39 | FW1: =INT(MOD(INT((FW2-2)/7)+0.6,52+5/28))+1 -> 39 | FX1: =FW1 -> 39 | FY1: =INT(MOD(INT((FY2-2)/7)+0.6,52+5/28))+1 -> 39 | FZ1: =FY1 -> 39 | GA1: =INT(MOD(INT((GA2-2)/7)+0.6,52+5/28))+1 -> 39 | GB1: =GA1 -> 39 | GE1: =INT(MOD(INT((GE2-2)/7)+0.6,52+5/28))+1 -> 40 | GF1: =GE1 -> 40
A2: MFC stoppées | E2: 2013-07-01 | G2: 2013-07-02 | I2: 2013-07-03 | K2: 2013-07-04 | M2: 2013-07-05 | O2: 2013-07-06 | Q2: 2013-07-07 | S2: 2013-07-08 | U2: 2013-07-09 | W2: 2013-07-10 | Y2: 2013-07-11 | AA2: 2013-07-12 | AC2: 2013-07-13 | AE2: 2013-07-14 | AG2: 2013-07-15 | AI2: 2013-07-16 | AK2: 2013-07-17 | AM2: 2013-07-18 | AO2: 2013-07-19 | AQ2: 2013-07-20 | AS2: 2013-07-21 | AU2: 2013-07-22 | AW2: 2013-07-23 | AY2: 2013-07-24 | BA2: 2013-07-25 | BC2: 2013-07-26 | BE2: 2013-07-27 | BG2: 2013-07-28 | BI2: 2013-07-29 | BK2: 2013-07-30 | BM2: 2013-07-31 | BO2: 2013-08-01 | BQ2: 2013-08-02 | BS2: 2013-08-03 | BU2: 2013-08-04 | BW2: 2013-08-05 | BY2: 2013-08-06 | CA2: 2013-08-07 | CC2: 2013-08-08 | CE2: 2013-08-09 | CG2: 2013-08-10 | CI2: 2013-08-11 | CK2: 2013-08-12 | CM2: 2013-08-13 | CO2: 2013-08-14 | CQ2: 2013-08-15 | CS2: 2013-08-16 | CU2: 2013-08-17 | CW2: 2013-08-18 | CY2: 2013-08-19 | DA2: 2013-08-20 | DC2: 2013-08-21 | DE2: 2013-08-22 | DG2: 2013-08-23 | DI2: 2013-08-24 | DK2: 2013-08-25 | DM2: 2013-08-26 | DO2: 2013-08-27 | DQ2: 2013-08-28 | DS2: 2013-08-29 | DU2: 2013-08-30 | DW2: 2013-08-31 | DY2: 2013-09-01 | EA2: 2013-09-02 | EC2: 2013-09-03 | EE2: 2013-09-04 | EG2: 2013-09-05 | EI2: 2013-09-06 | EK2: 2013-09-07 | EM2: 2013-09-08 | EO2: 2013-09-09 | EQ2: 2013-09-10 | ES2: 2013-09-11 | EU2: 2013-09-12 | EW2: 2013-09-13 | EY2: 2013-09-14 | FA2: 2013-09-15 | FC2: 2013-09-16 | FE2: 2013-09-17 | FG2: 2013-09-18 | FI2: 2013-09-19 | FK2: 2013-09-20 | FM2: 2013-09-21 | FO2: 2013-09-22 | FQ2: 2013-09-23 | FS2: 2013-09-24 | FU2: 2013-09-25 | FW2: 2013-09-26 | FY2: 2013-09-27 | GA2: 2013-09-28 | GC2: 2013-09-29 | GE2: 2013-09-30
E3: 1 | G3: =IF(E3>0,IF(E3=1,2,IF(E3=2,3,IF(E3=3,4,IF(E3=4,5,IF(E3=5,6,IF(E3=6,7,IF(E3=7,1," ")))))))) -> 2 | I3: =IF(G3>0,IF(G3=1,2,IF(G3=2,3,IF(G3=3,4,IF(G3=4,5,IF(G3=5,6,IF(G3=6,7,IF(G3=7,1," ")))))))) -> 3 | K3: =IF(I3>0,IF(I3=1,2,IF(I3=2,3,IF(I3=3,4,IF(I3=4,5,IF(I3=5,6,IF(I3=6,7,IF(I3=7,1," ")))))))) -> 4 | M3: =IF(K3>0,IF(K3=1,2,IF(K3=2,3,IF(K3=3,4,IF(K3=4,5,IF(K3=5,6,IF(K3=6,7,IF(K3=7,1," ")))))))) -> 5 | O3: =IF(M3>0,IF(M3=1,2,IF(M3=2,3,IF(M3=3,4,IF(M3=4,5,IF(M3=5,6,IF(M3=6,7,IF(M3=7,1," ")))))))) -> 6 | Q3: =IF(O3>0,IF(O3=1,2,IF(O3=2,3,IF(O3=3,4,IF(O3=4,5,IF(O3=5,6,IF(O3=6,7,IF(O3=7,1," ")))))))) -> 7 | S3: =IF(Q3>0,IF(Q3=1,2,IF(Q3=2,3,IF(Q3=3,4,IF(Q3=4,5,IF(Q3=5,6,IF(Q3=6,7,IF(Q3=7,1," ")))))))) -> 1 | U3: =IF(S3>0,IF(S3=1,2,IF(S3=2,3,IF(S3=3,4,IF(S3=4,5,IF(S3=5,6,IF(S3=6,7,IF(S3=7,1," ")))))))) -> 2 | W3: =IF(U3>0,IF(U3=1,2,IF(U3=2,3,IF(U3=3,4,IF(U3=4,5,IF(U3=5,6,IF(U3=6,7,IF(U3=7,1," ")))))))) -> 3 | Y3: =IF(W3>0,IF(W3=1,2,IF(W3=2,3,IF(W3=3,4,IF(W3=4,5,IF(W3=5,6,IF(W3=6,7,IF(W3=7,1," ")))))))) -> 4 | AA3: =IF(Y3>0,IF(Y3=1,2,IF(Y3=2,3,IF(Y3=3,4,IF(Y3=4,5,IF(Y3=5,6,IF(Y3=6,7,IF(Y3=7,1," ")))))))) -> 5 | AC3: =IF(AA3>0,IF(AA3=1,2,IF(AA3=2,3,IF(AA3=3,4,IF(AA3=4,5,IF(AA3=5,6,IF(AA3=6,7,IF(AA3=7,1," ")))))))) -> 6 | AE3: =IF(AC3>0,IF(AC3=1,2,IF(AC3=2,3,IF(AC3=3,4,IF(AC3=4,5,IF(AC3=5,6,IF(AC3=6,7,IF(AC3=7,1," ")))))))) -> 7 | AG3: =IF(AE3>0,IF(AE3=1,2,IF(AE3=2,3,IF(AE3=3,4,IF(AE3=4,5,IF(AE3=5,6,IF(AE3=6,7,IF(AE3=7,1," ")))))))) -> 1 | AI3: =IF(AG3>0,IF(AG3=1,2,IF(AG3=2,3,IF(AG3=3,4,IF(AG3=4,5,IF(AG3=5,6,IF(AG3=6,7,IF(AG3=7,1," ")))))))) -> 2 | AK3: =IF(AI3>0,IF(AI3=1,2,IF(AI3=2,3,IF(AI3=3,4,IF(AI3=4,5,IF(AI3=5,6,IF(AI3=6,7,IF(AI3=7,1," ")))))))) -> 3 | AM3: =IF(AK3>0,IF(AK3=1,2,IF(AK3=2,3,IF(AK3=3,4,IF(AK3=4,5,IF(AK3=5,6,IF(AK3=6,7,IF(AK3=7,1," ")))))))) -> 4 | AO3: =IF(AM3>0,IF(AM3=1,2,IF(AM3=2,3,IF(AM3=3,4,IF(AM3=4,5,IF(AM3=5,6,IF(AM3=6,7,IF(AM3=7,1," ")))))))) -> 5 | AQ3: =IF(AO3>0,IF(AO3=1,2,IF(AO3=2,3,IF(AO3=3,4,IF(AO3=4,5,IF(AO3=5,6,IF(AO3=6,7,IF(AO3=7,1," ")))))))) -> 6 | AS3: =IF(AQ3>0,IF(AQ3=1,2,IF(AQ3=2,3,IF(AQ3=3,4,IF(AQ3=4,5,IF(AQ3=5,6,IF(AQ3=6,7,IF(AQ3=7,1," ")))))))) -> 7 | AU3: =IF(AS3>0,IF(AS3=1,2,IF(AS3=2,3,IF(AS3=3,4,IF(AS3=4,5,IF(AS3=5,6,IF(AS3=6,7,IF(AS3=7,1," ")))))))) -> 1 | AW3: =IF(AU3>0,IF(AU3=1,2,IF(AU3=2,3,IF(AU3=3,4,IF(AU3=4,5,IF(AU3=5,6,IF(AU3=6,7,IF(AU3=7,1," ")))))))) -> 2 | AY3: =IF(AW3>0,IF(AW3=1,2,IF(AW3=2,3,IF(AW3=3,4,IF(AW3=4,5,IF(AW3=5,6,IF(AW3=6,7,IF(AW3=7,1," ")))))))) -> 3 | BA3: =IF(AY3>0,IF(AY3=1,2,IF(AY3=2,3,IF(AY3=3,4,IF(AY3=4,5,IF(AY3=5,6,IF(AY3=6,7,IF(AY3=7,1," ")))))))) -> 4 | BC3: =IF(BA3>0,IF(BA3=1,2,IF(BA3=2,3,IF(BA3=3,4,IF(BA3=4,5,IF(BA3=5,6,IF(BA3=6,7,IF(BA3=7,1," ")))))))) -> 5 | BE3: =IF(BC3>0,IF(BC3=1,2,IF(BC3=2,3,IF(BC3=3,4,IF(BC3=4,5,IF(BC3=5,6,IF(BC3=6,7,IF(BC3=7,1," ")))))))) -> 6 | BG3: =IF(BE3>0,IF(BE3=1,2,IF(BE3=2,3,IF(BE3=3,4,IF(BE3=4,5,IF(BE3=5,6,IF(BE3=6,7,IF(BE3=7,1," ")))))))) -> 7 | BI3: =IF(BG3>0,IF(BG3=1,2,IF(BG3=2,3,IF(BG3=3,4,IF(BG3=4,5,IF(BG3=5,6,IF(BG3=6,7,IF(BG3=7,1," ")))))))) -> 1 | BK3: =IF(BI3>0,IF(BI3=1,2,IF(BI3=2,3,IF(BI3=3,4,IF(BI3=4,5,IF(BI3=5,6,IF(BI3=6,7,IF(BI3=7,1," ")))))))) -> 2 | BM3: =IF(BK3>0,IF(BK3=1,2,IF(BK3=2,3,IF(BK3=3,4,IF(BK3=4,5,IF(BK3=5,6,IF(BK3=6,7,IF(BK3=7,1," ")))))))) -> 3 | BO3: =IF(BM3>0,IF(BM3=1,2,IF(BM3=2,3,IF(BM3=3,4,IF(BM3=4,5,IF(BM3=5,6,IF(BM3=6,7,IF(BM3=7,1," ")))))))) -> 4 | BQ3: =IF(BO3>0,IF(BO3=1,2,IF(BO3=2,3,IF(BO3=3,4,IF(BO3=4,5,IF(BO3=5,6,IF(BO3=6,7,IF(BO3=7,1," ")))))))) -> 5 | BS3: =IF(BQ3>0,IF(BQ3=1,2,IF(BQ3=2,3,IF(BQ3=3,4,IF(BQ3=4,5,IF(BQ3=5,6,IF(BQ3=6,7,IF(BQ3=7,1," ")))))))) -> 6 | BU3: =IF(BS3>0,IF(BS3=1,2,IF(BS3=2,3,IF(BS3=3,4,IF(BS3=4,5,IF(BS3=5,6,IF(BS3=6,7,IF(BS3=7,1," ")))))))) -> 7 | BW3: =IF(BU3>0,IF(BU3=1,2,IF(BU3=2,3,IF(BU3=3,4,IF(BU3=4,5,IF(BU3=5,6,IF(BU3=6,7,IF(BU3=7,1," ")))))))) -> 1 | BY3: =IF(BW3>0,IF(BW3=1,2,IF(BW3=2,3,IF(BW3=3,4,IF(BW3=4,5,IF(BW3=5,6,IF(BW3=6,7,IF(BW3=7,1," ")))))))) -> 2 | CA3: =IF(BY3>0,IF(BY3=1,2,IF(BY3=2,3,IF(BY3=3,4,IF(BY3=4,5,IF(BY3=5,6,IF(BY3=6,7,IF(BY3=7,1," ")))))))) -> 3 | CC3: =IF(CA3>0,IF(CA3=1,2,IF(CA3=2,3,IF(CA3=3,4,IF(CA3=4,5,IF(CA3=5,6,IF(CA3=6,7,IF(CA3=7,1," ")))))))) -> 4 | CE3: =IF(CC3>0,IF(CC3=1,2,IF(CC3=2,3,IF(CC3=3,4,IF(CC3=4,5,IF(CC3=5,6,IF(CC3=6,7,IF(CC3=7,1," ")))))))) -> 5 | CG3: =IF(CE3>0,IF(CE3=1,2,IF(CE3=2,3,IF(CE3=3,4,IF(CE3=4,5,IF(CE3=5,6,IF(CE3=6,7,IF(CE3=7,1," ")))))))) -> 6 | CI3: =IF(CG3>0,IF(CG3=1,2,IF(CG3=2,3,IF(CG3=3,4,IF(CG3=4,5,IF(CG3=5,6,IF(CG3=6,7,IF(CG3=7,1," ")))))))) -> 7 | CK3: =IF(CI3>0,IF(CI3=1,2,IF(CI3=2,3,IF(CI3=3,4,IF(CI3=4,5,IF(CI3=5,6,IF(CI3=6,7,IF(CI3=7,1," ")))))))) -> 1 | CM3: =IF(CK3>0,IF(CK3=1,2,IF(CK3=2,3,IF(CK3=3,4,IF(CK3=4,5,IF(CK3=5,6,IF(CK3=6,7,IF(CK3=7,1," ")))))))) -> 2 | CO3: =IF(CM3>0,IF(CM3=1,2,IF(CM3=2,3,IF(CM3=3,4,IF(CM3=4,5,IF(CM3=5,6,IF(CM3=6,7,IF(CM3=7,1," ")))))))) -> 3 | CQ3: =IF(CO3>0,IF(CO3=1,2,IF(CO3=2,3,IF(CO3=3,4,IF(CO3=4,5,IF(CO3=5,6,IF(CO3=6,7,IF(CO3=7,1," ")))))))) -> 4 | CS3: =IF(CQ3>0,IF(CQ3=1,2,IF(CQ3=2,3,IF(CQ3=3,4,IF(CQ3=4,5,IF(CQ3=5,6,IF(CQ3=6,7,IF(CQ3=7,1," ")))))))) -> 5 | CU3: =IF(CS3>0,IF(CS3=1,2,IF(CS3=2,3,IF(CS3=3,4,IF(CS3=4,5,IF(CS3=5,6,IF(CS3=6,7,IF(CS3=7,1," ")))))))) -> 6 | CW3: =IF(CU3>0,IF(CU3=1,2,IF(CU3=2,3,IF(CU3=3,4,IF(CU3=4,5,IF(CU3=5,6,IF(CU3=6,7,IF(CU3=7,1," ")))))))) -> 7 | CY3: =IF(CW3>0,IF(CW3=1,2,IF(CW3=2,3,IF(CW3=3,4,IF(CW3=4,5,IF(CW3=5,6,IF(CW3=6,7,IF(CW3=7,1," ")))))))) -> 1 | DA3: =IF(CY3>0,IF(CY3=1,2,IF(CY3=2,3,IF(CY3=3,4,IF(CY3=4,5,IF(CY3=5,6,IF(CY3=6,7,IF(CY3=7,1," ")))))))) -> 2 | DC3: =IF(DA3>0,IF(DA3=1,2,IF(DA3=2,3,IF(DA3=3,4,IF(DA3=4,5,IF(DA3=5,6,IF(DA3=6,7,IF(DA3=7,1," ")))))))) -> 3 | DE3: =IF(DC3>0,IF(DC3=1,2,IF(DC3=2,3,IF(DC3=3,4,IF(DC3=4,5,IF(DC3=5,6,IF(DC3=6,7,IF(DC3=7,1," ")))))))) -> 4 | DG3: =IF(DE3>0,IF(DE3=1,2,IF(DE3=2,3,IF(DE3=3,4,IF(DE3=4,5,IF(DE3=5,6,IF(DE3=6,7,IF(DE3=7,1," ")))))))) -> 5 | DI3: =IF(DG3>0,IF(DG3=1,2,IF(DG3=2,3,IF(DG3=3,4,IF(DG3=4,5,IF(DG3=5,6,IF(DG3=6,7,IF(DG3=7,1," ")))))))) -> 6 | DK3: =IF(DI3>0,IF(DI3=1,2,IF(DI3=2,3,IF(DI3=3,4,IF(DI3=4,5,IF(DI3=5,6,IF(DI3=6,7,IF(DI3=7,1," ")))))))) -> 7 | DM3: =IF(DK3>0,IF(DK3=1,2,IF(DK3=2,3,IF(DK3=3,4,IF(DK3=4,5,IF(DK3=5,6,IF(DK3=6,7,IF(DK3=7,1," ")))))))) -> 1 | DO3: =IF(DM3>0,IF(DM3=1,2,IF(DM3=2,3,IF(DM3=3,4,IF(DM3=4,5,IF(DM3=5,6,IF(DM3=6,7,IF(DM3=7,1," ")))))))) -> 2 | DQ3: =IF(DO3>0,IF(DO3=1,2,IF(DO3=2,3,IF(DO3=3,4,IF(DO3=4,5,IF(DO3=5,6,IF(DO3=6,7,IF(DO3=7,1," ")))))))) -> 3 | DS3: =IF(DQ3>0,IF(DQ3=1,2,IF(DQ3=2,3,IF(DQ3=3,4,IF(DQ3=4,5,IF(DQ3=5,6,IF(DQ3=6,7,IF(DQ3=7,1," ")))))))) -> 4 | DU3: =IF(DS3>0,IF(DS3=1,2,IF(DS3=2,3,IF(DS3=3,4,IF(DS3=4,5,IF(DS3=5,6,IF(DS3=6,7,IF(DS3=7,1," ")))))))) -> 5 | DW3: =IF(DU3>0,IF(DU3=1,2,IF(DU3=2,3,IF(DU3=3,4,IF(DU3=4,5,IF(DU3=5,6,IF(DU3=6,7,IF(DU3=7,1," ")))))))) -> 6 | DY3: =IF(DW3>0,IF(DW3=1,2,IF(DW3=2,3,IF(DW3=3,4,IF(DW3=4,5,IF(DW3=5,6,IF(DW3=6,7,IF(DW3=7,1," ")))))))) -> 7 | EA3: =IF(DY3>0,IF(DY3=1,2,IF(DY3=2,3,IF(DY3=3,4,IF(DY3=4,5,IF(DY3=5,6,IF(DY3=6,7,IF(DY3=7,1," ")))))))) -> 1 | EC3: =IF(EA3>0,IF(EA3=1,2,IF(EA3=2,3,IF(EA3=3,4,IF(EA3=4,5,IF(EA3=5,6,IF(EA3=6,7,IF(EA3=7,1," ")))))))) -> 2 | EE3: =IF(EC3>0,IF(EC3=1,2,IF(EC3=2,3,IF(EC3=3,4,IF(EC3=4,5,IF(EC3=5,6,IF(EC3=6,7,IF(EC3=7,1," ")))))))) -> 3 | EG3: =IF(EE3>0,IF(EE3=1,2,IF(EE3=2,3,IF(EE3=3,4,IF(EE3=4,5,IF(EE3=5,6,IF(EE3=6,7,IF(EE3=7,1," ")))))))) -> 4 | EI3: =IF(EG3>0,IF(EG3=1,2,IF(EG3=2,3,IF(EG3=3,4,IF(EG3=4,5,IF(EG3=5,6,IF(EG3=6,7,IF(EG3=7,1," ")))))))) -> 5 | EK3: =IF(EI3>0,IF(EI3=1,2,IF(EI3=2,3,IF(EI3=3,4,IF(EI3=4,5,IF(EI3=5,6,IF(EI3=6,7,IF(EI3=7,1," ")))))))) -> 6 | EM3: =IF(EK3>0,IF(EK3=1,2,IF(EK3=2,3,IF(EK3=3,4,IF(EK3=4,5,IF(EK3=5,6,IF(EK3=6,7,IF(EK3=7,1," ")))))))) -> 7 | EO3: =IF(EM3>0,IF(EM3=1,2,IF(EM3=2,3,IF(EM3=3,4,IF(EM3=4,5,IF(EM3=5,6,IF(EM3=6,7,IF(EM3=7,1," ")))))))) -> 1 | EQ3: =IF(EO3>0,IF(EO3=1,2,IF(EO3=2,3,IF(EO3=3,4,IF(EO3=4,5,IF(EO3=5,6,IF(EO3=6,7,IF(EO3=7,1," ")))))))) -> 2 | ES3: =IF(EQ3>0,IF(EQ3=1,2,IF(EQ3=2,3,IF(EQ3=3,4,IF(EQ3=4,5,IF(EQ3=5,6,IF(EQ3=6,7,IF(EQ3=7,1," ")))))))) -> 3 | EU3: =IF(ES3>0,IF(ES3=1,2,IF(ES3=2,3,IF(ES3=3,4,IF(ES3=4,5,IF(ES3=5,6,IF(ES3=6,7,IF(ES3=7,1," ")))))))) -> 4 | EW3: =IF(EU3>0,IF(EU3=1,2,IF(EU3=2,3,IF(EU3=3,4,IF(EU3=4,5,IF(EU3=5,6,IF(EU3=6,7,IF(EU3=7,1," ")))))))) -> 5 | EY3: =IF(EW3>0,IF(EW3=1,2,IF(EW3=2,3,IF(EW3=3,4,IF(EW3=4,5,IF(EW3=5,6,IF(EW3=6,7,IF(EW3=7,1," ")))))))) -> 6 | FA3: =IF(EY3>0,IF(EY3=1,2,IF(EY3=2,3,IF(EY3=3,4,IF(EY3=4,5,IF(EY3=5,6,IF(EY3=6,7,IF(EY3=7,1," ")))))))) -> 7 | FC3: =IF(FA3>0,IF(FA3=1,2,IF(FA3=2,3,IF(FA3=3,4,IF(FA3=4,5,IF(FA3=5,6,IF(FA3=6,7,IF(FA3=7,1," ")))))))) -> 1 | FE3: =IF(FC3>0,IF(FC3=1,2,IF(FC3=2,3,IF(FC3=3,4,IF(FC3=4,5,IF(FC3=5,6,IF(FC3=6,7,IF(FC3=7,1," ")))))))) -> 2 | FG3: =IF(FE3>0,IF(FE3=1,2,IF(FE3=2,3,IF(FE3=3,4,IF(FE3=4,5,IF(FE3=5,6,IF(FE3=6,7,IF(FE3=7,1," ")))))))) -> 3 | FI3: =IF(FG3>0,IF(FG3=1,2,IF(FG3=2,3,IF(FG3=3,4,IF(FG3=4,5,IF(FG3=5,6,IF(FG3=6,7,IF(FG3=7,1," ")))))))) -> 4 | FK3: =IF(FI3>0,IF(FI3=1,2,IF(FI3=2,3,IF(FI3=3,4,IF(FI3=4,5,IF(FI3=5,6,IF(FI3=6,7,IF(FI3=7,1," ")))))))) -> 5 | FM3: =IF(FK3>0,IF(FK3=1,2,IF(FK3=2,3,IF(FK3=3,4,IF(FK3=4,5,IF(FK3=5,6,IF(FK3=6,7,IF(FK3=7,1," ")))))))) -> 6 | FO3: =IF(FM3>0,IF(FM3=1,2,IF(FM3=2,3,IF(FM3=3,4,IF(FM3=4,5,IF(FM3=5,6,IF(FM3=6,7,IF(FM3=7,1," ")))))))) -> 7 | FQ3: =IF(FO3>0,IF(FO3=1,2,IF(FO3=2,3,IF(FO3=3,4,IF(FO3=4,5,IF(FO3=5,6,IF(FO3=6,7,IF(FO3=7,1," ")))))))) -> 1 | FS3: =IF(FQ3>0,IF(FQ3=1,2,IF(FQ3=2,3,IF(FQ3=3,4,IF(FQ3=4,5,IF(FQ3=5,6,IF(FQ3=6,7,IF(FQ3=7,1," ")))))))) -> 2 | FU3: =IF(FS3>0,IF(FS3=1,2,IF(FS3=2,3,IF(FS3=3,4,IF(FS3=4,5,IF(FS3=5,6,IF(FS3=6,7,IF(FS3=7,1," ")))))))) -> 3 | FW3: =IF(FU3>0,IF(FU3=1,2,IF(FU3=2,3,IF(FU3=3,4,IF(FU3=4,5,IF(FU3=5,6,IF(FU3=6,7,IF(FU3=7,1," ")))))))) -> 4 | FY3: =IF(FW3>0,IF(FW3=1,2,IF(FW3=2,3,IF(FW3=3,4,IF(FW3=4,5,IF(FW3=5,6,IF(FW3=6,7,IF(FW3=7,1," ")))))))) -> 5 | GA3: =IF(FY3>0,IF(FY3=1,2,IF(FY3=2,3,IF(FY3=3,4,IF(FY3=4,5,IF(FY3=5,6,IF(FY3=6,7,IF(FY3=7,1," ")))))))) -> 6 | GC3: =IF(GA3>0,IF(GA3=1,2,IF(GA3=2,3,IF(GA3=3,4,IF(GA3=4,5,IF(GA3=5,6,IF(GA3=6,7,IF(GA3=7,1," ")))))))) -> 7 | GE3: =IF(GC3>0,IF(GC3=1,2,IF(GC3=2,3,IF(GC3=3,4,IF(GC3=4,5,IF(GC3=5,6,IF(GC3=6,7,IF(GC3=7,1," ")))))))) -> 1 | GK3: 2013-05-30
A4: Lien vers présence / repas | E4: =IF(E3=1," LUNDI",IF(E3=2," MARDI ",IF(E3=3," MERCREDI ",IF(E3=4," JEUDI ",IF(E3=5," VENDREDI ",IF(E3=6," SAMEDI ",IF(E3=7," DIMANCHE "," "))))))) -> LUNDI | G4: =IF(G3=1," LUNDI",IF(G3=2," MARDI ",IF(G3=3," MERCREDI ",IF(G3=4," JEUDI ",IF(G3=5," VENDREDI ",IF(G3=6," SAMEDI ",IF(G3=7," DIMANCHE "," "))))))) -> MARDI | I4: =IF(I3=1," LUNDI",IF(I3=2," MARDI ",IF(I3=3," MERCREDI ",IF(I3=4," JEUDI ",IF(I3=5," VENDREDI ",IF(I3=6," SAMEDI ",IF(I3=7," DIMANCHE "," "))))))) -> MERCREDI | K4: =IF(K3=1," LUNDI",IF(K3=2," MARDI ",IF(K3=3," MERCREDI ",IF(K3=4," JEUDI ",IF(K3=5," VENDREDI ",IF(K3=6," SAMEDI ",IF(K3=7," DIMANCHE "," "))))))) -> JEUDI | M4: =IF(M3=1," LUNDI",IF(M3=2," MARDI ",IF(M3=3," MERCREDI ",IF(M3=4," JEUDI ",IF(M3=5," VENDREDI ",IF(M3=6," SAMEDI ",IF(M3=7," DIMANCHE "," "))))))) -> VENDREDI | O4: =IF(O3=1," LUNDI",IF(O3=2," MARDI ",IF(O3=3," MERCREDI ",IF(O3=4," JEUDI ",IF(O3=5," VENDREDI ",IF(O3=6," SAMEDI ",IF(O3=7," DIMANCHE "," "))))))) -> SAMEDI | Q4: =IF(Q3=1," LUNDI",IF(Q3=2," MARDI ",IF(Q3=3," MERCREDI ",IF(Q3=4," JEUDI ",IF(Q3=5," VENDREDI ",IF(Q3=6," SAMEDI ",IF(Q3=7," DIMANCHE "," "))))))) -> DIMANCHE | S4: =IF(S3=1," LUNDI",IF(S3=2," MARDI ",IF(S3=3," MERCREDI ",IF(S3=4," JEUDI ",IF(S3=5," VENDREDI ",IF(S3=6," SAMEDI ",IF(S3=7," DIMANCHE "," "))))))) -> LUNDI | U4: =IF(U3=1," LUNDI",IF(U3=2," MARDI ",IF(U3=3," MERCREDI ",IF(U3=4," JEUDI ",IF(U3=5," VENDREDI ",IF(U3=6," SAMEDI ",IF(U3=7," DIMANCHE "," "))))))) -> MARDI | W4: =IF(W3=1," LUNDI",IF(W3=2," MARDI ",IF(W3=3," MERCREDI ",IF(W3=4," JEUDI ",IF(W3=5," VENDREDI ",IF(W3=6," SAMEDI ",IF(W3=7," DIMANCHE "," "))))))) -> MERCREDI | Y4: =IF(Y3=1," LUNDI",IF(Y3=2," MARDI ",IF(Y3=3," MERCREDI ",IF(Y3=4," JEUDI ",IF(Y3=5," VENDREDI ",IF(Y3=6," SAMEDI ",IF(Y3=7," DIMANCHE "," "))))))) -> JEUDI | AA4: =IF(AA3=1," LUNDI",IF(AA3=2," MARDI ",IF(AA3=3," MERCREDI ",IF(AA3=4," JEUDI ",IF(AA3=5," VENDREDI ",IF(AA3=6," SAMEDI ",IF(AA3=7," DIMANCHE "," "))))))) -> VENDREDI | AC4: =IF(AC3=1," LUNDI",IF(AC3=2," MARDI ",IF(AC3=3," MERCREDI ",IF(AC3=4," JEUDI ",IF(AC3=5," VENDREDI ",IF(AC3=6," SAMEDI ",IF(AC3=7," DIMANCHE "," "))))))) -> SAMEDI | AE4: =IF(AE3=1," LUNDI",IF(AE3=2," MARDI ",IF(AE3=3," MERCREDI ",IF(AE3=4," JEUDI ",IF(AE3=5," VENDREDI ",IF(AE3=6," SAMEDI ",IF(AE3=7," DIMANCHE "," "))))))) -> DIMANCHE | AG4: =IF(AG3=1," LUNDI",IF(AG3=2," MARDI ",IF(AG3=3," MERCREDI ",IF(AG3=4," JEUDI ",IF(AG3=5," VENDREDI ",IF(AG3=6," SAMEDI ",IF(AG3=7," DIMANCHE "," "))))))) -> LUNDI | AI4: =IF(AI3=1," LUNDI",IF(AI3=2," MARDI ",IF(AI3=3," MERCREDI ",IF(AI3=4," JEUDI ",IF(AI3=5," VENDREDI ",IF(AI3=6," SAMEDI ",IF(AI3=7," DIMANCHE "," "))))))) -> MARDI | AK4: =IF(AK3=1," LUNDI",IF(AK3=2," MARDI ",IF(AK3=3," MERCREDI ",IF(AK3=4," JEUDI ",IF(AK3=5," VENDREDI ",IF(AK3=6," SAMEDI ",IF(AK3=7," DIMANCHE "," "))))))) -> MERCREDI | AM4: =IF(AM3=1," LUNDI",IF(AM3=2," MARDI ",IF(AM3=3," MERCREDI ",IF(AM3=4," JEUDI ",IF(AM3=5," VENDREDI ",IF(AM3=6," SAMEDI ",IF(AM3=7," DIMANCHE "," "))))))) -> JEUDI | AO4: =IF(AO3=1," LUNDI",IF(AO3=2," MARDI ",IF(AO3=3," MERCREDI ",IF(AO3=4," JEUDI ",IF(AO3=5," VENDREDI ",IF(AO3=6," SAMEDI ",IF(AO3=7," DIMANCHE "," "))))))) -> VENDREDI | AQ4: =IF(AQ3=1," LUNDI",IF(AQ3=2," MARDI ",IF(AQ3=3," MERCREDI ",IF(AQ3=4," JEUDI ",IF(AQ3=5," VENDREDI ",IF(AQ3=6," SAMEDI ",IF(AQ3=7," DIMANCHE "," "))))))) -> SAMEDI | AS4: =IF(AS3=1," LUNDI",IF(AS3=2," MARDI ",IF(AS3=3," MERCREDI ",IF(AS3=4," JEUDI ",IF(AS3=5," VENDREDI ",IF(AS3=6," SAMEDI ",IF(AS3=7," DIMANCHE "," "))))))) -> DIMANCHE | AU4: =IF(AU3=1," LUNDI",IF(AU3=2," MARDI ",IF(AU3=3," MERCREDI ",IF(AU3=4," JEUDI ",IF(AU3=5," VENDREDI ",IF(AU3=6," SAMEDI ",IF(AU3=7," DIMANCHE "," "))))))) -> LUNDI | AW4: =IF(AW3=1," LUNDI",IF(AW3=2," MARDI ",IF(AW3=3," MERCREDI ",IF(AW3=4," JEUDI ",IF(AW3=5," VENDREDI ",IF(AW3=6," SAMEDI ",IF(AW3=7," DIMANCHE "," "))))))) -> MARDI | AY4: =IF(AY3=1," LUNDI",IF(AY3=2," MARDI ",IF(AY3=3," MERCREDI ",IF(AY3=4," JEUDI ",IF(AY3=5," VENDREDI ",IF(AY3=6," SAMEDI ",IF(AY3=7," DIMANCHE "," "))))))) -> MERCREDI | BA4: =IF(BA3=1," LUNDI",IF(BA3=2," MARDI ",IF(BA3=3," MERCREDI ",IF(BA3=4," JEUDI ",IF(BA3=5," VENDREDI ",IF(BA3=6," SAMEDI ",IF(BA3=7," DIMANCHE "," "))))))) -> JEUDI | BC4: =IF(BC3=1," LUNDI",IF(BC3=2," MARDI ",IF(BC3=3," MERCREDI ",IF(BC3=4," JEUDI ",IF(BC3=5," VENDREDI ",IF(BC3=6," SAMEDI ",IF(BC3=7," DIMANCHE "," "))))))) -> VENDREDI | BE4: =IF(BE3=1," LUNDI",IF(BE3=2," MARDI ",IF(BE3=3," MERCREDI ",IF(BE3=4," JEUDI ",IF(BE3=5," VENDREDI ",IF(BE3=6," SAMEDI ",IF(BE3=7," DIMANCHE "," "))))))) -> SAMEDI | BG4: =IF(BG3=1," LUNDI",IF(BG3=2," MARDI ",IF(BG3=3," MERCREDI ",IF(BG3=4," JEUDI ",IF(BG3=5," VENDREDI ",IF(BG3=6," SAMEDI ",IF(BG3=7," DIMANCHE "," "))))))) -> DIMANCHE | BI4: =IF(BI3=1," LUNDI",IF(BI3=2," MARDI ",IF(BI3=3," MERCREDI ",IF(BI3=4," JEUDI ",IF(BI3=5," VENDREDI ",IF(BI3=6," SAMEDI ",IF(BI3=7," DIMANCHE "," "))))))) -> LUNDI | BK4: =IF(BK3=1," LUNDI",IF(BK3=2," MARDI ",IF(BK3=3," MERCREDI ",IF(BK3=4," JEUDI ",IF(BK3=5," VENDREDI ",IF(BK3=6," SAMEDI ",IF(BK3=7," DIMANCHE "," "))))))) -> MARDI | BM4: =IF(BM3=1," LUNDI",IF(BM3=2," MARDI ",IF(BM3=3," MERCREDI ",IF(BM3=4," JEUDI ",IF(BM3=5," VENDREDI ",IF(BM3=6," SAMEDI ",IF(BM3=7," DIMANCHE "," "))))))) -> MERCREDI | BO4: =IF(BO3=1," LUNDI",IF(BO3=2," MARDI ",IF(BO3=3," MERCREDI ",IF(BO3=4," JEUDI ",IF(BO3=5," VENDREDI ",IF(BO3=6," SAMEDI ",IF(BO3=7," DIMANCHE "," "))))))) -> JEUDI | BQ4: =IF(BQ3=1," LUNDI",IF(BQ3=2," MARDI ",IF(BQ3=3," MERCREDI ",IF(BQ3=4," JEUDI ",IF(BQ3=5," VENDREDI ",IF(BQ3=6," SAMEDI ",IF(BQ3=7," DIMANCHE "," "))))))) -> VENDREDI | BS4: =IF(BS3=1," LUNDI",IF(BS3=2," MARDI ",IF(BS3=3," MERCREDI ",IF(BS3=4," JEUDI ",IF(BS3=5," VENDREDI ",IF(BS3=6," SAMEDI ",IF(BS3=7," DIMANCHE "," "))))))) -> SAMEDI | BU4: =IF(BU3=1," LUNDI",IF(BU3=2," MARDI ",IF(BU3=3," MERCREDI ",IF(BU3=4," JEUDI ",IF(BU3=5," VENDREDI ",IF(BU3=6," SAMEDI ",IF(BU3=7," DIMANCHE "," "))))))) -> DIMANCHE | BW4: =IF(BW3=1," LUNDI",IF(BW3=2," MARDI ",IF(BW3=3," MERCREDI ",IF(BW3=4," JEUDI ",IF(BW3=5," VENDREDI ",IF(BW3=6," SAMEDI ",IF(BW3=7," DIMANCHE "," "))))))) -> LUNDI | BY4: =IF(BY3=1," LUNDI",IF(BY3=2," MARDI ",IF(BY3=3," MERCREDI ",IF(BY3=4," JEUDI ",IF(BY3=5," VENDREDI ",IF(BY3=6," SAMEDI ",IF(BY3=7," DIMANCHE "," "))))))) -> MARDI | CA4: =IF(CA3=1," LUNDI",IF(CA3=2," MARDI ",IF(CA3=3," MERCREDI ",IF(CA3=4," JEUDI ",IF(CA3=5," VENDREDI ",IF(CA3=6," SAMEDI ",IF(CA3=7," DIMANCHE "," "))))))) -> MERCREDI | CC4: =IF(CC3=1," LUNDI",IF(CC3=2," MARDI ",IF(CC3=3," MERCREDI ",IF(CC3=4," JEUDI ",IF(CC3=5," VENDREDI ",IF(CC3=6," SAMEDI ",IF(CC3=7," DIMANCHE "," "))))))) -> JEUDI | CE4: =IF(CE3=1," LUNDI",IF(CE3=2," MARDI ",IF(CE3=3," MERCREDI ",IF(CE3=4," JEUDI ",IF(CE3=5," VENDREDI ",IF(CE3=6," SAMEDI ",IF(CE3=7," DIMANCHE "," "))))))) -> VENDREDI | CG4: =IF(CG3=1," LUNDI",IF(CG3=2," MARDI ",IF(CG3=3," MERCREDI ",IF(CG3=4," JEUDI ",IF(CG3=5," VENDREDI ",IF(CG3=6," SAMEDI ",IF(CG3=7," DIMANCHE "," "))))))) -> SAMEDI | CI4: =IF(CI3=1," LUNDI",IF(CI3=2," MARDI ",IF(CI3=3," MERCREDI ",IF(CI3=4," JEUDI ",IF(CI3=5," VENDREDI ",IF(CI3=6," SAMEDI ",IF(CI3=7," DIMANCHE "," "))))))) -> DIMANCHE | CK4: =IF(CK3=1," LUNDI",IF(CK3=2," MARDI ",IF(CK3=3," MERCREDI ",IF(CK3=4," JEUDI ",IF(CK3=5," VENDREDI ",IF(CK3=6," SAMEDI ",IF(CK3=7," DIMANCHE "," "))))))) -> LUNDI | CM4: =IF(CM3=1," LUNDI",IF(CM3=2," MARDI ",IF(CM3=3," MERCREDI ",IF(CM3=4," JEUDI ",IF(CM3=5," VENDREDI ",IF(CM3=6," SAMEDI ",IF(CM3=7," DIMANCHE "," "))))))) -> MARDI | CO4: =IF(CO3=1," LUNDI",IF(CO3=2," MARDI ",IF(CO3=3," MERCREDI ",IF(CO3=4," JEUDI ",IF(CO3=5," VENDREDI ",IF(CO3=6," SAMEDI ",IF(CO3=7," DIMANCHE "," "))))))) -> MERCREDI | CQ4: =IF(CQ3=1," LUNDI",IF(CQ3=2," MARDI ",IF(CQ3=3," MERCREDI ",IF(CQ3=4," JEUDI ",IF(CQ3=5," VENDREDI ",IF(CQ3=6," SAMEDI ",IF(CQ3=7," DIMANCHE "," "))))))) -> JEUDI | CS4: =IF(CS3=1," LUNDI",IF(CS3=2," MARDI ",IF(CS3=3," MERCREDI ",IF(CS3=4," JEUDI ",IF(CS3=5," VENDREDI ",IF(CS3=6," SAMEDI ",IF(CS3=7," DIMANCHE "," "))))))) -> VENDREDI | CU4: =IF(CU3=1," LUNDI",IF(CU3=2," MARDI ",IF(CU3=3," MERCREDI ",IF(CU3=4," JEUDI ",IF(CU3=5," VENDREDI ",IF(CU3=6," SAMEDI ",IF(CU3=7," DIMANCHE "," "))))))) -> SAMEDI | CW4: =IF(CW3=1," LUNDI",IF(CW3=2," MARDI ",IF(CW3=3," MERCREDI ",IF(CW3=4," JEUDI ",IF(CW3=5," VENDREDI ",IF(CW3=6," SAMEDI ",IF(CW3=7," DIMANCHE "," "))))))) -> DIMANCHE | CY4: =IF(CY3=1," LUNDI",IF(CY3=2," MARDI ",IF(CY3=3," MERCREDI ",IF(CY3=4," JEUDI ",IF(CY3=5," VENDREDI ",IF(CY3=6," SAMEDI ",IF(CY3=7," DIMANCHE "," "))))))) -> LUNDI | DA4: =IF(DA3=1," LUNDI",IF(DA3=2," MARDI ",IF(DA3=3," MERCREDI ",IF(DA3=4," JEUDI ",IF(DA3=5," VENDREDI ",IF(DA3=6," SAMEDI ",IF(DA3=7," DIMANCHE "," "))))))) -> MARDI | DC4: =IF(DC3=1," LUNDI",IF(DC3=2," MARDI ",IF(DC3=3," MERCREDI ",IF(DC3=4," JEUDI ",IF(DC3=5," VENDREDI ",IF(DC3=6," SAMEDI ",IF(DC3=7," DIMANCHE "," "))))))) -> MERCREDI | DE4: =IF(DE3=1," LUNDI",IF(DE3=2," MARDI ",IF(DE3=3," MERCREDI ",IF(DE3=4," JEUDI ",IF(DE3=5," VENDREDI ",IF(DE3=6," SAMEDI ",IF(DE3=7," DIMANCHE "," "))))))) -> JEUDI | DG4: =IF(DG3=1," LUNDI",IF(DG3=2," MARDI ",IF(DG3=3," MERCREDI ",IF(DG3=4," JEUDI ",IF(DG3=5," VENDREDI ",IF(DG3=6," SAMEDI ",IF(DG3=7," DIMANCHE "," "))))))) -> VENDREDI | DI4: =IF(DI3=1," LUNDI",IF(DI3=2," MARDI ",IF(DI3=3," MERCREDI ",IF(DI3=4," JEUDI ",IF(DI3=5," VENDREDI ",IF(DI3=6," SAMEDI ",IF(DI3=7," DIMANCHE "," "))))))) -> SAMEDI | DK4: =IF(DK3=1," LUNDI",IF(DK3=2," MARDI ",IF(DK3=3," MERCREDI ",IF(DK3=4," JEUDI ",IF(DK3=5," VENDREDI ",IF(DK3=6," SAMEDI ",IF(DK3=7," DIMANCHE "," "))))))) -> DIMANCHE | DM4: =IF(DM3=1," LUNDI",IF(DM3=2," MARDI ",IF(DM3=3," MERCREDI ",IF(DM3=4," JEUDI ",IF(DM3=5," VENDREDI ",IF(DM3=6," SAMEDI ",IF(DM3=7," DIMANCHE "," "))))))) -> LUNDI | DO4: =IF(DO3=1," LUNDI",IF(DO3=2," MARDI ",IF(DO3=3," MERCREDI ",IF(DO3=4," JEUDI ",IF(DO3=5," VENDREDI ",IF(DO3=6," SAMEDI ",IF(DO3=7," DIMANCHE "," "))))))) -> MARDI | DQ4: =IF(DQ3=1," LUNDI",IF(DQ3=2," MARDI ",IF(DQ3=3," MERCREDI ",IF(DQ3=4," JEUDI ",IF(DQ3=5," VENDREDI ",IF(DQ3=6," SAMEDI ",IF(DQ3=7," DIMANCHE "," "))))))) -> MERCREDI | DS4: =IF(DS3=1," LUNDI",IF(DS3=2," MARDI ",IF(DS3=3," MERCREDI ",IF(DS3=4," JEUDI ",IF(DS3=5," VENDREDI ",IF(DS3=6," SAMEDI ",IF(DS3=7," DIMANCHE "," "))))))) -> JEUDI | DU4: =IF(DU3=1," LUNDI",IF(DU3=2," MARDI ",IF(DU3=3," MERCREDI ",IF(DU3=4," JEUDI ",IF(DU3=5," VENDREDI ",IF(DU3=6," SAMEDI ",IF(DU3=7," DIMANCHE "," "))))))) -> VENDREDI | DW4: =IF(DW3=1," LUNDI",IF(DW3=2," MARDI ",IF(DW3=3," MERCREDI ",IF(DW3=4," JEUDI ",IF(DW3=5," VENDREDI ",IF(DW3=6," SAMEDI ",IF(DW3=7," DIMANCHE "," "))))))) -> SAMEDI | DY4: =IF(DY3=1," LUNDI",IF(DY3=2," MARDI ",IF(DY3=3," MERCREDI ",IF(DY3=4," JEUDI ",IF(DY3=5," VENDREDI ",IF(DY3=6," SAMEDI ",IF(DY3=7," DIMANCHE "," "))))))) -> DIMANCHE | EA4: =IF(EA3=1," LUNDI",IF(EA3=2," MARDI ",IF(EA3=3," MERCREDI ",IF(EA3=4," JEUDI ",IF(EA3=5," VENDREDI ",IF(EA3=6," SAMEDI ",IF(EA3=7," DIMANCHE "," "))))))) -> LUNDI | EC4: =IF(EC3=1," LUNDI",IF(EC3=2," MARDI ",IF(EC3=3," MERCREDI ",IF(EC3=4," JEUDI ",IF(EC3=5," VENDREDI ",IF(EC3=6," SAMEDI ",IF(EC3=7," DIMANCHE "," "))))))) -> MARDI | EE4: =IF(EE3=1," LUNDI",IF(EE3=2," MARDI ",IF(EE3=3," MERCREDI ",IF(EE3=4," JEUDI ",IF(EE3=5," VENDREDI ",IF(EE3=6," SAMEDI ",IF(EE3=7," DIMANCHE "," "))))))) -> MERCREDI | EG4: =IF(EG3=1," LUNDI",IF(EG3=2," MARDI ",IF(EG3=3," MERCREDI ",IF(EG3=4," JEUDI ",IF(EG3=5," VENDREDI ",IF(EG3=6," SAMEDI ",IF(EG3=7," DIMANCHE "," "))))))) -> JEUDI | EI4: =IF(EI3=1," LUNDI",IF(EI3=2," MARDI ",IF(EI3=3," MERCREDI ",IF(EI3=4," JEUDI ",IF(EI3=5," VENDREDI ",IF(EI3=6," SAMEDI ",IF(EI3=7," DIMANCHE "," "))))))) -> VENDREDI | EK4: =IF(EK3=1," LUNDI",IF(EK3=2," MARDI ",IF(EK3=3," MERCREDI ",IF(EK3=4," JEUDI ",IF(EK3=5," VENDREDI ",IF(EK3=6," SAMEDI ",IF(EK3=7," DIMANCHE "," "))))))) -> SAMEDI | EM4: =IF(EM3=1," LUNDI",IF(EM3=2," MARDI ",IF(EM3=3," MERCREDI ",IF(EM3=4," JEUDI ",IF(EM3=5," VENDREDI ",IF(EM3=6," SAMEDI ",IF(EM3=7," DIMANCHE "," "))))))) -> DIMANCHE | EO4: =IF(EO3=1," LUNDI",IF(EO3=2," MARDI ",IF(EO3=3," MERCREDI ",IF(EO3=4," JEUDI ",IF(EO3=5," VENDREDI ",IF(EO3=6," SAMEDI ",IF(EO3=7," DIMANCHE "," "))))))) -> LUNDI | EQ4: =IF(EQ3=1," LUNDI",IF(EQ3=2," MARDI ",IF(EQ3=3," MERCREDI ",IF(EQ3=4," JEUDI ",IF(EQ3=5," VENDREDI ",IF(EQ3=6," SAMEDI ",IF(EQ3=7," DIMANCHE "," "))))))) -> MARDI | ES4: =IF(ES3=1," LUNDI",IF(ES3=2," MARDI ",IF(ES3=3," MERCREDI ",IF(ES3=4," JEUDI ",IF(ES3=5," VENDREDI ",IF(ES3=6," SAMEDI ",IF(ES3=7," DIMANCHE "," "))))))) -> MERCREDI | EU4: =IF(EU3=1," LUNDI",IF(EU3=2," MARDI ",IF(EU3=3," MERCREDI ",IF(EU3=4," JEUDI ",IF(EU3=5," VENDREDI ",IF(EU3=6," SAMEDI ",IF(EU3=7," DIMANCHE "," "))))))) -> JEUDI | EW4: =IF(EW3=1," LUNDI",IF(EW3=2," MARDI ",IF(EW3=3," MERCREDI ",IF(EW3=4," JEUDI ",IF(EW3=5," VENDREDI ",IF(EW3=6," SAMEDI ",IF(EW3=7," DIMANCHE "," "))))))) -> VENDREDI | EY4: =IF(EY3=1," LUNDI",IF(EY3=2," MARDI ",IF(EY3=3," MERCREDI ",IF(EY3=4," JEUDI ",IF(EY3=5," VENDREDI ",IF(EY3=6," SAMEDI ",IF(EY3=7," DIMANCHE "," "))))))) -> SAMEDI | FA4: =IF(FA3=1," LUNDI",IF(FA3=2," MARDI ",IF(FA3=3," MERCREDI ",IF(FA3=4," JEUDI ",IF(FA3=5," VENDREDI ",IF(FA3=6," SAMEDI ",IF(FA3=7," DIMANCHE "," "))))))) -> DIMANCHE | FC4: =IF(FC3=1," LUNDI",IF(FC3=2," MARDI ",IF(FC3=3," MERCREDI ",IF(FC3=4," JEUDI ",IF(FC3=5," VENDREDI ",IF(FC3=6," SAMEDI ",IF(FC3=7," DIMANCHE "," "))))))) -> LUNDI | FE4: =IF(FE3=1," LUNDI",IF(FE3=2," MARDI ",IF(FE3=3," MERCREDI ",IF(FE3=4," JEUDI ",IF(FE3=5," VENDREDI ",IF(FE3=6," SAMEDI ",IF(FE3=7," DIMANCHE "," "))))))) -> MARDI | FG4: =IF(FG3=1," LUNDI",IF(FG3=2," MARDI ",IF(FG3=3," MERCREDI ",IF(FG3=4," JEUDI ",IF(FG3=5," VENDREDI ",IF(FG3=6," SAMEDI ",IF(FG3=7," DIMANCHE "," "))))))) -> MERCREDI | FI4: =IF(FI3=1," LUNDI",IF(FI3=2," MARDI ",IF(FI3=3," MERCREDI ",IF(FI3=4," JEUDI ",IF(FI3=5," VENDREDI ",IF(FI3=6," SAMEDI ",IF(FI3=7," DIMANCHE "," "))))))) -> JEUDI | FK4: =IF(FK3=1," LUNDI",IF(FK3=2," MARDI ",IF(FK3=3," MERCREDI ",IF(FK3=4," JEUDI ",IF(FK3=5," VENDREDI ",IF(FK3=6," SAMEDI ",IF(FK3=7," DIMANCHE "," "))))))) -> VENDREDI | FM4: =IF(FM3=1," LUNDI",IF(FM3=2," MARDI ",IF(FM3=3," MERCREDI ",IF(FM3=4," JEUDI ",IF(FM3=5," VENDREDI ",IF(FM3=6," SAMEDI ",IF(FM3=7," DIMANCHE "," "))))))) -> SAMEDI | FO4: =IF(FO3=1," LUNDI",IF(FO3=2," MARDI ",IF(FO3=3," MERCREDI ",IF(FO3=4," JEUDI ",IF(FO3=5," VENDREDI ",IF(FO3=6," SAMEDI ",IF(FO3=7," DIMANCHE "," "))))))) -> DIMANCHE | FQ4: =IF(FQ3=1," LUNDI",IF(FQ3=2," MARDI ",IF(FQ3=3," MERCREDI ",IF(FQ3=4," JEUDI ",IF(FQ3=5," VENDREDI ",IF(FQ3=6," SAMEDI ",IF(FQ3=7," DIMANCHE "," "))))))) -> LUNDI | FS4: =IF(FS3=1," LUNDI",IF(FS3=2," MARDI ",IF(FS3=3," MERCREDI ",IF(FS3=4," JEUDI ",IF(FS3=5," VENDREDI ",IF(FS3=6," SAMEDI ",IF(FS3=7," DIMANCHE "," "))))))) -> MARDI | FU4: =IF(FU3=1," LUNDI",IF(FU3=2," MARDI ",IF(FU3=3," MERCREDI ",IF(FU3=4," JEUDI ",IF(FU3=5," VENDREDI ",IF(FU3=6," SAMEDI ",IF(FU3=7," DIMANCHE "," "))))))) -> MERCREDI | FW4: =IF(FW3=1," LUNDI",IF(FW3=2," MARDI ",IF(FW3=3," MERCREDI ",IF(FW3=4," JEUDI ",IF(FW3=5," VENDREDI ",IF(FW3=6," SAMEDI ",IF(FW3=7," DIMANCHE "," "))))))) -> JEUDI | FY4: =IF(FY3=1," LUNDI",IF(FY3=2," MARDI ",IF(FY3=3," MERCREDI ",IF(FY3=4," JEUDI ",IF(FY3=5," VENDREDI ",IF(FY3=6," SAMEDI ",IF(FY3=7," DIMANCHE "," "))))))) -> VENDREDI | GA4: =IF(GA3=1," LUNDI",IF(GA3=2," MARDI ",IF(GA3=3," MERCREDI ",IF(GA3=4," JEUDI ",IF(GA3=5," VENDREDI ",IF(GA3=6," SAMEDI ",IF(GA3=7," DIMANCHE "," "))))))) -> SAMEDI | GC4: =IF(GC3=1," LUNDI",IF(GC3=2," MARDI ",IF(GC3=3," MERCREDI ",IF(GC3=4," JEUDI ",IF(GC3=5," VENDREDI ",IF(GC3=6," SAMEDI ",IF(GC3=7," DIMANCHE "," "))))))) -> DIMANCHE | GE4: =IF(GE3=1," LUNDI",IF(GE3=2," MARDI ",IF(GE3=3," MERCREDI ",IF(GE3=4," JEUDI ",IF(GE3=5," VENDREDI ",IF(GE3=6," SAMEDI ",IF(GE3=7," DIMANCHE "," "))))))) -> LUNDI
A5: Effectif Dispo Théorique | E5: =IF(E405>1,(E405-E409)," ") -> 43 | F5: =IF(F405>1,(F405-F409)," ") -> 44 | G5: =IF(G405>1,(G405-G409)," ") -> 47 | H5: =IF(H405>1,(H405-H409)," ") -> 45 | I5: =IF(I405>1,(I405-I409)," ") -> 43 | J5: 43 | K5: 44 | L5: 44 | M5: 45 | N5: 43 | S5: 43 | T5: 44 | U5: 47 | V5: 45 | W5: 43 | X5: 43 | Y5: 44 | Z5: 44 | AA5: 45 | AB5: 43 | AG5: 43 | AH5: 44 | AI5: 47 | AJ5: 45 | AK5: 43 | AL5: 43 | AM5: 44 | AN5: 44 | AO5: 45 | AP5: 43 | AU5: 43 | AV5: 44 | AW5: 47 | AX5: 45 | AY5: 43 | AZ5: 43 | BA5: 44 | BB5: 44 | BC5: 45 | BD5: 43 | BI5: 43 | BJ5: 44 | BK5: 47 | BL5: 45 | BM5: 43 | BN5: 43 | BO5: 44 | BP5: 44 | BQ5: 45 | BR5: 43 | BU5: =IF(BU405>1,(BU405-BU409)," ") ->  | BW5: 42 | BX5: 43 | BY5: 46 | BZ5: 44 | CA5: 42 | CB5: 42 | CC5: 43 | CD5: 43 | CE5: 44 | CF5: 42 | CK5: 43 | CL5: 44 | CM5: 47 | CN5: 45 | CO5: 43 | CP5: 43 | CQ5: 44 | CR5: 44 | CS5: 45 | CT5: 43 | CY5: 43 | CZ5: 44 | DA5: 47 | DB5: 45 | DC5: 43 | DD5: 43 | DE5: 44 | DF5: 44 | DG5: 45 | DH5: 43 | DM5: 43 | DN5: 44 | DO5: 47 | DP5: 45 | DQ5: 43 | DR5: =IF(DV405>1,(DV405-DV409)," ") -> 43 | DS5: 44 | DT5: 44 | DU5: 45 | DV5: 43 | EA5: 40 | EB5: 44 | EC5: 47 | ED5: 45 | EE5: 20 | EF5: 40 | EG5: =IF(EG405>1,(EG405-EG409)," ") -> 31 | EH5: 44 | EI5: 32 | EJ5: 30 | EO5: 10 | EP5: 24 | EQ5: 25 | ER5: 27 | ES5: 21 | ET5: 13 | EU5: 8 | EV5: 16 | EW5: 17 | EX5: 25 | FC5: 25 | FD5: 26 | FE5: 35 | FF5: 33 | FG5: 31 | FH5: 24 | FI5: 25 | FJ5: 37 | FK5: 38 | FL5: 36 | FQ5: 36 | FR5: 37 | FS5: 40 | FT5: 38 | FU5: 43 | FV5: 43 | FW5: 44 | FX5: 44 | FY5: 45 | FZ5: 43 | GE5: 30 | GF5: 31
A7: Personnel inoccupé | E7: =IF(E512=0," ",E405-E512) ->  | F7: =IF(F512=0," ",F405-F512) ->  | Y7: =IF(Y512=0," ",Y405-(Y512+6)) ->  | AE7: =IF(AE512=0," ",AE405-AE512)-3 ->  | AF7: =IF(AF512=0," ",AF405-(AF512+3)) ->  | AG7: =IF(AG512=0," ",AG405-(AG512+3)) ->  | AH7: =IF(AH512=0," ",AH405-(AH512+3)) ->  | BR7: =IF(BR512=0," ",BR405-BR512) ->  | DR7: =IF(DV512=0," ",DV405-DV512) ->  | ED7: =IF(ED512=0," ",ED405-ED512) -> 
A8: Nombre de repas | E8: =COUNTIF(E169:E399,"=r") -> 3 | G8: =COUNTIF(G169:G399,"=r") -> 2 | I8: =COUNTIF(I169:I399,"=r") -> 2 | K8: =COUNTIF(K169:K399,"=r") -> 2 | M8: =COUNTIF(M169:M399,"=r") -> 2 | O8: =COUNTIF(O169:O399,"=r") -> 1 | Q8: =COUNTIF(Q169:Q399,"=r") -> 1 | S8: =COUNTIF(S169:S399,"=r") -> 2 | U8: =COUNTIF(U169:U399,"=r") -> 2 | W8: =COUNTIF(W169:W399,"=r") -> 2 | Y8: =COUNTIF(Y169:Y399,"=r") -> 2 | AA8: =COUNTIF(AA169:AA399,"=r") -> 2 | AC8: =COUNTIF(AC169:AC399,"=r") -> 1 | AE8: =COUNTIF(AE169:AE399,"=r") -> 1 | AG8: =COUNTIF(AG169:AG399,"=r") -> 1 | AI8: =COUNTIF(AI169:AI399,"=r") -> 1 | AK8: =COUNTIF(AK169:AK399,"=r") -> 1 | AM8: =COUNTIF(AM169:AM399,"=r") -> 1 | AO8: =COUNTIF(AO169:AO399,"=r") -> 1 | AQ8: =COUNTIF(AQ169:AQ399,"=r") -> 1 | AS8: =COUNTIF(AS169:AS399,"=r") -> 1 | AU8: =COUNTIF(AU169:AU399,"=r") -> 1 | AW8: =COUNTIF(AW169:AW399,"=r") -> 1 | AY8: =COUNTIF(AY169:AY399,"=r") -> 1 | BA8: =COUNTIF(BA169:BA399,"=r") -> 1 | BC8: =COUNTIF(BC169:BC399,"=r") -> 1 | BE8: =COUNTIF(BE169:BE399,"=r") -> 1 | BG8: =COUNTIF(BG169:BG399,"=r") -> 1 | BI8: =COUNTIF(BI169:BI399,"=r") -> 1 | BK8: =COUNTIF(BK169:BK399,"=r") -> 1 | BM8: =COUNTIF(BM169:BM399,"=r") -> 1 | BO8: =COUNTIF(BO169:BO399,"=r") -> 1 | BQ8: =COUNTIF(BQ169:BQ399,"=r") -> 1 | BS8: =COUNTIF(BS169:BS399,"=r") -> 1 | BU8: =COUNTIF(BU169:BU399,"=r") -> 1 | BW8: =COUNTIF(BW169:BW399,"=r") -> 40 | BY8: =COUNTIF(BY169:BY399,"=r") -> 12 | CA8: =COUNTIF(CA169:CA399,"=r") -> 10 | CC8: =COUNTIF(CC169:CC399,"=r") -> 11 | CE8: =COUNTIF(CE169:CE399,"=r") -> 10 | CG8: =COUNTIF(CG169:CG399,"=r") -> 4 | CI8: =COUNTIF(CI169:CI399,"=r") -> 4 | CK8: =COUNTIF(CK169:CK399,"=r") -> 5 | CM8: =COUNTIF(CM169:CM399,"=r") -> 5 | CO8: =COUNTIF(CO169:CO399,"=r") -> 5 | CQ8: =COUNTIF(CQ169:CQ399,"=r") -> 5 | CS8: =COUNTIF(CS169:CS399,"=r") -> 5 | CU8: =COUNTIF(CU169:CU399,"=r") -> 3 | CW8: =COUNTIF(CW169:CW399,"=r") -> 3 | CY8: =COUNTIF(CY169:CY399,"=r") -> 2 | DA8: =COUNTIF(DA169:DA399,"=r") -> 2 | DC8: =COUNTIF(DC169:DC399,"=r") -> 2 | DE8: =COUNTIF(DE169:DE399,"=r") -> 2 | DG8: =COUNTIF(DG169:DG399,"=r") -> 2 | DI8: =COUNTIF(DI169:DI399,"=r") -> 2 | DK8: =COUNTIF(DK169:DK399,"=r") -> 2 | DM8: =COUNTIF(DM169:DM399,"=r") -> 2 | DO8: =COUNTIF(DO169:DO399,"=r") -> 2 | DQ8: =COUNTIF(DQ169:DQ399,"=r") -> 2 | DS8: =COUNTIF(DS169:DS399,"=r") -> 2 | DU8: =COUNTIF(DU169:DU399,"=r") -> 2 | DW8: =COUNTIF(DW169:DW399,"=r") -> 2 | DY8: =COUNTIF(DY169:DY399,"=r") -> 2 | EA8: =COUNTIF(EA169:EA399,"=r") -> 2 | EC8: =COUNTIF(EC169:EC399,"=r") -> 2 | EE8: =COUNTIF(EE169:EE399,"=r") -> 2 | EG8: =COUNTIF(EG169:EG399,"=r") -> 2 | EI8: =COUNTIF(EI169:EI399,"=r") -> 2 | EK8: =COUNTIF(EK169:EK399,"=r") -> 2 | EM8: =COUNTIF(EM169:EM399,"=r") -> 2 | EO8: =COUNTIF(EO169:EO399,"=r") -> 2 | EQ8: =COUNTIF(EQ169:EQ399,"=r") -> 2 | ES8: =COUNTIF(ES169:ES399,"=r") -> 3 | EU8: =COUNTIF(EU169:EU399,"=r") -> 3 | EW8: =COUNTIF(EW169:EW399,"=r") -> 3 | EY8: =COUNTIF(EY169:EY399,"=r") -> 3 | FA8: =COUNTIF(FA169:FA399,"=r") -> 3 | FC8: =COUNTIF(FC169:FC399,"=r") -> 3 | FE8: =COUNTIF(FE169:FE399,"=r") -> 3 | FG8: =COUNTIF(FG169:FG399,"=r") -> 3 | FI8: =COUNTIF(FI169:FI399,"=r") -> 3 | FK8: =COUNTIF(FK169:FK399,"=r") -> 3 | FM8: =COUNTIF(FM169:FM399,"=r") -> 3 | FO8: =COUNTIF(FO169:FO399,"=r") -> 3 | FQ8: =COUNTIF(FQ169:FQ399,"=r") -> 3 | FS8: =COUNTIF(FS169:FS399,"=r") -> 3 | FU8: =COUNTIF(FU169:FU399,"=r") -> 3 | FW8: =COUNTIF(FW169:FW399,"=r") -> 3 | FY8: =COUNTIF(FY169:FY399,"=r") -> 3 | GA8: =COUNTIF(GA169:GA399,"=r") -> 2 | GC8: =COUNTIF(GC169:GC399,"=r") -> 2 | GE8: =COUNTIF(GE169:GE399,"=r") -> 3
E9: Occupation du personnel | G9: Occupation du personnel | I9: Occupation du personnel | K9: Occupation du personnel | M9: Occupation du personnel | O9: Occupation du personnel | Q9: Occupation du personnel | S9: Occupation du personnel | U9: Occupation du personnel | W9: Occupation du personnel | Y9: Occupation du personnel | AA9: Occupation du personnel | AC9: Occupation du personnel | AE9: Occupation du personnel | AG9: Occupation du personnel | AI9: Occupation du personnel | AK9: Occupation du personnel | AM9: Occupation du personnel | AO9: Occupation du personnel | AQ9: Occupation du personnel | AS9: Occupation du personnel | AU9: Occupation du personnel | AW9: Occupation du personnel | AY9: Occupation du personnel | BA9: Occupation du personnel | BC9: Occupation du personnel | BE9: Occupation du personnel | BG9: Occupation du personnel | BI9: Occupation du personnel | BK9: Occupation du personnel | BM9: Occupation du personnel | BO9: Occupation du personnel | BQ9: Occupation du personnel | BS9: Occupation du personnel | BU9: Occupation du personnel | BW9: Occupation du personnel | BY9: Occupation du personnel | CA9: Occupation du personnel | CC9: Occupation du personnel | CE9: Occupation du personnel | CG9: Occupation du personnel | CI9: Occupation du personnel | CK9: Occupation du personnel | CM9: Occupation du personnel | CO9: Occupation du personnel | CQ9: Occupation du personnel | CS9: Occupation du personnel | CU9: Occupation du personnel | CW9: Occupation du personnel | CY9: Occupation du personnel | DA9: Occupation du personnel | DC9: Occupation du personnel | DE9: Occupation du personnel | DG9: Occupation du personnel | DI9: Occupation du personnel | DK9: Occupation du personnel | DM9: Occupation du personnel | DO9: Occupation du personnel | DQ9: Occupation du personnel | DS9: Occupation du personnel | DU9: Occupation du personnel | DW9: Occupation du personnel | DY9: Occupation du personnel | EA9: Occupation du personnel | EC9: Occupation du personnel | EE9: Occupation du personnel | EG9: Occupation du personnel | EI9: Occupation du personnel | EK9: Occupation du personnel | EM9: Occupation du personnel | EO9: Occupation du personnel | EQ9: Occupation du personnel | ES9: Occupation du personnel | EU9: Occupation du personnel | EW9: Occupation du personnel | EY9: Occupation du personnel | FA9: Occupation du personnel | FC9: Occupation du personnel | FE9: Occupation du personnel | FG9: Occupation du personnel | FI9: Occupation du personnel | FK9: Occupation du personnel | FM9: Occupation du personnel | FO9: Occupation du personnel | FQ9: Occupation du personnel | FS9: Occupation du personnel | FU9: Occupation du personnel | FW9: Occupation du personnel | FY9: Occupation du personnel | GA9: Occupation du personnel | GC9: Occupation du personnel | GE9: Occupation du personnel
E10: Matin | F10: Soir | G10: Matin | H10: Soir | I10: Matin | J10: Soir | K10: Matin | L10: Soir | M10: Matin | N10: Soir | O10: Matin | P10: Soir | Q10: Matin | R10: Soir | S10: Matin | T10: Soir | U10: Matin | V10: Soir | W10: Matin | X10: Soir | Y10: Matin | Z10: Soir | AA10: Matin | AB10: Soir | AC10: Matin | AD10: Soir | AE10: Matin | AF10: Soir | AG10: Matin | AH10: Soir | AI10: Matin | AJ10: Soir | AK10: Matin | AL10: Soir | AM10: Matin | AN10: Soir | AO10: Matin | AP10: Soir | AQ10: Matin | AR10: Soir | AS10: Matin | AT10: Soir | AU10: Matin | AV10: Soir | AW10: Matin | AX10: Soir | AY10: Matin | AZ10: Soir | BA10: Matin | BB10: Soir | BC10: Matin | BD10: Soir | BE10: Matin | BF10: Soir | BG10: Matin | BH10: Soir | BI10: Matin | BJ10: Soir | BK10: Matin | BL10: Soir | BM10: Matin | BN10: Soir | BO10: Matin | BP10: Soir | BQ10: Matin | BR10: Soir | BS10: Matin | BT10: Soir | BU10: Matin | BV10: Soir | BW10: Matin | BX10: Soir | BY10: Matin | BZ10: Soir | CA10: Matin | CB10: Soir | CC10: Matin | CD10: Soir | CE10: Matin | CF10: Soir | CG10: Matin | CH10: Soir | CI10: Matin | CJ10: Soir | CK10: Matin | CL10: Soir | CM10: Matin | CN10: Soir | CO10: Matin | CP10: Soir | CQ10: Matin | CR10: Soir | CS10: Matin | CT10: Soir | CU10: Matin | CV10: Soir | CW10: Matin | CX10: Soir | CY10: Matin | CZ10: Soir | DA10: Matin | DB10: Soir | DC10: Matin | DD10: Soir | DE10: Matin | DF10: Soir | DG10: Matin | DH10: Soir | DI10: Matin | DJ10: Soir | DK10: Matin | DL10: Soir | DM10: Matin | DN10: Soir | DO10: Matin | DP10: Soir | DQ10: Matin | DR10: Soir | DS10: Matin | DT10: Soir | DU10: Matin | DV10: Soir | DW10: Matin | DX10: Soir | DY10: Matin | DZ10: Soir | EA10: Matin | EB10: Soir | EC10: Matin | ED10: Soir | EE10: Matin | EF10: Soir | EG10: Matin | EH10: Soir | EI10: Matin | EJ10: Soir | EK10: Matin | EL10: Soir | EM10: Matin | EN10: Soir | EO10: Matin | EP10: Soir | EQ10: Matin | ER10: Soir | ES10: Matin | ET10: Soir | EU10: Matin | EV10: Soir | EW10: Matin | EX10: Soir | EY10: Matin | EZ10: Soir | FA10: Matin | FB10: Soir | FC10: Matin | FD10: Soir | FE10: Matin | FF10: Soir | FG10: Matin | FH10: Soir | FI10: Matin | FJ10: Soir | FK10: Matin | FL10: Soir | FM10: Matin | FN10: Soir | FO10: Matin | FP10: Soir | FQ10: Matin | FR10: Soir | FS10: Matin | FT10: Soir | FU10: Matin | FV10: Soir | FW10: Matin | FX10: Soir | FY10: Matin | FZ10: Soir | GA10: Matin | GB10: Soir | GC10: Matin | GD10: Soir | GE10: Matin | GF10: Soir
A11: Fichiers / Enveloppes
A19: Massicot
A27: Pliage 1
A35: Pliage 2
A43: Pliage 3
A51: Pliage Main
A59: Encartage
A67: Bell Howell
A75: Ritmica
A83: Sous plis Main
EE89: 20 | EG89: 10 | EI89: 10 | EJ89: 10 | EO89: 10 | EQ89: 10 | GE89: 10 | GF89: 10
A91: Colleuse Enveloppes
ER97: 3
A99: Affranchissement / Routage
EA105: 3 | EE105: 3 | EF105: 3 | ER105: 3
A107: Kubs
EG113: 3 | EI113: 3 | EJ113: 3 | EO113: 3 | GE113: 3 | GF113: 3
A115: Divers 1
EO121: 20 | EP121: 20 | EQ121: 12 | ER121: 12 | ES121: 12 | ET121: 20 | EU121: 20 | EV121: 12 | EW121: 12 | EX121: 12 | FC121: 12 | FD121: 12 | FE121: 12 | FF121: 12 | FG121: 12 | FH121: 12 | FI121: 12
A123: Divers 2
ES129: 10 | ET129: 10 | EU129: 10 | EV129: 10 | EW129: 10 | FH129: 7 | FI129: 7 | FJ129: 7 | FK129: 7 | FL129: 7 | FQ129: 7 | FR129: 7 | FS129: 7 | FT129: 7
A131: Divers 3
EU137: 6 | EV137: 6 | EW137: 6 | EX137: 6 | FC137: 6 | FD137: 6
A139: Divers 4
A147: Divers 5
A155: Dépôt
GJ158: Répartition de l'activité de l'atelier
HF159: Récapitulatif des absences au poste de travail pour le troisème trimestre
G163: Codes des absences du poste de travail des Usagers | BM163: Codes des absences du poste de travail des Usagers | CK163: Présence et Occupation des Usagers | EQ163: Codes des absences du poste de travail des Usagers | FQ163: Présence et Occupation des Usagers | GL163: Activité dans l'atelier | GR163: Activité de mise à disposition | GX163: Activité postée reçue de l' extérieur
E165: A2 | G165: Congés ( CP) | I165: Conges Sans Solde (CSS) | K165: Maladie (MA) | M165: AT | O165: Absence Justifiée (AJ) | Q165: Absence injustifiée (AI) | S165: A Dispo (AD) | U165: Stage | W165: Divers | BK165: A2 | BM165: Congés ( CP) | BO165: Conges Sans Solde (CSS) | BQ165: Maladie (MA) | BS165: AT | BU165: Absence Justifiée (AJ) | BW165: Absence injustifiée (AI) | BY165: A Dispo (AD) | CA165: Stage | CC165: Divers | EO165: A2 | EQ165: Congés ( CP) | ES165: Conges Sans Solde (CSS) | EU165: Maladie (MA) | EW165: AT | EY165: Absence Justifiée (AJ) | FA165: Absence injustifiée (AI) | FC165: A Dispo (AD) | FE165: Stage (ST) | FG165: Divers (DI)
GL166: AVRIL | GN166: MAI | GP166: JUIN | GR166: AVRIL | GT166: MAI | GV166: JUIN | GX166: AVRIL | GZ166: MAI | HB166: JUIN
E167: =E2 -> 2013-07-01 | G167: =G2 -> 2013-07-02 | I167: =I2 -> 2013-07-03 | K167: =K2 -> 2013-07-04 | M167: =M2 -> 2013-07-05 | O167: =O2 -> 2013-07-06 | Q167: =Q2 -> 2013-07-07 | S167: =S2 -> 2013-07-08 | U167: =U2 -> 2013-07-09 | W167: =W2 -> 2013-07-10 | Y167: =Y2 -> 2013-07-11 | AA167: =AA2 -> 2013-07-12 | AC167: =AC2 -> 2013-07-13 | AE167: =AE2 -> 2013-07-14 | AG167: =AG2 -> 2013-07-15 | AI167: =AI2 -> 2013-07-16 | AK167: =AK2 -> 2013-07-17 | AM167: =AM2 -> 2013-07-18 | AO167: =AO2 -> 2013-07-19 | AQ167: =AQ2 -> 2013-07-20 | AS167: =AS2 -> 2013-07-21 | AU167: =AU2 -> 2013-07-22 | AW167: =AW2 -> 2013-07-23 | AY167: =AY2 -> 2013-07-24 | BA167: =BA2 -> 2013-07-25 | BC167: =BC2 -> 2013-07-26 | BE167: =BE2 -> 2013-07-27 | BG167: =BG2 -> 2013-07-28 | BI167: =BI2 -> 2013-07-29 | BK167: =BK2 -> 2013-07-30 | BM167: =BM2 -> 2013-07-31 | BO167: =BO2 -> 2013-08-01 | BQ167: =BQ2 -> 2013-08-02 | BS167: =BS2 -> 2013-08-03 | BU167: =BU2 -> 2013-08-04 | BW167: =BW2 -> 2013-08-05 | BY167: =BY2 -> 2013-08-06 | CA167: =CA2 -> 2013-08-07 | CC167: =CC2 -> 2013-08-08 | CE167: =CE2 -> 2013-08-09 | CG167: =CG2 -> 2013-08-10 | CI167: =CI2 -> 2013-08-11 | CK167: =CK2 -> 2013-08-12 | CM167: =CM2 -> 2013-08-13 | CO167: =CO2 -> 2013-08-14 | CQ167: =CQ2 -> 2013-08-15 | CS167: =CS2 -> 2013-08-16 | CU167: =CU2 -> 2013-08-17 | CW167: =CW2 -> 2013-08-18 | CY167: =CY2 -> 2013-08-19 | DA167: =DA2 -> 2013-08-20 | DC167: =DC2 -> 2013-08-21 | DE167: =DE2 -> 2013-08-22 | DG167: =DG2 -> 2013-08-23 | DI167: =DI2 -> 2013-08-24 | DK167: =DK2 -> 2013-08-25 | DM167: =DM2 -> 2013-08-26 | DO167: =DO2 -> 2013-08-27 | DQ167: =DQ2 -> 2013-08-28 | DS167: =DS2 -> 2013-08-29 | DU167: =DU2 -> 2013-08-30 | DW167: =DW2 -> 2013-08-31 | DY167: =DY2 -> 2013-09-01 | EA167: =EA2 -> 2013-09-02 | EC167: =EC2 -> 2013-09-03 | EE167: =EE2 -> 2013-09-04 | EG167: =EG2 -> 2013-09-05 | EI167: =EI2 -> 2013-09-06 | EK167: =EK2 -> 2013-09-07 | EM167: =EM2 -> 2013-09-08 | EO167: =EO2 -> 2013-09-09 | EQ167: =EQ2 -> 2013-09-10 | ES167: =ES2 -> 2013-09-11 | EU167: =EU2 -> 2013-09-12 | EW167: =EW2 -> 2013-09-13 | EY167: =EY2 -> 2013-09-14 | FA167: =FA2 -> 2013-09-15 | FC167: =FC2 -> 2013-09-16 | FE167: =FE2 -> 2013-09-17 | FG167: =FG2 -> 2013-09-18 | FI167: =FI2 -> 2013-09-19 | FK167: =FK2 -> 2013-09-20 | FM167: =FM2 -> 2013-09-21 | FO167: =FO2 -> 2013-09-22 | FQ167: =FQ2 -> 2013-09-23 | FS167: =FS2 -> 2013-09-24 | FU167: =FU2 -> 2013-09-25 | FW167: =FW2 -> 2013-09-26 | FY167: =FY2 -> 2013-09-27 | GA167: =GA2 -> 2013-09-28 | GC167: =GC2 -> 2013-09-29 | GE167: =GE2 -> 2013-09-30 | GL167: Jours Pres | GM167: % Occ. | GN167: Jours Pres | GO167: % Occ. | GP167: Jours Pres | GQ167: % Occ. | GR167: Jours | GT167: Jours | GV167: Jours | HF167: A2 | HG167: Congés ( CP) | HH167: Conges Sans Solde (CSS) | HI167: Maladie (MA) | HJ167: AT | HK167: Absence Justifiée (AJ) | HL167: Absence injustifiée (AI) | HM167: A Dispo (AD) | HN167: Stage (ST) | HO167: Divers (DI)
GH168: Repas | GL168: Act Postée | GN168: Act Postée | GP168: Act Postée
B169: 1 | C169: 1 | E169: =IF(E$3=1,Paramétrages!$D7,IF(E$3=2,Paramétrages!$F7,IF(E$3=3,Paramétrages!$H7,IF(E$3=4,Paramétrages!$J7,IF(E$3=5,Paramétrages!$L7,0))))) -> 3.25 | F169: =IF(E$3=1,Paramétrages!$E7,IF(E$3=2,Paramétrages!$G7,IF(E$3=3,Paramétrages!$I7,IF(E$3=4,Paramétrages!$K7,IF(E$3=5,Paramétrages!$M7,0))))) -> 3.25 | G169: =IF(G$3=1,Paramétrages!$D7,IF(G$3=2,Paramétrages!$F7,IF(G$3=3,Paramétrages!$H7,IF(G$3=4,Paramétrages!$J7,IF(G$3=5,Paramétrages!$L7,0))))) -> 3.25 | H169: =IF(G$3=1,Paramétrages!$E7,IF(G$3=2,Paramétrages!$G7,IF(G$3=3,Paramétrages!$I7,IF(G$3=4,Paramétrages!$K7,IF(G$3=5,Paramétrages!$M7,0))))) -> 3.25 | I169: =IF(I$3=1,Paramétrages!$D7,IF(I$3=2,Paramétrages!$F7,IF(I$3=3,Paramétrages!$H7,IF(I$3=4,Paramétrages!$J7,IF(I$3=5,Paramétrages!$L7,0))))) -> 3.25 | J169: =IF(I$3=1,Paramétrages!$E7,IF(I$3=2,Paramétrages!$G7,IF(I$3=3,Paramétrages!$I7,IF(I$3=4,Paramétrages!$K7,IF(I$3=5,Paramétrages!$M7,0))))) -> 3.25 | K169: =IF(K$3=1,Paramétrages!$D7,IF(K$3=2,Paramétrages!$F7,IF(K$3=3,Paramétrages!$H7,IF(K$3=4,Paramétrages!$J7,IF(K$3=5,Paramétrages!$L7,0))))) -> 3.25 | L169: =IF(K$3=1,Paramétrages!$E7,IF(K$3=2,Paramétrages!$G7,IF(K$3=3,Paramétrages!$I7,IF(K$3=4,Paramétrages!$K7,IF(K$3=5,Paramétrages!$M7,0))))) -> 3.25 | M169: =IF(M$3=1,Paramétrages!$D7,IF(M$3=2,Paramétrages!$F7,IF(M$3=3,Paramétrages!$H7,IF(M$3=4,Paramétrages!$J7,IF(M$3=5,Paramétrages!$L7,0))))) -> 3.25 | N169: =IF(M$3=1,Paramétrages!$E7,IF(M$3=2,Paramétrages!$G7,IF(M$3=3,Paramétrages!$I7,IF(M$3=4,Paramétrages!$K7,IF(M$3=5,Paramétrages!$M7,0))))) -> 3.25 | O169: =IF(O$3=1,Paramétrages!$D7,IF(O$3=2,Paramétrages!$F7,IF(O$3=3,Paramétrages!$H7,IF(O$3=4,Paramétrages!$J7,IF(O$3=5,Paramétrages!$L7,0))))) -> 0 | P169: =IF(O$3=1,Paramétrages!$E7,IF(O$3=2,Paramétrages!$G7,IF(O$3=3,Paramétrages!$I7,IF(O$3=4,Paramétrages!$K7,IF(O$3=5,Paramétrages!$M7,0))))) -> 0 | Q169: =IF(Q$3=1,Paramétrages!$D7,IF(Q$3=2,Paramétrages!$F7,IF(Q$3=3,Paramétrages!$H7,IF(Q$3=4,Paramétrages!$J7,IF(Q$3=5,Paramétrages!$L7,0))))) -> 0 | R169: =IF(Q$3=1,Paramétrages!$E7,IF(Q$3=2,Paramétrages!$G7,IF(Q$3=3,Paramétrages!$I7,IF(Q$3=4,Paramétrages!$K7,IF(Q$3=5,Paramétrages!$M7,0))))) -> 0 | S169: =IF(S$3=1,Paramétrages!$D7,IF(S$3=2,Paramétrages!$F7,IF(S$3=3,Paramétrages!$H7,IF(S$3=4,Paramétrages!$J7,IF(S$3=5,Paramétrages!$L7,0))))) -> 3.25 | T169: =IF(S$3=1,Paramétrages!$E7,IF(S$3=2,Paramétrages!$G7,IF(S$3=3,Paramétrages!$I7,IF(S$3=4,Paramétrages!$K7,IF(S$3=5,Paramétrages!$M7,0))))) -> 3.25 | U169: =IF(U$3=1,Paramétrages!$D7,IF(U$3=2,Paramétrages!$F7,IF(U$3=3,Paramétrages!$H7,IF(U$3=4,Paramétrages!$J7,IF(U$3=5,Paramétrages!$L7,0))))) -> 3.25 | V169: =IF(U$3=1,Paramétrages!$E7,IF(U$3=2,Paramétrages!$G7,IF(U$3=3,Paramétrages!$I7,IF(U$3=4,Paramétrages!$K7,IF(U$3=5,Paramétrages!$M7,0))))) -> 3.25 | W169: =IF(W$3=1,Paramétrages!$D7,IF(W$3=2,Paramétrages!$F7,IF(W$3=3,Paramétrages!$H7,IF(W$3=4,Paramétrages!$J7,IF(W$3=5,Paramétrages!$L7,0))))) -> 3.25 | X169: =IF(W$3=1,Paramétrages!$E7,IF(W$3=2,Paramétrages!$G7,IF(W$3=3,Paramétrages!$I7,IF(W$3=4,Paramétrages!$K7,IF(W$3=5,Paramétrages!$M7,0))))) -> 3.25 | Y169: =IF(Y$3=1,Paramétrages!$D7,IF(Y$3=2,Paramétrages!$F7,IF(Y$3=3,Paramétrages!$H7,IF(Y$3=4,Paramétrages!$J7,IF(Y$3=5,Paramétrages!$L7,0))))) -> 3.25 | Z169: =IF(Y$3=1,Paramétrages!$E7,IF(Y$3=2,Paramétrages!$G7,IF(Y$3=3,Paramétrages!$I7,IF(Y$3=4,Paramétrages!$K7,IF(Y$3=5,Paramétrages!$M7,0))))) -> 3.25 | AA169: =IF(AA$3=1,Paramétrages!$D7,IF(AA$3=2,Paramétrages!$F7,IF(AA$3=3,Paramétrages!$H7,IF(AA$3=4,Paramétrages!$J7,IF(AA$3=5,Paramétrages!$L7,0))))) -> 3.25 | AB169: =IF(AA$3=1,Paramétrages!$E7,IF(AA$3=2,Paramétrages!$G7,IF(AA$3=3,Paramétrages!$I7,IF(AA$3=4,Paramétrages!$K7,IF(AA$3=5,Paramétrages!$M7,0))))) -> 3.25 | AC169: =IF(AC$3=1,Paramétrages!$D7,IF(AC$3=2,Paramétrages!$F7,IF(AC$3=3,Paramétrages!$H7,IF(AC$3=4,Paramétrages!$J7,IF(AC$3=5,Paramétrages!$L7,0))))) -> 0 | AD169: =IF(AC$3=1,Paramétrages!$E7,IF(AC$3=2,Paramétrages!$G7,IF(AC$3=3,Paramétrages!$I7,IF(AC$3=4,Paramétrages!$K7,IF(AC$3=5,Paramétrages!$M7,0))))) -> 0 | AE169: =IF(AE$3=1,Paramétrages!$D7,IF(AE$3=2,Paramétrages!$F7,IF(AE$3=3,Paramétrages!$H7,IF(AE$3=4,Paramétrages!$J7,IF(AE$3=5,Paramétrages!$L7,0))))) -> 0 | AF169: =IF(AE$3=1,Paramétrages!$E7,IF(AE$3=2,Paramétrages!$G7,IF(AE$3=3,Paramétrages!$I7,IF(AE$3=4,Paramétrages!$K7,IF(AE$3=5,Paramétrages!$M7,0))))) -> 0 | AG169: =IF(AG$3=1,Paramétrages!$D7,IF(AG$3=2,Paramétrages!$F7,IF(AG$3=3,Paramétrages!$H7,IF(AG$3=4,Paramétrages!$J7,IF(AG$3=5,Paramétrages!$L7,0))))) -> 3.25 | AH169: =IF(AG$3=1,Paramétrages!$E7,IF(AG$3=2,Paramétrages!$G7,IF(AG$3=3,Paramétrages!$I7,IF(AG$3=4,Paramétrages!$K7,IF(AG$3=5,Paramétrages!$M7,0))))) -> 3.25 | AI169: =IF(AI$3=1,Paramétrages!$D7,IF(AI$3=2,Paramétrages!$F7,IF(AI$3=3,Paramétrages!$H7,IF(AI$3=4,Paramétrages!$J7,IF(AI$3=5,Paramétrages!$L7,0))))) -> 3.25 | AJ169: =IF(AI$3=1,Paramétrages!$E7,IF(AI$3=2,Paramétrages!$G7,IF(AI$3=3,Paramétrages!$I7,IF(AI$3=4,Paramétrages!$K7,IF(AI$3=5,Paramétrages!$M7,0))))) -> 3.25 | AK169: =IF(AK$3=1,Paramétrages!$D7,IF(AK$3=2,Paramétrages!$F7,IF(AK$3=3,Paramétrages!$H7,IF(AK$3=4,Paramétrages!$J7,IF(AK$3=5,Paramétrages!$L7,0))))) -> 3.25 | AL169: =IF(AK$3=1,Paramétrages!$E7,IF(AK$3=2,Paramétrages!$G7,IF(AK$3=3,Paramétrages!$I7,IF(AK$3=4,Paramétrages!$K7,IF(AK$3=5,Paramétrages!$M7,0))))) -> 3.25 | AM169: =IF(AM$3=1,Paramétrages!$D7,IF(AM$3=2,Paramétrages!$F7,IF(AM$3=3,Paramétrages!$H7,IF(AM$3=4,Paramétrages!$J7,IF(AM$3=5,Paramétrages!$L7,0))))) -> 3.25 | AN169: =IF(AM$3=1,Paramétrages!$E7,IF(AM$3=2,Paramétrages!$G7,IF(AM$3=3,Paramétrages!$I7,IF(AM$3=4,Paramétrages!$K7,IF(AM$3=5,Paramétrages!$M7,0))))) -> 3.25 | AO169: =IF(AO$3=1,Paramétrages!$D7,IF(AO$3=2,Paramétrages!$F7,IF(AO$3=3,Paramétrages!$H7,IF(AO$3=4,Paramétrages!$J7,IF(AO$3=5,Paramétrages!$L7,0))))) -> 3.25 | AP169: =IF(AO$3=1,Paramétrages!$E7,IF(AO$3=2,Paramétrages!$G7,IF(AO$3=3,Paramétrages!$I7,IF(AO$3=4,Paramétrages!$K7,IF(AO$3=5,Paramétrages!$M7,0))))) -> 3.25 | AQ169: =IF(AQ$3=1,Paramétrages!$D7,IF(AQ$3=2,Paramétrages!$F7,IF(AQ$3=3,Paramétrages!$H7,IF(AQ$3=4,Paramétrages!$J7,IF(AQ$3=5,Paramétrages!$L7,0))))) -> 0 | AR169: =IF(AQ$3=1,Paramétrages!$E7,IF(AQ$3=2,Paramétrages!$G7,IF(AQ$3=3,Paramétrages!$I7,IF(AQ$3=4,Paramétrages!$K7,IF(AQ$3=5,Paramétrages!$M7,0))))) -> 0 | AS169: =IF(AS$3=1,Paramétrages!$D7,IF(AS$3=2,Paramétrages!$F7,IF(AS$3=3,Paramétrages!$H7,IF(AS$3=4,Paramétrages!$J7,IF(AS$3=5,Paramétrages!$L7,0))))) -> 0 | AT169: =IF(AS$3=1,Paramétrages!$E7,IF(AS$3=2,Paramétrages!$G7,IF(AS$3=3,Paramétrages!$I7,IF(AS$3=4,Paramétrages!$K7,IF(AS$3=5,Paramétrages!$M7,0))))) -> 0 | AU169: =IF(AU$3=1,Paramétrages!$D7,IF(AU$3=2,Paramétrages!$F7,IF(AU$3=3,Paramétrages!$H7,IF(AU$3=4,Paramétrages!$J7,IF(AU$3=5,Paramétrages!$L7,0))))) -> 3.25 | AV169: =IF(AU$3=1,Paramétrages!$E7,IF(AU$3=2,Paramétrages!$G7,IF(AU$3=3,Paramétrages!$I7,IF(AU$3=4,Paramétrages!$K7,IF(AU$3=5,Paramétrages!$M7,0))))) -> 3.25 | AW169: =IF(AW$3=1,Paramétrages!$D7,IF(AW$3=2,Paramétrages!$F7,IF(AW$3=3,Paramétrages!$H7,IF(AW$3=4,Paramétrages!$J7,IF(AW$3=5,Paramétrages!$L7,0))))) -> 3.25 | AX169: =IF(AW$3=1,Paramétrages!$E7,IF(AW$3=2,Paramétrages!$G7,IF(AW$3=3,Paramétrages!$I7,IF(AW$3=4,Paramétrages!$K7,IF(AW$3=5,Paramétrages!$M7,0))))) -> 3.25 | AY169: =IF(AY$3=1,Paramétrages!$D7,IF(AY$3=2,Paramétrages!$F7,IF(AY$3=3,Paramétrages!$H7,IF(AY$3=4,Paramétrages!$J7,IF(AY$3=5,Paramétrages!$L7,0))))) -> 3.25 | AZ169: =IF(AY$3=1,Paramétrages!$E7,IF(AY$3=2,Paramétrages!$G7,IF(AY$3=3,Paramétrages!$I7,IF(AY$3=4,Paramétrages!$K7,IF(AY$3=5,Paramétrages!$M7,0))))) -> 3.25 | BA169: =IF(BA$3=1,Paramétrages!$D7,IF(BA$3=2,Paramétrages!$F7,IF(BA$3=3,Paramétrages!$H7,IF(BA$3=4,Paramétrages!$J7,IF(BA$3=5,Paramétrages!$L7,0))))) -> 3.25 | BB169: =IF(BA$3=1,Paramétrages!$E7,IF(BA$3=2,Paramétrages!$G7,IF(BA$3=3,Paramétrages!$I7,IF(BA$3=4,Paramétrages!$K7,IF(BA$3=5,Paramétrages!$M7,0))))) -> 3.25 | BC169: =IF(BC$3=1,Paramétrages!$D7,IF(BC$3=2,Paramétrages!$F7,IF(BC$3=3,Paramétrages!$H7,IF(BC$3=4,Paramétrages!$J7,IF(BC$3=5,Paramétrages!$L7,0))))) -> 3.25 | BD169: =IF(BC$3=1,Paramétrages!$E7,IF(BC$3=2,Paramétrages!$G7,IF(BC$3=3,Paramétrages!$I7,IF(BC$3=4,Paramétrages!$K7,IF(BC$3=5,Paramétrages!$M7,0))))) -> 3.25 | BE169: =IF(BE$3=1,Paramétrages!$D7,IF(BE$3=2,Paramétrages!$F7,IF(BE$3=3,Paramétrages!$H7,IF(BE$3=4,Paramétrages!$J7,IF(BE$3=5,Paramétrages!$L7,0))))) -> 0 | BF169: =IF(BE$3=1,Paramétrages!$E7,IF(BE$3=2,Paramétrages!$G7,IF(BE$3=3,Paramétrages!$I7,IF(BE$3=4,Paramétrages!$K7,IF(BE$3=5,Paramétrages!$M7,0))))) -> 0 | BG169: =IF(BG$3=1,Paramétrages!$D7,IF(BG$3=2,Paramétrages!$F7,IF(BG$3=3,Paramétrages!$H7,IF(BG$3=4,Paramétrages!$J7,IF(BG$3=5,Paramétrages!$L7,0))))) -> 0 | BH169: =IF(BG$3=1,Paramétrages!$E7,IF(BG$3=2,Paramétrages!$G7,IF(BG$3=3,Paramétrages!$I7,IF(BG$3=4,Paramétrages!$K7,IF(BG$3=5,Paramétrages!$M7,0))))) -> 0 | BI169: =IF(BI$3=1,Paramétrages!$D7,IF(BI$3=2,Paramétrages!$F7,IF(BI$3=3,Paramétrages!$H7,IF(BI$3=4,Paramétrages!$J7,IF(BI$3=5,Paramétrages!$L7,0))))) -> 3.25 | BJ169: =IF(BI$3=1,Paramétrages!$E7,IF(BI$3=2,Paramétrages!$G7,IF(BI$3=3,Paramétrages!$I7,IF(BI$3=4,Paramétrages!$K7,IF(BI$3=5,Paramétrages!$M7,0))))) -> 3.25 | BK169: =IF(BK$3=1,Paramétrages!$D7,IF(BK$3=2,Paramétrages!$F7,IF(BK$3=3,Paramétrages!$H7,IF(BK$3=4,Paramétrages!$J7,IF(BK$3=5,Paramétrages!$L7,0))))) -> 3.25 | BL169: =IF(BK$3=1,Paramétrages!$E7,IF(BK$3=2,Paramétrages!$G7,IF(BK$3=3,Paramétrages!$I7,IF(BK$3=4,Paramétrages!$K7,IF(BK$3=5,Paramétrages!$M7,0))))) -> 3.25 | BM169: =IF(BM$3=1,Paramétrages!$D7,IF(BM$3=2,Paramétrages!$F7,IF(BM$3=3,Paramétrages!$H7,IF(BM$3=4,Paramétrages!$J7,IF(BM$3=5,Paramétrages!$L7,0))))) -> 3.25 | BN169: =IF(BM$3=1,Paramétrages!$E7,IF(BM$3=2,Paramétrages!$G7,IF(BM$3=3,Paramétrages!$I7,IF(BM$3=4,Paramétrages!$K7,IF(BM$3=5,Paramétrages!$M7,0))))) -> 3.25 | BO169: =IF(BO$3=1,Paramétrages!$D7,IF(BO$3=2,Paramétrages!$F7,IF(BO$3=3,Paramétrages!$H7,IF(BO$3=4,Paramétrages!$J7,IF(BO$3=5,Paramétrages!$L7,0))))) -> 3.25 | BP169: =IF(BO$3=1,Paramétrages!$E7,IF(BO$3=2,Paramétrages!$G7,IF(BO$3=3,Paramétrages!$I7,IF(BO$3=4,Paramétrages!$K7,IF(BO$3=5,Paramétrages!$M7,0))))) -> 3.25 | BQ169: =IF(BQ$3=1,Paramétrages!$D7,IF(BQ$3=2,Paramétrages!$F7,IF(BQ$3=3,Paramétrages!$H7,IF(BQ$3=4,Paramétrages!$J7,IF(BQ$3=5,Paramétrages!$L7,0))))) -> 3.25 | BR169: =IF(BQ$3=1,Paramétrages!$E7,IF(BQ$3=2,Paramétrages!$G7,IF(BQ$3=3,Paramétrages!$I7,IF(BQ$3=4,Paramétrages!$K7,IF(BQ$3=5,Paramétrages!$M7,0))))) -> 3.25 | BS169: =IF(BS$3=1,Paramétrages!$D7,IF(BS$3=2,Paramétrages!$F7,IF(BS$3=3,Paramétrages!$H7,IF(BS$3=4,Paramétrages!$J7,IF(BS$3=5,Paramétrages!$L7,0))))) -> 0 | BT169: =IF(BS$3=1,Paramétrages!$E7,IF(BS$3=2,Paramétrages!$G7,IF(BS$3=3,Paramétrages!$I7,IF(BS$3=4,Paramétrages!$K7,IF(BS$3=5,Paramétrages!$M7,0))))) -> 0 | BU169: =IF(BU$3=1,Paramétrages!$D7,IF(BU$3=2,Paramétrages!$F7,IF(BU$3=3,Paramétrages!$H7,IF(BU$3=4,Paramétrages!$J7,IF(BU$3=5,Paramétrages!$L7,0))))) -> 0 | BV169: =IF(BU$3=1,Paramétrages!$E7,IF(BU$3=2,Paramétrages!$G7,IF(BU$3=3,Paramétrages!$I7,IF(BU$3=4,Paramétrages!$K7,IF(BU$3=5,Paramétrages!$M7,0))))) -> 0 | BW169: =IF(BW$3=1,Paramétrages!$D7,IF(BW$3=2,Paramétrages!$F7,IF(BW$3=3,Paramétrages!$H7,IF(BW$3=4,Paramétrages!$J7,IF(BW$3=5,Paramétrages!$L7,0))))) -> 3.25 | BX169: =IF(BW$3=1,Paramétrages!$E7,IF(BW$3=2,Paramétrages!$G7,IF(BW$3=3,Paramétrages!$I7,IF(BW$3=4,Paramétrages!$K7,IF(BW$3=5,Paramétrages!$M7,0))))) -> 3.25 | BY169: =IF(BY$3=1,Paramétrages!$D7,IF(BY$3=2,Paramétrages!$F7,IF(BY$3=3,Paramétrages!$H7,IF(BY$3=4,Paramétrages!$J7,IF(BY$3=5,Paramétrages!$L7,0))))) -> 3.25 | BZ169: =IF(BY$3=1,Paramétrages!$E7,IF(BY$3=2,Paramétrages!$G7,IF(BY$3=3,Paramétrages!$I7,IF(BY$3=4,Paramétrages!$K7,IF(BY$3=5,Paramétrages!$M7,0))))) -> 3.25 | CA169: =IF(CA$3=1,Paramétrages!$D7,IF(CA$3=2,Paramétrages!$F7,IF(CA$3=3,Paramétrages!$H7,IF(CA$3=4,Paramétrages!$J7,IF(CA$3=5,Paramétrages!$L7,0))))) -> 3.25 | CB169: =IF(CA$3=1,Paramétrages!$E7,IF(CA$3=2,Paramétrages!$G7,IF(CA$3=3,Paramétrages!$I7,IF(CA$3=4,Paramétrages!$K7,IF(CA$3=5,Paramétrages!$M7,0))))) -> 3.25 | CC169: =IF(CC$3=1,Paramétrages!$D7,IF(CC$3=2,Paramétrages!$F7,IF(CC$3=3,Paramétrages!$H7,IF(CC$3=4,Paramétrages!$J7,IF(CC$3=5,Paramétrages!$L7,0))))) -> 3.25 | CD169: =IF(CC$3=1,Paramétrages!$E7,IF(CC$3=2,Paramétrages!$G7,IF(CC$3=3,Paramétrages!$I7,IF(CC$3=4,Paramétrages!$K7,IF(CC$3=5,Paramétrages!$M7,0))))) -> 3.25 | CE169: =IF(CE$3=1,Paramétrages!$D7,IF(CE$3=2,Paramétrages!$F7,IF(CE$3=3,Paramétrages!$H7,IF(CE$3=4,Paramétrages!$J7,IF(CE$3=5,Paramétrages!$L7,0))))) -> 3.25 | CF169: =IF(CE$3=1,Paramétrages!$E7,IF(CE$3=2,Paramétrages!$G7,IF(CE$3=3,Paramétrages!$I7,IF(CE$3=4,Paramétrages!$K7,IF(CE$3=5,Paramétrages!$M7,0))))) -> 3.25 | CG169: =IF(CG$3=1,Paramétrages!$D7,IF(CG$3=2,Paramétrages!$F7,IF(CG$3=3,Paramétrages!$H7,IF(CG$3=4,Paramétrages!$J7,IF(CG$3=5,Paramétrages!$L7,0))))) -> 0 | CH169: =IF(CG$3=1,Paramétrages!$E7,IF(CG$3=2,Paramétrages!$G7,IF(CG$3=3,Paramétrages!$I7,IF(CG$3=4,Paramétrages!$K7,IF(CG$3=5,Paramétrages!$M7,0))))) -> 0 | CI169: =IF(CI$3=1,Paramétrages!$D7,IF(CI$3=2,Paramétrages!$F7,IF(CI$3=3,Paramétrages!$H7,IF(CI$3=4,Paramétrages!$J7,IF(CI$3=5,Paramétrages!$L7,0))))) -> 0 | CJ169: =IF(CI$3=1,Paramétrages!$E7,IF(CI$3=2,Paramétrages!$G7,IF(CI$3=3,Paramétrages!$I7,IF(CI$3=4,Paramétrages!$K7,IF(CI$3=5,Paramétrages!$M7,0))))) -> 0 | CK169: =IF(CK$3=1,Paramétrages!$D7,IF(CK$3=2,Paramétrages!$F7,IF(CK$3=3,Paramétrages!$H7,IF(CK$3=4,Paramétrages!$J7,IF(CK$3=5,Paramétrages!$L7,0))))) -> 3.25 | CL169: =IF(CK$3=1,Paramétrages!$E7,IF(CK$3=2,Paramétrages!$G7,IF(CK$3=3,Paramétrages!$I7,IF(CK$3=4,Paramétrages!$K7,IF(CK$3=5,Paramétrages!$M7,0))))) -> 3.25 | CM169: =IF(CM$3=1,Paramétrages!$D7,IF(CM$3=2,Paramétrages!$F7,IF(CM$3=3,Paramétrages!$H7,IF(CM$3=4,Paramétrages!$J7,IF(CM$3=5,Paramétrages!$L7,0))))) -> 3.25 | CN169: =IF(CM$3=1,Paramétrages!$E7,IF(CM$3=2,Paramétrages!$G7,IF(CM$3=3,Paramétrages!$I7,IF(CM$3=4,Paramétrages!$K7,IF(CM$3=5,Paramétrages!$M7,0))))) -> 3.25 | CO169: =IF(CO$3=1,Paramétrages!$D7,IF(CO$3=2,Paramétrages!$F7,IF(CO$3=3,Paramétrages!$H7,IF(CO$3=4,Paramétrages!$J7,IF(CO$3=5,Paramétrages!$L7,0))))) -> 3.25 | CP169: =IF(CO$3=1,Paramétrages!$E7,IF(CO$3=2,Paramétrages!$G7,IF(CO$3=3,Paramétrages!$I7,IF(CO$3=4,Paramétrages!$K7,IF(CO$3=5,Paramétrages!$M7,0))))) -> 3.25 | CQ169: =IF(CQ$3=1,Paramétrages!$D7,IF(CQ$3=2,Paramétrages!$F7,IF(CQ$3=3,Paramétrages!$H7,IF(CQ$3=4,Paramétrages!$J7,IF(CQ$3=5,Paramétrages!$L7,0))))) -> 3.25 | CR169: =IF(CQ$3=1,Paramétrages!$E7,IF(CQ$3=2,Paramétrages!$G7,IF(CQ$3=3,Paramétrages!$I7,IF(CQ$3=4,Paramétrages!$K7,IF(CQ$3=5,Paramétrages!$M7,0))))) -> 3.25 | CS169: =IF(CS$3=1,Paramétrages!$D7,IF(CS$3=2,Paramétrages!$F7,IF(CS$3=3,Paramétrages!$H7,IF(CS$3=4,Paramétrages!$J7,IF(CS$3=5,Paramétrages!$L7,0))))) -> 3.25 | CT169: =IF(CS$3=1,Paramétrages!$E7,IF(CS$3=2,Paramétrages!$G7,IF(CS$3=3,Paramétrages!$I7,IF(CS$3=4,Paramétrages!$K7,IF(CS$3=5,Paramétrages!$M7,0))))) -> 3.25 | CU169: =IF(CU$3=1,Paramétrages!$D7,IF(CU$3=2,Paramétrages!$F7,IF(CU$3=3,Paramétrages!$H7,IF(CU$3=4,Paramétrages!$J7,IF(CU$3=5,Paramétrages!$L7,0))))) -> 0 | CV169: =IF(CU$3=1,Paramétrages!$E7,IF(CU$3=2,Paramétrages!$G7,IF(CU$3=3,Paramétrages!$I7,IF(CU$3=4,Paramétrages!$K7,IF(CU$3=5,Paramétrages!$M7,0))))) -> 0 | CW169: =IF(CW$3=1,Paramétrages!$D7,IF(CW$3=2,Paramétrages!$F7,IF(CW$3=3,Paramétrages!$H7,IF(CW$3=4,Paramétrages!$J7,IF(CW$3=5,Paramétrages!$L7,0))))) -> 0 | CX169: =IF(CW$3=1,Paramétrages!$E7,IF(CW$3=2,Paramétrages!$G7,IF(CW$3=3,Paramétrages!$I7,IF(CW$3=4,Paramétrages!$K7,IF(CW$3=5,Paramétrages!$M7,0))))) -> 0 | CY169: =IF(CY$3=1,Paramétrages!$D7,IF(CY$3=2,Paramétrages!$F7,IF(CY$3=3,Paramétrages!$H7,IF(CY$3=4,Paramétrages!$J7,IF(CY$3=5,Paramétrages!$L7,0))))) -> 3.25 | CZ169: =IF(CY$3=1,Paramétrages!$E7,IF(CY$3=2,Paramétrages!$G7,IF(CY$3=3,Paramétrages!$I7,IF(CY$3=4,Paramétrages!$K7,IF(CY$3=5,Paramétrages!$M7,0))))) -> 3.25 | DA169: =IF(DA$3=1,Paramétrages!$D7,IF(DA$3=2,Paramétrages!$F7,IF(DA$3=3,Paramétrages!$H7,IF(DA$3=4,Paramétrages!$J7,IF(DA$3=5,Paramétrages!$L7,0))))) -> 3.25 | DB169: =IF(DA$3=1,Paramétrages!$E7,IF(DA$3=2,Paramétrages!$G7,IF(DA$3=3,Paramétrages!$I7,IF(DA$3=4,Paramétrages!$K7,IF(DA$3=5,Paramétrages!$M7,0))))) -> 3.25 | DC169: =IF(DC$3=1,Paramétrages!$D7,IF(DC$3=2,Paramétrages!$F7,IF(DC$3=3,Paramétrages!$H7,IF(DC$3=4,Paramétrages!$J7,IF(DC$3=5,Paramétrages!$L7,0))))) -> 3.25 | DD169: =IF(DC$3=1,Paramétrages!$E7,IF(DC$3=2,Paramétrages!$G7,IF(DC$3=3,Paramétrages!$I7,IF(DC$3=4,Paramétrages!$K7,IF(DC$3=5,Paramétrages!$M7,0))))) -> 3.25 | DE169: =IF(DE$3=1,Paramétrages!$D7,IF(DE$3=2,Paramétrages!$F7,IF(DE$3=3,Paramétrages!$H7,IF(DE$3=4,Paramétrages!$J7,IF(DE$3=5,Paramétrages!$L7,0))))) -> 3.25 | DF169: =IF(DE$3=1,Paramétrages!$E7,IF(DE$3=2,Paramétrages!$G7,IF(DE$3=3,Paramétrages!$I7,IF(DE$3=4,Paramétrages!$K7,IF(DE$3=5,Paramétrages!$M7,0))))) -> 3.25 | DG169: =IF(DG$3=1,Paramétrages!$D7,IF(DG$3=2,Paramétrages!$F7,IF(DG$3=3,Paramétrages!$H7,IF(DG$3=4,Paramétrages!$J7,IF(DG$3=5,Paramétrages!$L7,0))))) -> 3.25 | DH169: =IF(DG$3=1,Paramétrages!$E7,IF(DG$3=2,Paramétrages!$G7,IF(DG$3=3,Paramétrages!$I7,IF(DG$3=4,Paramétrages!$K7,IF(DG$3=5,Paramétrages!$M7,0))))) -> 3.25 | DI169: =IF(DI$3=1,Paramétrages!$D7,IF(DI$3=2,Paramétrages!$F7,IF(DI$3=3,Paramétrages!$H7,IF(DI$3=4,Paramétrages!$J7,IF(DI$3=5,Paramétrages!$L7,0))))) -> 0 | DJ169: =IF(DI$3=1,Paramétrages!$E7,IF(DI$3=2,Paramétrages!$G7,IF(DI$3=3,Paramétrages!$I7,IF(DI$3=4,Paramétrages!$K7,IF(DI$3=5,Paramétrages!$M7,0))))) -> 0 | DK169: =IF(DK$3=1,Paramétrages!$D7,IF(DK$3=2,Paramétrages!$F7,IF(DK$3=3,Paramétrages!$H7,IF(DK$3=4,Paramétrages!$J7,IF(DK$3=5,Paramétrages!$L7,0))))) -> 0 | DL169: =IF(DK$3=1,Paramétrages!$E7,IF(DK$3=2,Paramétrages!$G7,IF(DK$3=3,Paramétrages!$I7,IF(DK$3=4,Paramétrages!$K7,IF(DK$3=5,Paramétrages!$M7,0))))) -> 0 | DM169: =IF(DM$3=1,Paramétrages!$D7,IF(DM$3=2,Paramétrages!$F7,IF(DM$3=3,Paramétrages!$H7,IF(DM$3=4,Paramétrages!$J7,IF(DM$3=5,Paramétrages!$L7,0))))) -> 3.25 | DN169: =IF(DM$3=1,Paramétrages!$E7,IF(DM$3=2,Paramétrages!$G7,IF(DM$3=3,Paramétrages!$I7,IF(DM$3=4,Paramétrages!$K7,IF(DM$3=5,Paramétrages!$M7,0))))) -> 3.25 | DO169: =IF(DO$3=1,Paramétrages!$D7,IF(DO$3=2,Paramétrages!$F7,IF(DO$3=3,Paramétrages!$H7,IF(DO$3=4,Paramétrages!$J7,IF(DO$3=5,Paramétrages!$L7,0))))) -> 3.25 | DP169: =IF(DO$3=1,Paramétrages!$E7,IF(DO$3=2,Paramétrages!$G7,IF(DO$3=3,Paramétrages!$I7,IF(DO$3=4,Paramétrages!$K7,IF(DO$3=5,Paramétrages!$M7,0))))) -> 3.25 | DQ169: =IF(DQ$3=1,Paramétrages!$D7,IF(DQ$3=2,Paramétrages!$F7,IF(DQ$3=3,Paramétrages!$H7,IF(DQ$3=4,Paramétrages!$J7,IF(DQ$3=5,Paramétrages!$L7,0))))) -> 3.25 | DR169: =IF(DQ$3=1,Paramétrages!$E7,IF(DQ$3=2,Paramétrages!$G7,IF(DQ$3=3,Paramétrages!$I7,IF(DQ$3=4,Paramétrages!$K7,IF(DQ$3=5,Paramétrages!$M7,0))))) -> 3.25 | DS169: =IF(DS$3=1,Paramétrages!$D7,IF(DS$3=2,Paramétrages!$F7,IF(DS$3=3,Paramétrages!$H7,IF(DS$3=4,Paramétrages!$J7,IF(DS$3=5,Paramétrages!$L7,0))))) -> 3.25 | DT169: =IF(DS$3=1,Paramétrages!$E7,IF(DS$3=2,Paramétrages!$G7,IF(DS$3=3,Paramétrages!$I7,IF(DS$3=4,Paramétrages!$K7,IF(DS$3=5,Paramétrages!$M7,0))))) -> 3.25 | DU169: =IF(DU$3=1,Paramétrages!$D7,IF(DU$3=2,Paramétrages!$F7,IF(DU$3=3,Paramétrages!$H7,IF(DU$3=4,Paramétrages!$J7,IF(DU$3=5,Paramétrages!$L7,0))))) -> 3.25 | DV169: =IF(DU$3=1,Paramétrages!$E7,IF(DU$3=2,Paramétrages!$G7,IF(DU$3=3,Paramétrages!$I7,IF(DU$3=4,Paramétrages!$K7,IF(DU$3=5,Paramétrages!$M7,0))))) -> 3.25 | DW169: =IF(DW$3=1,Paramétrages!$D7,IF(DW$3=2,Paramétrages!$F7,IF(DW$3=3,Paramétrages!$H7,IF(DW$3=4,Paramétrages!$J7,IF(DW$3=5,Paramétrages!$L7,0))))) -> 0 | DX169: =IF(DW$3=1,Paramétrages!$E7,IF(DW$3=2,Paramétrages!$G7,IF(DW$3=3,Paramétrages!$I7,IF(DW$3=4,Paramétrages!$K7,IF(DW$3=5,Paramétrages!$M7,0))))) -> 0 | DY169: =IF(DY$3=1,Paramétrages!$D7,IF(DY$3=2,Paramétrages!$F7,IF(DY$3=3,Paramétrages!$H7,IF(DY$3=4,Paramétrages!$J7,IF(DY$3=5,Paramétrages!$L7,0))))) -> 0 | DZ169: =IF(DY$3=1,Paramétrages!$E7,IF(DY$3=2,Paramétrages!$G7,IF(DY$3=3,Paramétrages!$I7,IF(DY$3=4,Paramétrages!$K7,IF(DY$3=5,Paramétrages!$M7,0))))) -> 0 | EA169: =IF(EA$3=1,Paramétrages!$D7,IF(EA$3=2,Paramétrages!$F7,IF(EA$3=3,Paramétrages!$H7,IF(EA$3=4,Paramétrages!$J7,IF(EA$3=5,Paramétrages!$L7,0))))) -> 3.25 | EB169: =IF(EA$3=1,Paramétrages!$E7,IF(EA$3=2,Paramétrages!$G7,IF(EA$3=3,Paramétrages!$I7,IF(EA$3=4,Paramétrages!$K7,IF(EA$3=5,Paramétrages!$M7,0))))) -> 3.25 | EC169: =IF(EC$3=1,Paramétrages!$D7,IF(EC$3=2,Paramétrages!$F7,IF(EC$3=3,Paramétrages!$H7,IF(EC$3=4,Paramétrages!$J7,IF(EC$3=5,Paramétrages!$L7,0))))) -> 3.25 | ED169: =IF(EC$3=1,Paramétrages!$E7,IF(EC$3=2,Paramétrages!$G7,IF(EC$3=3,Paramétrages!$I7,IF(EC$3=4,Paramétrages!$K7,IF(EC$3=5,Paramétrages!$M7,0))))) -> 3.25 | EE169: =IF(EE$3=1,Paramétrages!$D7,IF(EE$3=2,Paramétrages!$F7,IF(EE$3=3,Paramétrages!$H7,IF(EE$3=4,Paramétrages!$J7,IF(EE$3=5,Paramétrages!$L7,0))))) -> 3.25 | EF169: =IF(EE$3=1,Paramétrages!$E7,IF(EE$3=2,Paramétrages!$G7,IF(EE$3=3,Paramétrages!$I7,IF(EE$3=4,Paramétrages!$K7,IF(EE$3=5,Paramétrages!$M7,0))))) -> 3.25 | EG169: =IF(EG$3=1,Paramétrages!$D7,IF(EG$3=2,Paramétrages!$F7,IF(EG$3=3,Paramétrages!$H7,IF(EG$3=4,Paramétrages!$J7,IF(EG$3=5,Paramétrages!$L7,0))))) -> 3.25 | EH169: =IF(EG$3=1,Paramétrages!$E7,IF(EG$3=2,Paramétrages!$G7,IF(EG$3=3,Paramétrages!$I7,IF(EG$3=4,Paramétrages!$K7,IF(EG$3=5,Paramétrages!$M7,0))))) -> 3.25 | EI169: =IF(EI$3=1,Paramétrages!$D7,IF(EI$3=2,Paramétrages!$F7,IF(EI$3=3,Paramétrages!$H7,IF(EI$3=4,Paramétrages!$J7,IF(EI$3=5,Paramétrages!$L7,0))))) -> 3.25 | EJ169: =IF(EI$3=1,Paramétrages!$E7,IF(EI$3=2,Paramétrages!$G7,IF(EI$3=3,Paramétrages!$I7,IF(EI$3=4,Paramétrages!$K7,IF(EI$3=5,Paramétrages!$M7,0))))) -> 3.25 | EK169: =IF(EK$3=1,Paramétrages!$D7,IF(EK$3=2,Paramétrages!$F7,IF(EK$3=3,Paramétrages!$H7,IF(EK$3=4,Paramétrages!$J7,IF(EK$3=5,Paramétrages!$L7,0))))) -> 0 | EL169: =IF(EK$3=1,Paramétrages!$E7,IF(EK$3=2,Paramétrages!$G7,IF(EK$3=3,Paramétrages!$I7,IF(EK$3=4,Paramétrages!$K7,IF(EK$3=5,Paramétrages!$M7,0))))) -> 0 | EM169: =IF(EM$3=1,Paramétrages!$D7,IF(EM$3=2,Paramétrages!$F7,IF(EM$3=3,Paramétrages!$H7,IF(EM$3=4,Paramétrages!$J7,IF(EM$3=5,Paramétrages!$L7,0))))) -> 0 | EN169: =IF(EM$3=1,Paramétrages!$E7,IF(EM$3=2,Paramétrages!$G7,IF(EM$3=3,Paramétrages!$I7,IF(EM$3=4,Paramétrages!$K7,IF(EM$3=5,Paramétrages!$M7,0))))) -> 0 | EO169: =IF(EO$3=1,Paramétrages!$D7,IF(EO$3=2,Paramétrages!$F7,IF(EO$3=3,Paramétrages!$H7,IF(EO$3=4,Paramétrages!$J7,IF(EO$3=5,Paramétrages!$L7,0))))) -> 3.25 | EP169: =IF(EO$3=1,Paramétrages!$E7,IF(EO$3=2,Paramétrages!$G7,IF(EO$3=3,Paramétrages!$I7,IF(EO$3=4,Paramétrages!$K7,IF(EO$3=5,Paramétrages!$M7,0))))) -> 3.25 | EQ169: =IF(EQ$3=1,Paramétrages!$D7,IF(EQ$3=2,Paramétrages!$F7,IF(EQ$3=3,Paramétrages!$H7,IF(EQ$3=4,Paramétrages!$J7,IF(EQ$3=5,Paramétrages!$L7,0))))) -> 3.25 | ER169: =IF(EQ$3=1,Paramétrages!$E7,IF(EQ$3=2,Paramétrages!$G7,IF(EQ$3=3,Paramétrages!$I7,IF(EQ$3=4,Paramétrages!$K7,IF(EQ$3=5,Paramétrages!$M7,0))))) -> 3.25 | ES169: =IF(ES$3=1,Paramétrages!$D7,IF(ES$3=2,Paramétrages!$F7,IF(ES$3=3,Paramétrages!$H7,IF(ES$3=4,Paramétrages!$J7,IF(ES$3=5,Paramétrages!$L7,0))))) -> 3.25 | ET169: =IF(ES$3=1,Paramétrages!$E7,IF(ES$3=2,Paramétrages!$G7,IF(ES$3=3,Paramétrages!$I7,IF(ES$3=4,Paramétrages!$K7,IF(ES$3=5,Paramétrages!$M7,0))))) -> 3.25 | EU169: =IF(EU$3=1,Paramétrages!$D7,IF(EU$3=2,Paramétrages!$F7,IF(EU$3=3,Paramétrages!$H7,IF(EU$3=4,Paramétrages!$J7,IF(EU$3=5,Paramétrages!$L7,0))))) -> 3.25 | EV169: =IF(EU$3=1,Paramétrages!$E7,IF(EU$3=2,Paramétrages!$G7,IF(EU$3=3,Paramétrages!$I7,IF(EU$3=4,Paramétrages!$K7,IF(EU$3=5,Paramétrages!$M7,0))))) -> 3.25 | EW169: =IF(EW$3=1,Paramétrages!$D7,IF(EW$3=2,Paramétrages!$F7,IF(EW$3=3,Paramétrages!$H7,IF(EW$3=4,Paramétrages!$J7,IF(EW$3=5,Paramétrages!$L7,0))))) -> 3.25 | EX169: =IF(EW$3=1,Paramétrages!$E7,IF(EW$3=2,Paramétrages!$G7,IF(EW$3=3,Paramétrages!$I7,IF(EW$3=4,Paramétrages!$K7,IF(EW$3=5,Paramétrages!$M7,0))))) -> 3.25 | EY169: =IF(EY$3=1,Paramétrages!$D7,IF(EY$3=2,Paramétrages!$F7,IF(EY$3=3,Paramétrages!$H7,IF(EY$3=4,Paramétrages!$J7,IF(EY$3=5,Paramétrages!$L7,0))))) -> 0 | EZ169: =IF(EY$3=1,Paramétrages!$E7,IF(EY$3=2,Paramétrages!$G7,IF(EY$3=3,Paramétrages!$I7,IF(EY$3=4,Paramétrages!$K7,IF(EY$3=5,Paramétrages!$M7,0))))) -> 0 | FA169: =IF(FA$3=1,Paramétrages!$D7,IF(FA$3=2,Paramétrages!$F7,IF(FA$3=3,Paramétrages!$H7,IF(FA$3=4,Paramétrages!$J7,IF(FA$3=5,Paramétrages!$L7,0))))) -> 0 | FB169: =IF(FA$3=1,Paramétrages!$E7,IF(FA$3=2,Paramétrages!$G7,IF(FA$3=3,Paramétrages!$I7,IF(FA$3=4,Paramétrages!$K7,IF(FA$3=5,Paramétrages!$M7,0))))) -> 0 | FC169: =IF(FC$3=1,Paramétrages!$D7,IF(FC$3=2,Paramétrages!$F7,IF(FC$3=3,Paramétrages!$H7,IF(FC$3=4,Paramétrages!$J7,IF(FC$3=5,Paramétrages!$L7,0))))) -> 3.25 | FD169: =IF(FC$3=1,Paramétrages!$E7,IF(FC$3=2,Paramétrages!$G7,IF(FC$3=3,Paramétrages!$I7,IF(FC$3=4,Paramétrages!$K7,IF(FC$3=5,Paramétrages!$M7,0))))) -> 3.25 | FE169: =IF(FE$3=1,Paramétrages!$D7,IF(FE$3=2,Paramétrages!$F7,IF(FE$3=3,Paramétrages!$H7,IF(FE$3=4,Paramétrages!$J7,IF(FE$3=5,Paramétrages!$L7,0))))) -> 3.25 | FF169: =IF(FE$3=1,Paramétrages!$E7,IF(FE$3=2,Paramétrages!$G7,IF(FE$3=3,Paramétrages!$I7,IF(FE$3=4,Paramétrages!$K7,IF(FE$3=5,Paramétrages!$M7,0))))) -> 3.25 | FG169: =IF(FG$3=1,Paramétrages!$D7,IF(FG$3=2,Paramétrages!$F7,IF(FG$3=3,Paramétrages!$H7,IF(FG$3=4,Paramétrages!$J7,IF(FG$3=5,Paramétrages!$L7,0))))) -> 3.25 | FH169: =IF(FG$3=1,Paramétrages!$E7,IF(FG$3=2,Paramétrages!$G7,IF(FG$3=3,Paramétrages!$I7,IF(FG$3=4,Paramétrages!$K7,IF(FG$3=5,Paramétrages!$M7,0))))) -> 3.25 | FI169: =IF(FI$3=1,Paramétrages!$D7,IF(FI$3=2,Paramétrages!$F7,IF(FI$3=3,Paramétrages!$H7,IF(FI$3=4,Paramétrages!$J7,IF(FI$3=5,Paramétrages!$L7,0))))) -> 3.25 | FJ169: =IF(FI$3=1,Paramétrages!$E7,IF(FI$3=2,Paramétrages!$G7,IF(FI$3=3,Paramétrages!$I7,IF(FI$3=4,Paramétrages!$K7,IF(FI$3=5,Paramétrages!$M7,0))))) -> 3.25 | FK169: =IF(FK$3=1,Paramétrages!$D7,IF(FK$3=2,Paramétrages!$F7,IF(FK$3=3,Paramétrages!$H7,IF(FK$3=4,Paramétrages!$J7,IF(FK$3=5,Paramétrages!$L7,0))))) -> 3.25 | FL169: =IF(FK$3=1,Paramétrages!$E7,IF(FK$3=2,Paramétrages!$G7,IF(FK$3=3,Paramétrages!$I7,IF(FK$3=4,Paramétrages!$K7,IF(FK$3=5,Paramétrages!$M7,0))))) -> 3.25 | FM169: =IF(FM$3=1,Paramétrages!$D7,IF(FM$3=2,Paramétrages!$F7,IF(FM$3=3,Paramétrages!$H7,IF(FM$3=4,Paramétrages!$J7,IF(FM$3=5,Paramétrages!$L7,0))))) -> 0 | FN169: =IF(FM$3=1,Paramétrages!$E7,IF(FM$3=2,Paramétrages!$G7,IF(FM$3=3,Paramétrages!$I7,IF(FM$3=4,Paramétrages!$K7,IF(FM$3=5,Paramétrages!$M7,0))))) -> 0 | FO169: =IF(FO$3=1,Paramétrages!$D7,IF(FO$3=2,Paramétrages!$F7,IF(FO$3=3,Paramétrages!$H7,IF(FO$3=4,Paramétrages!$J7,IF(FO$3=5,Paramétrages!$L7,0))))) -> 0 | FP169: =IF(FO$3=1,Paramétrages!$E7,IF(FO$3=2,Paramétrages!$G7,IF(FO$3=3,Paramétrages!$I7,IF(FO$3=4,Paramétrages!$K7,IF(FO$3=5,Paramétrages!$M7,0))))) -> 0 | FQ169: =IF(FQ$3=1,Paramétrages!$D7,IF(FQ$3=2,Paramétrages!$F7,IF(FQ$3=3,Paramétrages!$H7,IF(FQ$3=4,Paramétrages!$J7,IF(FQ$3=5,Paramétrages!$L7,0))))) -> 3.25 | FR169: =IF(FQ$3=1,Paramétrages!$E7,IF(FQ$3=2,Paramétrages!$G7,IF(FQ$3=3,Paramétrages!$I7,IF(FQ$3=4,Paramétrages!$K7,IF(FQ$3=5,Paramétrages!$M7,0))))) -> 3.25 | FS169: =IF(FS$3=1,Paramétrages!$D7,IF(FS$3=2,Paramétrages!$F7,IF(FS$3=3,Paramétrages!$H7,IF(FS$3=4,Paramétrages!$J7,IF(FS$3=5,Paramétrages!$L7,0))))) -> 3.25 | FT169: =IF(FS$3=1,Paramétrages!$E7,IF(FS$3=2,Paramétrages!$G7,IF(FS$3=3,Paramétrages!$I7,IF(FS$3=4,Paramétrages!$K7,IF(FS$3=5,Paramétrages!$M7,0))))) -> 3.25 | FU169: =IF(FU$3=1,Paramétrages!$D7,IF(FU$3=2,Paramétrages!$F7,IF(FU$3=3,Paramétrages!$H7,IF(FU$3=4,Paramétrages!$J7,IF(FU$3=5,Paramétrages!$L7,0))))) -> 3.25 | FV169: =IF(FU$3=1,Paramétrages!$E7,IF(FU$3=2,Paramétrages!$G7,IF(FU$3=3,Paramétrages!$I7,IF(FU$3=4,Paramétrages!$K7,IF(FU$3=5,Paramétrages!$M7,0))))) -> 3.25 | FW169: =IF(FW$3=1,Paramétrages!$D7,IF(FW$3=2,Paramétrages!$F7,IF(FW$3=3,Paramétrages!$H7,IF(FW$3=4,Paramétrages!$J7,IF(FW$3=5,Paramétrages!$L7,0))))) -> 3.25 | FX169: =IF(FW$3=1,Paramétrages!$E7,IF(FW$3=2,Paramétrages!$G7,IF(FW$3=3,Paramétrages!$I7,IF(FW$3=4,Paramétrages!$K7,IF(FW$3=5,Paramétrages!$M7,0))))) -> 3.25 | FY169: =IF(FY$3=1,Paramétrages!$D7,IF(FY$3=2,Paramétrages!$F7,IF(FY$3=3,Paramétrages!$H7,IF(FY$3=4,Paramétrages!$J7,IF(FY$3=5,Paramétrages!$L7,0))))) -> 3.25 | FZ169: =IF(FY$3=1,Paramétrages!$E7,IF(FY$3=2,Paramétrages!$G7,IF(FY$3=3,Paramétrages!$I7,IF(FY$3=4,Paramétrages!$K7,IF(FY$3=5,Paramétrages!$M7,0))))) -> 3.25 | GA169: =IF(GA$3=1,Paramétrages!$D7,IF(GA$3=2,Paramétrages!$F7,IF(GA$3=3,Paramétrages!$H7,IF(GA$3=4,Paramétrages!$J7,IF(GA$3=5,Paramétrages!$L7,0))))) -> 0 | GB169: =IF(GA$3=1,Paramétrages!$E7,IF(GA$3=2,Paramétrages!$G7,IF(GA$3=3,Paramétrages!$I7,IF(GA$3=4,Paramétrages!$K7,IF(GA$3=5,Paramétrages!$M7,0))))) -> 0 | GC169: =IF(GC$3=1,Paramétrages!$D7,IF(GC$3=2,Paramétrages!$F7,IF(GC$3=3,Paramétrages!$H7,IF(GC$3=4,Paramétrages!$J7,IF(GC$3=5,Paramétrages!$L7,0))))) -> 0 | GD169: =IF(GC$3=1,Paramétrages!$E7,IF(GC$3=2,Paramétrages!$G7,IF(GC$3=3,Paramétrages!$I7,IF(GC$3=4,Paramétrages!$K7,IF(GC$3=5,Paramétrages!$M7,0))))) -> 0 | GE169: =IF(GE$3=1,Paramétrages!$D7,IF(GE$3=2,Paramétrages!$F7,IF(GE$3=3,Paramétrages!$H7,IF(GE$3=4,Paramétrages!$J7,IF(GE$3=5,Paramétrages!$L7,0))))) -> 3.25 | GF169: =IF(GE$3=1,Paramétrages!$E7,IF(GE$3=2,Paramétrages!$G7,IF(GE$3=3,Paramétrages!$I7,IF(GE$3=4,Paramétrages!$K7,IF(GE$3=5,Paramétrages!$M7,0))))) -> 3.25 | GK169: =D171 -> 0 | GL169: =COUNTIF(E169:BN169,">0")/2 -> 23 | GM169: =IF(GL169>0,GL170/GL169," ") -> 0.4565217391 | GN169: =IF($DS$2=$GI$3,COUNTIF($BO169:$DX169,">0")/2,COUNTIF($BO169:$DX169,">0")/2) -> 22 | GO169: =IF(GN169>0,GN170/GN169," ") -> 0.07954545455 | GP169: =IF($DS$2=$GI$3,COUNTIF($DY169:$GF169,">0")/2,COUNTIF($DY169:$GF169,">0")/2) -> 21 | GQ169: =IF(GP169>0,GP170/GP169," ") -> 0.119047619 | GR169: =COUNTIF(E169:BN169,"ad")/2 -> 0 | GT169: =IF($DS$2=$GI$3,COUNTIF($BO169:$DX169,"ad")/2,COUNTIF($BO169:$DX169,"ad")/2) -> 0 | GV169: =IF($DS$2=$GI$3,COUNTIF($DY169:$GF169,"ad")/2,COUNTIF($DY169:$GF169,"ad")/2) -> 0 | HE169: =Paramétrages!$B$7 -> NOM | HF169: =COUNTIF($E169:$GF170,"A2")/2 -> 0 | HG169: =COUNTIF($E169:$GF170,"cp")/2 -> 0 | HH169: =COUNTIF($E169:$GF170,"css")/2 -> 0 | HI169: =COUNTIF($E169:$GF170,"ma")/2 -> 0 | HJ169: =COUNTIF($E169:$GF170,"at")/2 -> 0 | HK169: =COUNTIF($E169:$GF170,"aj")/2 -> 0 | HL169: =COUNTIF($E169:$GF170,"ai")/2 -> 0 | HM169: =COUNTIF($E169:$GF170,"ad")/2 -> 0 | HN169: =COUNTIF($E169:$GF170,"st")/2 -> 0 | HO169: =COUNTIF($E169:$GF170,"di")/2 -> 0
B170: 2 | E170: R | BW170: R | BY170: R | CA170: R | CC170: R | CE170: R | GH170: =COUNTIF(E170:GF170,"R") -> 6 | GL170: =(SUM(E171:BN171)+COUNTIF(E171:BN171,"ad"))/2 -> 10.5 | GN170: =IF($GI$3=$DS$2,(SUM(BO171:DX171)+COUNTIF(BO171:DX171,"ad"))/2, (SUM(BO171:DX171)+COUNTIF(BO171:DX171,"ad"))/2) -> 1.75 | GP170: =IF($GI$3=$DS$2,(SUM(DY171:GF171)+COUNTIF(DY171:GF171,"ad"))/2, (SUM(DY171:GF171)+COUNTIF(DY171:GF171,"ad"))/2) -> 2.5 | HE170: =Paramétrages!$B$10 -> NOM | HF170: =COUNTIF(E172:GF173,"A2")/2 -> 0 | HG170: =COUNTIF(F172:GG173,"cp")/2 -> 0 | HH170: =COUNTIF(G172:GH173,"css")/2 -> 0 | HI170: =COUNTIF(H172:GI173,"ma")/2 -> 0 | HJ170: =COUNTIF(I172:GJ173,"at")/2 -> 0 | HK170: =COUNTIF(J172:GK173,"aj")/2 -> 0 | HL170: =COUNTIF(K172:GL173,"ai")/2 -> 0 | HM170: =COUNTIF(L172:GM173,"ad")/2 -> 0 | HN170: =COUNTIF(M172:GN173,"st")/2 -> 0 | HO170: =COUNTIF(N172:GO173,"di")/2 -> 0
A171: =Paramétrages!B7 -> NOM | B171: 3 | F171: 1 | G171: 1 | H171: 1 | I171: 1 | J171: 1 | K171: 1 | M171: 1 | N171: 1 | U171: 0.5 | V171: 0.5 | X171: 0.5 | Y171: 1 | AG171: 0.5 | AH171: 1 | AI171: 1 | AV171: 1 | AW171: 1 | AX171: 1 | BA171: 1 | BI171: 1 | BJ171: 1 | BK171: 1 | BL171: 1 | BP171: 0.5 | DM171: 0.5 | DN171: 0.5 | DQ171: 0.5 | DT171: 0.5 | DU171: 1 | EE171: 1 | EG171: 1 | EI171: 1 | EJ171: 1 | EO171: 1 | GO171: =IF(GN171>0,GN172/GN171," ") ->  | HE171: =Paramétrages!$B$13 -> NOM | HF171: =COUNTIF(E175:GF176,"A2")/2 -> 0 | HG171: =COUNTIF(F175:GG176,"cp")/2 -> 0 | HH171: =COUNTIF(G175:GH176,"css")/2 -> 0 | HI171: =COUNTIF(H175:GI176,"ma")/2 -> 0 | HJ171: =COUNTIF(I175:GJ176,"at")/2 -> 0 | HK171: =COUNTIF(J175:GK176,"aj")/2 -> 0 | HL171: =COUNTIF(K175:GL176,"ai")/2 -> 0 | HM171: =COUNTIF(L175:GM176,"ad")/2 -> 0 | HN171: =COUNTIF(M175:GN176,"st")/2 -> 0 | HO171: =COUNTIF(N175:GO176,"di")/2 -> 0
B172: 1 | C172: 2 | E172: =IF(E$3=1,Paramétrages!$D10,IF(E$3=2,Paramétrages!$F10,IF(E$3=3,Paramétrages!$H10,IF(E$3=4,Paramétrages!$J10,IF(E$3=5,Paramétrages!$L10,0))))) -> SAESAT | F172: =IF(E$3=1,Paramétrages!$E10,IF(E$3=2,Paramétrages!$G10,IF(E$3=3,Paramétrages!$I10,IF(E$3=4,Paramétrages!$K10,IF(E$3=5,Paramétrages!$M10,0))))) -> SAESAT | G172: =IF(G$3=1,Paramétrages!$D10,IF(G$3=2,Paramétrages!$F10,IF(G$3=3,Paramétrages!$H10,IF(G$3=4,Paramétrages!$J10,IF(G$3=5,Paramétrages!$L10,0))))) -> 3.25 | H172: =IF(G$3=1,Paramétrages!$E10,IF(G$3=2,Paramétrages!$G10,IF(G$3=3,Paramétrages!$I10,IF(G$3=4,Paramétrages!$K10,IF(G$3=5,Paramétrages!$M10,0))))) -> SAESAT | I172: =IF(I$3=1,Paramétrages!$D10,IF(I$3=2,Paramétrages!$F10,IF(I$3=3,Paramétrages!$H10,IF(I$3=4,Paramétrages!$J10,IF(I$3=5,Paramétrages!$L10,0))))) -> 3.25 | J172: =IF(I$3=1,Paramétrages!$E10,IF(I$3=2,Paramétrages!$G10,IF(I$3=3,Paramétrages!$I10,IF(I$3=4,Paramétrages!$K10,IF(I$3=5,Paramétrages!$M10,0))))) -> SAESAT | K172: =IF(K$3=1,Paramétrages!$D10,IF(K$3=2,Paramétrages!$F10,IF(K$3=3,Paramétrages!$H10,IF(K$3=4,Paramétrages!$J10,IF(K$3=5,Paramétrages!$L10,0))))) -> 3.25 | L172: =IF(K$3=1,Paramétrages!$E10,IF(K$3=2,Paramétrages!$G10,IF(K$3=3,Paramétrages!$I10,IF(K$3=4,Paramétrages!$K10,IF(K$3=5,Paramétrages!$M10,0))))) -> SAESAT | M172: =IF(M$3=1,Paramétrages!$D10,IF(M$3=2,Paramétrages!$F10,IF(M$3=3,Paramétrages!$H10,IF(M$3=4,Paramétrages!$J10,IF(M$3=5,Paramétrages!$L10,0))))) -> 3.25 | N172: =IF(M$3=1,Paramétrages!$E10,IF(M$3=2,Paramétrages!$G10,IF(M$3=3,Paramétrages!$I10,IF(M$3=4,Paramétrages!$K10,IF(M$3=5,Paramétrages!$M10,0))))) -> 3.25 | O172: =IF(O$3=1,Paramétrages!$D10,IF(O$3=2,Paramétrages!$F10,IF(O$3=3,Paramétrages!$H10,IF(O$3=4,Paramétrages!$J10,IF(O$3=5,Paramétrages!$L10,0))))) -> 0 | P172: =IF(O$3=1,Paramétrages!$E10,IF(O$3=2,Paramétrages!$G10,IF(O$3=3,Paramétrages!$I10,IF(O$3=4,Paramétrages!$K10,IF(O$3=5,Paramétrages!$M10,0))))) -> 0 | Q172: =IF(Q$3=1,Paramétrages!$D10,IF(Q$3=2,Paramétrages!$F10,IF(Q$3=3,Paramétrages!$H10,IF(Q$3=4,Paramétrages!$J10,IF(Q$3=5,Paramétrages!$L10,0))))) -> 0 | R172: =IF(Q$3=1,Paramétrages!$E10,IF(Q$3=2,Paramétrages!$G10,IF(Q$3=3,Paramétrages!$I10,IF(Q$3=4,Paramétrages!$K10,IF(Q$3=5,Paramétrages!$M10,0))))) -> 0 | S172: =IF(S$3=1,Paramétrages!$D10,IF(S$3=2,Paramétrages!$F10,IF(S$3=3,Paramétrages!$H10,IF(S$3=4,Paramétrages!$J10,IF(S$3=5,Paramétrages!$L10,0))))) -> SAESAT | T172: =IF(S$3=1,Paramétrages!$E10,IF(S$3=2,Paramétrages!$G10,IF(S$3=3,Paramétrages!$I10,IF(S$3=4,Paramétrages!$K10,IF(S$3=5,Paramétrages!$M10,0))))) -> SAESAT | U172: =IF(U$3=1,Paramétrages!$D10,IF(U$3=2,Paramétrages!$F10,IF(U$3=3,Paramétrages!$H10,IF(U$3=4,Paramétrages!$J10,IF(U$3=5,Paramétrages!$L10,0))))) -> 3.25 | V172: =IF(U$3=1,Paramétrages!$E10,IF(U$3=2,Paramétrages!$G10,IF(U$3=3,Paramétrages!$I10,IF(U$3=4,Paramétrages!$K10,IF(U$3=5,Paramétrages!$M10,0))))) -> SAESAT | W172: =IF(W$3=1,Paramétrages!$D10,IF(W$3=2,Paramétrages!$F10,IF(W$3=3,Paramétrages!$H10,IF(W$3=4,Paramétrages!$J10,IF(W$3=5,Paramétrages!$L10,0))))) -> 3.25 | X172: =IF(W$3=1,Paramétrages!$E10,IF(W$3=2,Paramétrages!$G10,IF(W$3=3,Paramétrages!$I10,IF(W$3=4,Paramétrages!$K10,IF(W$3=5,Paramétrages!$M10,0))))) -> SAESAT | Y172: =IF(Y$3=1,Paramétrages!$D10,IF(Y$3=2,Paramétrages!$F10,IF(Y$3=3,Paramétrages!$H10,IF(Y$3=4,Paramétrages!$J10,IF(Y$3=5,Paramétrages!$L10,0))))) -> 3.25 | Z172: =IF(Y$3=1,Paramétrages!$E10,IF(Y$3=2,Paramétrages!$G10,IF(Y$3=3,Paramétrages!$I10,IF(Y$3=4,Paramétrages!$K10,IF(Y$3=5,Paramétrages!$M10,0))))) -> SAESAT | AA172: =IF(AA$3=1,Paramétrages!$D10,IF(AA$3=2,Paramétrages!$F10,IF(AA$3=3,Paramétrages!$H10,IF(AA$3=4,Paramétrages!$J10,IF(AA$3=5,Paramétrages!$L10,0))))) -> 3.25 | AB172: =IF(AA$3=1,Paramétrages!$E10,IF(AA$3=2,Paramétrages!$G10,IF(AA$3=3,Paramétrages!$I10,IF(AA$3=4,Paramétrages!$K10,IF(AA$3=5,Paramétrages!$M10,0))))) -> 3.25 | AC172: =IF(AC$3=1,Paramétrages!$D10,IF(AC$3=2,Paramétrages!$F10,IF(AC$3=3,Paramétrages!$H10,IF(AC$3=4,Paramétrages!$J10,IF(AC$3=5,Paramétrages!$L10,0))))) -> 0 | AD172: =IF(AC$3=1,Paramétrages!$E10,IF(AC$3=2,Paramétrages!$G10,IF(AC$3=3,Paramétrages!$I10,IF(AC$3=4,Paramétrages!$K10,IF(AC$3=5,Paramétrages!$M10,0))))) -> 0 | AE172: =IF(AE$3=1,Paramétrages!$D10,IF(AE$3=2,Paramétrages!$F10,IF(AE$3=3,Paramétrages!$H10,IF(AE$3=4,Paramétrages!$J10,IF(AE$3=5,Paramétrages!$L10,0))))) -> 0 | AF172: =IF(AE$3=1,Paramétrages!$E10,IF(AE$3=2,Paramétrages!$G10,IF(AE$3=3,Paramétrages!$I10,IF(AE$3=4,Paramétrages!$K10,IF(AE$3=5,Paramétrages!$M10,0))))) -> 0 | AG172: =IF(AG$3=1,Paramétrages!$D10,IF(AG$3=2,Paramétrages!$F10,IF(AG$3=3,Paramétrages!$H10,IF(AG$3=4,Paramétrages!$J10,IF(AG$3=5,Paramétrages!$L10,0))))) -> SAESAT | AH172: =IF(AG$3=1,Paramétrages!$E10,IF(AG$3=2,Paramétrages!$G10,IF(AG$3=3,Paramétrages!$I10,IF(AG$3=4,Paramétrages!$K10,IF(AG$3=5,Paramétrages!$M10,0))))) -> SAESAT | AI172: =IF(AI$3=1,Paramétrages!$D10,IF(AI$3=2,Paramétrages!$F10,IF(AI$3=3,Paramétrages!$H10,IF(AI$3=4,Paramétrages!$J10,IF(AI$3=5,Paramétrages!$L10,0))))) -> 3.25 | AJ172: =IF(AI$3=1,Paramétrages!$E10,IF(AI$3=2,Paramétrages!$G10,IF(AI$3=3,Paramétrages!$I10,IF(AI$3=4,Paramétrages!$K10,IF(AI$3=5,Paramétrages!$M10,0))))) -> SAESAT | AK172: =IF(AK$3=1,Paramétrages!$D10,IF(AK$3=2,Paramétrages!$F10,IF(AK$3=3,Paramétrages!$H10,IF(AK$3=4,Paramétrages!$J10,IF(AK$3=5,Paramétrages!$L10,0))))) -> 3.25 | AL172: =IF(AK$3=1,Paramétrages!$E10,IF(AK$3=2,Paramétrages!$G10,IF(AK$3=3,Paramétrages!$I10,IF(AK$3=4,Paramétrages!$K10,IF(AK$3=5,Paramétrages!$M10,0))))) -> SAESAT | AM172: =IF(AM$3=1,Paramétrages!$D10,IF(AM$3=2,Paramétrages!$F10,IF(AM$3=3,Paramétrages!$H10,IF(AM$3=4,Paramétrages!$J10,IF(AM$3=5,Paramétrages!$L10,0))))) -> 3.25 | AN172: =IF(AM$3=1,Paramétrages!$E10,IF(AM$3=2,Paramétrages!$G10,IF(AM$3=3,Paramétrages!$I10,IF(AM$3=4,Paramétrages!$K10,IF(AM$3=5,Paramétrages!$M10,0))))) -> SAESAT | AO172: =IF(AO$3=1,Paramétrages!$D10,IF(AO$3=2,Paramétrages!$F10,IF(AO$3=3,Paramétrages!$H10,IF(AO$3=4,Paramétrages!$J10,IF(AO$3=5,Paramétrages!$L10,0))))) -> 3.25 | AP172: =IF(AO$3=1,Paramétrages!$E10,IF(AO$3=2,Paramétrages!$G10,IF(AO$3=3,Paramétrages!$I10,IF(AO$3=4,Paramétrages!$K10,IF(AO$3=5,Paramétrages!$M10,0))))) -> 3.25 | AQ172: =IF(AQ$3=1,Paramétrages!$D10,IF(AQ$3=2,Paramétrages!$F10,IF(AQ$3=3,Paramétrages!$H10,IF(AQ$3=4,Paramétrages!$J10,IF(AQ$3=5,Paramétrages!$L10,0))))) -> 0 | AR172: =IF(AQ$3=1,Paramétrages!$E10,IF(AQ$3=2,Paramétrages!$G10,IF(AQ$3=3,Paramétrages!$I10,IF(AQ$3=4,Paramétrages!$K10,IF(AQ$3=5,Paramétrages!$M10,0))))) -> 0 | AS172: =IF(AS$3=1,Paramétrages!$D10,IF(AS$3=2,Paramétrages!$F10,IF(AS$3=3,Paramétrages!$H10,IF(AS$3=4,Paramétrages!$J10,IF(AS$3=5,Paramétrages!$L10,0))))) -> 0 | AT172: =IF(AS$3=1,Paramétrages!$E10,IF(AS$3=2,Paramétrages!$G10,IF(AS$3=3,Paramétrages!$I10,IF(AS$3=4,Paramétrages!$K10,IF(AS$3=5,Paramétrages!$M10,0))))) -> 0 | AU172: =IF(AU$3=1,Paramétrages!$D10,IF(AU$3=2,Paramétrages!$F10,IF(AU$3=3,Paramétrages!$H10,IF(AU$3=4,Paramétrages!$J10,IF(AU$3=5,Paramétrages!$L10,0))))) -> SAESAT | AV172: =IF(AU$3=1,Paramétrages!$E10,IF(AU$3=2,Paramétrages!$G10,IF(AU$3=3,Paramétrages!$I10,IF(AU$3=4,Paramétrages!$K10,IF(AU$3=5,Paramétrages!$M10,0))))) -> SAESAT | AW172: =IF(AW$3=1,Paramétrages!$D10,IF(AW$3=2,Paramétrages!$F10,IF(AW$3=3,Paramétrages!$H10,IF(AW$3=4,Paramétrages!$J10,IF(AW$3=5,Paramétrages!$L10,0))))) -> 3.25 | AX172: =IF(AW$3=1,Paramétrages!$E10,IF(AW$3=2,Paramétrages!$G10,IF(AW$3=3,Paramétrages!$I10,IF(AW$3=4,Paramétrages!$K10,IF(AW$3=5,Paramétrages!$M10,0))))) -> SAESAT | AY172: =IF(AY$3=1,Paramétrages!$D10,IF(AY$3=2,Paramétrages!$F10,IF(AY$3=3,Paramétrages!$H10,IF(AY$3=4,Paramétrages!$J10,IF(AY$3=5,Paramétrages!$L10,0))))) -> 3.25 | AZ172: =IF(AY$3=1,Paramétrages!$E10,IF(AY$3=2,Paramétrages!$G10,IF(AY$3=3,Paramétrages!$I10,IF(AY$3=4,Paramétrages!$K10,IF(AY$3=5,Paramétrages!$M10,0))))) -> SAESAT | BA172: =IF(BA$3=1,Paramétrages!$D10,IF(BA$3=2,Paramétrages!$F10,IF(BA$3=3,Paramétrages!$H10,IF(BA$3=4,Paramétrages!$J10,IF(BA$3=5,Paramétrages!$L10,0))))) -> 3.25 | BB172: =IF(BA$3=1,Paramétrages!$E10,IF(BA$3=2,Paramétrages!$G10,IF(BA$3=3,Paramétrages!$I10,IF(BA$3=4,Paramétrages!$K10,IF(BA$3=5,Paramétrages!$M10,0))))) -> SAESAT | BC172: =IF(BC$3=1,Paramétrages!$D10,IF(BC$3=2,Paramétrages!$F10,IF(BC$3=3,Paramétrages!$H10,IF(BC$3=4,Paramétrages!$J10,IF(BC$3=5,Paramétrages!$L10,0))))) -> 3.25 | BD172: =IF(BC$3=1,Paramétrages!$E10,IF(BC$3=2,Paramétrages!$G10,IF(BC$3=3,Paramétrages!$I10,IF(BC$3=4,Paramétrages!$K10,IF(BC$3=5,Paramétrages!$M10,0))))) -> 3.25 | BE172: =IF(BE$3=1,Paramétrages!$D10,IF(BE$3=2,Paramétrages!$F10,IF(BE$3=3,Paramétrages!$H10,IF(BE$3=4,Paramétrages!$J10,IF(BE$3=5,Paramétrages!$L10,0))))) -> 0 | BF172: =IF(BE$3=1,Paramétrages!$E10,IF(BE$3=2,Paramétrages!$G10,IF(BE$3=3,Paramétrages!$I10,IF(BE$3=4,Paramétrages!$K10,IF(BE$3=5,Paramétrages!$M10,0))))) -> 0 | BG172: =IF(BG$3=1,Paramétrages!$D10,IF(BG$3=2,Paramétrages!$F10,IF(BG$3=3,Paramétrages!$H10,IF(BG$3=4,Paramétrages!$J10,IF(BG$3=5,Paramétrages!$L10,0))))) -> 0 | BH172: =IF(BG$3=1,Paramétrages!$E10,IF(BG$3=2,Paramétrages!$G10,IF(BG$3=3,Paramétrages!$I10,IF(BG$3=4,Paramétrages!$K10,IF(BG$3=5,Paramétrages!$M10,0))))) -> 0 | BI172: =IF(BI$3=1,Paramétrages!$D10,IF(BI$3=2,Paramétrages!$F10,IF(BI$3=3,Paramétrages!$H10,IF(BI$3=4,Paramétrages!$J10,IF(BI$3=5,Paramétrages!$L10,0))))) -> SAESAT | BJ172: =IF(BI$3=1,Paramétrages!$E10,IF(BI$3=2,Paramétrages!$G10,IF(BI$3=3,Paramétrages!$I10,IF(BI$3=4,Paramétrages!$K10,IF(BI$3=5,Paramétrages!$M10,0))))) -> SAESAT | BK172: =IF(BK$3=1,Paramétrages!$D10,IF(BK$3=2,Paramétrages!$F10,IF(BK$3=3,Paramétrages!$H10,IF(BK$3=4,Paramétrages!$J10,IF(BK$3=5,Paramétrages!$L10,0))))) -> 3.25 | BL172: =IF(BK$3=1,Paramétrages!$E10,IF(BK$3=2,Paramétrages!$G10,IF(BK$3=3,Paramétrages!$I10,IF(BK$3=4,Paramétrages!$K10,IF(BK$3=5,Paramétrages!$M10,0))))) -> SAESAT | BM172: =IF(BM$3=1,Paramétrages!$D10,IF(BM$3=2,Paramétrages!$F10,IF(BM$3=3,Paramétrages!$H10,IF(BM$3=4,Paramétrages!$J10,IF(BM$3=5,Paramétrages!$L10,0))))) -> 3.25 | BN172: =IF(BM$3=1,Paramétrages!$E10,IF(BM$3=2,Paramétrages!$G10,IF(BM$3=3,Paramétrages!$I10,IF(BM$3=4,Paramétrages!$K10,IF(BM$3=5,Paramétrages!$M10,0))))) -> SAESAT | BO172: =IF(BO$3=1,Paramétrages!$D10,IF(BO$3=2,Paramétrages!$F10,IF(BO$3=3,Paramétrages!$H10,IF(BO$3=4,Paramétrages!$J10,IF(BO$3=5,Paramétrages!$L10,0))))) -> 3.25 | BP172: =IF(BO$3=1,Paramétrages!$E10,IF(BO$3=2,Paramétrages!$G10,IF(BO$3=3,Paramétrages!$I10,IF(BO$3=4,Paramétrages!$K10,IF(BO$3=5,Paramétrages!$M10,0))))) -> SAESAT | BQ172: =IF(BQ$3=1,Paramétrages!$D10,IF(BQ$3=2,Paramétrages!$F10,IF(BQ$3=3,Paramétrages!$H10,IF(BQ$3=4,Paramétrages!$J10,IF(BQ$3=5,Paramétrages!$L10,0))))) -> 3.25 | BR172: =IF(BQ$3=1,Paramétrages!$E10,IF(BQ$3=2,Paramétrages!$G10,IF(BQ$3=3,Paramétrages!$I10,IF(BQ$3=4,Paramétrages!$K10,IF(BQ$3=5,Paramétrages!$M10,0))))) -> 3.25 | BS172: =IF(BS$3=1,Paramétrages!$D10,IF(BS$3=2,Paramétrages!$F10,IF(BS$3=3,Paramétrages!$H10,IF(BS$3=4,Paramétrages!$J10,IF(BS$3=5,Paramétrages!$L10,0))))) -> 0 | BT172: =IF(BS$3=1,Paramétrages!$E10,IF(BS$3=2,Paramétrages!$G10,IF(BS$3=3,Paramétrages!$I10,IF(BS$3=4,Paramétrages!$K10,IF(BS$3=5,Paramétrages!$M10,0))))) -> 0 | BU172: =IF(BU$3=1,Paramétrages!$D10,IF(BU$3=2,Paramétrages!$F10,IF(BU$3=3,Paramétrages!$H10,IF(BU$3=4,Paramétrages!$J10,IF(BU$3=5,Paramétrages!$L10,0))))) -> 0 | BV172: =IF(BU$3=1,Paramétrages!$E10,IF(BU$3=2,Paramétrages!$G10,IF(BU$3=3,Paramétrages!$I10,IF(BU$3=4,Paramétrages!$K10,IF(BU$3=5,Paramétrages!$M10,0))))) -> 0 | BW172: =IF(BW$3=1,Paramétrages!$D10,IF(BW$3=2,Paramétrages!$F10,IF(BW$3=3,Paramétrages!$H10,IF(BW$3=4,Paramétrages!$J10,IF(BW$3=5,Paramétrages!$L10,0))))) -> SAESAT | BX172: =IF(BW$3=1,Paramétrages!$E10,IF(BW$3=2,Paramétrages!$G10,IF(BW$3=3,Paramétrages!$I10,IF(BW$3=4,Paramétrages!$K10,IF(BW$3=5,Paramétrages!$M10,0))))) -> SAESAT | BY172: =IF(BY$3=1,Paramétrages!$D10,IF(BY$3=2,Paramétrages!$F10,IF(BY$3=3,Paramétrages!$H10,IF(BY$3=4,Paramétrages!$J10,IF(BY$3=5,Paramétrages!$L10,0))))) -> 3.25 | BZ172: =IF(BY$3=1,Paramétrages!$E10,IF(BY$3=2,Paramétrages!$G10,IF(BY$3=3,Paramétrages!$I10,IF(BY$3=4,Paramétrages!$K10,IF(BY$3=5,Paramétrages!$M10,0))))) -> SAESAT | CA172: =IF(CA$3=1,Paramétrages!$D10,IF(CA$3=2,Paramétrages!$F10,IF(CA$3=3,Paramétrages!$H10,IF(CA$3=4,Paramétrages!$J10,IF(CA$3=5,Paramétrages!$L10,0))))) -> 3.25 | CB172: =IF(CA$3=1,Paramétrages!$E10,IF(CA$3=2,Paramétrages!$G10,IF(CA$3=3,Paramétrages!$I10,IF(CA$3=4,Paramétrages!$K10,IF(CA$3=5,Paramétrages!$M10,0))))) -> SAESAT | CC172: =IF(CC$3=1,Paramétrages!$D10,IF(CC$3=2,Paramétrages!$F10,IF(CC$3=3,Paramétrages!$H10,IF(CC$3=4,Paramétrages!$J10,IF(CC$3=5,Paramétrages!$L10,0))))) -> 3.25 | CD172: =IF(CC$3=1,Paramétrages!$E10,IF(CC$3=2,Paramétrages!$G10,IF(CC$3=3,Paramétrages!$I10,IF(CC$3=4,Paramétrages!$K10,IF(CC$3=5,Paramétrages!$M10,0))))) -> SAESAT | CE172: =IF(CE$3=1,Paramétrages!$D10,IF(CE$3=2,Paramétrages!$F10,IF(CE$3=3,Paramétrages!$H10,IF(CE$3=4,Paramétrages!$J10,IF(CE$3=5,Paramétrages!$L10,0))))) -> 3.25 | CF172: =IF(CE$3=1,Paramétrages!$E10,IF(CE$3=2,Paramétrages!$G10,IF(CE$3=3,Paramétrages!$I10,IF(CE$3=4,Paramétrages!$K10,IF(CE$3=5,Paramétrages!$M10,0))))) -> 3.25 | CG172: =IF(CG$3=1,Paramétrages!$D10,IF(CG$3=2,Paramétrages!$F10,IF(CG$3=3,Paramétrages!$H10,IF(CG$3=4,Paramétrages!$J10,IF(CG$3=5,Paramétrages!$L10,0))))) -> 0 | CH172: =IF(CG$3=1,Paramétrages!$E10,IF(CG$3=2,Paramétrages!$G10,IF(CG$3=3,Paramétrages!$I10,IF(CG$3=4,Paramétrages!$K10,IF(CG$3=5,Paramétrages!$M10,0))))) -> 0 | CI172: =IF(CI$3=1,Paramétrages!$D10,IF(CI$3=2,Paramétrages!$F10,IF(CI$3=3,Paramétrages!$H10,IF(CI$3=4,Paramétrages!$J10,IF(CI$3=5,Paramétrages!$L10,0))))) -> 0 | CJ172: =IF(CI$3=1,Paramétrages!$E10,IF(CI$3=2,Paramétrages!$G10,IF(CI$3=3,Paramétrages!$I10,IF(CI$3=4,Paramétrages!$K10,IF(CI$3=5,Paramétrages!$M10,0))))) -> 0 | CK172: =IF(CK$3=1,Paramétrages!$D10,IF(CK$3=2,Paramétrages!$F10,IF(CK$3=3,Paramétrages!$H10,IF(CK$3=4,Paramétrages!$J10,IF(CK$3=5,Paramétrages!$L10,0))))) -> SAESAT | CL172: =IF(CK$3=1,Paramétrages!$E10,IF(CK$3=2,Paramétrages!$G10,IF(CK$3=3,Paramétrages!$I10,IF(CK$3=4,Paramétrages!$K10,IF(CK$3=5,Paramétrages!$M10,0))))) -> SAESAT | CM172: =IF(CM$3=1,Paramétrages!$D10,IF(CM$3=2,Paramétrages!$F10,IF(CM$3=3,Paramétrages!$H10,IF(CM$3=4,Paramétrages!$J10,IF(CM$3=5,Paramétrages!$L10,0))))) -> 3.25 | CN172: =IF(CM$3=1,Paramétrages!$E10,IF(CM$3=2,Paramétrages!$G10,IF(CM$3=3,Paramétrages!$I10,IF(CM$3=4,Paramétrages!$K10,IF(CM$3=5,Paramétrages!$M10,0))))) -> SAESAT | CO172: =IF(CO$3=1,Paramétrages!$D10,IF(CO$3=2,Paramétrages!$F10,IF(CO$3=3,Paramétrages!$H10,IF(CO$3=4,Paramétrages!$J10,IF(CO$3=5,Paramétrages!$L10,0))))) -> 3.25 | CP172: =IF(CO$3=1,Paramétrages!$E10,IF(CO$3=2,Paramétrages!$G10,IF(CO$3=3,Paramétrages!$I10,IF(CO$3=4,Paramétrages!$K10,IF(CO$3=5,Paramétrages!$M10,0))))) -> SAESAT | CQ172: =IF(CQ$3=1,Paramétrages!$D10,IF(CQ$3=2,Paramétrages!$F10,IF(CQ$3=3,Paramétrages!$H10,IF(CQ$3=4,Paramétrages!$J10,IF(CQ$3=5,Paramétrages!$L10,0))))) -> 3.25 | CR172: =IF(CQ$3=1,Paramétrages!$E10,IF(CQ$3=2,Paramétrages!$G10,IF(CQ$3=3,Paramétrages!$I10,IF(CQ$3=4,Paramétrages!$K10,IF(CQ$3=5,Paramétrages!$M10,0))))) -> SAESAT | CS172: =IF(CS$3=1,Paramétrages!$D10,IF(CS$3=2,Paramétrages!$F10,IF(CS$3=3,Paramétrages!$H10,IF(CS$3=4,Paramétrages!$J10,IF(CS$3=5,Paramétrages!$L10,0))))) -> 3.25 | CT172: =IF(CS$3=1,Paramétrages!$E10,IF(CS$3=2,Paramétrages!$G10,IF(CS$3=3,Paramétrages!$I10,IF(CS$3=4,Paramétrages!$K10,IF(CS$3=5,Paramétrages!$M10,0))))) -> 3.25 | CU172: =IF(CU$3=1,Paramétrages!$D10,IF(CU$3=2,Paramétrages!$F10,IF(CU$3=3,Paramétrages!$H10,IF(CU$3=4,Paramétrages!$J10,IF(CU$3=5,Paramétrages!$L10,0))))) -> 0 | CV172: =IF(CU$3=1,Paramétrages!$E10,IF(CU$3=2,Paramétrages!$G10,IF(CU$3=3,Paramétrages!$I10,IF(CU$3=4,Paramétrages!$K10,IF(CU$3=5,Paramétrages!$M10,0))))) -> 0 | CW172: =IF(CW$3=1,Paramétrages!$D10,IF(CW$3=2,Paramétrages!$F10,IF(CW$3=3,Paramétrages!$H10,IF(CW$3=4,Paramétrages!$J10,IF(CW$3=5,Paramétrages!$L10,0))))) -> 0 | CX172: =IF(CW$3=1,Paramétrages!$E10,IF(CW$3=2,Paramétrages!$G10,IF(CW$3=3,Paramétrages!$I10,IF(CW$3=4,Paramétrages!$K10,IF(CW$3=5,Paramétrages!$M10,0))))) -> 0 | CY172: =IF(CY$3=1,Paramétrages!$D10,IF(CY$3=2,Paramétrages!$F10,IF(CY$3=3,Paramétrages!$H10,IF(CY$3=4,Paramétrages!$J10,IF(CY$3=5,Paramétrages!$L10,0))))) -> SAESAT | CZ172: =IF(CY$3=1,Paramétrages!$E10,IF(CY$3=2,Paramétrages!$G10,IF(CY$3=3,Paramétrages!$I10,IF(CY$3=4,Paramétrages!$K10,IF(CY$3=5,Paramétrages!$M10,0))))) -> SAESAT | DA172: =IF(DA$3=1,Paramétrages!$D10,IF(DA$3=2,Paramétrages!$F10,IF(DA$3=3,Paramétrages!$H10,IF(DA$3=4,Paramétrages!$J10,IF(DA$3=5,Paramétrages!$L10,0))))) -> 3.25 | DB172: =IF(DA$3=1,Paramétrages!$E10,IF(DA$3=2,Paramétrages!$G10,IF(DA$3=3,Paramétrages!$I10,IF(DA$3=4,Paramétrages!$K10,IF(DA$3=5,Paramétrages!$M10,0))))) -> SAESAT | DC172: =IF(DC$3=1,Paramétrages!$D10,IF(DC$3=2,Paramétrages!$F10,IF(DC$3=3,Paramétrages!$H10,IF(DC$3=4,Paramétrages!$J10,IF(DC$3=5,Paramétrages!$L10,0))))) -> 3.25 | DD172: =IF(DC$3=1,Paramétrages!$E10,IF(DC$3=2,Paramétrages!$G10,IF(DC$3=3,Paramétrages!$I10,IF(DC$3=4,Paramétrages!$K10,IF(DC$3=5,Paramétrages!$M10,0))))) -> SAESAT | DE172: =IF(DE$3=1,Paramétrages!$D10,IF(DE$3=2,Paramétrages!$F10,IF(DE$3=3,Paramétrages!$H10,IF(DE$3=4,Paramétrages!$J10,IF(DE$3=5,Paramétrages!$L10,0))))) -> 3.25 | DF172: =IF(DE$3=1,Paramétrages!$E10,IF(DE$3=2,Paramétrages!$G10,IF(DE$3=3,Paramétrages!$I10,IF(DE$3=4,Paramétrages!$K10,IF(DE$3=5,Paramétrages!$M10,0))))) -> SAESAT | DG172: =IF(DG$3=1,Paramétrages!$D10,IF(DG$3=2,Paramétrages!$F10,IF(DG$3=3,Paramétrages!$H10,IF(DG$3=4,Paramétrages!$J10,IF(DG$3=5,Paramétrages!$L10,0))))) -> 3.25 | DH172: =IF(DG$3=1,Paramétrages!$E10,IF(DG$3=2,Paramétrages!$G10,IF(DG$3=3,Paramétrages!$I10,IF(DG$3=4,Paramétrages!$K10,IF(DG$3=5,Paramétrages!$M10,0))))) -> 3.25 | DI172: =IF(DI$3=1,Paramétrages!$D10,IF(DI$3=2,Paramétrages!$F10,IF(DI$3=3,Paramétrages!$H10,IF(DI$3=4,Paramétrages!$J10,IF(DI$3=5,Paramétrages!$L10,0))))) -> 0 | DJ172: =IF(DI$3=1,Paramétrages!$E10,IF(DI$3=2,Paramétrages!$G10,IF(DI$3=3,Paramétrages!$I10,IF(DI$3=4,Paramétrages!$K10,IF(DI$3=5,Paramétrages!$M10,0))))) -> 0 | DK172: =IF(DK$3=1,Paramétrages!$D10,IF(DK$3=2,Paramétrages!$F10,IF(DK$3=3,Paramétrages!$H10,IF(DK$3=4,Paramétrages!$J10,IF(DK$3=5,Paramétrages!$L10,0))))) -> 0 | DL172: =IF(DK$3=1,Paramétrages!$E10,IF(DK$3=2,Paramétrages!$G10,IF(DK$3=3,Paramétrages!$I10,IF(DK$3=4,Paramétrages!$K10,IF(DK$3=5,Paramétrages!$M10,0))))) -> 0 | DM172: =IF(DM$3=1,Paramétrages!$D10,IF(DM$3=2,Paramétrages!$F10,IF(DM$3=3,Paramétrages!$H10,IF(DM$3=4,Paramétrages!$J10,IF(DM$3=5,Paramétrages!$L10,0))))) -> SAESAT | DN172: =IF(DM$3=1,Paramétrages!$E10,IF(DM$3=2,Paramétrages!$G10,IF(DM$3=3,Paramétrages!$I10,IF(DM$3=4,Paramétrages!$K10,IF(DM$3=5,Paramétrages!$M10,0))))) -> SAESAT | DO172: =IF(DO$3=1,Paramétrages!$D10,IF(DO$3=2,Paramétrages!$F10,IF(DO$3=3,Paramétrages!$H10,IF(DO$3=4,Paramétrages!$J10,IF(DO$3=5,Paramétrages!$L10,0))))) -> 3.25 | DP172: =IF(DO$3=1,Paramétrages!$E10,IF(DO$3=2,Paramétrages!$G10,IF(DO$3=3,Paramétrages!$I10,IF(DO$3=4,Paramétrages!$K10,IF(DO$3=5,Paramétrages!$M10,0))))) -> SAESAT | DQ172: =IF(DQ$3=1,Paramétrages!$D10,IF(DQ$3=2,Paramétrages!$F10,IF(DQ$3=3,Paramétrages!$H10,IF(DQ$3=4,Paramétrages!$J10,IF(DQ$3=5,Paramétrages!$L10,0))))) -> 3.25 | DR172: =IF(DQ$3=1,Paramétrages!$E10,IF(DQ$3=2,Paramétrages!$G10,IF(DQ$3=3,Paramétrages!$I10,IF(DQ$3=4,Paramétrages!$K10,IF(DQ$3=5,Paramétrages!$M10,0))))) -> SAESAT | DS172: =IF(DS$3=1,Paramétrages!$D10,IF(DS$3=2,Paramétrages!$F10,IF(DS$3=3,Paramétrages!$H10,IF(DS$3=4,Paramétrages!$J10,IF(DS$3=5,Paramétrages!$L10,0))))) -> 3.25 | DT172: =IF(DS$3=1,Paramétrages!$E10,IF(DS$3=2,Paramétrages!$G10,IF(DS$3=3,Paramétrages!$I10,IF(DS$3=4,Paramétrages!$K10,IF(DS$3=5,Paramétrages!$M10,0))))) -> SAESAT | DU172: =IF(DU$3=1,Paramétrages!$D10,IF(DU$3=2,Paramétrages!$F10,IF(DU$3=3,Paramétrages!$H10,IF(DU$3=4,Paramétrages!$J10,IF(DU$3=5,Paramétrages!$L10,0))))) -> 3.25 | DV172: =IF(DU$3=1,Paramétrages!$E10,IF(DU$3=2,Paramétrages!$G10,IF(DU$3=3,Paramétrages!$I10,IF(DU$3=4,Paramétrages!$K10,IF(DU$3=5,Paramétrages!$M10,0))))) -> 3.25 | DW172: =IF(DW$3=1,Paramétrages!$D10,IF(DW$3=2,Paramétrages!$F10,IF(DW$3=3,Paramétrages!$H10,IF(DW$3=4,Paramétrages!$J10,IF(DW$3=5,Paramétrages!$L10,0))))) -> 0 | DX172: =IF(DW$3=1,Paramétrages!$E10,IF(DW$3=2,Paramétrages!$G10,IF(DW$3=3,Paramétrages!$I10,IF(DW$3=4,Paramétrages!$K10,IF(DW$3=5,Paramétrages!$M10,0))))) -> 0 | DY172: =IF(DY$3=1,Paramétrages!$D10,IF(DY$3=2,Paramétrages!$F10,IF(DY$3=3,Paramétrages!$H10,IF(DY$3=4,Paramétrages!$J10,IF(DY$3=5,Paramétrages!$L10,0))))) -> 0 | DZ172: =IF(DY$3=1,Paramétrages!$E10,IF(DY$3=2,Paramétrages!$G10,IF(DY$3=3,Paramétrages!$I10,IF(DY$3=4,Paramétrages!$K10,IF(DY$3=5,Paramétrages!$M10,0))))) -> 0 | EA172: =IF(EA$3=1,Paramétrages!$D10,IF(EA$3=2,Paramétrages!$F10,IF(EA$3=3,Paramétrages!$H10,IF(EA$3=4,Paramétrages!$J10,IF(EA$3=5,Paramétrages!$L10,0))))) -> SAESAT | EB172: =IF(EA$3=1,Paramétrages!$E10,IF(EA$3=2,Paramétrages!$G10,IF(EA$3=3,Paramétrages!$I10,IF(EA$3=4,Paramétrages!$K10,IF(EA$3=5,Paramétrages!$M10,0))))) -> SAESAT | EC172: =IF(EC$3=1,Paramétrages!$D10,IF(EC$3=2,Paramétrages!$F10,IF(EC$3=3,Paramétrages!$H10,IF(EC$3=4,Paramétrages!$J10,IF(EC$3=5,Paramétrages!$L10,0))))) -> 3.25 | ED172: =IF(EC$3=1,Paramétrages!$E10,IF(EC$3=2,Paramétrages!$G10,IF(EC$3=3,Paramétrages!$I10,IF(EC$3=4,Paramétrages!$K10,IF(EC$3=5,Paramétrages!$M10,0))))) -> SAESAT | EE172: =IF(EE$3=1,Paramétrages!$D10,IF(EE$3=2,Paramétrages!$F10,IF(EE$3=3,Paramétrages!$H10,IF(EE$3=4,Paramétrages!$J10,IF(EE$3=5,Paramétrages!$L10,0))))) -> 3.25 | EF172: =IF(EE$3=1,Paramétrages!$E10,IF(EE$3=2,Paramétrages!$G10,IF(EE$3=3,Paramétrages!$I10,IF(EE$3=4,Paramétrages!$K10,IF(EE$3=5,Paramétrages!$M10,0))))) -> SAESAT | EG172: =IF(EG$3=1,Paramétrages!$D10,IF(EG$3=2,Paramétrages!$F10,IF(EG$3=3,Paramétrages!$H10,IF(EG$3=4,Paramétrages!$J10,IF(EG$3=5,Paramétrages!$L10,0))))) -> 3.25 | EH172: =IF(EG$3=1,Paramétrages!$E10,IF(EG$3=2,Paramétrages!$G10,IF(EG$3=3,Paramétrages!$I10,IF(EG$3=4,Paramétrages!$K10,IF(EG$3=5,Paramétrages!$M10,0))))) -> SAESAT | EI172: =IF(EI$3=1,Paramétrages!$D10,IF(EI$3=2,Paramétrages!$F10,IF(EI$3=3,Paramétrages!$H10,IF(EI$3=4,Paramétrages!$J10,IF(EI$3=5,Paramétrages!$L10,0))))) -> 3.25 | EJ172: =IF(EI$3=1,Paramétrages!$E10,IF(EI$3=2,Paramétrages!$G10,IF(EI$3=3,Paramétrages!$I10,IF(EI$3=4,Paramétrages!$K10,IF(EI$3=5,Paramétrages!$M10,0))))) -> 3.25 | EK172: =IF(EK$3=1,Paramétrages!$D10,IF(EK$3=2,Paramétrages!$F10,IF(EK$3=3,Paramétrages!$H10,IF(EK$3=4,Paramétrages!$J10,IF(EK$3=5,Paramétrages!$L10,0))))) -> 0 | EL172: =IF(EK$3=1,Paramétrages!$E10,IF(EK$3=2,Paramétrages!$G10,IF(EK$3=3,Paramétrages!$I10,IF(EK$3=4,Paramétrages!$K10,IF(EK$3=5,Paramétrages!$M10,0))))) -> 0 | EM172: =IF(EM$3=1,Paramétrages!$D10,IF(EM$3=2,Paramétrages!$F10,IF(EM$3=3,Paramétrages!$H10,IF(EM$3=4,Paramétrages!$J10,IF(EM$3=5,Paramétrages!$L10,0))))) -> 0 | EN172: =IF(EM$3=1,Paramétrages!$E10,IF(EM$3=2,Paramétrages!$G10,IF(EM$3=3,Paramétrages!$I10,IF(EM$3=4,Paramétrages!$K10,IF(EM$3=5,Paramétrages!$M10,0))))) -> 0 | EO172: =IF(EO$3=1,Paramétrages!$D10,IF(EO$3=2,Paramétrages!$F10,IF(EO$3=3,Paramétrages!$H10,IF(EO$3=4,Paramétrages!$J10,IF(EO$3=5,Paramétrages!$L10,0))))) -> SAESAT | EP172: =IF(EO$3=1,Paramétrages!$E10,IF(EO$3=2,Paramétrages!$G10,IF(EO$3=3,Paramétrages!$I10,IF(EO$3=4,Paramétrages!$K10,IF(EO$3=5,Paramétrages!$M10,0))))) -> SAESAT | EQ172: =IF(EQ$3=1,Paramétrages!$D10,IF(EQ$3=2,Paramétrages!$F10,IF(EQ$3=3,Paramétrages!$H10,IF(EQ$3=4,Paramétrages!$J10,IF(EQ$3=5,Paramétrages!$L10,0))))) -> 3.25 | ER172: =IF(EQ$3=1,Paramétrages!$E10,IF(EQ$3=2,Paramétrages!$G10,IF(EQ$3=3,Paramétrages!$I10,IF(EQ$3=4,Paramétrages!$K10,IF(EQ$3=5,Paramétrages!$M10,0))))) -> SAESAT | ES172: =IF(ES$3=1,Paramétrages!$D10,IF(ES$3=2,Paramétrages!$F10,IF(ES$3=3,Paramétrages!$H10,IF(ES$3=4,Paramétrages!$J10,IF(ES$3=5,Paramétrages!$L10,0))))) -> 3.25 | ET172: =IF(ES$3=1,Paramétrages!$E10,IF(ES$3=2,Paramétrages!$G10,IF(ES$3=3,Paramétrages!$I10,IF(ES$3=4,Paramétrages!$K10,IF(ES$3=5,Paramétrages!$M10,0))))) -> SAESAT | EU172: =IF(EU$3=1,Paramétrages!$D10,IF(EU$3=2,Paramétrages!$F10,IF(EU$3=3,Paramétrages!$H10,IF(EU$3=4,Paramétrages!$J10,IF(EU$3=5,Paramétrages!$L10,0))))) -> 3.25 | EV172: =IF(EU$3=1,Paramétrages!$E10,IF(EU$3=2,Paramétrages!$G10,IF(EU$3=3,Paramétrages!$I10,IF(EU$3=4,Paramétrages!$K10,IF(EU$3=5,Paramétrages!$M10,0))))) -> SAESAT | EW172: =IF(EW$3=1,Paramétrages!$D10,IF(EW$3=2,Paramétrages!$F10,IF(EW$3=3,Paramétrages!$H10,IF(EW$3=4,Paramétrages!$J10,IF(EW$3=5,Paramétrages!$L10,0))))) -> 3.25 | EX172: =IF(EW$3=1,Paramétrages!$E10,IF(EW$3=2,Paramétrages!$G10,IF(EW$3=3,Paramétrages!$I10,IF(EW$3=4,Paramétrages!$K10,IF(EW$3=5,Paramétrages!$M10,0))))) -> 3.25 | EY172: =IF(EY$3=1,Paramétrages!$D10,IF(EY$3=2,Paramétrages!$F10,IF(EY$3=3,Paramétrages!$H10,IF(EY$3=4,Paramétrages!$J10,IF(EY$3=5,Paramétrages!$L10,0))))) -> 0 | EZ172: =IF(EY$3=1,Paramétrages!$E10,IF(EY$3=2,Paramétrages!$G10,IF(EY$3=3,Paramétrages!$I10,IF(EY$3=4,Paramétrages!$K10,IF(EY$3=5,Paramétrages!$M10,0))))) -> 0 | FA172: =IF(FA$3=1,Paramétrages!$D10,IF(FA$3=2,Paramétrages!$F10,IF(FA$3=3,Paramétrages!$H10,IF(FA$3=4,Paramétrages!$J10,IF(FA$3=5,Paramétrages!$L10,0))))) -> 0 | FB172: =IF(FA$3=1,Paramétrages!$E10,IF(FA$3=2,Paramétrages!$G10,IF(FA$3=3,Paramétrages!$I10,IF(FA$3=4,Paramétrages!$K10,IF(FA$3=5,Paramétrages!$M10,0))))) -> 0 | FC172: =IF(FC$3=1,Paramétrages!$D10,IF(FC$3=2,Paramétrages!$F10,IF(FC$3=3,Paramétrages!$H10,IF(FC$3=4,Paramétrages!$J10,IF(FC$3=5,Paramétrages!$L10,0))))) -> SAESAT | FD172: =IF(FC$3=1,Paramétrages!$E10,IF(FC$3=2,Paramétrages!$G10,IF(FC$3=3,Paramétrages!$I10,IF(FC$3=4,Paramétrages!$K10,IF(FC$3=5,Paramétrages!$M10,0))))) -> SAESAT | FE172: =IF(FE$3=1,Paramétrages!$D10,IF(FE$3=2,Paramétrages!$F10,IF(FE$3=3,Paramétrages!$H10,IF(FE$3=4,Paramétrages!$J10,IF(FE$3=5,Paramétrages!$L10,0))))) -> 3.25 | FF172: =IF(FE$3=1,Paramétrages!$E10,IF(FE$3=2,Paramétrages!$G10,IF(FE$3=3,Paramétrages!$I10,IF(FE$3=4,Paramétrages!$K10,IF(FE$3=5,Paramétrages!$M10,0))))) -> SAESAT | FG172: =IF(FG$3=1,Paramétrages!$D10,IF(FG$3=2,Paramétrages!$F10,IF(FG$3=3,Paramétrages!$H10,IF(FG$3=4,Paramétrages!$J10,IF(FG$3=5,Paramétrages!$L10,0))))) -> 3.25 | FH172: =IF(FG$3=1,Paramétrages!$E10,IF(FG$3=2,Paramétrages!$G10,IF(FG$3=3,Paramétrages!$I10,IF(FG$3=4,Paramétrages!$K10,IF(FG$3=5,Paramétrages!$M10,0))))) -> SAESAT | FI172: =IF(FI$3=1,Paramétrages!$D10,IF(FI$3=2,Paramétrages!$F10,IF(FI$3=3,Paramétrages!$H10,IF(FI$3=4,Paramétrages!$J10,IF(FI$3=5,Paramétrages!$L10,0))))) -> 3.25 | FJ172: =IF(FI$3=1,Paramétrages!$E10,IF(FI$3=2,Paramétrages!$G10,IF(FI$3=3,Paramétrages!$I10,IF(FI$3=4,Paramétrages!$K10,IF(FI$3=5,Paramétrages!$M10,0))))) -> SAESAT | FK172: =IF(FK$3=1,Paramétrages!$D10,IF(FK$3=2,Paramétrages!$F10,IF(FK$3=3,Paramétrages!$H10,IF(FK$3=4,Paramétrages!$J10,IF(FK$3=5,Paramétrages!$L10,0))))) -> 3.25 | FL172: =IF(FK$3=1,Paramétrages!$E10,IF(FK$3=2,Paramétrages!$G10,IF(FK$3=3,Paramétrages!$I10,IF(FK$3=4,Paramétrages!$K10,IF(FK$3=5,Paramétrages!$M10,0))))) -> 3.25 | FM172: =IF(FM$3=1,Paramétrages!$D10,IF(FM$3=2,Paramétrages!$F10,IF(FM$3=3,Paramétrages!$H10,IF(FM$3=4,Paramétrages!$J10,IF(FM$3=5,Paramétrages!$L10,0))))) -> 0 | FN172: =IF(FM$3=1,Paramétrages!$E10,IF(FM$3=2,Paramétrages!$G10,IF(FM$3=3,Paramétrages!$I10,IF(FM$3=4,Paramétrages!$K10,IF(FM$3=5,Paramétrages!$M10,0))))) -> 0 | FO172: =IF(FO$3=1,Paramétrages!$D10,IF(FO$3=2,Paramétrages!$F10,IF(FO$3=3,Paramétrages!$H10,IF(FO$3=4,Paramétrages!$J10,IF(FO$3=5,Paramétrages!$L10,0))))) -> 0 | FP172: =IF(FO$3=1,Paramétrages!$E10,IF(FO$3=2,Paramétrages!$G10,IF(FO$3=3,Paramétrages!$I10,IF(FO$3=4,Paramétrages!$K10,IF(FO$3=5,Paramétrages!$M10,0))))) -> 0 | FQ172: =IF(FQ$3=1,Paramétrages!$D10,IF(FQ$3=2,Paramétrages!$F10,IF(FQ$3=3,Paramétrages!$H10,IF(FQ$3=4,Paramétrages!$J10,IF(FQ$3=5,Paramétrages!$L10,0))))) -> SAESAT | FR172: =IF(FQ$3=1,Paramétrages!$E10,IF(FQ$3=2,Paramétrages!$G10,IF(FQ$3=3,Paramétrages!$I10,IF(FQ$3=4,Paramétrages!$K10,IF(FQ$3=5,Paramétrages!$M10,0))))) -> SAESAT | FS172: =IF(FS$3=1,Paramétrages!$D10,IF(FS$3=2,Paramétrages!$F10,IF(FS$3=3,Paramétrages!$H10,IF(FS$3=4,Paramétrages!$J10,IF(FS$3=5,Paramétrages!$L10,0))))) -> 3.25 | FT172: =IF(FS$3=1,Paramétrages!$E10,IF(FS$3=2,Paramétrages!$G10,IF(FS$3=3,Paramétrages!$I10,IF(FS$3=4,Paramétrages!$K10,IF(FS$3=5,Paramétrages!$M10,0))))) -> SAESAT | FU172: =IF(FU$3=1,Paramétrages!$D10,IF(FU$3=2,Paramétrages!$F10,IF(FU$3=3,Paramétrages!$H10,IF(FU$3=4,Paramétrages!$J10,IF(FU$3=5,Paramétrages!$L10,0))))) -> 3.25 | FV172: =IF(FU$3=1,Paramétrages!$E10,IF(FU$3=2,Paramétrages!$G10,IF(FU$3=3,Paramétrages!$I10,IF(FU$3=4,Paramétrages!$K10,IF(FU$3=5,Paramétrages!$M10,0))))) -> SAESAT | FW172: =IF(FW$3=1,Paramétrages!$D10,IF(FW$3=2,Paramétrages!$F10,IF(FW$3=3,Paramétrages!$H10,IF(FW$3=4,Paramétrages!$J10,IF(FW$3=5,Paramétrages!$L10,0))))) -> 3.25 | FX172: =IF(FW$3=1,Paramétrages!$E10,IF(FW$3=2,Paramétrages!$G10,IF(FW$3=3,Paramétrages!$I10,IF(FW$3=4,Paramétrages!$K10,IF(FW$3=5,Paramétrages!$M10,0))))) -> SAESAT | FY172: =IF(FY$3=1,Paramétrages!$D10,IF(FY$3=2,Paramétrages!$F10,IF(FY$3=3,Paramétrages!$H10,IF(FY$3=4,Paramétrages!$J10,IF(FY$3=5,Paramétrages!$L10,0))))) -> 3.25 | FZ172: =IF(FY$3=1,Paramétrages!$E10,IF(FY$3=2,Paramétrages!$G10,IF(FY$3=3,Paramétrages!$I10,IF(FY$3=4,Paramétrages!$K10,IF(FY$3=5,Paramétrages!$M10,0))))) -> 3.25 | GA172: =IF(GA$3=1,Paramétrages!$D10,IF(GA$3=2,Paramétrages!$F10,IF(GA$3=3,Paramétrages!$H10,IF(GA$3=4,Paramétrages!$J10,IF(GA$3=5,Paramétrages!$L10,0))))) -> 0 | GB172: =IF(GA$3=1,Paramétrages!$E10,IF(GA$3=2,Paramétrages!$G10,IF(GA$3=3,Paramétrages!$I10,IF(GA$3=4,Paramétrages!$K10,IF(GA$3=5,Paramétrages!$M10,0))))) -> 0 | GC172: =IF(GC$3=1,Paramétrages!$D10,IF(GC$3=2,Paramétrages!$F10,IF(GC$3=3,Paramétrages!$H10,IF(GC$3=4,Paramétrages!$J10,IF(GC$3=5,Paramétrages!$L10,0))))) -> 0 | GD172: =IF(GC$3=1,Paramétrages!$E10,IF(GC$3=2,Paramétrages!$G10,IF(GC$3=3,Paramétrages!$I10,IF(GC$3=4,Paramétrages!$K10,IF(GC$3=5,Paramétrages!$M10,0))))) -> 0 | GE172: =IF(GE$3=1,Paramétrages!$D10,IF(GE$3=2,Paramétrages!$F10,IF(GE$3=3,Paramétrages!$H10,IF(GE$3=4,Paramétrages!$J10,IF(GE$3=5,Paramétrages!$L10,0))))) -> SAESAT | GF172: =IF(GE$3=1,Paramétrages!$E10,IF(GE$3=2,Paramétrages!$G10,IF(GE$3=3,Paramétrages!$I10,IF(GE$3=4,Paramétrages!$K10,IF(GE$3=5,Paramétrages!$M10,0))))) -> SAESAT | GK172: =D174 -> 0 | GL172: =COUNTIF(E172:BN172,">0")/2 -> 11 | GM172: =IF(GL172>0,GL173/GL172," ") -> 0.3181818182 | GN172: =IF($DS$2=$GI$3,COUNTIF($BO172:$DX172,">0")/2,COUNTIF($BO172:$DX172,">0")/2) -> 11.5 | GO172: =IF(GN172>0,GN173/GN172," ") -> 0 | GP172: =IF($DS$2=$GI$3,COUNTIF($DY172:$GF172,">0")/2,COUNTIF($DY172:$GF172,">0")/2) -> 10 | GQ172: =IF(GP172>0,GP173/GP172," ") -> 0.05 | GR172: =COUNTIF(E172:BN172,"ad")/2 -> 0 | GT172: =IF($DS$2=$GI$3,COUNTIF($BO172:$DX172,"ad")/2,COUNTIF($BO172:$DX172,"ad")/2) -> 0 | GV172: =IF($DS$2=$GI$3,COUNTIF($DY172:$GF172,"ad")/2,COUNTIF($DY172:$GF172,"ad")/2) -> 0 | HE172: =Paramétrages!$B$16 -> NOM | HF172: =COUNTIF(E178:GF179,"A2")/2 -> 0 | HG172: =COUNTIF(F178:GG179,"cp")/2 -> 0 | HH172: =COUNTIF(G178:GH179,"css")/2 -> 0 | HI172: =COUNTIF(H178:GI179,"ma")/2 -> 0 | HJ172: =COUNTIF(I178:GJ179,"at")/2 -> 0 | HK172: =COUNTIF(J178:GK179,"aj")/2 -> 0 | HL172: =COUNTIF(K178:GL179,"ai")/2 -> 0 | HM172: =COUNTIF(L178:GM179,"ad")/2 -> 0 | HN172: =COUNTIF(M178:GN179,"st")/2 -> 0 | HO172: =COUNTIF(N178:GO179,"di")/2 -> 0
B173: 2 | BW173: 1 | BY173: 1 | CA173: 1 | CC173: 1 | CE173: 1 | CK173: 1 | CM173: 1 | CO173: 1 | CQ173: 1 | CS173: 1 | CU173: 1 | CW173: 1 | CY173: 1 | DA173: 1 | DC173: 1 | DE173: 1 | DG173: 1 | GL173: =(SUM(E174:BN174)+COUNTIF(E174:BN174,"ad"))/2 -> 3.5 | GN173: =IF($GI$3=$DS$2,(SUM(BO174:DX174)+COUNTIF(BO174:DX174,"ad"))/2, (SUM(BO174:DX174)+COUNTIF(BO174:DX174,"ad"))/2) -> 0 | GP173: =IF($GI$3=$DS$2,(SUM(DY174:GF174)+COUNTIF(DY174:GF174,"ad"))/2, (SUM(DY174:GF174)+COUNTIF(DY174:GF174,"ad"))/2) -> 0.5 | HE173: =Paramétrages!$B$19 -> NOM | HF173: =COUNTIF(E181:GF182,"A2")/2 -> 0 | HG173: =COUNTIF(F181:GG182,"cp")/2 -> 0 | HH173: =COUNTIF(G181:GH182,"css")/2 -> 0 | HI173: =COUNTIF(H181:GI182,"ma")/2 -> 0 | HJ173: =COUNTIF(I181:GJ182,"at")/2 -> 0 | HK173: =COUNTIF(J181:GK182,"aj")/2 -> 0 | HL173: =COUNTIF(K181:GL182,"ai")/2 -> 0 | HM173: =COUNTIF(L181:GM182,"ad")/2 -> 0 | HN173: =COUNTIF(M181:GN182,"st")/2 -> 0 | HO173: =COUNTIF(N181:GO182,"di")/2 -> 0
A174: =Paramétrages!B10 -> NOM | B174: 3 | G174: 1 | H174: 1 | I174: 1 | M174: 1 | N174: 1 | Y174: 1 | AI174: 1 | EE174: 1 | GO174: =IF(GN174>0,GN175/GN174," ") ->  | HE174: =Paramétrages!$B$22 -> NOM | HF174: =COUNTIF(E184:GF185,"A2")/2 -> 0 | HG174: =COUNTIF(F184:GG185,"cp")/2 -> 0 | HH174: =COUNTIF(G184:GH185,"css")/2 -> 0 | HI174: =COUNTIF(H184:GI185,"ma")/2 -> 0 | HJ174: =COUNTIF(I184:GJ185,"at")/2 -> 0 | HK174: =COUNTIF(J184:GK185,"aj")/2 -> 0 | HL174: =COUNTIF(K184:GL185,"ai")/2 -> 0 | HM174: =COUNTIF(L184:GM185,"ad")/2 -> 0 | HN174: =COUNTIF(M184:GN185,"st")/2 -> 0 | HO174: =COUNTIF(N184:GO185,"di")/2 -> 0
B175: 1 | C175: 3 | E175: =IF(E$3=1,Paramétrages!$D13,IF(E$3=2,Paramétrages!$F13,IF(E$3=3,Paramétrages!$H13,IF(E$3=4,Paramétrages!$J13,IF(E$3=5,Paramétrages!$L13,0))))) -> 3.25 | F175: =IF(E$3=1,Paramétrages!$E13,IF(E$3=2,Paramétrages!$G13,IF(E$3=3,Paramétrages!$I13,IF(E$3=4,Paramétrages!$K13,IF(E$3=5,Paramétrages!$M13,0))))) -> 3.25 | G175: =IF(G$3=1,Paramétrages!$D13,IF(G$3=2,Paramétrages!$F13,IF(G$3=3,Paramétrages!$H13,IF(G$3=4,Paramétrages!$J13,IF(G$3=5,Paramétrages!$L13,0))))) -> 3.25 | H175: =IF(G$3=1,Paramétrages!$E13,IF(G$3=2,Paramétrages!$G13,IF(G$3=3,Paramétrages!$I13,IF(G$3=4,Paramétrages!$K13,IF(G$3=5,Paramétrages!$M13,0))))) -> 3.25 | I175: =IF(I$3=1,Paramétrages!$D13,IF(I$3=2,Paramétrages!$F13,IF(I$3=3,Paramétrages!$H13,IF(I$3=4,Paramétrages!$J13,IF(I$3=5,Paramétrages!$L13,0))))) -> 3.25 | J175: =IF(I$3=1,Paramétrages!$E13,IF(I$3=2,Paramétrages!$G13,IF(I$3=3,Paramétrages!$I13,IF(I$3=4,Paramétrages!$K13,IF(I$3=5,Paramétrages!$M13,0))))) -> 3.25 | K175: =IF(K$3=1,Paramétrages!$D13,IF(K$3=2,Paramétrages!$F13,IF(K$3=3,Paramétrages!$H13,IF(K$3=4,Paramétrages!$J13,IF(K$3=5,Paramétrages!$L13,0))))) -> 3.25 | L175: =IF(K$3=1,Paramétrages!$E13,IF(K$3=2,Paramétrages!$G13,IF(K$3=3,Paramétrages!$I13,IF(K$3=4,Paramétrages!$K13,IF(K$3=5,Paramétrages!$M13,0))))) -> 3.25 | M175: =IF(M$3=1,Paramétrages!$D13,IF(M$3=2,Paramétrages!$F13,IF(M$3=3,Paramétrages!$H13,IF(M$3=4,Paramétrages!$J13,IF(M$3=5,Paramétrages!$L13,0))))) -> 3.25 | N175: =IF(M$3=1,Paramétrages!$E13,IF(M$3=2,Paramétrages!$G13,IF(M$3=3,Paramétrages!$I13,IF(M$3=4,Paramétrages!$K13,IF(M$3=5,Paramétrages!$M13,0))))) -> 3.25 | O175: =IF(O$3=1,Paramétrages!$D13,IF(O$3=2,Paramétrages!$F13,IF(O$3=3,Paramétrages!$H13,IF(O$3=4,Paramétrages!$J13,IF(O$3=5,Paramétrages!$L13,0))))) -> 0 | P175: =IF(O$3=1,Paramétrages!$E13,IF(O$3=2,Paramétrages!$G13,IF(O$3=3,Paramétrages!$I13,IF(O$3=4,Paramétrages!$K13,IF(O$3=5,Paramétrages!$M13,0))))) -> 0 | Q175: =IF(Q$3=1,Paramétrages!$D13,IF(Q$3=2,Paramétrages!$F13,IF(Q$3=3,Paramétrages!$H13,IF(Q$3=4,Paramétrages!$J13,IF(Q$3=5,Paramétrages!$L13,0))))) -> 0 | R175: =IF(Q$3=1,Paramétrages!$E13,IF(Q$3=2,Paramétrages!$G13,IF(Q$3=3,Paramétrages!$I13,IF(Q$3=4,Paramétrages!$K13,IF(Q$3=5,Paramétrages!$M13,0))))) -> 0 | S175: =IF(S$3=1,Paramétrages!$D13,IF(S$3=2,Paramétrages!$F13,IF(S$3=3,Paramétrages!$H13,IF(S$3=4,Paramétrages!$J13,IF(S$3=5,Paramétrages!$L13,0))))) -> 3.25 | T175: =IF(S$3=1,Paramétrages!$E13,IF(S$3=2,Paramétrages!$G13,IF(S$3=3,Paramétrages!$I13,IF(S$3=4,Paramétrages!$K13,IF(S$3=5,Paramétrages!$M13,0))))) -> 3.25 | U175: =IF(U$3=1,Paramétrages!$D13,IF(U$3=2,Paramétrages!$F13,IF(U$3=3,Paramétrages!$H13,IF(U$3=4,Paramétrages!$J13,IF(U$3=5,Paramétrages!$L13,0))))) -> 3.25 | V175: =IF(U$3=1,Paramétrages!$E13,IF(U$3=2,Paramétrages!$G13,IF(U$3=3,Paramétrages!$I13,IF(U$3=4,Paramétrages!$K13,IF(U$3=5,Paramétrages!$M13,0))))) -> 3.25 | W175: =IF(W$3=1,Paramétrages!$D13,IF(W$3=2,Paramétrages!$F13,IF(W$3=3,Paramétrages!$H13,IF(W$3=4,Paramétrages!$J13,IF(W$3=5,Paramétrages!$L13,0))))) -> 3.25 | X175: =IF(W$3=1,Paramétrages!$E13,IF(W$3=2,Paramétrages!$G13,IF(W$3=3,Paramétrages!$I13,IF(W$3=4,Paramétrages!$K13,IF(W$3=5,Paramétrages!$M13,0))))) -> 3.25 | Y175: =IF(Y$3=1,Paramétrages!$D13,IF(Y$3=2,Paramétrages!$F13,IF(Y$3=3,Paramétrages!$H13,IF(Y$3=4,Paramétrages!$J13,IF(Y$3=5,Paramétrages!$L13,0))))) -> 3.25 | Z175: =IF(Y$3=1,Paramétrages!$E13,IF(Y$3=2,Paramétrages!$G13,IF(Y$3=3,Paramétrages!$I13,IF(Y$3=4,Paramétrages!$K13,IF(Y$3=5,Paramétrages!$M13,0))))) -> 3.25 | AA175: =IF(AA$3=1,Paramétrages!$D13,IF(AA$3=2,Paramétrages!$F13,IF(AA$3=3,Paramétrages!$H13,IF(AA$3=4,Paramétrages!$J13,IF(AA$3=5,Paramétrages!$L13,0))))) -> 3.25 | AB175: =IF(AA$3=1,Paramétrages!$E13,IF(AA$3=2,Paramétrages!$G13,IF(AA$3=3,Paramétrages!$I13,IF(AA$3=4,Paramétrages!$K13,IF(AA$3=5,Paramétrages!$M13,0))))) -> 3.25 | AC175: =IF(AC$3=1,Paramétrages!$D13,IF(AC$3=2,Paramétrages!$F13,IF(AC$3=3,Paramétrages!$H13,IF(AC$3=4,Paramétrages!$J13,IF(AC$3=5,Paramétrages!$L13,0))))) -> 0 | AD175: =IF(AC$3=1,Paramétrages!$E13,IF(AC$3=2,Paramétrages!$G13,IF(AC$3=3,Paramétrages!$I13,IF(AC$3=4,Paramétrages!$K13,IF(AC$3=5,Paramétrages!$M13,0))))) -> 0 | AE175: =IF(AE$3=1,Paramétrages!$D13,IF(AE$3=2,Paramétrages!$F13,IF(AE$3=3,Paramétrages!$H13,IF(AE$3=4,Paramétrages!$J13,IF(AE$3=5,Paramétrages!$L13,0))))) -> 0 | AF175: =IF(AE$3=1,Paramétrages!$E13,IF(AE$3=2,Paramétrages!$G13,IF(AE$3=3,Paramétrages!$I13,IF(AE$3=4,Paramétrages!$K13,IF(AE$3=5,Paramétrages!$M13,0))))) -> 0 | AG175: =IF(AG$3=1,Paramétrages!$D13,IF(AG$3=2,Paramétrages!$F13,IF(AG$3=3,Paramétrages!$H13,IF(AG$3=4,Paramétrages!$J13,IF(AG$3=5,Paramétrages!$L13,0))))) -> 3.25 | AH175: =IF(AG$3=1,Paramétrages!$E13,IF(AG$3=2,Paramétrages!$G13,IF(AG$3=3,Paramétrages!$I13,IF(AG$3=4,Paramétrages!$K13,IF(AG$3=5,Paramétrages!$M13,0))))) -> 3.25 | AI175: =IF(AI$3=1,Paramétrages!$D13,IF(AI$3=2,Paramétrages!$F13,IF(AI$3=3,Paramétrages!$H13,IF(AI$3=4,Paramétrages!$J13,IF(AI$3=5,Paramétrages!$L13,0))))) -> 3.25 | AJ175: =IF(AI$3=1,Paramétrages!$E13,IF(AI$3=2,Paramétrages!$G13,IF(AI$3=3,Paramétrages!$I13,IF(AI$3=4,Paramétrages!$K13,IF(AI$3=5,Paramétrages!$M13,0))))) -> 3.25 | AK175: =IF(AK$3=1,Paramétrages!$D13,IF(AK$3=2,Paramétrages!$F13,IF(AK$3=3,Paramétrages!$H13,IF(AK$3=4,Paramétrages!$J13,IF(AK$3=5,Paramétrages!$L13,0))))) -> 3.25 | AL175: =IF(AK$3=1,Paramétrages!$E13,IF(AK$3=2,Paramétrages!$G13,IF(AK$3=3,Paramétrages!$I13,IF(AK$3=4,Paramétrages!$K13,IF(AK$3=5,Paramétrages!$M13,0))))) -> 3.25 | AM175: =IF(AM$3=1,Paramétrages!$D13,IF(AM$3=2,Paramétrages!$F13,IF(AM$3=3,Paramétrages!$H13,IF(AM$3=4,Paramétrages!$J13,IF(AM$3=5,Paramétrages!$L13,0))))) -> 3.25 | AN175: =IF(AM$3=1,Paramétrages!$E13,IF(AM$3=2,Paramétrages!$G13,IF(AM$3=3,Paramétrages!$I13,IF(AM$3=4,Paramétrages!$K13,IF(AM$3=5,Paramétrages!$M13,0))))) -> 3.25 | AO175: =IF(AO$3=1,Paramétrages!$D13,IF(AO$3=2,Paramétrages!$F13,IF(AO$3=3,Paramétrages!$H13,IF(AO$3=4,Paramétrages!$J13,IF(AO$3=5,Paramétrages!$L13,0))))) -> 3.25 | AP175: =IF(AO$3=1,Paramétrages!$E13,IF(AO$3=2,Paramétrages!$G13,IF(AO$3=3,Paramétrages!$I13,IF(AO$3=4,Paramétrages!$K13,IF(AO$3=5,Paramétrages!$M13,0))))) -> 3.25 | AQ175: =IF(AQ$3=1,Paramétrages!$D13,IF(AQ$3=2,Paramétrages!$F13,IF(AQ$3=3,Paramétrages!$H13,IF(AQ$3=4,Paramétrages!$J13,IF(AQ$3=5,Paramétrages!$L13,0))))) -> 0 | AR175: =IF(AQ$3=1,Paramétrages!$E13,IF(AQ$3=2,Paramétrages!$G13,IF(AQ$3=3,Paramétrages!$I13,IF(AQ$3=4,Paramétrages!$K13,IF(AQ$3=5,Paramétrages!$M13,0))))) -> 0 | AS175: =IF(AS$3=1,Paramétrages!$D13,IF(AS$3=2,Paramétrages!$F13,IF(AS$3=3,Paramétrages!$H13,IF(AS$3=4,Paramétrages!$J13,IF(AS$3=5,Paramétrages!$L13,0))))) -> 0 | AT175: =IF(AS$3=1,Paramétrages!$E13,IF(AS$3=2,Paramétrages!$G13,IF(AS$3=3,Paramétrages!$I13,IF(AS$3=4,Paramétrages!$K13,IF(AS$3=5,Paramétrages!$M13,0))))) -> 0 | AU175: =IF(AU$3=1,Paramétrages!$D13,IF(AU$3=2,Paramétrages!$F13,IF(AU$3=3,Paramétrages!$H13,IF(AU$3=4,Paramétrages!$J13,IF(AU$3=5,Paramétrages!$L13,0))))) -> 3.25 | AV175: =IF(AU$3=1,Paramétrages!$E13,IF(AU$3=2,Paramétrages!$G13,IF(AU$3=3,Paramétrages!$I13,IF(AU$3=4,Paramétrages!$K13,IF(AU$3=5,Paramétrages!$M13,0))))) -> 3.25 | AW175: =IF(AW$3=1,Paramétrages!$D13,IF(AW$3=2,Paramétrages!$F13,IF(AW$3=3,Paramétrages!$H13,IF(AW$3=4,Paramétrages!$J13,IF(AW$3=5,Paramétrages!$L13,0))))) -> 3.25 | AX175: =IF(AW$3=1,Paramétrages!$E13,IF(AW$3=2,Paramétrages!$G13,IF(AW$3=3,Paramétrages!$I13,IF(AW$3=4,Paramétrages!$K13,IF(AW$3=5,Paramétrages!$M13,0))))) -> 3.25 | AY175: =IF(AY$3=1,Paramétrages!$D13,IF(AY$3=2,Paramétrages!$F13,IF(AY$3=3,Paramétrages!$H13,IF(AY$3=4,Paramétrages!$J13,IF(AY$3=5,Paramétrages!$L13,0))))) -> 3.25 | AZ175: =IF(AY$3=1,Paramétrages!$E13,IF(AY$3=2,Paramétrages!$G13,IF(AY$3=3,Paramétrages!$I13,IF(AY$3=4,Paramétrages!$K13,IF(AY$3=5,Paramétrages!$M13,0))))) -> 3.25 | BA175: =IF(BA$3=1,Paramétrages!$D13,IF(BA$3=2,Paramétrages!$F13,IF(BA$3=3,Paramétrages!$H13,IF(BA$3=4,Paramétrages!$J13,IF(BA$3=5,Paramétrages!$L13,0))))) -> 3.25 | BB175: =IF(BA$3=1,Paramétrages!$E13,IF(BA$3=2,Paramétrages!$G13,IF(BA$3=3,Paramétrages!$I13,IF(BA$3=4,Paramétrages!$K13,IF(BA$3=5,Paramétrages!$M13,0))))) -> 3.25 | BC175: =IF(BC$3=1,Paramétrages!$D13,IF(BC$3=2,Paramétrages!$F13,IF(BC$3=3,Paramétrages!$H13,IF(BC$3=4,Paramétrages!$J13,IF(BC$3=5,Paramétrages!$L13,0))))) -> 3.25 | BD175: =IF(BC$3=1,Paramétrages!$E13,IF(BC$3=2,Paramétrages!$G13,IF(BC$3=3,Paramétrages!$I13,IF(BC$3=4,Paramétrages!$K13,IF(BC$3=5,Paramétrages!$M13,0))))) -> 3.25 | BE175: =IF(BE$3=1,Paramétrages!$D13,IF(BE$3=2,Paramétrages!$F13,IF(BE$3=3,Paramétrages!$H13,IF(BE$3=4,Paramétrages!$J13,IF(BE$3=5,Paramétrages!$L13,0))))) -> 0 | BF175: =IF(BE$3=1,Paramétrages!$E13,IF(BE$3=2,Paramétrages!$G13,IF(BE$3=3,Paramétrages!$I13,IF(BE$3=4,Paramétrages!$K13,IF(BE$3=5,Paramétrages!$M13,0))))) -> 0 | BG175: =IF(BG$3=1,Paramétrages!$D13,IF(BG$3=2,Paramétrages!$F13,IF(BG$3=3,Paramétrages!$H13,IF(BG$3=4,Paramétrages!$J13,IF(BG$3=5,Paramétrages!$L13,0))))) -> 0 | BH175: =IF(BG$3=1,Paramétrages!$E13,IF(BG$3=2,Paramétrages!$G13,IF(BG$3=3,Paramétrages!$I13,IF(BG$3=4,Paramétrages!$K13,IF(BG$3=5,Paramétrages!$M13,0))))) -> 0 | BI175: =IF(BI$3=1,Paramétrages!$D13,IF(BI$3=2,Paramétrages!$F13,IF(BI$3=3,Paramétrages!$H13,IF(BI$3=4,Paramétrages!$J13,IF(BI$3=5,Paramétrages!$L13,0))))) -> 3.25 | BJ175: =IF(BI$3=1,Paramétrages!$E13,IF(BI$3=2,Paramétrages!$G13,IF(BI$3=3,Paramétrages!$I13,IF(BI$3=4,Paramétrages!$K13,IF(BI$3=5,Paramétrages!$M13,0))))) -> 3.25 | BK175: =IF(BK$3=1,Paramétrages!$D13,IF(BK$3=2,Paramétrages!$F13,IF(BK$3=3,Paramétrages!$H13,IF(BK$3=4,Paramétrages!$J13,IF(BK$3=5,Paramétrages!$L13,0))))) -> 3.25 | BL175: =IF(BK$3=1,Paramétrages!$E13,IF(BK$3=2,Paramétrages!$G13,IF(BK$3=3,Paramétrages!$I13,IF(BK$3=4,Paramétrages!$K13,IF(BK$3=5,Paramétrages!$M13,0))))) -> 3.25 | BM175: =IF(BM$3=1,Paramétrages!$D13,IF(BM$3=2,Paramétrages!$F13,IF(BM$3=3,Paramétrages!$H13,IF(BM$3=4,Paramétrages!$J13,IF(BM$3=5,Paramétrages!$L13,0))))) -> 3.25 | BN175: =IF(BM$3=1,Paramétrages!$E13,IF(BM$3=2,Paramétrages!$G13,IF(BM$3=3,Paramétrages!$I13,IF(BM$3=4,Paramétrages!$K13,IF(BM$3=5,Paramétrages!$M13,0))))) -> 3.25 | BO175: =IF(BO$3=1,Paramétrages!$D13,IF(BO$3=2,Paramétrages!$F13,IF(BO$3=3,Paramétrages!$H13,IF(BO$3=4,Paramétrages!$J13,IF(BO$3=5,Paramétrages!$L13,0))))) -> 3.25 | BP175: =IF(BO$3=1,Paramétrages!$E13,IF(BO$3=2,Paramétrages!$G13,IF(BO$3=3,Paramétrages!$I13,IF(BO$3=4,Paramétrages!$K13,IF(BO$3=5,Paramétrages!$M13,0))))) -> 3.25 | BQ175: =IF(BQ$3=1,Paramétrages!$D13,IF(BQ$3=2,Paramétrages!$F13,IF(BQ$3=3,Paramétrages!$H13,IF(BQ$3=4,Paramétrages!$J13,IF(BQ$3=5,Paramétrages!$L13,0))))) -> 3.25 | BR175: =IF(BQ$3=1,Paramétrages!$E13,IF(BQ$3=2,Paramétrages!$G13,IF(BQ$3=3,Paramétrages!$I13,IF(BQ$3=4,Paramétrages!$K13,IF(BQ$3=5,Paramétrages!$M13,0))))) -> 3.25 | BS175: =IF(BS$3=1,Paramétrages!$D13,IF(BS$3=2,Paramétrages!$F13,IF(BS$3=3,Paramétrages!$H13,IF(BS$3=4,Paramétrages!$J13,IF(BS$3=5,Paramétrages!$L13,0))))) -> 0 | BT175: =IF(BS$3=1,Paramétrages!$E13,IF(BS$3=2,Paramétrages!$G13,IF(BS$3=3,Paramétrages!$I13,IF(BS$3=4,Paramétrages!$K13,IF(BS$3=5,Paramétrages!$M13,0))))) -> 0 | BU175: =IF(BU$3=1,Paramétrages!$D13,IF(BU$3=2,Paramétrages!$F13,IF(BU$3=3,Paramétrages!$H13,IF(BU$3=4,Paramétrages!$J13,IF(BU$3=5,Paramétrages!$L13,0))))) -> 0 | BV175: =IF(BU$3=1,Paramétrages!$E13,IF(BU$3=2,Paramétrages!$G13,IF(BU$3=3,Paramétrages!$I13,IF(BU$3=4,Paramétrages!$K13,IF(BU$3=5,Paramétrages!$M13,0))))) -> 0 | BW175: =IF(BW$3=1,Paramétrages!$D13,IF(BW$3=2,Paramétrages!$F13,IF(BW$3=3,Paramétrages!$H13,IF(BW$3=4,Paramétrages!$J13,IF(BW$3=5,Paramétrages!$L13,0))))) -> 3.25 | BX175: =IF(BW$3=1,Paramétrages!$E13,IF(BW$3=2,Paramétrages!$G13,IF(BW$3=3,Paramétrages!$I13,IF(BW$3=4,Paramétrages!$K13,IF(BW$3=5,Paramétrages!$M13,0))))) -> 3.25 | BY175: =IF(BY$3=1,Paramétrages!$D13,IF(BY$3=2,Paramétrages!$F13,IF(BY$3=3,Paramétrages!$H13,IF(BY$3=4,Paramétrages!$J13,IF(BY$3=5,Paramétrages!$L13,0))))) -> 3.25 | BZ175: =IF(BY$3=1,Paramétrages!$E13,IF(BY$3=2,Paramétrages!$G13,IF(BY$3=3,Paramétrages!$I13,IF(BY$3=4,Paramétrages!$K13,IF(BY$3=5,Paramétrages!$M13,0))))) -> 3.25 | CA175: =IF(CA$3=1,Paramétrages!$D13,IF(CA$3=2,Paramétrages!$F13,IF(CA$3=3,Paramétrages!$H13,IF(CA$3=4,Paramétrages!$J13,IF(CA$3=5,Paramétrages!$L13,0))))) -> 3.25 | CB175: =IF(CA$3=1,Paramétrages!$E13,IF(CA$3=2,Paramétrages!$G13,IF(CA$3=3,Paramétrages!$I13,IF(CA$3=4,Paramétrages!$K13,IF(CA$3=5,Paramétrages!$M13,0))))) -> 3.25 | CC175: =IF(CC$3=1,Paramétrages!$D13,IF(CC$3=2,Paramétrages!$F13,IF(CC$3=3,Paramétrages!$H13,IF(CC$3=4,Paramétrages!$J13,IF(CC$3=5,Paramétrages!$L13,0))))) -> 3.25 | CD175: =IF(CC$3=1,Paramétrages!$E13,IF(CC$3=2,Paramétrages!$G13,IF(CC$3=3,Paramétrages!$I13,IF(CC$3=4,Paramétrages!$K13,IF(CC$3=5,Paramétrages!$M13,0))))) -> 3.25 | CE175: =IF(CE$3=1,Paramétrages!$D13,IF(CE$3=2,Paramétrages!$F13,IF(CE$3=3,Paramétrages!$H13,IF(CE$3=4,Paramétrages!$J13,IF(CE$3=5,Paramétrages!$L13,0))))) -> 3.25 | CF175: =IF(CE$3=1,Paramétrages!$E13,IF(CE$3=2,Paramétrages!$G13,IF(CE$3=3,Paramétrages!$I13,IF(CE$3=4,Paramétrages!$K13,IF(CE$3=5,Paramétrages!$M13,0))))) -> 3.25 | CG175: =IF(CG$3=1,Paramétrages!$D13,IF(CG$3=2,Paramétrages!$F13,IF(CG$3=3,Paramétrages!$H13,IF(CG$3=4,Paramétrages!$J13,IF(CG$3=5,Paramétrages!$L13,0))))) -> 0 | CH175: =IF(CG$3=1,Paramétrages!$E13,IF(CG$3=2,Paramétrages!$G13,IF(CG$3=3,Paramétrages!$I13,IF(CG$3=4,Paramétrages!$K13,IF(CG$3=5,Paramétrages!$M13,0))))) -> 0 | CI175: =IF(CI$3=1,Paramétrages!$D13,IF(CI$3=2,Paramétrages!$F13,IF(CI$3=3,Paramétrages!$H13,IF(CI$3=4,Paramétrages!$J13,IF(CI$3=5,Paramétrages!$L13,0))))) -> 0 | CJ175: =IF(CI$3=1,Paramétrages!$E13,IF(CI$3=2,Paramétrages!$G13,IF(CI$3=3,Paramétrages!$I13,IF(CI$3=4,Paramétrages!$K13,IF(CI$3=5,Paramétrages!$M13,0))))) -> 0 | CK175: =IF(CK$3=1,Paramétrages!$D13,IF(CK$3=2,Paramétrages!$F13,IF(CK$3=3,Paramétrages!$H13,IF(CK$3=4,Paramétrages!$J13,IF(CK$3=5,Paramétrages!$L13,0))))) -> 3.25 | CL175: =IF(CK$3=1,Paramétrages!$E13,IF(CK$3=2,Paramétrages!$G13,IF(CK$3=3,Paramétrages!$I13,IF(CK$3=4,Paramétrages!$K13,IF(CK$3=5,Paramétrages!$M13,0))))) -> 3.25 | CM175: =IF(CM$3=1,Paramétrages!$D13,IF(CM$3=2,Paramétrages!$F13,IF(CM$3=3,Paramétrages!$H13,IF(CM$3=4,Paramétrages!$J13,IF(CM$3=5,Paramétrages!$L13,0))))) -> 3.25 | CN175: =IF(CM$3=1,Paramétrages!$E13,IF(CM$3=2,Paramétrages!$G13,IF(CM$3=3,Paramétrages!$I13,IF(CM$3=4,Paramétrages!$K13,IF(CM$3=5,Paramétrages!$M13,0))))) -> 3.25 | CO175: =IF(CO$3=1,Paramétrages!$D13,IF(CO$3=2,Paramétrages!$F13,IF(CO$3=3,Paramétrages!$H13,IF(CO$3=4,Paramétrages!$J13,IF(CO$3=5,Paramétrages!$L13,0))))) -> 3.25 | CP175: =IF(CO$3=1,Paramétrages!$E13,IF(CO$3=2,Paramétrages!$G13,IF(CO$3=3,Paramétrages!$I13,IF(CO$3=4,Paramétrages!$K13,IF(CO$3=5,Paramétrages!$M13,0))))) -> 3.25 | CQ175: =IF(CQ$3=1,Paramétrages!$D13,IF(CQ$3=2,Paramétrages!$F13,IF(CQ$3=3,Paramétrages!$H13,IF(CQ$3=4,Paramétrages!$J13,IF(CQ$3=5,Paramétrages!$L13,0))))) -> 3.25 | CR175: =IF(CQ$3=1,Paramétrages!$E13,IF(CQ$3=2,Paramétrages!$G13,IF(CQ$3=3,Paramétrages!$I13,IF(CQ$3=4,Paramétrages!$K13,IF(CQ$3=5,Paramétrages!$M13,0))))) -> 3.25 | CS175: =IF(CS$3=1,Paramétrages!$D13,IF(CS$3=2,Paramétrages!$F13,IF(CS$3=3,Paramétrages!$H13,IF(CS$3=4,Paramétrages!$J13,IF(CS$3=5,Paramétrages!$L13,0))))) -> 3.25 | CT175: =IF(CS$3=1,Paramétrages!$E13,IF(CS$3=2,Paramétrages!$G13,IF(CS$3=3,Paramétrages!$I13,IF(CS$3=4,Paramétrages!$K13,IF(CS$3=5,Paramétrages!$M13,0))))) -> 3.25 | CU175: =IF(CU$3=1,Paramétrages!$D13,IF(CU$3=2,Paramétrages!$F13,IF(CU$3=3,Paramétrages!$H13,IF(CU$3=4,Paramétrages!$J13,IF(CU$3=5,Paramétrages!$L13,0))))) -> 0 | CV175: =IF(CU$3=1,Paramétrages!$E13,IF(CU$3=2,Paramétrages!$G13,IF(CU$3=3,Paramétrages!$I13,IF(CU$3=4,Paramétrages!$K13,IF(CU$3=5,Paramétrages!$M13,0))))) -> 0 | CW175: =IF(CW$3=1,Paramétrages!$D13,IF(CW$3=2,Paramétrages!$F13,IF(CW$3=3,Paramétrages!$H13,IF(CW$3=4,Paramétrages!$J13,IF(CW$3=5,Paramétrages!$L13,0))))) -> 0 | CX175: =IF(CW$3=1,Paramétrages!$E13,IF(CW$3=2,Paramétrages!$G13,IF(CW$3=3,Paramétrages!$I13,IF(CW$3=4,Paramétrages!$K13,IF(CW$3=5,Paramétrages!$M13,0))))) -> 0 | CY175: =IF(CY$3=1,Paramétrages!$D13,IF(CY$3=2,Paramétrages!$F13,IF(CY$3=3,Paramétrages!$H13,IF(CY$3=4,Paramétrages!$J13,IF(CY$3=5,Paramétrages!$L13,0))))) -> 3.25 | CZ175: =IF(CY$3=1,Paramétrages!$E13,IF(CY$3=2,Paramétrages!$G13,IF(CY$3=3,Paramétrages!$I13,IF(CY$3=4,Paramétrages!$K13,IF(CY$3=5,Paramétrages!$M13,0))))) -> 3.25 | DA175: =IF(DA$3=1,Paramétrages!$D13,IF(DA$3=2,Paramétrages!$F13,IF(DA$3=3,Paramétrages!$H13,IF(DA$3=4,Paramétrages!$J13,IF(DA$3=5,Paramétrages!$L13,0))))) -> 3.25 | DB175: =IF(DA$3=1,Paramétrages!$E13,IF(DA$3=2,Paramétrages!$G13,IF(DA$3=3,Paramétrages!$I13,IF(DA$3=4,Paramétrages!$K13,IF(DA$3=5,Paramétrages!$M13,0))))) -> 3.25 | DC175: =IF(DC$3=1,Paramétrages!$D13,IF(DC$3=2,Paramétrages!$F13,IF(DC$3=3,Paramétrages!$H13,IF(DC$3=4,Paramétrages!$J13,IF(DC$3=5,Paramétrages!$L13,0))))) -> 3.25 | DD175: =IF(DC$3=1,Paramétrages!$E13,IF(DC$3=2,Paramétrages!$G13,IF(DC$3=3,Paramétrages!$I13,IF(DC$3=4,Paramétrages!$K13,IF(DC$3=5,Paramétrages!$M13,0))))) -> 3.25 | DE175: =IF(DE$3=1,Paramétrages!$D13,IF(DE$3=2,Paramétrages!$F13,IF(DE$3=3,Paramétrages!$H13,IF(DE$3=4,Paramétrages!$J13,IF(DE$3=5,Paramétrages!$L13,0))))) -> 3.25 | DF175: =IF(DE$3=1,Paramétrages!$E13,IF(DE$3=2,Paramétrages!$G13,IF(DE$3=3,Paramétrages!$I13,IF(DE$3=4,Paramétrages!$K13,IF(DE$3=5,Paramétrages!$M13,0))))) -> 3.25 | DG175: =IF(DG$3=1,Paramétrages!$D13,IF(DG$3=2,Paramétrages!$F13,IF(DG$3=3,Paramétrages!$H13,IF(DG$3=4,Paramétrages!$J13,IF(DG$3=5,Paramétrages!$L13,0))))) -> 3.25 | DH175: =IF(DG$3=1,Paramétrages!$E13,IF(DG$3=2,Paramétrages!$G13,IF(DG$3=3,Paramétrages!$I13,IF(DG$3=4,Paramétrages!$K13,IF(DG$3=5,Paramétrages!$M13,0))))) -> 3.25 | DI175: =IF(DI$3=1,Paramétrages!$D13,IF(DI$3=2,Paramétrages!$F13,IF(DI$3=3,Paramétrages!$H13,IF(DI$3=4,Paramétrages!$J13,IF(DI$3=5,Paramétrages!$L13,0))))) -> 0 | DJ175: =IF(DI$3=1,Paramétrages!$E13,IF(DI$3=2,Paramétrages!$G13,IF(DI$3=3,Paramétrages!$I13,IF(DI$3=4,Paramétrages!$K13,IF(DI$3=5,Paramétrages!$M13,0))))) -> 0 | DK175: =IF(DK$3=1,Paramétrages!$D13,IF(DK$3=2,Paramétrages!$F13,IF(DK$3=3,Paramétrages!$H13,IF(DK$3=4,Paramétrages!$J13,IF(DK$3=5,Paramétrages!$L13,0))))) -> 0 | DL175: =IF(DK$3=1,Paramétrages!$E13,IF(DK$3=2,Paramétrages!$G13,IF(DK$3=3,Paramétrages!$I13,IF(DK$3=4,Paramétrages!$K13,IF(DK$3=5,Paramétrages!$M13,0))))) -> 0 | DM175: =IF(DM$3=1,Paramétrages!$D13,IF(DM$3=2,Paramétrages!$F13,IF(DM$3=3,Paramétrages!$H13,IF(DM$3=4,Paramétrages!$J13,IF(DM$3=5,Paramétrages!$L13,0))))) -> 3.25 | DN175: =IF(DM$3=1,Paramétrages!$E13,IF(DM$3=2,Paramétrages!$G13,IF(DM$3=3,Paramétrages!$I13,IF(DM$3=4,Paramétrages!$K13,IF(DM$3=5,Paramétrages!$M13,0))))) -> 3.25 | DO175: =IF(DO$3=1,Paramétrages!$D13,IF(DO$3=2,Paramétrages!$F13,IF(DO$3=3,Paramétrages!$H13,IF(DO$3=4,Paramétrages!$J13,IF(DO$3=5,Paramétrages!$L13,0))))) -> 3.25 | DP175: =IF(DO$3=1,Paramétrages!$E13,IF(DO$3=2,Paramétrages!$G13,IF(DO$3=3,Paramétrages!$I13,IF(DO$3=4,Paramétrages!$K13,IF(DO$3=5,Paramétrages!$M13,0))))) -> 3.25 | DQ175: =IF(DQ$3=1,Paramétrages!$D13,IF(DQ$3=2,Paramétrages!$F13,IF(DQ$3=3,Paramétrages!$H13,IF(DQ$3=4,Paramétrages!$J13,IF(DQ$3=5,Paramétrages!$L13,0))))) -> 3.25 | DR175: =IF(DQ$3=1,Paramétrages!$E13,IF(DQ$3=2,Paramétrages!$G13,IF(DQ$3=3,Paramétrages!$I13,IF(DQ$3=4,Paramétrages!$K13,IF(DQ$3=5,Paramétrages!$M13,0))))) -> 3.25 | DS175: =IF(DS$3=1,Paramétrages!$D13,IF(DS$3=2,Paramétrages!$F13,IF(DS$3=3,Paramétrages!$H13,IF(DS$3=4,Paramétrages!$J13,IF(DS$3=5,Paramétrages!$L13,0))))) -> 3.25 | DT175: =IF(DS$3=1,Paramétrages!$E13,IF(DS$3=2,Paramétrages!$G13,IF(DS$3=3,Paramétrages!$I13,IF(DS$3=4,Paramétrages!$K13,IF(DS$3=5,Paramétrages!$M13,0))))) -> 3.25 | DU175: =IF(DU$3=1,Paramétrages!$D13,IF(DU$3=2,Paramétrages!$F13,IF(DU$3=3,Paramétrages!$H13,IF(DU$3=4,Paramétrages!$J13,IF(DU$3=5,Paramétrages!$L13,0))))) -> 3.25 | DV175: =IF(DU$3=1,Paramétrages!$E13,IF(DU$3=2,Paramétrages!$G13,IF(DU$3=3,Paramétrages!$I13,IF(DU$3=4,Paramétrages!$K13,IF(DU$3=5,Paramétrages!$M13,0))))) -> 3.25 | DW175: =IF(DW$3=1,Paramétrages!$D13,IF(DW$3=2,Paramétrages!$F13,IF(DW$3=3,Paramétrages!$H13,IF(DW$3=4,Paramétrages!$J13,IF(DW$3=5,Paramétrages!$L13,0))))) -> 0 | DX175: =IF(DW$3=1,Paramétrages!$E13,IF(DW$3=2,Paramétrages!$G13,IF(DW$3=3,Paramétrages!$I13,IF(DW$3=4,Paramétrages!$K13,IF(DW$3=5,Paramétrages!$M13,0))))) -> 0 | DY175: =IF(DY$3=1,Paramétrages!$D13,IF(DY$3=2,Paramétrages!$F13,IF(DY$3=3,Paramétrages!$H13,IF(DY$3=4,Paramétrages!$J13,IF(DY$3=5,Paramétrages!$L13,0))))) -> 0 | DZ175: =IF(DY$3=1,Paramétrages!$E13,IF(DY$3=2,Paramétrages!$G13,IF(DY$3=3,Paramétrages!$I13,IF(DY$3=4,Paramétrages!$K13,IF(DY$3=5,Paramétrages!$M13,0))))) -> 0 | EA175: =IF(EA$3=1,Paramétrages!$D13,IF(EA$3=2,Paramétrages!$F13,IF(EA$3=3,Paramétrages!$H13,IF(EA$3=4,Paramétrages!$J13,IF(EA$3=5,Paramétrages!$L13,0))))) -> 3.25 | EB175: =IF(EA$3=1,Paramétrages!$E13,IF(EA$3=2,Paramétrages!$G13,IF(EA$3=3,Paramétrages!$I13,IF(EA$3=4,Paramétrages!$K13,IF(EA$3=5,Paramétrages!$M13,0))))) -> 3.25 | EC175: =IF(EC$3=1,Paramétrages!$D13,IF(EC$3=2,Paramétrages!$F13,IF(EC$3=3,Paramétrages!$H13,IF(EC$3=4,Paramétrages!$J13,IF(EC$3=5,Paramétrages!$L13,0))))) -> 3.25 | ED175: =IF(EC$3=1,Paramétrages!$E13,IF(EC$3=2,Paramétrages!$G13,IF(EC$3=3,Paramétrages!$I13,IF(EC$3=4,Paramétrages!$K13,IF(EC$3=5,Paramétrages!$M13,0))))) -> 3.25 | EE175: =IF(EE$3=1,Paramétrages!$D13,IF(EE$3=2,Paramétrages!$F13,IF(EE$3=3,Paramétrages!$H13,IF(EE$3=4,Paramétrages!$J13,IF(EE$3=5,Paramétrages!$L13,0))))) -> 3.25 | EF175: =IF(EE$3=1,Paramétrages!$E13,IF(EE$3=2,Paramétrages!$G13,IF(EE$3=3,Paramétrages!$I13,IF(EE$3=4,Paramétrages!$K13,IF(EE$3=5,Paramétrages!$M13,0))))) -> 3.25 | EG175: =IF(EG$3=1,Paramétrages!$D13,IF(EG$3=2,Paramétrages!$F13,IF(EG$3=3,Paramétrages!$H13,IF(EG$3=4,Paramétrages!$J13,IF(EG$3=5,Paramétrages!$L13,0))))) -> 3.25 | EH175: =IF(EG$3=1,Paramétrages!$E13,IF(EG$3=2,Paramétrages!$G13,IF(EG$3=3,Paramétrages!$I13,IF(EG$3=4,Paramétrages!$K13,IF(EG$3=5,Paramétrages!$M13,0))))) -> 3.25 | EI175: =IF(EI$3=1,Paramétrages!$D13,IF(EI$3=2,Paramétrages!$F13,IF(EI$3=3,Paramétrages!$H13,IF(EI$3=4,Paramétrages!$J13,IF(EI$3=5,Paramétrages!$L13,0))))) -> 3.25 | EJ175: =IF(EI$3=1,Paramétrages!$E13,IF(EI$3=2,Paramétrages!$G13,IF(EI$3=3,Paramétrages!$I13,IF(EI$3=4,Paramétrages!$K13,IF(EI$3=5,Paramétrages!$M13,0))))) -> 3.25 | EK175: =IF(EK$3=1,Paramétrages!$D13,IF(EK$3=2,Paramétrages!$F13,IF(EK$3=3,Paramétrages!$H13,IF(EK$3=4,Paramétrages!$J13,IF(EK$3=5,Paramétrages!$L13,0))))) -> 0 | EL175: =IF(EK$3=1,Paramétrages!$E13,IF(EK$3=2,Paramétrages!$G13,IF(EK$3=3,Paramétrages!$I13,IF(EK$3=4,Paramétrages!$K13,IF(EK$3=5,Paramétrages!$M13,0))))) -> 0 | EM175: =IF(EM$3=1,Paramétrages!$D13,IF(EM$3=2,Paramétrages!$F13,IF(EM$3=3,Paramétrages!$H13,IF(EM$3=4,Paramétrages!$J13,IF(EM$3=5,Paramétrages!$L13,0))))) -> 0 | EN175: =IF(EM$3=1,Paramétrages!$E13,IF(EM$3=2,Paramétrages!$G13,IF(EM$3=3,Paramétrages!$I13,IF(EM$3=4,Paramétrages!$K13,IF(EM$3=5,Paramétrages!$M13,0))))) -> 0 | EO175: =IF(EO$3=1,Paramétrages!$D13,IF(EO$3=2,Paramétrages!$F13,IF(EO$3=3,Paramétrages!$H13,IF(EO$3=4,Paramétrages!$J13,IF(EO$3=5,Paramétrages!$L13,0))))) -> 3.25 | EP175: =IF(EO$3=1,Paramétrages!$E13,IF(EO$3=2,Paramétrages!$G13,IF(EO$3=3,Paramétrages!$I13,IF(EO$3=4,Paramétrages!$K13,IF(EO$3=5,Paramétrages!$M13,0))))) -> 3.25 | EQ175: =IF(EQ$3=1,Paramétrages!$D13,IF(EQ$3=2,Paramétrages!$F13,IF(EQ$3=3,Paramétrages!$H13,IF(EQ$3=4,Paramétrages!$J13,IF(EQ$3=5,Paramétrages!$L13,0))))) -> 3.25 | ER175: =IF(EQ$3=1,Paramétrages!$E13,IF(EQ$3=2,Paramétrages!$G13,IF(EQ$3=3,Paramétrages!$I13,IF(EQ$3=4,Paramétrages!$K13,IF(EQ$3=5,Paramétrages!$M13,0))))) -> 3.25 | ES175: =IF(ES$3=1,Paramétrages!$D13,IF(ES$3=2,Paramétrages!$F13,IF(ES$3=3,Paramétrages!$H13,IF(ES$3=4,Paramétrages!$J13,IF(ES$3=5,Paramétrages!$L13,0))))) -> 3.25 | ET175: =IF(ES$3=1,Paramétrages!$E13,IF(ES$3=2,Paramétrages!$G13,IF(ES$3=3,Paramétrages!$I13,IF(ES$3=4,Paramétrages!$K13,IF(ES$3=5,Paramétrages!$M13,0))))) -> 3.25 | EU175: =IF(EU$3=1,Paramétrages!$D13,IF(EU$3=2,Paramétrages!$F13,IF(EU$3=3,Paramétrages!$H13,IF(EU$3=4,Paramétrages!$J13,IF(EU$3=5,Paramétrages!$L13,0))))) -> 3.25 | EV175: =IF(EU$3=1,Paramétrages!$E13,IF(EU$3=2,Paramétrages!$G13,IF(EU$3=3,Paramétrages!$I13,IF(EU$3=4,Paramétrages!$K13,IF(EU$3=5,Paramétrages!$M13,0))))) -> 3.25 | EW175: =IF(EW$3=1,Paramétrages!$D13,IF(EW$3=2,Paramétrages!$F13,IF(EW$3=3,Paramétrages!$H13,IF(EW$3=4,Paramétrages!$J13,IF(EW$3=5,Paramétrages!$L13,0))))) -> 3.25 | EX175: =IF(EW$3=1,Paramétrages!$E13,IF(EW$3=2,Paramétrages!$G13,IF(EW$3=3,Paramétrages!$I13,IF(EW$3=4,Paramétrages!$K13,IF(EW$3=5,Paramétrages!$M13,0))))) -> 3.25 | EY175: =IF(EY$3=1,Paramétrages!$D13,IF(EY$3=2,Paramétrages!$F13,IF(EY$3=3,Paramétrages!$H13,IF(EY$3=4,Paramétrages!$J13,IF(EY$3=5,Paramétrages!$L13,0))))) -> 0 | EZ175: =IF(EY$3=1,Paramétrages!$E13,IF(EY$3=2,Paramétrages!$G13,IF(EY$3=3,Paramétrages!$I13,IF(EY$3=4,Paramétrages!$K13,IF(EY$3=5,Paramétrages!$M13,0))))) -> 0 | FA175: =IF(FA$3=1,Paramétrages!$D13,IF(FA$3=2,Paramétrages!$F13,IF(FA$3=3,Paramétrages!$H13,IF(FA$3=4,Paramétrages!$J13,IF(FA$3=5,Paramétrages!$L13,0))))) -> 0 | FB175: =IF(FA$3=1,Paramétrages!$E13,IF(FA$3=2,Paramétrages!$G13,IF(FA$3=3,Paramétrages!$I13,IF(FA$3=4,Paramétrages!$K13,IF(FA$3=5,Paramétrages!$M13,0))))) -> 0 | FC175: =IF(FC$3=1,Paramétrages!$D13,IF(FC$3=2,Paramétrages!$F13,IF(FC$3=3,Paramétrages!$H13,IF(FC$3=4,Paramétrages!$J13,IF(FC$3=5,Paramétrages!$L13,0))))) -> 3.25 | FD175: =IF(FC$3=1,Paramétrages!$E13,IF(FC$3=2,Paramétrages!$G13,IF(FC$3=3,Paramétrages!$I13,IF(FC$3=4,Paramétrages!$K13,IF(FC$3=5,Paramétrages!$M13,0))))) -> 3.25 | FE175: =IF(FE$3=1,Paramétrages!$D13,IF(FE$3=2,Paramétrages!$F13,IF(FE$3=3,Paramétrages!$H13,IF(FE$3=4,Paramétrages!$J13,IF(FE$3=5,Paramétrages!$L13,0))))) -> 3.25 | FF175: =IF(FE$3=1,Paramétrages!$E13,IF(FE$3=2,Paramétrages!$G13,IF(FE$3=3,Paramétrages!$I13,IF(FE$3=4,Paramétrages!$K13,IF(FE$3=5,Paramétrages!$M13,0))))) -> 3.25 | FG175: =IF(FG$3=1,Paramétrages!$D13,IF(FG$3=2,Paramétrages!$F13,IF(FG$3=3,Paramétrages!$H13,IF(FG$3=4,Paramétrages!$J13,IF(FG$3=5,Paramétrages!$L13,0))))) -> 3.25 | FH175: =IF(FG$3=1,Paramétrages!$E13,IF(FG$3=2,Paramétrages!$G13,IF(FG$3=3,Paramétrages!$I13,IF(FG$3=4,Paramétrages!$K13,IF(FG$3=5,Paramétrages!$M13,0))))) -> 3.25 | FI175: =IF(FI$3=1,Paramétrages!$D13,IF(FI$3=2,Paramétrages!$F13,IF(FI$3=3,Paramétrages!$H13,IF(FI$3=4,Paramétrages!$J13,IF(FI$3=5,Paramétrages!$L13,0))))) -> 3.25 | FJ175: =IF(FI$3=1,Paramétrages!$E13,IF(FI$3=2,Paramétrages!$G13,IF(FI$3=3,Paramétrages!$I13,IF(FI$3=4,Paramétrages!$K13,IF(FI$3=5,Paramétrages!$M13,0))))) -> 3.25 | FK175: =IF(FK$3=1,Paramétrages!$D13,IF(FK$3=2,Paramétrages!$F13,IF(FK$3=3,Paramétrages!$H13,IF(FK$3=4,Paramétrages!$J13,IF(FK$3=5,Paramétrages!$L13,0))))) -> 3.25 | FL175: =IF(FK$3=1,Paramétrages!$E13,IF(FK$3=2,Paramétrages!$G13,IF(FK$3=3,Paramétrages!$I13,IF(FK$3=4,Paramétrages!$K13,IF(FK$3=5,Paramétrages!$M13,0))))) -> 3.25 | FM175: =IF(FM$3=1,Paramétrages!$D13,IF(FM$3=2,Paramétrages!$F13,IF(FM$3=3,Paramétrages!$H13,IF(FM$3=4,Paramétrages!$J13,IF(FM$3=5,Paramétrages!$L13,0))))) -> 0 | FN175: =IF(FM$3=1,Paramétrages!$E13,IF(FM$3=2,Paramétrages!$G13,IF(FM$3=3,Paramétrages!$I13,IF(FM$3=4,Paramétrages!$K13,IF(FM$3=5,Paramétrages!$M13,0))))) -> 0 | FO175: =IF(FO$3=1,Paramétrages!$D13,IF(FO$3=2,Paramétrages!$F13,IF(FO$3=3,Paramétrages!$H13,IF(FO$3=4,Paramétrages!$J13,IF(FO$3=5,Paramétrages!$L13,0))))) -> 0 | FP175: =IF(FO$3=1,Paramétrages!$E13,IF(FO$3=2,Paramétrages!$G13,IF(FO$3=3,Paramétrages!$I13,IF(FO$3=4,Paramétrages!$K13,IF(FO$3=5,Paramétrages!$M13,0))))) -> 0 | FQ175: =IF(FQ$3=1,Paramétrages!$D13,IF(FQ$3=2,Paramétrages!$F13,IF(FQ$3=3,Paramétrages!$H13,IF(FQ$3=4,Paramétrages!$J13,IF(FQ$3=5,Paramétrages!$L13,0))))) -> 3.25 | FR175: =IF(FQ$3=1,Paramétrages!$E13,IF(FQ$3=2,Paramétrages!$G13,IF(FQ$3=3,Paramétrages!$I13,IF(FQ$3=4,Paramétrages!$K13,IF(FQ$3=5,Paramétrages!$M13,0))))) -> 3.25 | FS175: =IF(FS$3=1,Paramétrages!$D13,IF(FS$3=2,Paramétrages!$F13,IF(FS$3=3,Paramétrages!$H13,IF(FS$3=4,Paramétrages!$J13,IF(FS$3=5,Paramétrages!$L13,0))))) -> 3.25 | FT175: =IF(FS$3=1,Paramétrages!$E13,IF(FS$3=2,Paramétrages!$G13,IF(FS$3=3,Paramétrages!$I13,IF(FS$3=4,Paramétrages!$K13,IF(FS$3=5,Paramétrages!$M13,0))))) -> 3.25 | FU175: =IF(FU$3=1,Paramétrages!$D13,IF(FU$3=2,Paramétrages!$F13,IF(FU$3=3,Paramétrages!$H13,IF(FU$3=4,Paramétrages!$J13,IF(FU$3=5,Paramétrages!$L13,0))))) -> 3.25 | FV175: =IF(FU$3=1,Paramétrages!$E13,IF(FU$3=2,Paramétrages!$G13,IF(FU$3=3,Paramétrages!$I13,IF(FU$3=4,Paramétrages!$K13,IF(FU$3=5,Paramétrages!$M13,0))))) -> 3.25 | FW175: =IF(FW$3=1,Paramétrages!$D13,IF(FW$3=2,Paramétrages!$F13,IF(FW$3=3,Paramétrages!$H13,IF(FW$3=4,Paramétrages!$J13,IF(FW$3=5,Paramétrages!$L13,0))))) -> 3.25 | FX175: =IF(FW$3=1,Paramétrages!$E13,IF(FW$3=2,Paramétrages!$G13,IF(FW$3=3,Paramétrages!$I13,IF(FW$3=4,Paramétrages!$K13,IF(FW$3=5,Paramétrages!$M13,0))))) -> 3.25 | FY175: =IF(FY$3=1,Paramétrages!$D13,IF(FY$3=2,Paramétrages!$F13,IF(FY$3=3,Paramétrages!$H13,IF(FY$3=4,Paramétrages!$J13,IF(FY$3=5,Paramétrages!$L13,0))))) -> 3.25 | FZ175: =IF(FY$3=1,Paramétrages!$E13,IF(FY$3=2,Paramétrages!$G13,IF(FY$3=3,Paramétrages!$I13,IF(FY$3=4,Paramétrages!$K13,IF(FY$3=5,Paramétrages!$M13,0))))) -> 3.25 | GA175: =IF(GA$3=1,Paramétrages!$D13,IF(GA$3=2,Paramétrages!$F13,IF(GA$3=3,Paramétrages!$H13,IF(GA$3=4,Paramétrages!$J13,IF(GA$3=5,Paramétrages!$L13,0))))) -> 0 | GB175: =IF(GA$3=1,Paramétrages!$E13,IF(GA$3=2,Paramétrages!$G13,IF(GA$3=3,Paramétrages!$I13,IF(GA$3=4,Paramétrages!$K13,IF(GA$3=5,Paramétrages!$M13,0))))) -> 0 | GC175: =IF(GC$3=1,Paramétrages!$D13,IF(GC$3=2,Paramétrages!$F13,IF(GC$3=3,Paramétrages!$H13,IF(GC$3=4,Paramétrages!$J13,IF(GC$3=5,Paramétrages!$L13,0))))) -> 0 | GD175: =IF(GC$3=1,Paramétrages!$E13,IF(GC$3=2,Paramétrages!$G13,IF(GC$3=3,Paramétrages!$I13,IF(GC$3=4,Paramétrages!$K13,IF(GC$3=5,Paramétrages!$M13,0))))) -> 0 | GE175: =IF(GE$3=1,Paramétrages!$D13,IF(GE$3=2,Paramétrages!$F13,IF(GE$3=3,Paramétrages!$H13,IF(GE$3=4,Paramétrages!$J13,IF(GE$3=5,Paramétrages!$L13,0))))) -> 3.25 | GF175: =IF(GE$3=1,Paramétrages!$E13,IF(GE$3=2,Paramétrages!$G13,IF(GE$3=3,Paramétrages!$I13,IF(GE$3=4,Paramétrages!$K13,IF(GE$3=5,Paramétrages!$M13,0))))) -> 3.25 | GK175: =D177 -> 0 | GL175: =COUNTIF(E175:BN175,">0")/2 -> 23 | GM175: =IF(GL175>0,GL176/GL175," ") -> 0.4565217391 | GN175: =IF($DS$2=$GI$3,COUNTIF($BO175:$DX175,">0")/2,COUNTIF($BO175:$DX175,">0")/2) -> 22 | GO175: =IF(GN175>0,GN176/GN175," ") -> 0.06818181818 | GP175: =IF($DS$2=$GI$3,COUNTIF($DY175:$GF175,">0")/2,COUNTIF($DY175:$GF175,">0")/2) -> 21 | GQ175: =IF(GP175>0,GP176/GP175," ") -> 0.119047619 | GR175: =COUNTIF(E175:BN175,"ad")/2 -> 0 | GT175: =IF($DS$2=$GI$3,COUNTIF($BO75:$DX175,"ad")/2,COUNTIF($BO75:$DX175,"ad")/2) -> 0 | GV175: =IF($DS$2=$GI$3,COUNTIF($DY175:$GF175,"ad")/2,COUNTIF($DY175:$GF175,"ad")/2) -> 0 | HE175: =Paramétrages!$B$25 -> NOM | HF175: =COUNTIF(E187:GF188,"A2")/2 -> 0 | HG175: =COUNTIF(F187:GG188,"cp")/2 -> 0 | HH175: =COUNTIF(G187:GH188,"css")/2 -> 0 | HI175: =COUNTIF(H187:GI188,"ma")/2 -> 0 | HJ175: =COUNTIF(I187:GJ188,"at")/2 -> 0 | HK175: =COUNTIF(J187:GK188,"aj")/2 -> 0 | HL175: =COUNTIF(K187:GL188,"ai")/2 -> 0 | HM175: =COUNTIF(L187:GM188,"ad")/2 -> 0 | HN175: =COUNTIF(M187:GN188,"st")/2 -> 0 | HO175: =COUNTIF(N187:GO188,"di")/2 -> 0
B176: 2 | E176: R | F176: R | G176: R | H176: R | I176: R | J176: R | K176: R | L176: R | M176: R | N176: R | O176: R | P176: R | Q176: R | R176: R | S176: R | T176: R | U176: R | V176: R | W176: R | X176: R | Y176: R | Z176: R | AA176: R | AB176: R | BW176: R | BY176: R | CA176: R | CC176: R | CE176: R | CG176: R | CI176: R | CK176: R | CM176: R | CO176: R | CQ176: R | CS176: R | CU176: R | CW176: R | GH176: =COUNTIF(E176:GF176,"R") -> 38 | GL176: =(SUM(E177:BP177)+COUNTIF(E177:BP177,"ad"))/2 -> 10.5 | GN176: =IF($GI$3=$DS$2,(SUM(BQ177:DT177)+COUNTIF(BQ177:DT177,"ad"))/2, (SUM(BQ177:DX177)+COUNTIF(BQ177:DX177,"ad"))/2) -> 1.5 | GP176: =IF($GI$3=$DS$2,(SUM(DU177:GF177)+COUNTIF(DU177:GF177,"ad"))/2, (SUM(DY177:GF177)+COUNTIF(DY177:GF177,"ad"))/2) -> 2.5 | HE176: =Paramétrages!$B$28 -> NOM | HF176: =COUNTIF(E190:GF191,"A2")/2 -> 0 | HG176: =COUNTIF(F190:GG191,"cp")/2 -> 0 | HH176: =COUNTIF(G190:GH191,"css")/2 -> 0 | HI176: =COUNTIF(H190:GI191,"ma")/2 -> 0 | HJ176: =COUNTIF(I190:GJ191,"at")/2 -> 0 | HK176: =COUNTIF(J190:GK191,"aj")/2 -> 0 | HL176: =COUNTIF(K190:GL191,"ai")/2 -> 0 | HM176: =COUNTIF(L190:GM191,"ad")/2 -> 0 | HN176: =COUNTIF(M190:GN191,"st")/2 -> 0 | HO176: =COUNTIF(N190:GO191,"di")/2 -> 0
A177: =Paramétrages!B13 -> NOM | B177: 3 | F177: 1 | G177: 1 | H177: 1 | I177: 1 | J177: 1 | K177: 1 | M177: 1 | N177: 1 | U177: 0.5 | V177: 0.5 | X177: 0.5 | Y177: 1 | AG177: 0.5 | AH177: 1 | AI177: 1 | AV177: 1 | AW177: 1 | AX177: 1 | BA177: 1 | BI177: 1 | BJ177: 1 | BK177: 1 | BL177: 1 | DM177: 0.5 | DN177: 0.5 | DQ177: 0.5 | DT177: 0.5 | DU177: 1 | EE177: 1 | EG177: 1 | EI177: 1 | EJ177: 1 | EO177: 1 | GO177: =IF(GN177>0,GN178/GN177," ") ->  | HE177: =Paramétrages!$B$31 -> NOM | HF177: =COUNTIF(E193:GF194,"A2")/2 -> 0 | HG177: =COUNTIF(F193:GG194,"cp")/2 -> 0 | HH177: =COUNTIF(G193:GH194,"css")/2 -> 0 | HI177: =COUNTIF(H193:GI194,"ma")/2 -> 0 | HJ177: =COUNTIF(I193:GJ194,"at")/2 -> 0 | HK177: =COUNTIF(J193:GK194,"aj")/2 -> 0 | HL177: =COUNTIF(K193:GL194,"ai")/2 -> 0 | HM177: =COUNTIF(L193:GM194,"ad")/2 -> 0 | HN177: =COUNTIF(M193:GN194,"st")/2 -> 0 | HO177: =COUNTIF(N193:GO194,"di")/2 -> 0
B178: 1 | C178: 4 | E178: =IF(E$3=1,Paramétrages!$D16,IF(E$3=2,Paramétrages!$F16,IF(E$3=3,Paramétrages!$H16,IF(E$3=4,Paramétrages!$J16,IF(E$3=5,Paramétrages!$L16,0))))) -> 3.25 | F178: =IF(E$3=1,Paramétrages!$E16,IF(E$3=2,Paramétrages!$G16,IF(E$3=3,Paramétrages!$I16,IF(E$3=4,Paramétrages!$K16,IF(E$3=5,Paramétrages!$M16,0))))) -> 3.25 | G178: =IF(G$3=1,Paramétrages!$D16,IF(G$3=2,Paramétrages!$F16,IF(G$3=3,Paramétrages!$H16,IF(G$3=4,Paramétrages!$J16,IF(G$3=5,Paramétrages!$L16,0))))) -> 3.25 | H178: =IF(G$3=1,Paramétrages!$E16,IF(G$3=2,Paramétrages!$G16,IF(G$3=3,Paramétrages!$I16,IF(G$3=4,Paramétrages!$K16,IF(G$3=5,Paramétrages!$M16,0))))) -> 3.25 | I178: =IF(I$3=1,Paramétrages!$D16,IF(I$3=2,Paramétrages!$F16,IF(I$3=3,Paramétrages!$H16,IF(I$3=4,Paramétrages!$J16,IF(I$3=5,Paramétrages!$L16,0))))) -> 3.25 | J178: =IF(I$3=1,Paramétrages!$E16,IF(I$3=2,Paramétrages!$G16,IF(I$3=3,Paramétrages!$I16,IF(I$3=4,Paramétrages!$K16,IF(I$3=5,Paramétrages!$M16,0))))) -> 3.25 | K178: =IF(K$3=1,Paramétrages!$D16,IF(K$3=2,Paramétrages!$F16,IF(K$3=3,Paramétrages!$H16,IF(K$3=4,Paramétrages!$J16,IF(K$3=5,Paramétrages!$L16,0))))) -> 3.25 | L178: =IF(K$3=1,Paramétrages!$E16,IF(K$3=2,Paramétrages!$G16,IF(K$3=3,Paramétrages!$I16,IF(K$3=4,Paramétrages!$K16,IF(K$3=5,Paramétrages!$M16,0))))) -> 3.25 | M178: =IF(M$3=1,Paramétrages!$D16,IF(M$3=2,Paramétrages!$F16,IF(M$3=3,Paramétrages!$H16,IF(M$3=4,Paramétrages!$J16,IF(M$3=5,Paramétrages!$L16,0))))) -> 3.25 | N178: =IF(M$3=1,Paramétrages!$E16,IF(M$3=2,Paramétrages!$G16,IF(M$3=3,Paramétrages!$I16,IF(M$3=4,Paramétrages!$K16,IF(M$3=5,Paramétrages!$M16,0))))) -> 3.25 | O178: =IF(O$3=1,Paramétrages!$D16,IF(O$3=2,Paramétrages!$F16,IF(O$3=3,Paramétrages!$H16,IF(O$3=4,Paramétrages!$J16,IF(O$3=5,Paramétrages!$L16,0))))) -> 0 | P178: =IF(O$3=1,Paramétrages!$E16,IF(O$3=2,Paramétrages!$G16,IF(O$3=3,Paramétrages!$I16,IF(O$3=4,Paramétrages!$K16,IF(O$3=5,Paramétrages!$M16,0))))) -> 0 | Q178: =IF(Q$3=1,Paramétrages!$D16,IF(Q$3=2,Paramétrages!$F16,IF(Q$3=3,Paramétrages!$H16,IF(Q$3=4,Paramétrages!$J16,IF(Q$3=5,Paramétrages!$L16,0))))) -> 0 | R178: =IF(Q$3=1,Paramétrages!$E16,IF(Q$3=2,Paramétrages!$G16,IF(Q$3=3,Paramétrages!$I16,IF(Q$3=4,Paramétrages!$K16,IF(Q$3=5,Paramétrages!$M16,0))))) -> 0 | S178: =IF(S$3=1,Paramétrages!$D16,IF(S$3=2,Paramétrages!$F16,IF(S$3=3,Paramétrages!$H16,IF(S$3=4,Paramétrages!$J16,IF(S$3=5,Paramétrages!$L16,0))))) -> 3.25 | T178: =IF(S$3=1,Paramétrages!$E16,IF(S$3=2,Paramétrages!$G16,IF(S$3=3,Paramétrages!$I16,IF(S$3=4,Paramétrages!$K16,IF(S$3=5,Paramétrages!$M16,0))))) -> 3.25 | U178: =IF(U$3=1,Paramétrages!$D16,IF(U$3=2,Paramétrages!$F16,IF(U$3=3,Paramétrages!$H16,IF(U$3=4,Paramétrages!$J16,IF(U$3=5,Paramétrages!$L16,0))))) -> 3.25 | V178: =IF(U$3=1,Paramétrages!$E16,IF(U$3=2,Paramétrages!$G16,IF(U$3=3,Paramétrages!$I16,IF(U$3=4,Paramétrages!$K16,IF(U$3=5,Paramétrages!$M16,0))))) -> 3.25 | W178: =IF(W$3=1,Paramétrages!$D16,IF(W$3=2,Paramétrages!$F16,IF(W$3=3,Paramétrages!$H16,IF(W$3=4,Paramétrages!$J16,IF(W$3=5,Paramétrages!$L16,0))))) -> 3.25 | X178: =IF(W$3=1,Paramétrages!$E16,IF(W$3=2,Paramétrages!$G16,IF(W$3=3,Paramétrages!$I16,IF(W$3=4,Paramétrages!$K16,IF(W$3=5,Paramétrages!$M16,0))))) -> 3.25 | Y178: =IF(Y$3=1,Paramétrages!$D16,IF(Y$3=2,Paramétrages!$F16,IF(Y$3=3,Paramétrages!$H16,IF(Y$3=4,Paramétrages!$J16,IF(Y$3=5,Paramétrages!$L16,0))))) -> 3.25 | Z178: =IF(Y$3=1,Paramétrages!$E16,IF(Y$3=2,Paramétrages!$G16,IF(Y$3=3,Paramétrages!$I16,IF(Y$3=4,Paramétrages!$K16,IF(Y$3=5,Paramétrages!$M16,0))))) -> 3.25 | AA178: =IF(AA$3=1,Paramétrages!$D16,IF(AA$3=2,Paramétrages!$F16,IF(AA$3=3,Paramétrages!$H16,IF(AA$3=4,Paramétrages!$J16,IF(AA$3=5,Paramétrages!$L16,0))))) -> 3.25 | AB178: =IF(AA$3=1,Paramétrages!$E16,IF(AA$3=2,Paramétrages!$G16,IF(AA$3=3,Paramétrages!$I16,IF(AA$3=4,Paramétrages!$K16,IF(AA$3=5,Paramétrages!$M16,0))))) -> 3.25 | AC178: =IF(AC$3=1,Paramétrages!$D16,IF(AC$3=2,Paramétrages!$F16,IF(AC$3=3,Paramétrages!$H16,IF(AC$3=4,Paramétrages!$J16,IF(AC$3=5,Paramétrages!$L16,0))))) -> 0 | AD178: =IF(AC$3=1,Paramétrages!$E16,IF(AC$3=2,Paramétrages!$G16,IF(AC$3=3,Paramétrages!$I16,IF(AC$3=4,Paramétrages!$K16,IF(AC$3=5,Paramétrages!$M16,0))))) -> 0 | AE178: =IF(AE$3=1,Paramétrages!$D16,IF(AE$3=2,Paramétrages!$F16,IF(AE$3=3,Paramétrages!$H16,IF(AE$3=4,Paramétrages!$J16,IF(AE$3=5,Paramétrages!$L16,0))))) -> 0 | AF178: =IF(AE$3=1,Paramétrages!$E16,IF(AE$3=2,Paramétrages!$G16,IF(AE$3=3,Paramétrages!$I16,IF(AE$3=4,Paramétrages!$K16,IF(AE$3=5,Paramétrages!$M16,0))))) -> 0 | AG178: =IF(AG$3=1,Paramétrages!$D16,IF(AG$3=2,Paramétrages!$F16,IF(AG$3=3,Paramétrages!$H16,IF(AG$3=4,Paramétrages!$J16,IF(AG$3=5,Paramétrages!$L16,0))))) -> 3.25 | AH178: =IF(AG$3=1,Paramétrages!$E16,IF(AG$3=2,Paramétrages!$G16,IF(AG$3=3,Paramétrages!$I16,IF(AG$3=4,Paramétrages!$K16,IF(AG$3=5,Paramétrages!$M16,0))))) -> 3.25 | AI178: =IF(AI$3=1,Paramétrages!$D16,IF(AI$3=2,Paramétrages!$F16,IF(AI$3=3,Paramétrages!$H16,IF(AI$3=4,Paramétrages!$J16,IF(AI$3=5,Paramétrages!$L16,0))))) -> 3.25 | AJ178: =IF(AI$3=1,Paramétrages!$E16,IF(AI$3=2,Paramétrages!$G16,IF(AI$3=3,Paramétrages!$I16,IF(AI$3=4,Paramétrages!$K16,IF(AI$3=5,Paramétrages!$M16,0))))) -> 3.25 | AK178: =IF(AK$3=1,Paramétrages!$D16,IF(AK$3=2,Paramétrages!$F16,IF(AK$3=3,Paramétrages!$H16,IF(AK$3=4,Paramétrages!$J16,IF(AK$3=5,Paramétrages!$L16,0))))) -> 3.25 | AL178: =IF(AK$3=1,Paramétrages!$E16,IF(AK$3=2,Paramétrages!$G16,IF(AK$3=3,Paramétrages!$I16,IF(AK$3=4,Paramétrages!$K16,IF(AK$3=5,Paramétrages!$M16,0))))) -> 3.25 | AM178: =IF(AM$3=1,Paramétrages!$D16,IF(AM$3=2,Paramétrages!$F16,IF(AM$3=3,Paramétrages!$H16,IF(AM$3=4,Paramétrages!$J16,IF(AM$3=5,Paramétrages!$L16,0))))) -> 3.25 | AN178: =IF(AM$3=1,Paramétrages!$E16,IF(AM$3=2,Paramétrages!$G16,IF(AM$3=3,Paramétrages!$I16,IF(AM$3=4,Paramétrages!$K16,IF(AM$3=5,Paramétrages!$M16,0))))) -> 3.25 | AO178: =IF(AO$3=1,Paramétrages!$D16,IF(AO$3=2,Paramétrages!$F16,IF(AO$3=3,Paramétrages!$H16,IF(AO$3=4,Paramétrages!$J16,IF(AO$3=5,Paramétrages!$L16,0))))) -> 3.25 | AP178: =IF(AO$3=1,Paramétrages!$E16,IF(AO$3=2,Paramétrages!$G16,IF(AO$3=3,Paramétrages!$I16,IF(AO$3=4,Paramétrages!$K16,IF(AO$3=5,Paramétrages!$M16,0))))) -> 3.25 | AQ178: =IF(AQ$3=1,Paramétrages!$D16,IF(AQ$3=2,Paramétrages!$F16,IF(AQ$3=3,Paramétrages!$H16,IF(AQ$3=4,Paramétrages!$J16,IF(AQ$3=5,Paramétrages!$L16,0))))) -> 0 | AR178: =IF(AQ$3=1,Paramétrages!$E16,IF(AQ$3=2,Paramétrages!$G16,IF(AQ$3=3,Paramétrages!$I16,IF(AQ$3=4,Paramétrages!$K16,IF(AQ$3=5,Paramétrages!$M16,0))))) -> 0 | AS178: =IF(AS$3=1,Paramétrages!$D16,IF(AS$3=2,Paramétrages!$F16,IF(AS$3=3,Paramétrages!$H16,IF(AS$3=4,Paramétrages!$J16,IF(AS$3=5,Paramétrages!$L16,0))))) -> 0 | AT178: =IF(AS$3=1,Paramétrages!$E16,IF(AS$3=2,Paramétrages!$G16,IF(AS$3=3,Paramétrages!$I16,IF(AS$3=4,Paramétrages!$K16,IF(AS$3=5,Paramétrages!$M16,0))))) -> 0 | AU178: =IF(AU$3=1,Paramétrages!$D16,IF(AU$3=2,Paramétrages!$F16,IF(AU$3=3,Paramétrages!$H16,IF(AU$3=4,Paramétrages!$J16,IF(AU$3=5,Paramétrages!$L16,0))))) -> 3.25 | AV178: =IF(AU$3=1,Paramétrages!$E16,IF(AU$3=2,Paramétrages!$G16,IF(AU$3=3,Paramétrages!$I16,IF(AU$3=4,Paramétrages!$K16,IF(AU$3=5,Paramétrages!$M16,0))))) -> 3.25 | AW178: =IF(AW$3=1,Paramétrages!$D16,IF(AW$3=2,Paramétrages!$F16,IF(AW$3=3,Paramétrages!$H16,IF(AW$3=4,Paramétrages!$J16,IF(AW$3=5,Paramétrages!$L16,0))))) -> 3.25 | AX178: =IF(AW$3=1,Paramétrages!$E16,IF(AW$3=2,Paramétrages!$G16,IF(AW$3=3,Paramétrages!$I16,IF(AW$3=4,Paramétrages!$K16,IF(AW$3=5,Paramétrages!$M16,0))))) -> 3.25 | AY178: =IF(AY$3=1,Paramétrages!$D16,IF(AY$3=2,Paramétrages!$F16,IF(AY$3=3,Paramétrages!$H16,IF(AY$3=4,Paramétrages!$J16,IF(AY$3=5,Paramétrages!$L16,0))))) -> 3.25 | AZ178: =IF(AY$3=1,Paramétrages!$E16,IF(AY$3=2,Paramétrages!$G16,IF(AY$3=3,Paramétrages!$I16,IF(AY$3=4,Paramétrages!$K16,IF(AY$3=5,Paramétrages!$M16,0))))) -> 3.25 | BA178: =IF(BA$3=1,Paramétrages!$D16,IF(BA$3=2,Paramétrages!$F16,IF(BA$3=3,Paramétrages!$H16,IF(BA$3=4,Paramétrages!$J16,IF(BA$3=5,Paramétrages!$L16,0))))) -> 3.25 | BB178: =IF(BA$3=1,Paramétrages!$E16,IF(BA$3=2,Paramétrages!$G16,IF(BA$3=3,Paramétrages!$I16,IF(BA$3=4,Paramétrages!$K16,IF(BA$3=5,Paramétrages!$M16,0))))) -> 3.25 | BC178: =IF(BC$3=1,Paramétrages!$D16,IF(BC$3=2,Paramétrages!$F16,IF(BC$3=3,Paramétrages!$H16,IF(BC$3=4,Paramétrages!$J16,IF(BC$3=5,Paramétrages!$L16,0))))) -> 3.25 | BD178: =IF(BC$3=1,Paramétrages!$E16,IF(BC$3=2,Paramétrages!$G16,IF(BC$3=3,Paramétrages!$I16,IF(BC$3=4,Paramétrages!$K16,IF(BC$3=5,Paramétrages!$M16,0))))) -> 3.25 | BE178: =IF(BE$3=1,Paramétrages!$D16,IF(BE$3=2,Paramétrages!$F16,IF(BE$3=3,Paramétrages!$H16,IF(BE$3=4,Paramétrages!$J16,IF(BE$3=5,Paramétrages!$L16,0))))) -> 0 | BF178: =IF(BE$3=1,Paramétrages!$E16,IF(BE$3=2,Paramétrages!$G16,IF(BE$3=3,Paramétrages!$I16,IF(BE$3=4,Paramétrages!$K16,IF(BE$3=5,Paramétrages!$M16,0))))) -> 0 | BG178: =IF(BG$3=1,Paramétrages!$D16,IF(BG$3=2,Paramétrages!$F16,IF(BG$3=3,Paramétrages!$H16,IF(BG$3=4,Paramétrages!$J16,IF(BG$3=5,Paramétrages!$L16,0))))) -> 0 | BH178: =IF(BG$3=1,Paramétrages!$E16,IF(BG$3=2,Paramétrages!$G16,IF(BG$3=3,Paramétrages!$I16,IF(BG$3=4,Paramétrages!$K16,IF(BG$3=5,Paramétrages!$M16,0))))) -> 0 | BI178: =IF(BI$3=1,Paramétrages!$D16,IF(BI$3=2,Paramétrages!$F16,IF(BI$3=3,Paramétrages!$H16,IF(BI$3=4,Paramétrages!$J16,IF(BI$3=5,Paramétrages!$L16,0))))) -> 3.25 | BJ178: =IF(BI$3=1,Paramétrages!$E16,IF(BI$3=2,Paramétrages!$G16,IF(BI$3=3,Paramétrages!$I16,IF(BI$3=4,Paramétrages!$K16,IF(BI$3=5,Paramétrages!$M16,0))))) -> 3.25 | BK178: =IF(BK$3=1,Paramétrages!$D16,IF(BK$3=2,Paramétrages!$F16,IF(BK$3=3,Paramétrages!$H16,IF(BK$3=4,Paramétrages!$J16,IF(BK$3=5,Paramétrages!$L16,0))))) -> 3.25 | BL178: =IF(BK$3=1,Paramétrages!$E16,IF(BK$3=2,Paramétrages!$G16,IF(BK$3=3,Paramétrages!$I16,IF(BK$3=4,Paramétrages!$K16,IF(BK$3=5,Paramétrages!$M16,0))))) -> 3.25 | BM178: =IF(BM$3=1,Paramétrages!$D16,IF(BM$3=2,Paramétrages!$F16,IF(BM$3=3,Paramétrages!$H16,IF(BM$3=4,Paramétrages!$J16,IF(BM$3=5,Paramétrages!$L16,0))))) -> 3.25 | BN178: =IF(BM$3=1,Paramétrages!$E16,IF(BM$3=2,Paramétrages!$G16,IF(BM$3=3,Paramétrages!$I16,IF(BM$3=4,Paramétrages!$K16,IF(BM$3=5,Paramétrages!$M16,0))))) -> 3.25 | BO178: =IF(BO$3=1,Paramétrages!$D16,IF(BO$3=2,Paramétrages!$F16,IF(BO$3=3,Paramétrages!$H16,IF(BO$3=4,Paramétrages!$J16,IF(BO$3=5,Paramétrages!$L16,0))))) -> 3.25 | BP178: =IF(BO$3=1,Paramétrages!$E16,IF(BO$3=2,Paramétrages!$G16,IF(BO$3=3,Paramétrages!$I16,IF(BO$3=4,Paramétrages!$K16,IF(BO$3=5,Paramétrages!$M16,0))))) -> 3.25 | BQ178: =IF(BQ$3=1,Paramétrages!$D16,IF(BQ$3=2,Paramétrages!$F16,IF(BQ$3=3,Paramétrages!$H16,IF(BQ$3=4,Paramétrages!$J16,IF(BQ$3=5,Paramétrages!$L16,0))))) -> 3.25 | BR178: =IF(BQ$3=1,Paramétrages!$E16,IF(BQ$3=2,Paramétrages!$G16,IF(BQ$3=3,Paramétrages!$I16,IF(BQ$3=4,Paramétrages!$K16,IF(BQ$3=5,Paramétrages!$M16,0))))) -> 3.25 | BS178: =IF(BS$3=1,Paramétrages!$D16,IF(BS$3=2,Paramétrages!$F16,IF(BS$3=3,Paramétrages!$H16,IF(BS$3=4,Paramétrages!$J16,IF(BS$3=5,Paramétrages!$L16,0))))) -> 0 | BT178: =IF(BS$3=1,Paramétrages!$E16,IF(BS$3=2,Paramétrages!$G16,IF(BS$3=3,Paramétrages!$I16,IF(BS$3=4,Paramétrages!$K16,IF(BS$3=5,Paramétrages!$M16,0))))) -> 0 | BU178: =IF(BU$3=1,Paramétrages!$D16,IF(BU$3=2,Paramétrages!$F16,IF(BU$3=3,Paramétrages!$H16,IF(BU$3=4,Paramétrages!$J16,IF(BU$3=5,Paramétrages!$L16,0))))) -> 0 | BV178: =IF(BU$3=1,Paramétrages!$E16,IF(BU$3=2,Paramétrages!$G16,IF(BU$3=3,Paramétrages!$I16,IF(BU$3=4,Paramétrages!$K16,IF(BU$3=5,Paramétrages!$M16,0))))) -> 0 | BW178: =IF(BW$3=1,Paramétrages!$D16,IF(BW$3=2,Paramétrages!$F16,IF(BW$3=3,Paramétrages!$H16,IF(BW$3=4,Paramétrages!$J16,IF(BW$3=5,Paramétrages!$L16,0))))) -> 3.25 | BX178: =IF(BW$3=1,Paramétrages!$E16,IF(BW$3=2,Paramétrages!$G16,IF(BW$3=3,Paramétrages!$I16,IF(BW$3=4,Paramétrages!$K16,IF(BW$3=5,Paramétrages!$M16,0))))) -> 3.25 | BY178: =IF(BY$3=1,Paramétrages!$D16,IF(BY$3=2,Paramétrages!$F16,IF(BY$3=3,Paramétrages!$H16,IF(BY$3=4,Paramétrages!$J16,IF(BY$3=5,Paramétrages!$L16,0))))) -> 3.25 | BZ178: =IF(BY$3=1,Paramétrages!$E16,IF(BY$3=2,Paramétrages!$G16,IF(BY$3=3,Paramétrages!$I16,IF(BY$3=4,Paramétrages!$K16,IF(BY$3=5,Paramétrages!$M16,0))))) -> 3.25 | CA178: =IF(CA$3=1,Paramétrages!$D16,IF(CA$3=2,Paramétrages!$F16,IF(CA$3=3,Paramétrages!$H16,IF(CA$3=4,Paramétrages!$J16,IF(CA$3=5,Paramétrages!$L16,0))))) -> 3.25 | CB178: =IF(CA$3=1,Paramétrages!$E16,IF(CA$3=2,Paramétrages!$G16,IF(CA$3=3,Paramétrages!$I16,IF(CA$3=4,Paramétrages!$K16,IF(CA$3=5,Paramétrages!$M16,0))))) -> 3.25 | CC178: =IF(CC$3=1,Paramétrages!$D16,IF(CC$3=2,Paramétrages!$F16,IF(CC$3=3,Paramétrages!$H16,IF(CC$3=4,Paramétrages!$J16,IF(CC$3=5,Paramétrages!$L16,0))))) -> 3.25 | CD178: =IF(CC$3=1,Paramétrages!$E16,IF(CC$3=2,Paramétrages!$G16,IF(CC$3=3,Paramétrages!$I16,IF(CC$3=4,Paramétrages!$K16,IF(CC$3=5,Paramétrages!$M16,0))))) -> 3.25 | CE178: =IF(CE$3=1,Paramétrages!$D16,IF(CE$3=2,Paramétrages!$F16,IF(CE$3=3,Paramétrages!$H16,IF(CE$3=4,Paramétrages!$J16,IF(CE$3=5,Paramétrages!$L16,0))))) -> 3.25 | CF178: =IF(CE$3=1,Paramétrages!$E16,IF(CE$3=2,Paramétrages!$G16,IF(CE$3=3,Paramétrages!$I16,IF(CE$3=4,Paramétrages!$K16,IF(CE$3=5,Paramétrages!$M16,0))))) -> 3.25 | CG178: =IF(CG$3=1,Paramétrages!$D16,IF(CG$3=2,Paramétrages!$F16,IF(CG$3=3,Paramétrages!$H16,IF(CG$3=4,Paramétrages!$J16,IF(CG$3=5,Paramétrages!$L16,0))))) -> 0 | CH178: =IF(CG$3=1,Paramétrages!$E16,IF(CG$3=2,Paramétrages!$G16,IF(CG$3=3,Paramétrages!$I16,IF(CG$3=4,Paramétrages!$K16,IF(CG$3=5,Paramétrages!$M16,0))))) -> 0 | CI178: =IF(CI$3=1,Paramétrages!$D16,IF(CI$3=2,Paramétrages!$F16,IF(CI$3=3,Paramétrages!$H16,IF(CI$3=4,Paramétrages!$J16,IF(CI$3=5,Paramétrages!$L16,0))))) -> 0 | CJ178: =IF(CI$3=1,Paramétrages!$E16,IF(CI$3=2,Paramétrages!$G16,IF(CI$3=3,Paramétrages!$I16,IF(CI$3=4,Paramétrages!$K16,IF(CI$3=5,Paramétrages!$M16,0))))) -> 0 | CK178: =IF(CK$3=1,Paramétrages!$D16,IF(CK$3=2,Paramétrages!$F16,IF(CK$3=3,Paramétrages!$H16,IF(CK$3=4,Paramétrages!$J16,IF(CK$3=5,Paramétrages!$L16,0))))) -> 3.25 | CL178: =IF(CK$3=1,Paramétrages!$E16,IF(CK$3=2,Paramétrages!$G16,IF(CK$3=3,Paramétrages!$I16,IF(CK$3=4,Paramétrages!$K16,IF(CK$3=5,Paramétrages!$M16,0))))) -> 3.25 | CM178: =IF(CM$3=1,Paramétrages!$D16,IF(CM$3=2,Paramétrages!$F16,IF(CM$3=3,Paramétrages!$H16,IF(CM$3=4,Paramétrages!$J16,IF(CM$3=5,Paramétrages!$L16,0))))) -> 3.25 | CN178: =IF(CM$3=1,Paramétrages!$E16,IF(CM$3=2,Paramétrages!$G16,IF(CM$3=3,Paramétrages!$I16,IF(CM$3=4,Paramétrages!$K16,IF(CM$3=5,Paramétrages!$M16,0))))) -> 3.25 | CO178: =IF(CO$3=1,Paramétrages!$D16,IF(CO$3=2,Paramétrages!$F16,IF(CO$3=3,Paramétrages!$H16,IF(CO$3=4,Paramétrages!$J16,IF(CO$3=5,Paramétrages!$L16,0))))) -> 3.25 | CP178: =IF(CO$3=1,Paramétrages!$E16,IF(CO$3=2,Paramétrages!$G16,IF(CO$3=3,Paramétrages!$I16,IF(CO$3=4,Paramétrages!$K16,IF(CO$3=5,Paramétrages!$M16,0))))) -> 3.25 | CQ178: =IF(CQ$3=1,Paramétrages!$D16,IF(CQ$3=2,Paramétrages!$F16,IF(CQ$3=3,Paramétrages!$H16,IF(CQ$3=4,Paramétrages!$J16,IF(CQ$3=5,Paramétrages!$L16,0))))) -> 3.25 | CR178: =IF(CQ$3=1,Paramétrages!$E16,IF(CQ$3=2,Paramétrages!$G16,IF(CQ$3=3,Paramétrages!$I16,IF(CQ$3=4,Paramétrages!$K16,IF(CQ$3=5,Paramétrages!$M16,0))))) -> 3.25 | CS178: =IF(CS$3=1,Paramétrages!$D16,IF(CS$3=2,Paramétrages!$F16,IF(CS$3=3,Paramétrages!$H16,IF(CS$3=4,Paramétrages!$J16,IF(CS$3=5,Paramétrages!$L16,0))))) -> 3.25 | CT178: =IF(CS$3=1,Paramétrages!$E16,IF(CS$3=2,Paramétrages!$G16,IF(CS$3=3,Paramétrages!$I16,IF(CS$3=4,Paramétrages!$K16,IF(CS$3=5,Paramétrages!$M16,0))))) -> 3.25 | CU178: =IF(CU$3=1,Paramétrages!$D16,IF(CU$3=2,Paramétrages!$F16,IF(CU$3=3,Paramétrages!$H16,IF(CU$3=4,Paramétrages!$J16,IF(CU$3=5,Paramétrages!$L16,0))))) -> 0 | CV178: =IF(CU$3=1,Paramétrages!$E16,IF(CU$3=2,Paramétrages!$G16,IF(CU$3=3,Paramétrages!$I16,IF(CU$3=4,Paramétrages!$K16,IF(CU$3=5,Paramétrages!$M16,0))))) -> 0 | CW178: =IF(CW$3=1,Paramétrages!$D16,IF(CW$3=2,Paramétrages!$F16,IF(CW$3=3,Paramétrages!$H16,IF(CW$3=4,Paramétrages!$J16,IF(CW$3=5,Paramétrages!$L16,0))))) -> 0 | CX178: =IF(CW$3=1,Paramétrages!$E16,IF(CW$3=2,Paramétrages!$G16,IF(CW$3=3,Paramétrages!$I16,IF(CW$3=4,Paramétrages!$K16,IF(CW$3=5,Paramétrages!$M16,0))))) -> 0 | CY178: =IF(CY$3=1,Paramétrages!$D16,IF(CY$3=2,Paramétrages!$F16,IF(CY$3=3,Paramétrages!$H16,IF(CY$3=4,Paramétrages!$J16,IF(CY$3=5,Paramétrages!$L16,0))))) -> 3.25 | CZ178: =IF(CY$3=1,Paramétrages!$E16,IF(CY$3=2,Paramétrages!$G16,IF(CY$3=3,Paramétrages!$I16,IF(CY$3=4,Paramétrages!$K16,IF(CY$3=5,Paramétrages!$M16,0))))) -> 3.25 | DA178: =IF(DA$3=1,Paramétrages!$D16,IF(DA$3=2,Paramétrages!$F16,IF(DA$3=3,Paramétrages!$H16,IF(DA$3=4,Paramétrages!$J16,IF(DA$3=5,Paramétrages!$L16,0))))) -> 3.25 | DB178: =IF(DA$3=1,Paramétrages!$E16,IF(DA$3=2,Paramétrages!$G16,IF(DA$3=3,Paramétrages!$I16,IF(DA$3=4,Paramétrages!$K16,IF(DA$3=5,Paramétrages!$M16,0))))) -> 3.25 | DC178: =IF(DC$3=1,Paramétrages!$D16,IF(DC$3=2,Paramétrages!$F16,IF(DC$3=3,Paramétrages!$H16,IF(DC$3=4,Paramétrages!$J16,IF(DC$3=5,Paramétrages!$L16,0))))) -> 3.25 | DD178: =IF(DC$3=1,Paramétrages!$E16,IF(DC$3=2,Paramétrages!$G16,IF(DC$3=3,Paramétrages!$I16,IF(DC$3=4,Paramétrages!$K16,IF(DC$3=5,Paramétrages!$M16,0))))) -> 3.25 | DE178: =IF(DE$3=1,Paramétrages!$D16,IF(DE$3=2,Paramétrages!$F16,IF(DE$3=3,Paramétrages!$H16,IF(DE$3=4,Paramétrages!$J16,IF(DE$3=5,Paramétrages!$L16,0))))) -> 3.25 | DF178: =IF(DE$3=1,Paramétrages!$E16,IF(DE$3=2,Paramétrages!$G16,IF(DE$3=3,Paramétrages!$I16,IF(DE$3=4,Paramétrages!$K16,IF(DE$3=5,Paramétrages!$M16,0))))) -> 3.25 | DG178: =IF(DG$3=1,Paramétrages!$D16,IF(DG$3=2,Paramétrages!$F16,IF(DG$3=3,Paramétrages!$H16,IF(DG$3=4,Paramétrages!$J16,IF(DG$3=5,Paramétrages!$L16,0))))) -> 3.25 | DH178: =IF(DG$3=1,Paramétrages!$E16,IF(DG$3=2,Paramétrages!$G16,IF(DG$3=3,Paramétrages!$I16,IF(DG$3=4,Paramétrages!$K16,IF(DG$3=5,Paramétrages!$M16,0))))) -> 3.25 | DI178: =IF(DI$3=1,Paramétrages!$D16,IF(DI$3=2,Paramétrages!$F16,IF(DI$3=3,Paramétrages!$H16,IF(DI$3=4,Paramétrages!$J16,IF(DI$3=5,Paramétrages!$L16,0))))) -> 0 | DJ178: =IF(DI$3=1,Paramétrages!$E16,IF(DI$3=2,Paramétrages!$G16,IF(DI$3=3,Paramétrages!$I16,IF(DI$3=4,Paramétrages!$K16,IF(DI$3=5,Paramétrages!$M16,0))))) -> 0 | DK178: =IF(DK$3=1,Paramétrages!$D16,IF(DK$3=2,Paramétrages!$F16,IF(DK$3=3,Paramétrages!$H16,IF(DK$3=4,Paramétrages!$J16,IF(DK$3=5,Paramétrages!$L16,0))))) -> 0 | DL178: =IF(DK$3=1,Paramétrages!$E16,IF(DK$3=2,Paramétrages!$G16,IF(DK$3=3,Paramétrages!$I16,IF(DK$3=4,Paramétrages!$K16,IF(DK$3=5,Paramétrages!$M16,0))))) -> 0 | DM178: =IF(DM$3=1,Paramétrages!$D16,IF(DM$3=2,Paramétrages!$F16,IF(DM$3=3,Paramétrages!$H16,IF(DM$3=4,Paramétrages!$J16,IF(DM$3=5,Paramétrages!$L16,0))))) -> 3.25 | DN178: =IF(DM$3=1,Paramétrages!$E16,IF(DM$3=2,Paramétrages!$G16,IF(DM$3=3,Paramétrages!$I16,IF(DM$3=4,Paramétrages!$K16,IF(DM$3=5,Paramétrages!$M16,0))))) -> 3.25 | DO178: =IF(DO$3=1,Paramétrages!$D16,IF(DO$3=2,Paramétrages!$F16,IF(DO$3=3,Paramétrages!$H16,IF(DO$3=4,Paramétrages!$J16,IF(DO$3=5,Paramétrages!$L16,0))))) -> 3.25 | DP178: =IF(DO$3=1,Paramétrages!$E16,IF(DO$3=2,Paramétrages!$G16,IF(DO$3=3,Paramétrages!$I16,IF(DO$3=4,Paramétrages!$K16,IF(DO$3=5,Paramétrages!$M16,0))))) -> 3.25 | DQ178: =IF(DQ$3=1,Paramétrages!$D16,IF(DQ$3=2,Paramétrages!$F16,IF(DQ$3=3,Paramétrages!$H16,IF(DQ$3=4,Paramétrages!$J16,IF(DQ$3=5,Paramétrages!$L16,0))))) -> 3.25 | DR178: =IF(DQ$3=1,Paramétrages!$E16,IF(DQ$3=2,Paramétrages!$G16,IF(DQ$3=3,Paramétrages!$I16,IF(DQ$3=4,Paramétrages!$K16,IF(DQ$3=5,Paramétrages!$M16,0))))) -> 3.25 | DS178: =IF(DS$3=1,Paramétrages!$D16,IF(DS$3=2,Paramétrages!$F16,IF(DS$3=3,Paramétrages!$H16,IF(DS$3=4,Paramétrages!$J16,IF(DS$3=5,Paramétrages!$L16,0))))) -> 3.25 | DT178: =IF(DS$3=1,Paramétrages!$E16,IF(DS$3=2,Paramétrages!$G16,IF(DS$3=3,Paramétrages!$I16,IF(DS$3=4,Paramétrages!$K16,IF(DS$3=5,Paramétrages!$M16,0))))) -> 3.25 | DU178: =IF(DU$3=1,Paramétrages!$D16,IF(DU$3=2,Paramétrages!$F16,IF(DU$3=3,Paramétrages!$H16,IF(DU$3=4,Paramétrages!$J16,IF(DU$3=5,Paramétrages!$L16,0))))) -> 3.25 | DV178: =IF(DU$3=1,Paramétrages!$E16,IF(DU$3=2,Paramétrages!$G16,IF(DU$3=3,Paramétrages!$I16,IF(DU$3=4,Paramétrages!$K16,IF(DU$3=5,Paramétrages!$M16,0))))) -> 3.25 | DW178: =IF(DW$3=1,Paramétrages!$D16,IF(DW$3=2,Paramétrages!$F16,IF(DW$3=3,Paramétrages!$H16,IF(DW$3=4,Paramétrages!$J16,IF(DW$3=5,Paramétrages!$L16,0))))) -> 0 | DX178: =IF(DW$3=1,Paramétrages!$E16,IF(DW$3=2,Paramétrages!$G16,IF(DW$3=3,Paramétrages!$I16,IF(DW$3=4,Paramétrages!$K16,IF(DW$3=5,Paramétrages!$M16,0))))) -> 0 | DY178: =IF(DY$3=1,Paramétrages!$D16,IF(DY$3=2,Paramétrages!$F16,IF(DY$3=3,Paramétrages!$H16,IF(DY$3=4,Paramétrages!$J16,IF(DY$3=5,Paramétrages!$L16,0))))) -> 0 | DZ178: =IF(DY$3=1,Paramétrages!$E16,IF(DY$3=2,Paramétrages!$G16,IF(DY$3=3,Paramétrages!$I16,IF(DY$3=4,Paramétrages!$K16,IF(DY$3=5,Paramétrages!$M16,0))))) -> 0 | EA178: =IF(EA$3=1,Paramétrages!$D16,IF(EA$3=2,Paramétrages!$F16,IF(EA$3=3,Paramétrages!$H16,IF(EA$3=4,Paramétrages!$J16,IF(EA$3=5,Paramétrages!$L16,0))))) -> 3.25 | EB178: =IF(EA$3=1,Paramétrages!$E16,IF(EA$3=2,Paramétrages!$G16,IF(EA$3=3,Paramétrages!$I16,IF(EA$3=4,Paramétrages!$K16,IF(EA$3=5,Paramétrages!$M16,0))))) -> 3.25 | EC178: =IF(EC$3=1,Paramétrages!$D16,IF(EC$3=2,Paramétrages!$F16,IF(EC$3=3,Paramétrages!$H16,IF(EC$3=4,Paramétrages!$J16,IF(EC$3=5,Paramétrages!$L16,0))))) -> 3.25 | ED178: =IF(EC$3=1,Paramétrages!$E16,IF(EC$3=2,Paramétrages!$G16,IF(EC$3=3,Paramétrages!$I16,IF(EC$3=4,Paramétrages!$K16,IF(EC$3=5,Paramétrages!$M16,0))))) -> 3.25 | EE178: =IF(EE$3=1,Paramétrages!$D16,IF(EE$3=2,Paramétrages!$F16,IF(EE$3=3,Paramétrages!$H16,IF(EE$3=4,Paramétrages!$J16,IF(EE$3=5,Paramétrages!$L16,0))))) -> 3.25 | EF178: =IF(EE$3=1,Paramétrages!$E16,IF(EE$3=2,Paramétrages!$G16,IF(EE$3=3,Paramétrages!$I16,IF(EE$3=4,Paramétrages!$K16,IF(EE$3=5,Paramétrages!$M16,0))))) -> 3.25 | EG178: =IF(EG$3=1,Paramétrages!$D16,IF(EG$3=2,Paramétrages!$F16,IF(EG$3=3,Paramétrages!$H16,IF(EG$3=4,Paramétrages!$J16,IF(EG$3=5,Paramétrages!$L16,0))))) -> 3.25 | EH178: =IF(EG$3=1,Paramétrages!$E16,IF(EG$3=2,Paramétrages!$G16,IF(EG$3=3,Paramétrages!$I16,IF(EG$3=4,Paramétrages!$K16,IF(EG$3=5,Paramétrages!$M16,0))))) -> 3.25 | EI178: =IF(EI$3=1,Paramétrages!$D16,IF(EI$3=2,Paramétrages!$F16,IF(EI$3=3,Paramétrages!$H16,IF(EI$3=4,Paramétrages!$J16,IF(EI$3=5,Paramétrages!$L16,0))))) -> 3.25 | EJ178: =IF(EI$3=1,Paramétrages!$E16,IF(EI$3=2,Paramétrages!$G16,IF(EI$3=3,Paramétrages!$I16,IF(EI$3=4,Paramétrages!$K16,IF(EI$3=5,Paramétrages!$M16,0))))) -> 3.25 | EK178: =IF(EK$3=1,Paramétrages!$D16,IF(EK$3=2,Paramétrages!$F16,IF(EK$3=3,Paramétrages!$H16,IF(EK$3=4,Paramétrages!$J16,IF(EK$3=5,Paramétrages!$L16,0))))) -> 0 | EL178: =IF(EK$3=1,Paramétrages!$E16,IF(EK$3=2,Paramétrages!$G16,IF(EK$3=3,Paramétrages!$I16,IF(EK$3=4,Paramétrages!$K16,IF(EK$3=5,Paramétrages!$M16,0))))) -> 0 | EM178: =IF(EM$3=1,Paramétrages!$D16,IF(EM$3=2,Paramétrages!$F16,IF(EM$3=3,Paramétrages!$H16,IF(EM$3=4,Paramétrages!$J16,IF(EM$3=5,Paramétrages!$L16,0))))) -> 0 | EN178: =IF(EM$3=1,Paramétrages!$E16,IF(EM$3=2,Paramétrages!$G16,IF(EM$3=3,Paramétrages!$I16,IF(EM$3=4,Paramétrages!$K16,IF(EM$3=5,Paramétrages!$M16,0))))) -> 0 | EO178: =IF(EO$3=1,Paramétrages!$D16,IF(EO$3=2,Paramétrages!$F16,IF(EO$3=3,Paramétrages!$H16,IF(EO$3=4,Paramétrages!$J16,IF(EO$3=5,Paramétrages!$L16,0))))) -> 3.25 | EP178: =IF(EO$3=1,Paramétrages!$E16,IF(EO$3=2,Paramétrages!$G16,IF(EO$3=3,Paramétrages!$I16,IF(EO$3=4,Paramétrages!$K16,IF(EO$3=5,Paramétrages!$M16,0))))) -> 3.25 | EQ178: =IF(EQ$3=1,Paramétrages!$D16,IF(EQ$3=2,Paramétrages!$F16,IF(EQ$3=3,Paramétrages!$H16,IF(EQ$3=4,Paramétrages!$J16,IF(EQ$3=5,Paramétrages!$L16,0))))) -> 3.25 | ER178: =IF(EQ$3=1,Paramétrages!$E16,IF(EQ$3=2,Paramétrages!$G16,IF(EQ$3=3,Paramétrages!$I16,IF(EQ$3=4,Paramétrages!$K16,IF(EQ$3=5,Paramétrages!$M16,0))))) -> 3.25 | ES178: =IF(ES$3=1,Paramétrages!$D16,IF(ES$3=2,Paramétrages!$F16,IF(ES$3=3,Paramétrages!$H16,IF(ES$3=4,Paramétrages!$J16,IF(ES$3=5,Paramétrages!$L16,0))))) -> 3.25 | ET178: =IF(ES$3=1,Paramétrages!$E16,IF(ES$3=2,Paramétrages!$G16,IF(ES$3=3,Paramétrages!$I16,IF(ES$3=4,Paramétrages!$K16,IF(ES$3=5,Paramétrages!$M16,0))))) -> 3.25 | EU178: =IF(EU$3=1,Paramétrages!$D16,IF(EU$3=2,Paramétrages!$F16,IF(EU$3=3,Paramétrages!$H16,IF(EU$3=4,Paramétrages!$J16,IF(EU$3=5,Paramétrages!$L16,0))))) -> 3.25 | EV178: =IF(EU$3=1,Paramétrages!$E16,IF(EU$3=2,Paramétrages!$G16,IF(EU$3=3,Paramétrages!$I16,IF(EU$3=4,Paramétrages!$K16,IF(EU$3=5,Paramétrages!$M16,0))))) -> 3.25 | EW178: =IF(EW$3=1,Paramétrages!$D16,IF(EW$3=2,Paramétrages!$F16,IF(EW$3=3,Paramétrages!$H16,IF(EW$3=4,Paramétrages!$J16,IF(EW$3=5,Paramétrages!$L16,0))))) -> 3.25 | EX178: =IF(EW$3=1,Paramétrages!$E16,IF(EW$3=2,Paramétrages!$G16,IF(EW$3=3,Paramétrages!$I16,IF(EW$3=4,Paramétrages!$K16,IF(EW$3=5,Paramétrages!$M16,0))))) -> 3.25 | EY178: =IF(EY$3=1,Paramétrages!$D16,IF(EY$3=2,Paramétrages!$F16,IF(EY$3=3,Paramétrages!$H16,IF(EY$3=4,Paramétrages!$J16,IF(EY$3=5,Paramétrages!$L16,0))))) -> 0 | EZ178: =IF(EY$3=1,Paramétrages!$E16,IF(EY$3=2,Paramétrages!$G16,IF(EY$3=3,Paramétrages!$I16,IF(EY$3=4,Paramétrages!$K16,IF(EY$3=5,Paramétrages!$M16,0))))) -> 0 | FA178: =IF(FA$3=1,Paramétrages!$D16,IF(FA$3=2,Paramétrages!$F16,IF(FA$3=3,Paramétrages!$H16,IF(FA$3=4,Paramétrages!$J16,IF(FA$3=5,Paramétrages!$L16,0))))) -> 0 | FB178: =IF(FA$3=1,Paramétrages!$E16,IF(FA$3=2,Paramétrages!$G16,IF(FA$3=3,Paramétrages!$I16,IF(FA$3=4,Paramétrages!$K16,IF(FA$3=5,Paramétrages!$M16,0))))) -> 0 | FC178: =IF(FC$3=1,Paramétrages!$D16,IF(FC$3=2,Paramétrages!$F16,IF(FC$3=3,Paramétrages!$H16,IF(FC$3=4,Paramétrages!$J16,IF(FC$3=5,Paramétrages!$L16,0))))) -> 3.25 | FD178: =IF(FC$3=1,Paramétrages!$E16,IF(FC$3=2,Paramétrages!$G16,IF(FC$3=3,Paramétrages!$I16,IF(FC$3=4,Paramétrages!$K16,IF(FC$3=5,Paramétrages!$M16,0))))) -> 3.25 | FE178: =IF(FE$3=1,Paramétrages!$D16,IF(FE$3=2,Paramétrages!$F16,IF(FE$3=3,Paramétrages!$H16,IF(FE$3=4,Paramétrages!$J16,IF(FE$3=5,Paramétrages!$L16,0))))) -> 3.25 | FF178: =IF(FE$3=1,Paramétrages!$E16,IF(FE$3=2,Paramétrages!$G16,IF(FE$3=3,Paramétrages!$I16,IF(FE$3=4,Paramétrages!$K16,IF(FE$3=5,Paramétrages!$M16,0))))) -> 3.25 | FG178: =IF(FG$3=1,Paramétrages!$D16,IF(FG$3=2,Paramétrages!$F16,IF(FG$3=3,Paramétrages!$H16,IF(FG$3=4,Paramétrages!$J16,IF(FG$3=5,Paramétrages!$L16,0))))) -> 3.25 | FH178: =IF(FG$3=1,Paramétrages!$E16,IF(FG$3=2,Paramétrages!$G16,IF(FG$3=3,Paramétrages!$I16,IF(FG$3=4,Paramétrages!$K16,IF(FG$3=5,Paramétrages!$M16,0))))) -> 3.25 | FI178: =IF(FI$3=1,Paramétrages!$D16,IF(FI$3=2,Paramétrages!$F16,IF(FI$3=3,Paramétrages!$H16,IF(FI$3=4,Paramétrages!$J16,IF(FI$3=5,Paramétrages!$L16,0))))) -> 3.25 | FJ178: =IF(FI$3=1,Paramétrages!$E16,IF(FI$3=2,Paramétrages!$G16,IF(FI$3=3,Paramétrages!$I16,IF(FI$3=4,Paramétrages!$K16,IF(FI$3=5,Paramétrages!$M16,0))))) -> 3.25 | FK178: =IF(FK$3=1,Paramétrages!$D16,IF(FK$3=2,Paramétrages!$F16,IF(FK$3=3,Paramétrages!$H16,IF(FK$3=4,Paramétrages!$J16,IF(FK$3=5,Paramétrages!$L16,0))))) -> 3.25 | FL178: =IF(FK$3=1,Paramétrages!$E16,IF(FK$3=2,Paramétrages!$G16,IF(FK$3=3,Paramétrages!$I16,IF(FK$3=4,Paramétrages!$K16,IF(FK$3=5,Paramétrages!$M16,0))))) -> 3.25 | FM178: =IF(FM$3=1,Paramétrages!$D16,IF(FM$3=2,Paramétrages!$F16,IF(FM$3=3,Paramétrages!$H16,IF(FM$3=4,Paramétrages!$J16,IF(FM$3=5,Paramétrages!$L16,0))))) -> 0 | FN178: =IF(FM$3=1,Paramétrages!$E16,IF(FM$3=2,Paramétrages!$G16,IF(FM$3=3,Paramétrages!$I16,IF(FM$3=4,Paramétrages!$K16,IF(FM$3=5,Paramétrages!$M16,0))))) -> 0 | FO178: =IF(FO$3=1,Paramétrages!$D16,IF(FO$3=2,Paramétrages!$F16,IF(FO$3=3,Paramétrages!$H16,IF(FO$3=4,Paramétrages!$J16,IF(FO$3=5,Paramétrages!$L16,0))))) -> 0 | FP178: =IF(FO$3=1,Paramétrages!$E16,IF(FO$3=2,Paramétrages!$G16,IF(FO$3=3,Paramétrages!$I16,IF(FO$3=4,Paramétrages!$K16,IF(FO$3=5,Paramétrages!$M16,0))))) -> 0 | FQ178: =IF(FQ$3=1,Paramétrages!$D16,IF(FQ$3=2,Paramétrages!$F16,IF(FQ$3=3,Paramétrages!$H16,IF(FQ$3=4,Paramétrages!$J16,IF(FQ$3=5,Paramétrages!$L16,0))))) -> 3.25 | FR178: =IF(FQ$3=1,Paramétrages!$E16,IF(FQ$3=2,Paramétrages!$G16,IF(FQ$3=3,Paramétrages!$I16,IF(FQ$3=4,Paramétrages!$K16,IF(FQ$3=5,Paramétrages!$M16,0))))) -> 3.25 | FS178: =IF(FS$3=1,Paramétrages!$D16,IF(FS$3=2,Paramétrages!$F16,IF(FS$3=3,Paramétrages!$H16,IF(FS$3=4,Paramétrages!$J16,IF(FS$3=5,Paramétrages!$L16,0))))) -> 3.25 | FT178: =IF(FS$3=1,Paramétrages!$E16,IF(FS$3=2,Paramétrages!$G16,IF(FS$3=3,Paramétrages!$I16,IF(FS$3=4,Paramétrages!$K16,IF(FS$3=5,Paramétrages!$M16,0))))) -> 3.25 | FU178: =IF(FU$3=1,Paramétrages!$D16,IF(FU$3=2,Paramétrages!$F16,IF(FU$3=3,Paramétrages!$H16,IF(FU$3=4,Paramétrages!$J16,IF(FU$3=5,Paramétrages!$L16,0))))) -> 3.25 | FV178: =IF(FU$3=1,Paramétrages!$E16,IF(FU$3=2,Paramétrages!$G16,IF(FU$3=3,Paramétrages!$I16,IF(FU$3=4,Paramétrages!$K16,IF(FU$3=5,Paramétrages!$M16,0))))) -> 3.25 | FW178: =IF(FW$3=1,Paramétrages!$D16,IF(FW$3=2,Paramétrages!$F16,IF(FW$3=3,Paramétrages!$H16,IF(FW$3=4,Paramétrages!$J16,IF(FW$3=5,Paramétrages!$L16,0))))) -> 3.25 | FX178: =IF(FW$3=1,Paramétrages!$E16,IF(FW$3=2,Paramétrages!$G16,IF(FW$3=3,Paramétrages!$I16,IF(FW$3=4,Paramétrages!$K16,IF(FW$3=5,Paramétrages!$M16,0))))) -> 3.25 | FY178: =IF(FY$3=1,Paramétrages!$D16,IF(FY$3=2,Paramétrages!$F16,IF(FY$3=3,Paramétrages!$H16,IF(FY$3=4,Paramétrages!$J16,IF(FY$3=5,Paramétrages!$L16,0))))) -> 3.25 | FZ178: =IF(FY$3=1,Paramétrages!$E16,IF(FY$3=2,Paramétrages!$G16,IF(FY$3=3,Paramétrages!$I16,IF(FY$3=4,Paramétrages!$K16,IF(FY$3=5,Paramétrages!$M16,0))))) -> 3.25 | GA178: =IF(GA$3=1,Paramétrages!$D16,IF(GA$3=2,Paramétrages!$F16,IF(GA$3=3,Paramétrages!$H16,IF(GA$3=4,Paramétrages!$J16,IF(GA$3=5,Paramétrages!$L16,0))))) -> 0 | GB178: =IF(GA$3=1,Paramétrages!$E16,IF(GA$3=2,Paramétrages!$G16,IF(GA$3=3,Paramétrages!$I16,IF(GA$3=4,Paramétrages!$K16,IF(GA$3=5,Paramétrages!$M16,0))))) -> 0 | GC178: =IF(GC$3=1,Paramétrages!$D16,IF(GC$3=2,Paramétrages!$F16,IF(GC$3=3,Paramétrages!$H16,IF(GC$3=4,Paramétrages!$J16,IF(GC$3=5,Paramétrages!$L16,0))))) -> 0 | GD178: =IF(GC$3=1,Paramétrages!$E16,IF(GC$3=2,Paramétrages!$G16,IF(GC$3=3,Paramétrages!$I16,IF(GC$3=4,Paramétrages!$K16,IF(GC$3=5,Paramétrages!$M16,0))))) -> 0 | GE178: =IF(GE$3=1,Paramétrages!$D16,IF(GE$3=2,Paramétrages!$F16,IF(GE$3=3,Paramétrages!$H16,IF(GE$3=4,Paramétrages!$J16,IF(GE$3=5,Paramétrages!$L16,0))))) -> 3.25 | GF178: =IF(GE$3=1,Paramétrages!$E16,IF(GE$3=2,Paramétrages!$G16,IF(GE$3=3,Paramétrages!$I16,IF(GE$3=4,Paramétrages!$K16,IF(GE$3=5,Paramétrages!$M16,0))))) -> 3.25 | GK178: =D180 -> 0 | GL178: =COUNTIF(E178:BN178,">0")/2 -> 23 | GM178: =IF(GL178>0,GL179/GL178," ") -> 0 | GN178: =IF($DS$2=$GI$3,COUNTIF($BO178:$DX178,">0")/2,COUNTIF($BO178:$DX178,">0")/2) -> 22 | GO178: =IF(GN178>0,GN179/GN178," ") -> 0 | GP178: =IF($DS$2=$GI$3,COUNTIF($DY178:$GF178,">0")/2,COUNTIF($DY178:$GF178,">0")/2) -> 21 | GQ178: =IF(GP178>0,GP179/GP178," ") -> 0 | GR178: =COUNTIF(E178:BN178,"ad")/2 -> 0 | GT178: =IF($DS$2=$GI$3,COUNTIF($BO78:$DX178,"ad")/2,COUNTIF($BO78:$DX178,"ad")/2) -> 0 | GV178: =IF($DS$2=$GI$3,COUNTIF($DY178:$GF178,"ad")/2,COUNTIF($DY178:$GF178,"ad")/2) -> 0 | HE178: =Paramétrages!$B$34 -> NOM | HF178: =COUNTIF(E196:GF197,"A2")/2 -> 0 | HG178: =COUNTIF(F196:GG197,"cp")/2 -> 0 | HH178: =COUNTIF(G196:GH197,"css")/2 -> 0 | HI178: =COUNTIF(H196:GI197,"ma")/2 -> 0 | HJ178: =COUNTIF(I196:GJ197,"at")/2 -> 0 | HK178: =COUNTIF(J196:GK197,"aj")/2 -> 0 | HL178: =COUNTIF(K196:GL197,"ai")/2 -> 0 | HM178: =COUNTIF(L196:GM197,"ad")/2 -> 0 | HN178: =COUNTIF(M196:GN197,"st")/2 -> 0 | HO178: =COUNTIF(N196:GO197,"di")/2 -> 0
B179: 2 | BW179: R | BY179: R | CA179: R | CC179: R | CE179: R | CK179: R | CM179: R | CO179: R | CQ179: R | CS179: R | GH179: =COUNTIF(E179:GF179,"R") -> 10 | GL179: =(SUM(E180:BP180)+COUNTIF(E180:BP180,"ad"))/2 -> 0 | GN179: =IF($GI$3=$DS$2,(SUM(BQ180:DT180)+COUNTIF(BQ180:DT180,"ad"))/2, (SUM(BQ180:DX180)+COUNTIF(BQ180:DX180,"ad"))/2) -> 0 | GP179: =IF($GI$3=$DS$2,(SUM(DU180:GF180)+COUNTIF(DU180:GF180,"ad"))/2, (SUM(DY180:GF180)+COUNTIF(DY180:GF180,"ad"))/2) -> 0 | HE179: =Paramétrages!$B$37 -> NOM | HF179: =COUNTIF(E199:GF200,"A2")/2 -> 0 | HG179: =COUNTIF(F199:GG200,"cp")/2 -> 5 | HH179: =COUNTIF(G199:GH200,"css")/2 -> 0 | HI179: =COUNTIF(H199:GI200,"ma")/2 -> 0 | HJ179: =COUNTIF(I199:GJ200,"at")/2 -> 0 | HK179: =COUNTIF(J199:GK200,"aj")/2 -> 0 | HL179: =COUNTIF(K199:GL200,"ai")/2 -> 0 | HM179: =COUNTIF(L199:GM200,"ad")/2 -> 0 | HN179: =COUNTIF(M199:GN200,"st")/2 -> 0 | HO179: =COUNTIF(N199:GO200,"di")/2 -> 0
A180: =Paramétrages!B16 -> NOM | B180: 3 | GO180: =IF(GN180>0,GN181/GN180," ") ->  | HE180: =Paramétrages!$B$40 -> NOM | HF180: =COUNTIF(E202:GF203,"A2")/2 -> 0 | HG180: =COUNTIF(F202:GG203,"cp")/2 -> 0 | HH180: =COUNTIF(G202:GH203,"css")/2 -> 0 | HI180: =COUNTIF(H202:GI203,"ma")/2 -> 0 | HJ180: =COUNTIF(I202:GJ203,"at")/2 -> 0 | HK180: =COUNTIF(J202:GK203,"aj")/2 -> 0 | HL180: =COUNTIF(K202:GL203,"ai")/2 -> 0 | HM180: =COUNTIF(L202:GM203,"ad")/2 -> 0 | HN180: =COUNTIF(M202:GN203,"st")/2 -> 0 | HO180: =COUNTIF(N202:GO203,"di")/2 -> 0
B181: 1 | C181: 5 | E181: =IF(E$3=1,Paramétrages!$D19,IF(E$3=2,Paramétrages!$F19,IF(E$3=3,Paramétrages!$H19,IF(E$3=4,Paramétrages!$J19,IF(E$3=5,Paramétrages!$L19,0))))) -> 3.25 | F181: =IF(E$3=1,Paramétrages!$E19,IF(E$3=2,Paramétrages!$G19,IF(E$3=3,Paramétrages!$I19,IF(E$3=4,Paramétrages!$K19,IF(E$3=5,Paramétrages!$M19,0))))) -> 3.25 | G181: =IF(G$3=1,Paramétrages!$D19,IF(G$3=2,Paramétrages!$F19,IF(G$3=3,Paramétrages!$H19,IF(G$3=4,Paramétrages!$J19,IF(G$3=5,Paramétrages!$L19,0))))) -> 3.25 | H181: =IF(G$3=1,Paramétrages!$E19,IF(G$3=2,Paramétrages!$G19,IF(G$3=3,Paramétrages!$I19,IF(G$3=4,Paramétrages!$K19,IF(G$3=5,Paramétrages!$M19,0))))) -> 3.25 | I181: =IF(I$3=1,Paramétrages!$D19,IF(I$3=2,Paramétrages!$F19,IF(I$3=3,Paramétrages!$H19,IF(I$3=4,Paramétrages!$J19,IF(I$3=5,Paramétrages!$L19,0))))) -> 3.25 | J181: =IF(I$3=1,Paramétrages!$E19,IF(I$3=2,Paramétrages!$G19,IF(I$3=3,Paramétrages!$I19,IF(I$3=4,Paramétrages!$K19,IF(I$3=5,Paramétrages!$M19,0))))) -> 3.25 | K181: =IF(K$3=1,Paramétrages!$D19,IF(K$3=2,Paramétrages!$F19,IF(K$3=3,Paramétrages!$H19,IF(K$3=4,Paramétrages!$J19,IF(K$3=5,Paramétrages!$L19,0))))) -> 3.25 | L181: =IF(K$3=1,Paramétrages!$E19,IF(K$3=2,Paramétrages!$G19,IF(K$3=3,Paramétrages!$I19,IF(K$3=4,Paramétrages!$K19,IF(K$3=5,Paramétrages!$M19,0))))) -> 3.25 | M181: =IF(M$3=1,Paramétrages!$D19,IF(M$3=2,Paramétrages!$F19,IF(M$3=3,Paramétrages!$H19,IF(M$3=4,Paramétrages!$J19,IF(M$3=5,Paramétrages!$L19,0))))) -> 3.25 | N181: =IF(M$3=1,Paramétrages!$E19,IF(M$3=2,Paramétrages!$G19,IF(M$3=3,Paramétrages!$I19,IF(M$3=4,Paramétrages!$K19,IF(M$3=5,Paramétrages!$M19,0))))) -> 3.25 | O181: =IF(O$3=1,Paramétrages!$D19,IF(O$3=2,Paramétrages!$F19,IF(O$3=3,Paramétrages!$H19,IF(O$3=4,Paramétrages!$J19,IF(O$3=5,Paramétrages!$L19,0))))) -> 0 | P181: =IF(O$3=1,Paramétrages!$E19,IF(O$3=2,Paramétrages!$G19,IF(O$3=3,Paramétrages!$I19,IF(O$3=4,Paramétrages!$K19,IF(O$3=5,Paramétrages!$M19,0))))) -> 0 | Q181: =IF(Q$3=1,Paramétrages!$D19,IF(Q$3=2,Paramétrages!$F19,IF(Q$3=3,Paramétrages!$H19,IF(Q$3=4,Paramétrages!$J19,IF(Q$3=5,Paramétrages!$L19,0))))) -> 0 | R181: =IF(Q$3=1,Paramétrages!$E19,IF(Q$3=2,Paramétrages!$G19,IF(Q$3=3,Paramétrages!$I19,IF(Q$3=4,Paramétrages!$K19,IF(Q$3=5,Paramétrages!$M19,0))))) -> 0 | S181: =IF(S$3=1,Paramétrages!$D19,IF(S$3=2,Paramétrages!$F19,IF(S$3=3,Paramétrages!$H19,IF(S$3=4,Paramétrages!$J19,IF(S$3=5,Paramétrages!$L19,0))))) -> 3.25 | T181: =IF(S$3=1,Paramétrages!$E19,IF(S$3=2,Paramétrages!$G19,IF(S$3=3,Paramétrages!$I19,IF(S$3=4,Paramétrages!$K19,IF(S$3=5,Paramétrages!$M19,0))))) -> 3.25 | U181: =IF(U$3=1,Paramétrages!$D19,IF(U$3=2,Paramétrages!$F19,IF(U$3=3,Paramétrages!$H19,IF(U$3=4,Paramétrages!$J19,IF(U$3=5,Paramétrages!$L19,0))))) -> 3.25 | V181: =IF(U$3=1,Paramétrages!$E19,IF(U$3=2,Paramétrages!$G19,IF(U$3=3,Paramétrages!$I19,IF(U$3=4,Paramétrages!$K19,IF(U$3=5,Paramétrages!$M19,0))))) -> 3.25 | W181: =IF(W$3=1,Paramétrages!$D19,IF(W$3=2,Paramétrages!$F19,IF(W$3=3,Paramétrages!$H19,IF(W$3=4,Paramétrages!$J19,IF(W$3=5,Paramétrages!$L19,0))))) -> 3.25 | X181: =IF(W$3=1,Paramétrages!$E19,IF(W$3=2,Paramétrages!$G19,IF(W$3=3,Paramétrages!$I19,IF(W$3=4,Paramétrages!$K19,IF(W$3=5,Paramétrages!$M19,0))))) -> 3.25 | Y181: =IF(Y$3=1,Paramétrages!$D19,IF(Y$3=2,Paramétrages!$F19,IF(Y$3=3,Paramétrages!$H19,IF(Y$3=4,Paramétrages!$J19,IF(Y$3=5,Paramétrages!$L19,0))))) -> 3.25 | Z181: =IF(Y$3=1,Paramétrages!$E19,IF(Y$3=2,Paramétrages!$G19,IF(Y$3=3,Paramétrages!$I19,IF(Y$3=4,Paramétrages!$K19,IF(Y$3=5,Paramétrages!$M19,0))))) -> 3.25 | AA181: =IF(AA$3=1,Paramétrages!$D19,IF(AA$3=2,Paramétrages!$F19,IF(AA$3=3,Paramétrages!$H19,IF(AA$3=4,Paramétrages!$J19,IF(AA$3=5,Paramétrages!$L19,0))))) -> 3.25 | AB181: =IF(AA$3=1,Paramétrages!$E19,IF(AA$3=2,Paramétrages!$G19,IF(AA$3=3,Paramétrages!$I19,IF(AA$3=4,Paramétrages!$K19,IF(AA$3=5,Paramétrages!$M19,0))))) -> 3.25 | AC181: =IF(AC$3=1,Paramétrages!$D19,IF(AC$3=2,Paramétrages!$F19,IF(AC$3=3,Paramétrages!$H19,IF(AC$3=4,Paramétrages!$J19,IF(AC$3=5,Paramétrages!$L19,0))))) -> 0 | AD181: =IF(AC$3=1,Paramétrages!$E19,IF(AC$3=2,Paramétrages!$G19,IF(AC$3=3,Paramétrages!$I19,IF(AC$3=4,Paramétrages!$K19,IF(AC$3=5,Paramétrages!$M19,0))))) -> 0 | AE181: =IF(AE$3=1,Paramétrages!$D19,IF(AE$3=2,Paramétrages!$F19,IF(AE$3=3,Paramétrages!$H19,IF(AE$3=4,Paramétrages!$J19,IF(AE$3=5,Paramétrages!$L19,0))))) -> 0 | AF181: =IF(AE$3=1,Paramétrages!$E19,IF(AE$3=2,Paramétrages!$G19,IF(AE$3=3,Paramétrages!$I19,IF(AE$3=4,Paramétrages!$K19,IF(AE$3=5,Paramétrages!$M19,0))))) -> 0 | AG181: =IF(AG$3=1,Paramétrages!$D19,IF(AG$3=2,Paramétrages!$F19,IF(AG$3=3,Paramétrages!$H19,IF(AG$3=4,Paramétrages!$J19,IF(AG$3=5,Paramétrages!$L19,0))))) -> 3.25 | AH181: =IF(AG$3=1,Paramétrages!$E19,IF(AG$3=2,Paramétrages!$G19,IF(AG$3=3,Paramétrages!$I19,IF(AG$3=4,Paramétrages!$K19,IF(AG$3=5,Paramétrages!$M19,0))))) -> 3.25 | AI181: =IF(AI$3=1,Paramétrages!$D19,IF(AI$3=2,Paramétrages!$F19,IF(AI$3=3,Paramétrages!$H19,IF(AI$3=4,Paramétrages!$J19,IF(AI$3=5,Paramétrages!$L19,0))))) -> 3.25 | AJ181: =IF(AI$3=1,Paramétrages!$E19,IF(AI$3=2,Paramétrages!$G19,IF(AI$3=3,Paramétrages!$I19,IF(AI$3=4,Paramétrages!$K19,IF(AI$3=5,Paramétrages!$M19,0))))) -> 3.25 | AK181: =IF(AK$3=1,Paramétrages!$D19,IF(AK$3=2,Paramétrages!$F19,IF(AK$3=3,Paramétrages!$H19,IF(AK$3=4,Paramétrages!$J19,IF(AK$3=5,Paramétrages!$L19,0))))) -> 3.25 | AL181: =IF(AK$3=1,Paramétrages!$E19,IF(AK$3=2,Paramétrages!$G19,IF(AK$3=3,Paramétrages!$I19,IF(AK$3=4,Paramétrages!$K19,IF(AK$3=5,Paramétrages!$M19,0))))) -> 3.25 | AM181: =IF(AM$3=1,Paramétrages!$D19,IF(AM$3=2,Paramétrages!$F19,IF(AM$3=3,Paramétrages!$H19,IF(AM$3=4,Paramétrages!$J19,IF(AM$3=5,Paramétrages!$L19,0))))) -> 3.25 | AN181: =IF(AM$3=1,Paramétrages!$E19,IF(AM$3=2,Paramétrages!$G19,IF(AM$3=3,Paramétrages!$I19,IF(AM$3=4,Paramétrages!$K19,IF(AM$3=5,Paramétrages!$M19,0))))) -> 3.25 | AO181: =IF(AO$3=1,Paramétrages!$D19,IF(AO$3=2,Paramétrages!$F19,IF(AO$3=3,Paramétrages!$H19,IF(AO$3=4,Paramétrages!$J19,IF(AO$3=5,Paramétrages!$L19,0))))) -> 3.25 | AP181: =IF(AO$3=1,Paramétrages!$E19,IF(AO$3=2,Paramétrages!$G19,IF(AO$3=3,Paramétrages!$I19,IF(AO$3=4,Paramétrages!$K19,IF(AO$3=5,Paramétrages!$M19,0))))) -> 3.25 | AQ181: =IF(AQ$3=1,Paramétrages!$D19,IF(AQ$3=2,Paramétrages!$F19,IF(AQ$3=3,Paramétrages!$H19,IF(AQ$3=4,Paramétrages!$J19,IF(AQ$3=5,Paramétrages!$L19,0))))) -> 0 | AR181: =IF(AQ$3=1,Paramétrages!$E19,IF(AQ$3=2,Paramétrages!$G19,IF(AQ$3=3,Paramétrages!$I19,IF(AQ$3=4,Paramétrages!$K19,IF(AQ$3=5,Paramétrages!$M19,0))))) -> 0 | AS181: =IF(AS$3=1,Paramétrages!$D19,IF(AS$3=2,Paramétrages!$F19,IF(AS$3=3,Paramétrages!$H19,IF(AS$3=4,Paramétrages!$J19,IF(AS$3=5,Paramétrages!$L19,0))))) -> 0 | AT181: =IF(AS$3=1,Paramétrages!$E19,IF(AS$3=2,Paramétrages!$G19,IF(AS$3=3,Paramétrages!$I19,IF(AS$3=4,Paramétrages!$K19,IF(AS$3=5,Paramétrages!$M19,0))))) -> 0 | AU181: =IF(AU$3=1,Paramétrages!$D19,IF(AU$3=2,Paramétrages!$F19,IF(AU$3=3,Paramétrages!$H19,IF(AU$3=4,Paramétrages!$J19,IF(AU$3=5,Paramétrages!$L19,0))))) -> 3.25 | AV181: =IF(AU$3=1,Paramétrages!$E19,IF(AU$3=2,Paramétrages!$G19,IF(AU$3=3,Paramétrages!$I19,IF(AU$3=4,Paramétrages!$K19,IF(AU$3=5,Paramétrages!$M19,0))))) -> 3.25 | AW181: =IF(AW$3=1,Paramétrages!$D19,IF(AW$3=2,Paramétrages!$F19,IF(AW$3=3,Paramétrages!$H19,IF(AW$3=4,Paramétrages!$J19,IF(AW$3=5,Paramétrages!$L19,0))))) -> 3.25 | AX181: =IF(AW$3=1,Paramétrages!$E19,IF(AW$3=2,Paramétrages!$G19,IF(AW$3=3,Paramétrages!$I19,IF(AW$3=4,Paramétrages!$K19,IF(AW$3=5,Paramétrages!$M19,0))))) -> 3.25 | AY181: =IF(AY$3=1,Paramétrages!$D19,IF(AY$3=2,Paramétrages!$F19,IF(AY$3=3,Paramétrages!$H19,IF(AY$3=4,Paramétrages!$J19,IF(AY$3=5,Paramétrages!$L19,0))))) -> 3.25 | AZ181: =IF(AY$3=1,Paramétrages!$E19,IF(AY$3=2,Paramétrages!$G19,IF(AY$3=3,Paramétrages!$I19,IF(AY$3=4,Paramétrages!$K19,IF(AY$3=5,Paramétrages!$M19,0))))) -> 3.25 | BA181: =IF(BA$3=1,Paramétrages!$D19,IF(BA$3=2,Paramétrages!$F19,IF(BA$3=3,Paramétrages!$H19,IF(BA$3=4,Paramétrages!$J19,IF(BA$3=5,Paramétrages!$L19,0))))) -> 3.25 | BB181: =IF(BA$3=1,Paramétrages!$E19,IF(BA$3=2,Paramétrages!$G19,IF(BA$3=3,Paramétrages!$I19,IF(BA$3=4,Paramétrages!$K19,IF(BA$3=5,Paramétrages!$M19,0))))) -> 3.25 | BC181: =IF(BC$3=1,Paramétrages!$D19,IF(BC$3=2,Paramétrages!$F19,IF(BC$3=3,Paramétrages!$H19,IF(BC$3=4,Paramétrages!$J19,IF(BC$3=5,Paramétrages!$L19,0))))) -> 3.25 | BD181: =IF(BC$3=1,Paramétrages!$E19,IF(BC$3=2,Paramétrages!$G19,IF(BC$3=3,Paramétrages!$I19,IF(BC$3=4,Paramétrages!$K19,IF(BC$3=5,Paramétrages!$M19,0))))) -> 3.25 | BE181: =IF(BE$3=1,Paramétrages!$D19,IF(BE$3=2,Paramétrages!$F19,IF(BE$3=3,Paramétrages!$H19,IF(BE$3=4,Paramétrages!$J19,IF(BE$3=5,Paramétrages!$L19,0))))) -> 0 | BF181: =IF(BE$3=1,Paramétrages!$E19,IF(BE$3=2,Paramétrages!$G19,IF(BE$3=3,Paramétrages!$I19,IF(BE$3=4,Paramétrages!$K19,IF(BE$3=5,Paramétrages!$M19,0))))) -> 0 | BG181: =IF(BG$3=1,Paramétrages!$D19,IF(BG$3=2,Paramétrages!$F19,IF(BG$3=3,Paramétrages!$H19,IF(BG$3=4,Paramétrages!$J19,IF(BG$3=5,Paramétrages!$L19,0))))) -> 0 | BH181: =IF(BG$3=1,Paramétrages!$E19,IF(BG$3=2,Paramétrages!$G19,IF(BG$3=3,Paramétrages!$I19,IF(BG$3=4,Paramétrages!$K19,IF(BG$3=5,Paramétrages!$M19,0))))) -> 0 | BI181: =IF(BI$3=1,Paramétrages!$D19,IF(BI$3=2,Paramétrages!$F19,IF(BI$3=3,Paramétrages!$H19,IF(BI$3=4,Paramétrages!$J19,IF(BI$3=5,Paramétrages!$L19,0))))) -> 3.25 | BJ181: =IF(BI$3=1,Paramétrages!$E19,IF(BI$3=2,Paramétrages!$G19,IF(BI$3=3,Paramétrages!$I19,IF(BI$3=4,Paramétrages!$K19,IF(BI$3=5,Paramétrages!$M19,0))))) -> 3.25 | BK181: =IF(BK$3=1,Paramétrages!$D19,IF(BK$3=2,Paramétrages!$F19,IF(BK$3=3,Paramétrages!$H19,IF(BK$3=4,Paramétrages!$J19,IF(BK$3=5,Paramétrages!$L19,0))))) -> 3.25 | BL181: =IF(BK$3=1,Paramétrages!$E19,IF(BK$3=2,Paramétrages!$G19,IF(BK$3=3,Paramétrages!$I19,IF(BK$3=4,Paramétrages!$K19,IF(BK$3=5,Paramétrages!$M19,0))))) -> 3.25 | BM181: =IF(BM$3=1,Paramétrages!$D19,IF(BM$3=2,Paramétrages!$F19,IF(BM$3=3,Paramétrages!$H19,IF(BM$3=4,Paramétrages!$J19,IF(BM$3=5,Paramétrages!$L19,0))))) -> 3.25 | BN181: =IF(BM$3=1,Paramétrages!$E19,IF(BM$3=2,Paramétrages!$G19,IF(BM$3=3,Paramétrages!$I19,IF(BM$3=4,Paramétrages!$K19,IF(BM$3=5,Paramétrages!$M19,0))))) -> 3.25 | BO181: =IF(BO$3=1,Paramétrages!$D19,IF(BO$3=2,Paramétrages!$F19,IF(BO$3=3,Paramétrages!$H19,IF(BO$3=4,Paramétrages!$J19,IF(BO$3=5,Paramétrages!$L19,0))))) -> 3.25 | BP181: =IF(BO$3=1,Paramétrages!$E19,IF(BO$3=2,Paramétrages!$G19,IF(BO$3=3,Paramétrages!$I19,IF(BO$3=4,Paramétrages!$K19,IF(BO$3=5,Paramétrages!$M19,0))))) -> 3.25 | BQ181: =IF(BQ$3=1,Paramétrages!$D19,IF(BQ$3=2,Paramétrages!$F19,IF(BQ$3=3,Paramétrages!$H19,IF(BQ$3=4,Paramétrages!$J19,IF(BQ$3=5,Paramétrages!$L19,0))))) -> 3.25 | BR181: =IF(BQ$3=1,Paramétrages!$E19,IF(BQ$3=2,Paramétrages!$G19,IF(BQ$3=3,Paramétrages!$I19,IF(BQ$3=4,Paramétrages!$K19,IF(BQ$3=5,Paramétrages!$M19,0))))) -> 3.25 | BS181: =IF(BS$3=1,Paramétrages!$D19,IF(BS$3=2,Paramétrages!$F19,IF(BS$3=3,Paramétrages!$H19,IF(BS$3=4,Paramétrages!$J19,IF(BS$3=5,Paramétrages!$L19,0))))) -> 0 | BT181: =IF(BS$3=1,Paramétrages!$E19,IF(BS$3=2,Paramétrages!$G19,IF(BS$3=3,Paramétrages!$I19,IF(BS$3=4,Paramétrages!$K19,IF(BS$3=5,Paramétrages!$M19,0))))) -> 0 | BU181: =IF(BU$3=1,Paramétrages!$D19,IF(BU$3=2,Paramétrages!$F19,IF(BU$3=3,Paramétrages!$H19,IF(BU$3=4,Paramétrages!$J19,IF(BU$3=5,Paramétrages!$L19,0))))) -> 0 | BV181: =IF(BU$3=1,Paramétrages!$E19,IF(BU$3=2,Paramétrages!$G19,IF(BU$3=3,Paramétrages!$I19,IF(BU$3=4,Paramétrages!$K19,IF(BU$3=5,Paramétrages!$M19,0))))) -> 0 | BW181: =IF(BW$3=1,Paramétrages!$D19,IF(BW$3=2,Paramétrages!$F19,IF(BW$3=3,Paramétrages!$H19,IF(BW$3=4,Paramétrages!$J19,IF(BW$3=5,Paramétrages!$L19,0))))) -> 3.25 | BX181: =IF(BW$3=1,Paramétrages!$E19,IF(BW$3=2,Paramétrages!$G19,IF(BW$3=3,Paramétrages!$I19,IF(BW$3=4,Paramétrages!$K19,IF(BW$3=5,Paramétrages!$M19,0))))) -> 3.25 | BY181: =IF(BY$3=1,Paramétrages!$D19,IF(BY$3=2,Paramétrages!$F19,IF(BY$3=3,Paramétrages!$H19,IF(BY$3=4,Paramétrages!$J19,IF(BY$3=5,Paramétrages!$L19,0))))) -> 3.25 | BZ181: =IF(BY$3=1,Paramétrages!$E19,IF(BY$3=2,Paramétrages!$G19,IF(BY$3=3,Paramétrages!$I19,IF(BY$3=4,Paramétrages!$K19,IF(BY$3=5,Paramétrages!$M19,0))))) -> 3.25 | CA181: =IF(CA$3=1,Paramétrages!$D19,IF(CA$3=2,Paramétrages!$F19,IF(CA$3=3,Paramétrages!$H19,IF(CA$3=4,Paramétrages!$J19,IF(CA$3=5,Paramétrages!$L19,0))))) -> 3.25 | CB181: =IF(CA$3=1,Paramétrages!$E19,IF(CA$3=2,Paramétrages!$G19,IF(CA$3=3,Paramétrages!$I19,IF(CA$3=4,Paramétrages!$K19,IF(CA$3=5,Paramétrages!$M19,0))))) -> 3.25 | CC181: =IF(CC$3=1,Paramétrages!$D19,IF(CC$3=2,Paramétrages!$F19,IF(CC$3=3,Paramétrages!$H19,IF(CC$3=4,Paramétrages!$J19,IF(CC$3=5,Paramétrages!$L19,0))))) -> 3.25 | CD181: =IF(CC$3=1,Paramétrages!$E19,IF(CC$3=2,Paramétrages!$G19,IF(CC$3=3,Paramétrages!$I19,IF(CC$3=4,Paramétrages!$K19,IF(CC$3=5,Paramétrages!$M19,0))))) -> 3.25 | CE181: =IF(CE$3=1,Paramétrages!$D19,IF(CE$3=2,Paramétrages!$F19,IF(CE$3=3,Paramétrages!$H19,IF(CE$3=4,Paramétrages!$J19,IF(CE$3=5,Paramétrages!$L19,0))))) -> 3.25 | CF181: =IF(CE$3=1,Paramétrages!$E19,IF(CE$3=2,Paramétrages!$G19,IF(CE$3=3,Paramétrages!$I19,IF(CE$3=4,Paramétrages!$K19,IF(CE$3=5,Paramétrages!$M19,0))))) -> 3.25 | CG181: =IF(CG$3=1,Paramétrages!$D19,IF(CG$3=2,Paramétrages!$F19,IF(CG$3=3,Paramétrages!$H19,IF(CG$3=4,Paramétrages!$J19,IF(CG$3=5,Paramétrages!$L19,0))))) -> 0 | CH181: =IF(CG$3=1,Paramétrages!$E19,IF(CG$3=2,Paramétrages!$G19,IF(CG$3=3,Paramétrages!$I19,IF(CG$3=4,Paramétrages!$K19,IF(CG$3=5,Paramétrages!$M19,0))))) -> 0 | CI181: =IF(CI$3=1,Paramétrages!$D19,IF(CI$3=2,Paramétrages!$F19,IF(CI$3=3,Paramétrages!$H19,IF(CI$3=4,Paramétrages!$J19,IF(CI$3=5,Paramétrages!$L19,0))))) -> 0 | CJ181: =IF(CI$3=1,Paramétrages!$E19,IF(CI$3=2,Paramétrages!$G19,IF(CI$3=3,Paramétrages!$I19,IF(CI$3=4,Paramétrages!$K19,IF(CI$3=5,Paramétrages!$M19,0))))) -> 0 | CK181: =IF(CK$3=1,Paramétrages!$D19,IF(CK$3=2,Paramétrages!$F19,IF(CK$3=3,Paramétrages!$H19,IF(CK$3=4,Paramétrages!$J19,IF(CK$3=5,Paramétrages!$L19,0))))) -> 3.25 | CL181: =IF(CK$3=1,Paramétrages!$E19,IF(CK$3=2,Paramétrages!$G19,IF(CK$3=3,Paramétrages!$I19,IF(CK$3=4,Paramétrages!$K19,IF(CK$3=5,Paramétrages!$M19,0))))) -> 3.25 | CM181: =IF(CM$3=1,Paramétrages!$D19,IF(CM$3=2,Paramétrages!$F19,IF(CM$3=3,Paramétrages!$H19,IF(CM$3=4,Paramétrages!$J19,IF(CM$3=5,Paramétrages!$L19,0))))) -> 3.25 | CN181: =IF(CM$3=1,Paramétrages!$E19,IF(CM$3=2,Paramétrages!$G19,IF(CM$3=3,Paramétrages!$I19,IF(CM$3=4,Paramétrages!$K19,IF(CM$3=5,Paramétrages!$M19,0))))) -> 3.25 | CO181: =IF(CO$3=1,Paramétrages!$D19,IF(CO$3=2,Paramétrages!$F19,IF(CO$3=3,Paramétrages!$H19,IF(CO$3=4,Paramétrages!$J19,IF(CO$3=5,Paramétrages!$L19,0))))) -> 3.25 | CP181: =IF(CO$3=1,Paramétrages!$E19,IF(CO$3=2,Paramétrages!$G19,IF(CO$3=3,Paramétrages!$I19,IF(CO$3=4,Paramétrages!$K19,IF(CO$3=5,Paramétrages!$M19,0))))) -> 3.25 | CQ181: =IF(CQ$3=1,Paramétrages!$D19,IF(CQ$3=2,Paramétrages!$F19,IF(CQ$3=3,Paramétrages!$H19,IF(CQ$3=4,Paramétrages!$J19,IF(CQ$3=5,Paramétrages!$L19,0))))) -> 3.25 | CR181: =IF(CQ$3=1,Paramétrages!$E19,IF(CQ$3=2,Paramétrages!$G19,IF(CQ$3=3,Paramétrages!$I19,IF(CQ$3=4,Paramétrages!$K19,IF(CQ$3=5,Paramétrages!$M19,0))))) -> 3.25 | CS181: =IF(CS$3=1,Paramétrages!$D19,IF(CS$3=2,Paramétrages!$F19,IF(CS$3=3,Paramétrages!$H19,IF(CS$3=4,Paramétrages!$J19,IF(CS$3=5,Paramétrages!$L19,0))))) -> 3.25 | CT181: =IF(CS$3=1,Paramétrages!$E19,IF(CS$3=2,Paramétrages!$G19,IF(CS$3=3,Paramétrages!$I19,IF(CS$3=4,Paramétrages!$K19,IF(CS$3=5,Paramétrages!$M19,0))))) -> 3.25 | CU181: =IF(CU$3=1,Paramétrages!$D19,IF(CU$3=2,Paramétrages!$F19,IF(CU$3=3,Paramétrages!$H19,IF(CU$3=4,Paramétrages!$J19,IF(CU$3=5,Paramétrages!$L19,0))))) -> 0 | CV181: =IF(CU$3=1,Paramétrages!$E19,IF(CU$3=2,Paramétrages!$G19,IF(CU$3=3,Paramétrages!$I19,IF(CU$3=4,Paramétrages!$K19,IF(CU$3=5,Paramétrages!$M19,0))))) -> 0 | CW181: =IF(CW$3=1,Paramétrages!$D19,IF(CW$3=2,Paramétrages!$F19,IF(CW$3=3,Paramétrages!$H19,IF(CW$3=4,Paramétrages!$J19,IF(CW$3=5,Paramétrages!$L19,0))))) -> 0 | CX181: =IF(CW$3=1,Paramétrages!$E19,IF(CW$3=2,Paramétrages!$G19,IF(CW$3=3,Paramétrages!$I19,IF(CW$3=4,Paramétrages!$K19,IF(CW$3=5,Paramétrages!$M19,0))))) -> 0 | CY181: =IF(CY$3=1,Paramétrages!$D19,IF(CY$3=2,Paramétrages!$F19,IF(CY$3=3,Paramétrages!$H19,IF(CY$3=4,Paramétrages!$J19,IF(CY$3=5,Paramétrages!$L19,0))))) -> 3.25 | CZ181: =IF(CY$3=1,Paramétrages!$E19,IF(CY$3=2,Paramétrages!$G19,IF(CY$3=3,Paramétrages!$I19,IF(CY$3=4,Paramétrages!$K19,IF(CY$3=5,Paramétrages!$M19,0))))) -> 3.25 | DA181: =IF(DA$3=1,Paramétrages!$D19,IF(DA$3=2,Paramétrages!$F19,IF(DA$3=3,Paramétrages!$H19,IF(DA$3=4,Paramétrages!$J19,IF(DA$3=5,Paramétrages!$L19,0))))) -> 3.25 | DB181: =IF(DA$3=1,Paramétrages!$E19,IF(DA$3=2,Paramétrages!$G19,IF(DA$3=3,Paramétrages!$I19,IF(DA$3=4,Paramétrages!$K19,IF(DA$3=5,Paramétrages!$M19,0))))) -> 3.25 | DC181: =IF(DC$3=1,Paramétrages!$D19,IF(DC$3=2,Paramétrages!$F19,IF(DC$3=3,Paramétrages!$H19,IF(DC$3=4,Paramétrages!$J19,IF(DC$3=5,Paramétrages!$L19,0))))) -> 3.25 | DD181: =IF(DC$3=1,Paramétrages!$E19,IF(DC$3=2,Paramétrages!$G19,IF(DC$3=3,Paramétrages!$I19,IF(DC$3=4,Paramétrages!$K19,IF(DC$3=5,Paramétrages!$M19,0))))) -> 3.25 | DE181: =IF(DE$3=1,Paramétrages!$D19,IF(DE$3=2,Paramétrages!$F19,IF(DE$3=3,Paramétrages!$H19,IF(DE$3=4,Paramétrages!$J19,IF(DE$3=5,Paramétrages!$L19,0))))) -> 3.25 | DF181: =IF(DE$3=1,Paramétrages!$E19,IF(DE$3=2,Paramétrages!$G19,IF(DE$3=3,Paramétrages!$I19,IF(DE$3=4,Paramétrages!$K19,IF(DE$3=5,Paramétrages!$M19,0))))) -> 3.25 | DG181: =IF(DG$3=1,Paramétrages!$D19,IF(DG$3=2,Paramétrages!$F19,IF(DG$3=3,Paramétrages!$H19,IF(DG$3=4,Paramétrages!$J19,IF(DG$3=5,Paramétrages!$L19,0))))) -> 3.25 | DH181: =IF(DG$3=1,Paramétrages!$E19,IF(DG$3=2,Paramétrages!$G19,IF(DG$3=3,Paramétrages!$I19,IF(DG$3=4,Paramétrages!$K19,IF(DG$3=5,Paramétrages!$M19,0))))) -> 3.25 | DI181: =IF(DI$3=1,Paramétrages!$D19,IF(DI$3=2,Paramétrages!$F19,IF(DI$3=3,Paramétrages!$H19,IF(DI$3=4,Paramétrages!$J19,IF(DI$3=5,Paramétrages!$L19,0))))) -> 0 | DJ181: =IF(DI$3=1,Paramétrages!$E19,IF(DI$3=2,Paramétrages!$G19,IF(DI$3=3,Paramétrages!$I19,IF(DI$3=4,Paramétrages!$K19,IF(DI$3=5,Paramétrages!$M19,0))))) -> 0 | DK181: =IF(DK$3=1,Paramétrages!$D19,IF(DK$3=2,Paramétrages!$F19,IF(DK$3=3,Paramétrages!$H19,IF(DK$3=4,Paramétrages!$J19,IF(DK$3=5,Paramétrages!$L19,0))))) -> 0 | DL181: =IF(DK$3=1,Paramétrages!$E19,IF(DK$3=2,Paramétrages!$G19,IF(DK$3=3,Paramétrages!$I19,IF(DK$3=4,Paramétrages!$K19,IF(DK$3=5,Paramétrages!$M19,0))))) -> 0 | DM181: =IF(DM$3=1,Paramétrages!$D19,IF(DM$3=2,Paramétrages!$F19,IF(DM$3=3,Paramétrages!$H19,IF(DM$3=4,Paramétrages!$J19,IF(DM$3=5,Paramétrages!$L19,0))))) -> 3.25 | DN181: =IF(DM$3=1,Paramétrages!$E19,IF(DM$3=2,Paramétrages!$G19,IF(DM$3=3,Paramétrages!$I19,IF(DM$3=4,Paramétrages!$K19,IF(DM$3=5,Paramétrages!$M19,0))))) -> 3.25 | DO181: =IF(DO$3=1,Paramétrages!$D19,IF(DO$3=2,Paramétrages!$F19,IF(DO$3=3,Paramétrages!$H19,IF(DO$3=4,Paramétrages!$J19,IF(DO$3=5,Paramétrages!$L19,0))))) -> 3.25 | DP181: =IF(DO$3=1,Paramétrages!$E19,IF(DO$3=2,Paramétrages!$G19,IF(DO$3=3,Paramétrages!$I19,IF(DO$3=4,Paramétrages!$K19,IF(DO$3=5,Paramétrages!$M19,0))))) -> 3.25 | DQ181: =IF(DQ$3=1,Paramétrages!$D19,IF(DQ$3=2,Paramétrages!$F19,IF(DQ$3=3,Paramétrages!$H19,IF(DQ$3=4,Paramétrages!$J19,IF(DQ$3=5,Paramétrages!$L19,0))))) -> 3.25 | DR181: =IF(DQ$3=1,Paramétrages!$E19,IF(DQ$3=2,Paramétrages!$G19,IF(DQ$3=3,Paramétrages!$I19,IF(DQ$3=4,Paramétrages!$K19,IF(DQ$3=5,Paramétrages!$M19,0))))) -> 3.25 | DS181: =IF(DS$3=1,Paramétrages!$D19,IF(DS$3=2,Paramétrages!$F19,IF(DS$3=3,Paramétrages!$H19,IF(DS$3=4,Paramétrages!$J19,IF(DS$3=5,Paramétrages!$L19,0))))) -> 3.25 | DT181: =IF(DS$3=1,Paramétrages!$E19,IF(DS$3=2,Paramétrages!$G19,IF(DS$3=3,Paramétrages!$I19,IF(DS$3=4,Paramétrages!$K19,IF(DS$3=5,Paramétrages!$M19,0))))) -> 3.25 | DU181: =IF(DU$3=1,Paramétrages!$D19,IF(DU$3=2,Paramétrages!$F19,IF(DU$3=3,Paramétrages!$H19,IF(DU$3=4,Paramétrages!$J19,IF(DU$3=5,Paramétrages!$L19,0))))) -> 3.25 | DV181: =IF(DU$3=1,Paramétrages!$E19,IF(DU$3=2,Paramétrages!$G19,IF(DU$3=3,Paramétrages!$I19,IF(DU$3=4,Paramétrages!$K19,IF(DU$3=5,Paramétrages!$M19,0))))) -> 3.25 | DW181: =IF(DW$3=1,Paramétrages!$D19,IF(DW$3=2,Paramétrages!$F19,IF(DW$3=3,Paramétrages!$H19,IF(DW$3=4,Paramétrages!$J19,IF(DW$3=5,Paramétrages!$L19,0))))) -> 0 | DX181: =IF(DW$3=1,Paramétrages!$E19,IF(DW$3=2,Paramétrages!$G19,IF(DW$3=3,Paramétrages!$I19,IF(DW$3=4,Paramétrages!$K19,IF(DW$3=5,Paramétrages!$M19,0))))) -> 0 | DY181: =IF(DY$3=1,Paramétrages!$D19,IF(DY$3=2,Paramétrages!$F19,IF(DY$3=3,Paramétrages!$H19,IF(DY$3=4,Paramétrages!$J19,IF(DY$3=5,Paramétrages!$L19,0))))) -> 0 | DZ181: =IF(DY$3=1,Paramétrages!$E19,IF(DY$3=2,Paramétrages!$G19,IF(DY$3=3,Paramétrages!$I19,IF(DY$3=4,Paramétrages!$K19,IF(DY$3=5,Paramétrages!$M19,0))))) -> 0 | EA181: =IF(EA$3=1,Paramétrages!$D19,IF(EA$3=2,Paramétrages!$F19,IF(EA$3=3,Paramétrages!$H19,IF(EA$3=4,Paramétrages!$J19,IF(EA$3=5,Paramétrages!$L19,0))))) -> 3.25 | EB181: =IF(EA$3=1,Paramétrages!$E19,IF(EA$3=2,Paramétrages!$G19,IF(EA$3=3,Paramétrages!$I19,IF(EA$3=4,Paramétrages!$K19,IF(EA$3=5,Paramétrages!$M19,0))))) -> 3.25 | EC181: =IF(EC$3=1,Paramétrages!$D19,IF(EC$3=2,Paramétrages!$F19,IF(EC$3=3,Paramétrages!$H19,IF(EC$3=4,Paramétrages!$J19,IF(EC$3=5,Paramétrages!$L19,0))))) -> 3.25 | ED181: =IF(EC$3=1,Paramétrages!$E19,IF(EC$3=2,Paramétrages!$G19,IF(EC$3=3,Paramétrages!$I19,IF(EC$3=4,Paramétrages!$K19,IF(EC$3=5,Paramétrages!$M19,0))))) -> 3.25 | EE181: =IF(EE$3=1,Paramétrages!$D19,IF(EE$3=2,Paramétrages!$F19,IF(EE$3=3,Paramétrages!$H19,IF(EE$3=4,Paramétrages!$J19,IF(EE$3=5,Paramétrages!$L19,0))))) -> 3.25 | EF181: =IF(EE$3=1,Paramétrages!$E19,IF(EE$3=2,Paramétrages!$G19,IF(EE$3=3,Paramétrages!$I19,IF(EE$3=4,Paramétrages!$K19,IF(EE$3=5,Paramétrages!$M19,0))))) -> 3.25 | EG181: =IF(EG$3=1,Paramétrages!$D19,IF(EG$3=2,Paramétrages!$F19,IF(EG$3=3,Paramétrages!$H19,IF(EG$3=4,Paramétrages!$J19,IF(EG$3=5,Paramétrages!$L19,0))))) -> 3.25 | EH181: =IF(EG$3=1,Paramétrages!$E19,IF(EG$3=2,Paramétrages!$G19,IF(EG$3=3,Paramétrages!$I19,IF(EG$3=4,Paramétrages!$K19,IF(EG$3=5,Paramétrages!$M19,0))))) -> 3.25 | EI181: =IF(EI$3=1,Paramétrages!$D19,IF(EI$3=2,Paramétrages!$F19,IF(EI$3=3,Paramétrages!$H19,IF(EI$3=4,Paramétrages!$J19,IF(EI$3=5,Paramétrages!$L19,0))))) -> 3.25 | EJ181: =IF(EI$3=1,Paramétrages!$E19,IF(EI$3=2,Paramétrages!$G19,IF(EI$3=3,Paramétrages!$I19,IF(EI$3=4,Paramétrages!$K19,IF(EI$3=5,Paramétrages!$M19,0))))) -> 3.25 | EK181: =IF(EK$3=1,Paramétrages!$D19,IF(EK$3=2,Paramétrages!$F19,IF(EK$3=3,Paramétrages!$H19,IF(EK$3=4,Paramétrages!$J19,IF(EK$3=5,Paramétrages!$L19,0))))) -> 0 | EL181: =IF(EK$3=1,Paramétrages!$E19,IF(EK$3=2,Paramétrages!$G19,IF(EK$3=3,Paramétrages!$I19,IF(EK$3=4,Paramétrages!$K19,IF(EK$3=5,Paramétrages!$M19,0))))) -> 0 | EM181: =IF(EM$3=1,Paramétrages!$D19,IF(EM$3=2,Paramétrages!$F19,IF(EM$3=3,Paramétrages!$H19,IF(EM$3=4,Paramétrages!$J19,IF(EM$3=5,Paramétrages!$L19,0))))) -> 0 | EN181: =IF(EM$3=1,Paramétrages!$E19,IF(EM$3=2,Paramétrages!$G19,IF(EM$3=3,Paramétrages!$I19,IF(EM$3=4,Paramétrages!$K19,IF(EM$3=5,Paramétrages!$M19,0))))) -> 0 | EO181: =IF(EO$3=1,Paramétrages!$D19,IF(EO$3=2,Paramétrages!$F19,IF(EO$3=3,Paramétrages!$H19,IF(EO$3=4,Paramétrages!$J19,IF(EO$3=5,Paramétrages!$L19,0))))) -> 3.25 | EP181: =IF(EO$3=1,Paramétrages!$E19,IF(EO$3=2,Paramétrages!$G19,IF(EO$3=3,Paramétrages!$I19,IF(EO$3=4,Paramétrages!$K19,IF(EO$3=5,Paramétrages!$M19,0))))) -> 3.25 | EQ181: =IF(EQ$3=1,Paramétrages!$D19,IF(EQ$3=2,Paramétrages!$F19,IF(EQ$3=3,Paramétrages!$H19,IF(EQ$3=4,Paramétrages!$J19,IF(EQ$3=5,Paramétrages!$L19,0))))) -> 3.25 | ER181: =IF(EQ$3=1,Paramétrages!$E19,IF(EQ$3=2,Paramétrages!$G19,IF(EQ$3=3,Paramétrages!$I19,IF(EQ$3=4,Paramétrages!$K19,IF(EQ$3=5,Paramétrages!$M19,0))))) -> 3.25 | ES181: =IF(ES$3=1,Paramétrages!$D19,IF(ES$3=2,Paramétrages!$F19,IF(ES$3=3,Paramétrages!$H19,IF(ES$3=4,Paramétrages!$J19,IF(ES$3=5,Paramétrages!$L19,0))))) -> 3.25 | ET181: =IF(ES$3=1,Paramétrages!$E19,IF(ES$3=2,Paramétrages!$G19,IF(ES$3=3,Paramétrages!$I19,IF(ES$3=4,Paramétrages!$K19,IF(ES$3=5,Paramétrages!$M19,0))))) -> 3.25 | EU181: =IF(EU$3=1,Paramétrages!$D19,IF(EU$3=2,Paramétrages!$F19,IF(EU$3=3,Paramétrages!$H19,IF(EU$3=4,Paramétrages!$J19,IF(EU$3=5,Paramétrages!$L19,0))))) -> 3.25 | EV181: =IF(EU$3=1,Paramétrages!$E19,IF(EU$3=2,Paramétrages!$G19,IF(EU$3=3,Paramétrages!$I19,IF(EU$3=4,Paramétrages!$K19,IF(EU$3=5,Paramétrages!$M19,0))))) -> 3.25 | EW181: =IF(EW$3=1,Paramétrages!$D19,IF(EW$3=2,Paramétrages!$F19,IF(EW$3=3,Paramétrages!$H19,IF(EW$3=4,Paramétrages!$J19,IF(EW$3=5,Paramétrages!$L19,0))))) -> 3.25 | EX181: =IF(EW$3=1,Paramétrages!$E19,IF(EW$3=2,Paramétrages!$G19,IF(EW$3=3,Paramétrages!$I19,IF(EW$3=4,Paramétrages!$K19,IF(EW$3=5,Paramétrages!$M19,0))))) -> 3.25 | EY181: =IF(EY$3=1,Paramétrages!$D19,IF(EY$3=2,Paramétrages!$F19,IF(EY$3=3,Paramétrages!$H19,IF(EY$3=4,Paramétrages!$J19,IF(EY$3=5,Paramétrages!$L19,0))))) -> 0 | EZ181: =IF(EY$3=1,Paramétrages!$E19,IF(EY$3=2,Paramétrages!$G19,IF(EY$3=3,Paramétrages!$I19,IF(EY$3=4,Paramétrages!$K19,IF(EY$3=5,Paramétrages!$M19,0))))) -> 0 | FA181: =IF(FA$3=1,Paramétrages!$D19,IF(FA$3=2,Paramétrages!$F19,IF(FA$3=3,Paramétrages!$H19,IF(FA$3=4,Paramétrages!$J19,IF(FA$3=5,Paramétrages!$L19,0))))) -> 0 | FB181: =IF(FA$3=1,Paramétrages!$E19,IF(FA$3=2,Paramétrages!$G19,IF(FA$3=3,Paramétrages!$I19,IF(FA$3=4,Paramétrages!$K19,IF(FA$3=5,Paramétrages!$M19,0))))) -> 0 | FC181: =IF(FC$3=1,Paramétrages!$D19,IF(FC$3=2,Paramétrages!$F19,IF(FC$3=3,Paramétrages!$H19,IF(FC$3=4,Paramétrages!$J19,IF(FC$3=5,Paramétrages!$L19,0))))) -> 3.25 | FD181: =IF(FC$3=1,Paramétrages!$E19,IF(FC$3=2,Paramétrages!$G19,IF(FC$3=3,Paramétrages!$I19,IF(FC$3=4,Paramétrages!$K19,IF(FC$3=5,Paramétrages!$M19,0))))) -> 3.25 | FE181: =IF(FE$3=1,Paramétrages!$D19,IF(FE$3=2,Paramétrages!$F19,IF(FE$3=3,Paramétrages!$H19,IF(FE$3=4,Paramétrages!$J19,IF(FE$3=5,Paramétrages!$L19,0))))) -> 3.25 | FF181: =IF(FE$3=1,Paramétrages!$E19,IF(FE$3=2,Paramétrages!$G19,IF(FE$3=3,Paramétrages!$I19,IF(FE$3=4,Paramétrages!$K19,IF(FE$3=5,Paramétrages!$M19,0))))) -> 3.25 | FG181: =IF(FG$3=1,Paramétrages!$D19,IF(FG$3=2,Paramétrages!$F19,IF(FG$3=3,Paramétrages!$H19,IF(FG$3=4,Paramétrages!$J19,IF(FG$3=5,Paramétrages!$L19,0))))) -> 3.25 | FH181: =IF(FG$3=1,Paramétrages!$E19,IF(FG$3=2,Paramétrages!$G19,IF(FG$3=3,Paramétrages!$I19,IF(FG$3=4,Paramétrages!$K19,IF(FG$3=5,Paramétrages!$M19,0))))) -> 3.25 | FI181: =IF(FI$3=1,Paramétrages!$D19,IF(FI$3=2,Paramétrages!$F19,IF(FI$3=3,Paramétrages!$H19,IF(FI$3=4,Paramétrages!$J19,IF(FI$3=5,Paramétrages!$L19,0))))) -> 3.25 | FJ181: =IF(FI$3=1,Paramétrages!$E19,IF(FI$3=2,Paramétrages!$G19,IF(FI$3=3,Paramétrages!$I19,IF(FI$3=4,Paramétrages!$K19,IF(FI$3=5,Paramétrages!$M19,0))))) -> 3.25 | FK181: =IF(FK$3=1,Paramétrages!$D19,IF(FK$3=2,Paramétrages!$F19,IF(FK$3=3,Paramétrages!$H19,IF(FK$3=4,Paramétrages!$J19,IF(FK$3=5,Paramétrages!$L19,0))))) -> 3.25 | FL181: =IF(FK$3=1,Paramétrages!$E19,IF(FK$3=2,Paramétrages!$G19,IF(FK$3=3,Paramétrages!$I19,IF(FK$3=4,Paramétrages!$K19,IF(FK$3=5,Paramétrages!$M19,0))))) -> 3.25 | FM181: =IF(FM$3=1,Paramétrages!$D19,IF(FM$3=2,Paramétrages!$F19,IF(FM$3=3,Paramétrages!$H19,IF(FM$3=4,Paramétrages!$J19,IF(FM$3=5,Paramétrages!$L19,0))))) -> 0 | FN181: =IF(FM$3=1,Paramétrages!$E19,IF(FM$3=2,Paramétrages!$G19,IF(FM$3=3,Paramétrages!$I19,IF(FM$3=4,Paramétrages!$K19,IF(FM$3=5,Paramétrages!$M19,0))))) -> 0 | FO181: =IF(FO$3=1,Paramétrages!$D19,IF(FO$3=2,Paramétrages!$F19,IF(FO$3=3,Paramétrages!$H19,IF(FO$3=4,Paramétrages!$J19,IF(FO$3=5,Paramétrages!$L19,0))))) -> 0 | FP181: =IF(FO$3=1,Paramétrages!$E19,IF(FO$3=2,Paramétrages!$G19,IF(FO$3=3,Paramétrages!$I19,IF(FO$3=4,Paramétrages!$K19,IF(FO$3=5,Paramétrages!$M19,0))))) -> 0 | FQ181: =IF(FQ$3=1,Paramétrages!$D19,IF(FQ$3=2,Paramétrages!$F19,IF(FQ$3=3,Paramétrages!$H19,IF(FQ$3=4,Paramétrages!$J19,IF(FQ$3=5,Paramétrages!$L19,0))))) -> 3.25 | FR181: =IF(FQ$3=1,Paramétrages!$E19,IF(FQ$3=2,Paramétrages!$G19,IF(FQ$3=3,Paramétrages!$I19,IF(FQ$3=4,Paramétrages!$K19,IF(FQ$3=5,Paramétrages!$M19,0))))) -> 3.25 | FS181: =IF(FS$3=1,Paramétrages!$D19,IF(FS$3=2,Paramétrages!$F19,IF(FS$3=3,Paramétrages!$H19,IF(FS$3=4,Paramétrages!$J19,IF(FS$3=5,Paramétrages!$L19,0))))) -> 3.25 | FT181: =IF(FS$3=1,Paramétrages!$E19,IF(FS$3=2,Paramétrages!$G19,IF(FS$3=3,Paramétrages!$I19,IF(FS$3=4,Paramétrages!$K19,IF(FS$3=5,Paramétrages!$M19,0))))) -> 3.25 | FU181: =IF(FU$3=1,Paramétrages!$D19,IF(FU$3=2,Paramétrages!$F19,IF(FU$3=3,Paramétrages!$H19,IF(FU$3=4,Paramétrages!$J19,IF(FU$3=5,Paramétrages!$L19,0))))) -> 3.25 | FV181: =IF(FU$3=1,Paramétrages!$E19,IF(FU$3=2,Paramétrages!$G19,IF(FU$3=3,Paramétrages!$I19,IF(FU$3=4,Paramétrages!$K19,IF(FU$3=5,Paramétrages!$M19,0))))) -> 3.25 | FW181: =IF(FW$3=1,Paramétrages!$D19,IF(FW$3=2,Paramétrages!$F19,IF(FW$3=3,Paramétrages!$H19,IF(FW$3=4,Paramétrages!$J19,IF(FW$3=5,Paramétrages!$L19,0))))) -> 3.25 | FX181: =IF(FW$3=1,Paramétrages!$E19,IF(FW$3=2,Paramétrages!$G19,IF(FW$3=3,Paramétrages!$I19,IF(FW$3=4,Paramétrages!$K19,IF(FW$3=5,Paramétrages!$M19,0))))) -> 3.25 | FY181: =IF(FY$3=1,Paramétrages!$D19,IF(FY$3=2,Paramétrages!$F19,IF(FY$3=3,Paramétrages!$H19,IF(FY$3=4,Paramétrages!$J19,IF(FY$3=5,Paramétrages!$L19,0))))) -> 3.25 | FZ181: =IF(FY$3=1,Paramétrages!$E19,IF(FY$3=2,Paramétrages!$G19,IF(FY$3=3,Paramétrages!$I19,IF(FY$3=4,Paramétrages!$K19,IF(FY$3=5,Paramétrages!$M19,0))))) -> 3.25 | GA181: =IF(GA$3=1,Paramétrages!$D19,IF(GA$3=2,Paramétrages!$F19,IF(GA$3=3,Paramétrages!$H19,IF(GA$3=4,Paramétrages!$J19,IF(GA$3=5,Paramétrages!$L19,0))))) -> 0 | GB181: =IF(GA$3=1,Paramétrages!$E19,IF(GA$3=2,Paramétrages!$G19,IF(GA$3=3,Paramétrages!$I19,IF(GA$3=4,Paramétrages!$K19,IF(GA$3=5,Paramétrages!$M19,0))))) -> 0 | GC181: =IF(GC$3=1,Paramétrages!$D19,IF(GC$3=2,Paramétrages!$F19,IF(GC$3=3,Paramétrages!$H19,IF(GC$3=4,Paramétrages!$J19,IF(GC$3=5,Paramétrages!$L19,0))))) -> 0 | GD181: =IF(GC$3=1,Paramétrages!$E19,IF(GC$3=2,Paramétrages!$G19,IF(GC$3=3,Paramétrages!$I19,IF(GC$3=4,Paramétrages!$K19,IF(GC$3=5,Paramétrages!$M19,0))))) -> 0 | GE181: =IF(GE$3=1,Paramétrages!$D19,IF(GE$3=2,Paramétrages!$F19,IF(GE$3=3,Paramétrages!$H19,IF(GE$3=4,Paramétrages!$J19,IF(GE$3=5,Paramétrages!$L19,0))))) -> 3.25 | GF181: =IF(GE$3=1,Paramétrages!$E19,IF(GE$3=2,Paramétrages!$G19,IF(GE$3=3,Paramétrages!$I19,IF(GE$3=4,Paramétrages!$K19,IF(GE$3=5,Paramétrages!$M19,0))))) -> 3.25 | GK181: =D183 -> 0 | GL181: =COUNTIF(E181:BN181,">0")/2 -> 23 | GM181: =IF(GL181>0,GL182/GL181," ") -> 0.5760869565 | GN181: =IF($DS$2=$GI$3,COUNTIF($BO181:$DX181,">0")/2,COUNTIF($BO181:$DX181,">0")/2) -> 22 | GO181: =IF(GN181>0,GN182/GN181," ") -> 0.2272727273 | GP181: =IF($DS$2=$GI$3,COUNTIF($DY181:$GF181,">0")/2,COUNTIF($DY181:$GF181,">0")/2) -> 21 | GQ181: =IF(GP181>0,GP182/GP181," ") -> 0.02380952381 | GR181: =COUNTIF(E181:BN181,"ad")/2 -> 0 | GT181: =IF($DS$2=$GI$3,COUNTIF($BO81:$DX181,"ad")/2,COUNTIF($BO81:$DX181,"ad")/2) -> 0 | GV181: =IF($DS$2=$GI$3,COUNTIF($DY181:$GF181,"ad")/2,COUNTIF($DY181:$GF181,"ad")/2) -> 0 | HE181: =Paramétrages!$B$43 -> NOM | HF181: =COUNTIF(E205:GF206,"A2")/2 -> 0 | HG181: =COUNTIF(F205:GG206,"cp")/2 -> 0 | HH181: =COUNTIF(G205:GH206,"css")/2 -> 0 | HI181: =COUNTIF(H205:GI206,"ma")/2 -> 0 | HJ181: =COUNTIF(I205:GJ206,"at")/2 -> 0 | HK181: =COUNTIF(J205:GK206,"aj")/2 -> 0 | HL181: =COUNTIF(K205:GL206,"ai")/2 -> 0 | HM181: =COUNTIF(L205:GM206,"ad")/2 -> 0 | HN181: =COUNTIF(M205:GN206,"st")/2 -> 0 | HO181: =COUNTIF(N205:GO206,"di")/2 -> 0
B182: 2 | BW182: R | BY182: R | CA182: R | CC182: R | CE182: R | GH182: =COUNTIF(E182:GF182,"R") -> 5 | GL182: =(SUM(E183:BP183)+COUNTIF(E183:BP183,"ad"))/2 -> 13.25 | GN182: =IF($GI$3=$DS$2,(SUM(BQ183:DT183)+COUNTIF(BQ183:DT183,"ad"))/2, (SUM(BQ183:DX183)+COUNTIF(BQ183:DX183,"ad"))/2) -> 5 | GP182: =IF($GI$3=$DS$2,(SUM(DU183:GF183)+COUNTIF(DU183:GF183,"ad"))/2, (SUM(DY183:GF183)+COUNTIF(DY183:GF183,"ad"))/2) -> 0.5 | HE182: =Paramétrages!$B$46 -> NOM | HF182: =COUNTIF(E208:GF209,"A2")/2 -> 0 | HG182: =COUNTIF(F208:GG209,"cp")/2 -> 0 | HH182: =COUNTIF(G208:GH209,"css")/2 -> 0 | HI182: =COUNTIF(H208:GI209,"ma")/2 -> 0 | HJ182: =COUNTIF(I208:GJ209,"at")/2 -> 0 | HK182: =COUNTIF(J208:GK209,"aj")/2 -> 0 | HL182: =COUNTIF(K208:GL209,"ai")/2 -> 0 | HM182: =COUNTIF(L208:GM209,"ad")/2 -> 0 | HN182: =COUNTIF(M208:GN209,"st")/2 -> 0 | HO182: =COUNTIF(N208:GO209,"di")/2 -> 0
A183: =Paramétrages!B19 -> NOM | B183: 3 | F183: 1 | G183: 1 | H183: 1 | I183: 1 | J183: 1 | K183: 1 | M183: 1 | N183: 1 | X183: 1 | Y183: 1 | Z183: 1 | AG183: 0.5 | AI183: 1 | AJ183: 1 | AK183: 1 | AL183: 1 | AU183: 1 | AV183: 1 | AW183: 1 | AX183: 1 | AY183: 1 | BI183: 1 | BJ183: 1 | BK183: 1 | BL183: 1 | BM183: 1 | BO183: 1 | DM183: 1 | DN183: 1 | DO183: 1 | DP183: 1 | DQ183: 1 | DR183: 1 | DS183: 1 | DT183: 1 | DU183: 1 | DV183: 1 | EE183: 1 | GO183: =IF(GN183>0,GN184/GN183," ") ->  | HE183: =Paramétrages!$B$49 -> NOM | HF183: =COUNTIF(E211:GF212,"A2")/2 -> 0 | HG183: =COUNTIF(F211:GG212,"cp")/2 -> 0 | HH183: =COUNTIF(G211:GH212,"css")/2 -> 0 | HI183: =COUNTIF(H211:GI212,"ma")/2 -> 0 | HJ183: =COUNTIF(I211:GJ212,"at")/2 -> 0 | HK183: =COUNTIF(J211:GK212,"aj")/2 -> 0 | HL183: =COUNTIF(K211:GL212,"ai")/2 -> 0 | HM183: =COUNTIF(L211:GM212,"ad")/2 -> 0 | HN183: =COUNTIF(M211:GN212,"st")/2 -> 0 | HO183: =COUNTIF(N211:GO212,"di")/2 -> 0
B184: 1 | C184: 6 | E184: =IF(E$3=1,Paramétrages!$D22,IF(E$3=2,Paramétrages!$F22,IF(E$3=3,Paramétrages!$H22,IF(E$3=4,Paramétrages!$J22,IF(E$3=5,Paramétrages!$L22,0))))) -> 3.25 | F184: =IF(E$3=1,Paramétrages!$E22,IF(E$3=2,Paramétrages!$G22,IF(E$3=3,Paramétrages!$I22,IF(E$3=4,Paramétrages!$K22,IF(E$3=5,Paramétrages!$M22,0))))) -> 3.25 | G184: =IF(G$3=1,Paramétrages!$D22,IF(G$3=2,Paramétrages!$F22,IF(G$3=3,Paramétrages!$H22,IF(G$3=4,Paramétrages!$J22,IF(G$3=5,Paramétrages!$L22,0))))) -> 3.25 | H184: =IF(G$3=1,Paramétrages!$E22,IF(G$3=2,Paramétrages!$G22,IF(G$3=3,Paramétrages!$I22,IF(G$3=4,Paramétrages!$K22,IF(G$3=5,Paramétrages!$M22,0))))) -> 3.25 | I184: =IF(I$3=1,Paramétrages!$D22,IF(I$3=2,Paramétrages!$F22,IF(I$3=3,Paramétrages!$H22,IF(I$3=4,Paramétrages!$J22,IF(I$3=5,Paramétrages!$L22,0))))) -> 3.25 | J184: =IF(I$3=1,Paramétrages!$E22,IF(I$3=2,Paramétrages!$G22,IF(I$3=3,Paramétrages!$I22,IF(I$3=4,Paramétrages!$K22,IF(I$3=5,Paramétrages!$M22,0))))) -> 3.25 | K184: =IF(K$3=1,Paramétrages!$D22,IF(K$3=2,Paramétrages!$F22,IF(K$3=3,Paramétrages!$H22,IF(K$3=4,Paramétrages!$J22,IF(K$3=5,Paramétrages!$L22,0))))) -> 3.25 | L184: =IF(K$3=1,Paramétrages!$E22,IF(K$3=2,Paramétrages!$G22,IF(K$3=3,Paramétrages!$I22,IF(K$3=4,Paramétrages!$K22,IF(K$3=5,Paramétrages!$M22,0))))) -> 3.25 | M184: =IF(M$3=1,Paramétrages!$D22,IF(M$3=2,Paramétrages!$F22,IF(M$3=3,Paramétrages!$H22,IF(M$3=4,Paramétrages!$J22,IF(M$3=5,Paramétrages!$L22,0))))) -> 3.25 | N184: =IF(M$3=1,Paramétrages!$E22,IF(M$3=2,Paramétrages!$G22,IF(M$3=3,Paramétrages!$I22,IF(M$3=4,Paramétrages!$K22,IF(M$3=5,Paramétrages!$M22,0))))) -> 3.25 | O184: =IF(O$3=1,Paramétrages!$D22,IF(O$3=2,Paramétrages!$F22,IF(O$3=3,Paramétrages!$H22,IF(O$3=4,Paramétrages!$J22,IF(O$3=5,Paramétrages!$L22,0))))) -> 0 | P184: =IF(O$3=1,Paramétrages!$E22,IF(O$3=2,Paramétrages!$G22,IF(O$3=3,Paramétrages!$I22,IF(O$3=4,Paramétrages!$K22,IF(O$3=5,Paramétrages!$M22,0))))) -> 0 | Q184: =IF(Q$3=1,Paramétrages!$D22,IF(Q$3=2,Paramétrages!$F22,IF(Q$3=3,Paramétrages!$H22,IF(Q$3=4,Paramétrages!$J22,IF(Q$3=5,Paramétrages!$L22,0))))) -> 0 | R184: =IF(Q$3=1,Paramétrages!$E22,IF(Q$3=2,Paramétrages!$G22,IF(Q$3=3,Paramétrages!$I22,IF(Q$3=4,Paramétrages!$K22,IF(Q$3=5,Paramétrages!$M22,0))))) -> 0 | S184: =IF(S$3=1,Paramétrages!$D22,IF(S$3=2,Paramétrages!$F22,IF(S$3=3,Paramétrages!$H22,IF(S$3=4,Paramétrages!$J22,IF(S$3=5,Paramétrages!$L22,0))))) -> 3.25 | T184: =IF(S$3=1,Paramétrages!$E22,IF(S$3=2,Paramétrages!$G22,IF(S$3=3,Paramétrages!$I22,IF(S$3=4,Paramétrages!$K22,IF(S$3=5,Paramétrages!$M22,0))))) -> 3.25 | U184: =IF(U$3=1,Paramétrages!$D22,IF(U$3=2,Paramétrages!$F22,IF(U$3=3,Paramétrages!$H22,IF(U$3=4,Paramétrages!$J22,IF(U$3=5,Paramétrages!$L22,0))))) -> 3.25 | V184: =IF(U$3=1,Paramétrages!$E22,IF(U$3=2,Paramétrages!$G22,IF(U$3=3,Paramétrages!$I22,IF(U$3=4,Paramétrages!$K22,IF(U$3=5,Paramétrages!$M22,0))))) -> 3.25 | W184: =IF(W$3=1,Paramétrages!$D22,IF(W$3=2,Paramétrages!$F22,IF(W$3=3,Paramétrages!$H22,IF(W$3=4,Paramétrages!$J22,IF(W$3=5,Paramétrages!$L22,0))))) -> 3.25 | X184: =IF(W$3=1,Paramétrages!$E22,IF(W$3=2,Paramétrages!$G22,IF(W$3=3,Paramétrages!$I22,IF(W$3=4,Paramétrages!$K22,IF(W$3=5,Paramétrages!$M22,0))))) -> 3.25 | Y184: =IF(Y$3=1,Paramétrages!$D22,IF(Y$3=2,Paramétrages!$F22,IF(Y$3=3,Paramétrages!$H22,IF(Y$3=4,Paramétrages!$J22,IF(Y$3=5,Paramétrages!$L22,0))))) -> 3.25 | Z184: =IF(Y$3=1,Paramétrages!$E22,IF(Y$3=2,Paramétrages!$G22,IF(Y$3=3,Paramétrages!$I22,IF(Y$3=4,Paramétrages!$K22,IF(Y$3=5,Paramétrages!$M22,0))))) -> 3.25 | AA184: =IF(AA$3=1,Paramétrages!$D22,IF(AA$3=2,Paramétrages!$F22,IF(AA$3=3,Paramétrages!$H22,IF(AA$3=4,Paramétrages!$J22,IF(AA$3=5,Paramétrages!$L22,0))))) -> 3.25 | AB184: =IF(AA$3=1,Paramétrages!$E22,IF(AA$3=2,Paramétrages!$G22,IF(AA$3=3,Paramétrages!$I22,IF(AA$3=4,Paramétrages!$K22,IF(AA$3=5,Paramétrages!$M22,0))))) -> 3.25 | AC184: =IF(AC$3=1,Paramétrages!$D22,IF(AC$3=2,Paramétrages!$F22,IF(AC$3=3,Paramétrages!$H22,IF(AC$3=4,Paramétrages!$J22,IF(AC$3=5,Paramétrages!$L22,0))))) -> 0 | AD184: =IF(AC$3=1,Paramétrages!$E22,IF(AC$3=2,Paramétrages!$G22,IF(AC$3=3,Paramétrages!$I22,IF(AC$3=4,Paramétrages!$K22,IF(AC$3=5,Paramétrages!$M22,0))))) -> 0 | AE184: =IF(AE$3=1,Paramétrages!$D22,IF(AE$3=2,Paramétrages!$F22,IF(AE$3=3,Paramétrages!$H22,IF(AE$3=4,Paramétrages!$J22,IF(AE$3=5,Paramétrages!$L22,0))))) -> 0 | AF184: =IF(AE$3=1,Paramétrages!$E22,IF(AE$3=2,Paramétrages!$G22,IF(AE$3=3,Paramétrages!$I22,IF(AE$3=4,Paramétrages!$K22,IF(AE$3=5,Paramétrages!$M22,0))))) -> 0 | AG184: =IF(AG$3=1,Paramétrages!$D22,IF(AG$3=2,Paramétrages!$F22,IF(AG$3=3,Paramétrages!$H22,IF(AG$3=4,Paramétrages!$J22,IF(AG$3=5,Paramétrages!$L22,0))))) -> 3.25 | AH184: =IF(AG$3=1,Paramétrages!$E22,IF(AG$3=2,Paramétrages!$G22,IF(AG$3=3,Paramétrages!$I22,IF(AG$3=4,Paramétrages!$K22,IF(AG$3=5,Paramétrages!$M22,0))))) -> 3.25 | AI184: =IF(AI$3=1,Paramétrages!$D22,IF(AI$3=2,Paramétrages!$F22,IF(AI$3=3,Paramétrages!$H22,IF(AI$3=4,Paramétrages!$J22,IF(AI$3=5,Paramétrages!$L22,0))))) -> 3.25 | AJ184: =IF(AI$3=1,Paramétrages!$E22,IF(AI$3=2,Paramétrages!$G22,IF(AI$3=3,Paramétrages!$I22,IF(AI$3=4,Paramétrages!$K22,IF(AI$3=5,Paramétrages!$M22,0))))) -> 3.25 | AK184: =IF(AK$3=1,Paramétrages!$D22,IF(AK$3=2,Paramétrages!$F22,IF(AK$3=3,Paramétrages!$H22,IF(AK$3=4,Paramétrages!$J22,IF(AK$3=5,Paramétrages!$L22,0))))) -> 3.25 | AL184: =IF(AK$3=1,Paramétrages!$E22,IF(AK$3=2,Paramétrages!$G22,IF(AK$3=3,Paramétrages!$I22,IF(AK$3=4,Paramétrages!$K22,IF(AK$3=5,Paramétrages!$M22,0))))) -> 3.25 | AM184: =IF(AM$3=1,Paramétrages!$D22,IF(AM$3=2,Paramétrages!$F22,IF(AM$3=3,Paramétrages!$H22,IF(AM$3=4,Paramétrages!$J22,IF(AM$3=5,Paramétrages!$L22,0))))) -> 3.25 | AN184: =IF(AM$3=1,Paramétrages!$E22,IF(AM$3=2,Paramétrages!$G22,IF(AM$3=3,Paramétrages!$I22,IF(AM$3=4,Paramétrages!$K22,IF(AM$3=5,Paramétrages!$M22,0))))) -> 3.25 | AO184: =IF(AO$3=1,Paramétrages!$D22,IF(AO$3=2,Paramétrages!$F22,IF(AO$3=3,Paramétrages!$H22,IF(AO$3=4,Paramétrages!$J22,IF(AO$3=5,Paramétrages!$L22,0))))) -> 3.25 | AP184: =IF(AO$3=1,Paramétrages!$E22,IF(AO$3=2,Paramétrages!$G22,IF(AO$3=3,Paramétrages!$I22,IF(AO$3=4,Paramétrages!$K22,IF(AO$3=5,Paramétrages!$M22,0))))) -> 3.25 | AQ184: =IF(AQ$3=1,Paramétrages!$D22,IF(AQ$3=2,Paramétrages!$F22,IF(AQ$3=3,Paramétrages!$H22,IF(AQ$3=4,Paramétrages!$J22,IF(AQ$3=5,Paramétrages!$L22,0))))) -> 0 | AR184: =IF(AQ$3=1,Paramétrages!$E22,IF(AQ$3=2,Paramétrages!$G22,IF(AQ$3=3,Paramétrages!$I22,IF(AQ$3=4,Paramétrages!$K22,IF(AQ$3=5,Paramétrages!$M22,0))))) -> 0 | AS184: =IF(AS$3=1,Paramétrages!$D22,IF(AS$3=2,Paramétrages!$F22,IF(AS$3=3,Paramétrages!$H22,IF(AS$3=4,Paramétrages!$J22,IF(AS$3=5,Paramétrages!$L22,0))))) -> 0 | AT184: =IF(AS$3=1,Paramétrages!$E22,IF(AS$3=2,Paramétrages!$G22,IF(AS$3=3,Paramétrages!$I22,IF(AS$3=4,Paramétrages!$K22,IF(AS$3=5,Paramétrages!$M22,0))))) -> 0 | AU184: =IF(AU$3=1,Paramétrages!$D22,IF(AU$3=2,Paramétrages!$F22,IF(AU$3=3,Paramétrages!$H22,IF(AU$3=4,Paramétrages!$J22,IF(AU$3=5,Paramétrages!$L22,0))))) -> 3.25 | AV184: =IF(AU$3=1,Paramétrages!$E22,IF(AU$3=2,Paramétrages!$G22,IF(AU$3=3,Paramétrages!$I22,IF(AU$3=4,Paramétrages!$K22,IF(AU$3=5,Paramétrages!$M22,0))))) -> 3.25 | AW184: =IF(AW$3=1,Paramétrages!$D22,IF(AW$3=2,Paramétrages!$F22,IF(AW$3=3,Paramétrages!$H22,IF(AW$3=4,Paramétrages!$J22,IF(AW$3=5,Paramétrages!$L22,0))))) -> 3.25 | AX184: =IF(AW$3=1,Paramétrages!$E22,IF(AW$3=2,Paramétrages!$G22,IF(AW$3=3,Paramétrages!$I22,IF(AW$3=4,Paramétrages!$K22,IF(AW$3=5,Paramétrages!$M22,0))))) -> 3.25 | AY184: =IF(AY$3=1,Paramétrages!$D22,IF(AY$3=2,Paramétrages!$F22,IF(AY$3=3,Paramétrages!$H22,IF(AY$3=4,Paramétrages!$J22,IF(AY$3=5,Paramétrages!$L22,0))))) -> 3.25 | AZ184: =IF(AY$3=1,Paramétrages!$E22,IF(AY$3=2,Paramétrages!$G22,IF(AY$3=3,Paramétrages!$I22,IF(AY$3=4,Paramétrages!$K22,IF(AY$3=5,Paramétrages!$M22,0))))) -> 3.25 | BA184: =IF(BA$3=1,Paramétrages!$D22,IF(BA$3=2,Paramétrages!$F22,IF(BA$3=3,Paramétrages!$H22,IF(BA$3=4,Paramétrages!$J22,IF(BA$3=5,Paramétrages!$L22,0))))) -> 3.25 | BB184: =IF(BA$3=1,Paramétrages!$E22,IF(BA$3=2,Paramétrages!$G22,IF(BA$3=3,Paramétrages!$I22,IF(BA$3=4,Paramétrages!$K22,IF(BA$3=5,Paramétrages!$M22,0))))) -> 3.25 | BC184: =IF(BC$3=1,Paramétrages!$D22,IF(BC$3=2,Paramétrages!$F22,IF(BC$3=3,Paramétrages!$H22,IF(BC$3=4,Paramétrages!$J22,IF(BC$3=5,Paramétrages!$L22,0))))) -> 3.25 | BD184: =IF(BC$3=1,Paramétrages!$E22,IF(BC$3=2,Paramétrages!$G22,IF(BC$3=3,Paramétrages!$I22,IF(BC$3=4,Paramétrages!$K22,IF(BC$3=5,Paramétrages!$M22,0))))) -> 3.25 | BE184: =IF(BE$3=1,Paramétrages!$D22,IF(BE$3=2,Paramétrages!$F22,IF(BE$3=3,Paramétrages!$H22,IF(BE$3=4,Paramétrages!$J22,IF(BE$3=5,Paramétrages!$L22,0))))) -> 0 | BF184: =IF(BE$3=1,Paramétrages!$E22,IF(BE$3=2,Paramétrages!$G22,IF(BE$3=3,Paramétrages!$I22,IF(BE$3=4,Paramétrages!$K22,IF(BE$3=5,Paramétrages!$M22,0))))) -> 0 | BG184: =IF(BG$3=1,Paramétrages!$D22,IF(BG$3=2,Paramétrages!$F22,IF(BG$3=3,Paramétrages!$H22,IF(BG$3=4,Paramétrages!$J22,IF(BG$3=5,Paramétrages!$L22,0))))) -> 0 | BH184: =IF(BG$3=1,Paramétrages!$E22,IF(BG$3=2,Paramétrages!$G22,IF(BG$3=3,Paramétrages!$I22,IF(BG$3=4,Paramétrages!$K22,IF(BG$3=5,Paramétrages!$M22,0))))) -> 0 | BI184: =IF(BI$3=1,Paramétrages!$D22,IF(BI$3=2,Paramétrages!$F22,IF(BI$3=3,Paramétrages!$H22,IF(BI$3=4,Paramétrages!$J22,IF(BI$3=5,Paramétrages!$L22,0))))) -> 3.25 | BJ184: =IF(BI$3=1,Paramétrages!$E22,IF(BI$3=2,Paramétrages!$G22,IF(BI$3=3,Paramétrages!$I22,IF(BI$3=4,Paramétrages!$K22,IF(BI$3=5,Paramétrages!$M22,0))))) -> 3.25 | BK184: =IF(BK$3=1,Paramétrages!$D22,IF(BK$3=2,Paramétrages!$F22,IF(BK$3=3,Paramétrages!$H22,IF(BK$3=4,Paramétrages!$J22,IF(BK$3=5,Paramétrages!$L22,0))))) -> 3.25 | BL184: =IF(BK$3=1,Paramétrages!$E22,IF(BK$3=2,Paramétrages!$G22,IF(BK$3=3,Paramétrages!$I22,IF(BK$3=4,Paramétrages!$K22,IF(BK$3=5,Paramétrages!$M22,0))))) -> 3.25 | BM184: =IF(BM$3=1,Paramétrages!$D22,IF(BM$3=2,Paramétrages!$F22,IF(BM$3=3,Paramétrages!$H22,IF(BM$3=4,Paramétrages!$J22,IF(BM$3=5,Paramétrages!$L22,0))))) -> 3.25 | BN184: =IF(BM$3=1,Paramétrages!$E22,IF(BM$3=2,Paramétrages!$G22,IF(BM$3=3,Paramétrages!$I22,IF(BM$3=4,Paramétrages!$K22,IF(BM$3=5,Paramétrages!$M22,0))))) -> 3.25 | BO184: =IF(BO$3=1,Paramétrages!$D22,IF(BO$3=2,Paramétrages!$F22,IF(BO$3=3,Paramétrages!$H22,IF(BO$3=4,Paramétrages!$J22,IF(BO$3=5,Paramétrages!$L22,0))))) -> 3.25 | BP184: =IF(BO$3=1,Paramétrages!$E22,IF(BO$3=2,Paramétrages!$G22,IF(BO$3=3,Paramétrages!$I22,IF(BO$3=4,Paramétrages!$K22,IF(BO$3=5,Paramétrages!$M22,0))))) -> 3.25 | BQ184: =IF(BQ$3=1,Paramétrages!$D22,IF(BQ$3=2,Paramétrages!$F22,IF(BQ$3=3,Paramétrages!$H22,IF(BQ$3=4,Paramétrages!$J22,IF(BQ$3=5,Paramétrages!$L22,0))))) -> 3.25 | BR184: =IF(BQ$3=1,Paramétrages!$E22,IF(BQ$3=2,Paramétrages!$G22,IF(BQ$3=3,Paramétrages!$I22,IF(BQ$3=4,Paramétrages!$K22,IF(BQ$3=5,Paramétrages!$M22,0))))) -> 3.25 | BS184: =IF(BS$3=1,Paramétrages!$D22,IF(BS$3=2,Paramétrages!$F22,IF(BS$3=3,Paramétrages!$H22,IF(BS$3=4,Paramétrages!$J22,IF(BS$3=5,Paramétrages!$L22,0))))) -> 0 | BT184: =IF(BS$3=1,Paramétrages!$E22,IF(BS$3=2,Paramétrages!$G22,IF(BS$3=3,Paramétrages!$I22,IF(BS$3=4,Paramétrages!$K22,IF(BS$3=5,Paramétrages!$M22,0))))) -> 0 | BU184: =IF(BU$3=1,Paramétrages!$D22,IF(BU$3=2,Paramétrages!$F22,IF(BU$3=3,Paramétrages!$H22,IF(BU$3=4,Paramétrages!$J22,IF(BU$3=5,Paramétrages!$L22,0))))) -> 0 | BV184: =IF(BU$3=1,Paramétrages!$E22,IF(BU$3=2,Paramétrages!$G22,IF(BU$3=3,Paramétrages!$I22,IF(BU$3=4,Paramétrages!$K22,IF(BU$3=5,Paramétrages!$M22,0))))) -> 0 | BW184: =IF(BW$3=1,Paramétrages!$D22,IF(BW$3=2,Paramétrages!$F22,IF(BW$3=3,Paramétrages!$H22,IF(BW$3=4,Paramétrages!$J22,IF(BW$3=5,Paramétrages!$L22,0))))) -> 3.25 | BX184: =IF(BW$3=1,Paramétrages!$E22,IF(BW$3=2,Paramétrages!$G22,IF(BW$3=3,Paramétrages!$I22,IF(BW$3=4,Paramétrages!$K22,IF(BW$3=5,Paramétrages!$M22,0))))) -> 3.25 | BY184: =IF(BY$3=1,Paramétrages!$D22,IF(BY$3=2,Paramétrages!$F22,IF(BY$3=3,Paramétrages!$H22,IF(BY$3=4,Paramétrages!$J22,IF(BY$3=5,Paramétrages!$L22,0))))) -> 3.25 | BZ184: =IF(BY$3=1,Paramétrages!$E22,IF(BY$3=2,Paramétrages!$G22,IF(BY$3=3,Paramétrages!$I22,IF(BY$3=4,Paramétrages!$K22,IF(BY$3=5,Paramétrages!$M22,0))))) -> 3.25 | CA184: =IF(CA$3=1,Paramétrages!$D22,IF(CA$3=2,Paramétrages!$F22,IF(CA$3=3,Paramétrages!$H22,IF(CA$3=4,Paramétrages!$J22,IF(CA$3=5,Paramétrages!$L22,0))))) -> 3.25 | CB184: =IF(CA$3=1,Paramétrages!$E22,IF(CA$3=2,Paramétrages!$G22,IF(CA$3=3,Paramétrages!$I22,IF(CA$3=4,Paramétrages!$K22,IF(CA$3=5,Paramétrages!$M22,0))))) -> 3.25 | CC184: =IF(CC$3=1,Paramétrages!$D22,IF(CC$3=2,Paramétrages!$F22,IF(CC$3=3,Paramétrages!$H22,IF(CC$3=4,Paramétrages!$J22,IF(CC$3=5,Paramétrages!$L22,0))))) -> 3.25 | CD184: =IF(CC$3=1,Paramétrages!$E22,IF(CC$3=2,Paramétrages!$G22,IF(CC$3=3,Paramétrages!$I22,IF(CC$3=4,Paramétrages!$K22,IF(CC$3=5,Paramétrages!$M22,0))))) -> 3.25 | CE184: =IF(CE$3=1,Paramétrages!$D22,IF(CE$3=2,Paramétrages!$F22,IF(CE$3=3,Paramétrages!$H22,IF(CE$3=4,Paramétrages!$J22,IF(CE$3=5,Paramétrages!$L22,0))))) -> 3.25 | CF184: =IF(CE$3=1,Paramétrages!$E22,IF(CE$3=2,Paramétrages!$G22,IF(CE$3=3,Paramétrages!$I22,IF(CE$3=4,Paramétrages!$K22,IF(CE$3=5,Paramétrages!$M22,0))))) -> 3.25 | CG184: =IF(CG$3=1,Paramétrages!$D22,IF(CG$3=2,Paramétrages!$F22,IF(CG$3=3,Paramétrages!$H22,IF(CG$3=4,Paramétrages!$J22,IF(CG$3=5,Paramétrages!$L22,0))))) -> 0 | CH184: =IF(CG$3=1,Paramétrages!$E22,IF(CG$3=2,Paramétrages!$G22,IF(CG$3=3,Paramétrages!$I22,IF(CG$3=4,Paramétrages!$K22,IF(CG$3=5,Paramétrages!$M22,0))))) -> 0 | CI184: =IF(CI$3=1,Paramétrages!$D22,IF(CI$3=2,Paramétrages!$F22,IF(CI$3=3,Paramétrages!$H22,IF(CI$3=4,Paramétrages!$J22,IF(CI$3=5,Paramétrages!$L22,0))))) -> 0 | CJ184: =IF(CI$3=1,Paramétrages!$E22,IF(CI$3=2,Paramétrages!$G22,IF(CI$3=3,Paramétrages!$I22,IF(CI$3=4,Paramétrages!$K22,IF(CI$3=5,Paramétrages!$M22,0))))) -> 0 | CK184: =IF(CK$3=1,Paramétrages!$D22,IF(CK$3=2,Paramétrages!$F22,IF(CK$3=3,Paramétrages!$H22,IF(CK$3=4,Paramétrages!$J22,IF(CK$3=5,Paramétrages!$L22,0))))) -> 3.25 | CL184: =IF(CK$3=1,Paramétrages!$E22,IF(CK$3=2,Paramétrages!$G22,IF(CK$3=3,Paramétrages!$I22,IF(CK$3=4,Paramétrages!$K22,IF(CK$3=5,Paramétrages!$M22,0))))) -> 3.25 | CM184: =IF(CM$3=1,Paramétrages!$D22,IF(CM$3=2,Paramétrages!$F22,IF(CM$3=3,Paramétrages!$H22,IF(CM$3=4,Paramétrages!$J22,IF(CM$3=5,Paramétrages!$L22,0))))) -> 3.25 | CN184: =IF(CM$3=1,Paramétrages!$E22,IF(CM$3=2,Paramétrages!$G22,IF(CM$3=3,Paramétrages!$I22,IF(CM$3=4,Paramétrages!$K22,IF(CM$3=5,Paramétrages!$M22,0))))) -> 3.25 | CO184: =IF(CO$3=1,Paramétrages!$D22,IF(CO$3=2,Paramétrages!$F22,IF(CO$3=3,Paramétrages!$H22,IF(CO$3=4,Paramétrages!$J22,IF(CO$3=5,Paramétrages!$L22,0))))) -> 3.25 | CP184: =IF(CO$3=1,Paramétrages!$E22,IF(CO$3=2,Paramétrages!$G22,IF(CO$3=3,Paramétrages!$I22,IF(CO$3=4,Paramétrages!$K22,IF(CO$3=5,Paramétrages!$M22,0))))) -> 3.25 | CQ184: =IF(CQ$3=1,Paramétrages!$D22,IF(CQ$3=2,Paramétrages!$F22,IF(CQ$3=3,Paramétrages!$H22,IF(CQ$3=4,Paramétrages!$J22,IF(CQ$3=5,Paramétrages!$L22,0))))) -> 3.25 | CR184: =IF(CQ$3=1,Paramétrages!$E22,IF(CQ$3=2,Paramétrages!$G22,IF(CQ$3=3,Paramétrages!$I22,IF(CQ$3=4,Paramétrages!$K22,IF(CQ$3=5,Paramétrages!$M22,0))))) -> 3.25 | CS184: =IF(CS$3=1,Paramétrages!$D22,IF(CS$3=2,Paramétrages!$F22,IF(CS$3=3,Paramétrages!$H22,IF(CS$3=4,Paramétrages!$J22,IF(CS$3=5,Paramétrages!$L22,0))))) -> 3.25 | CT184: =IF(CS$3=1,Paramétrages!$E22,IF(CS$3=2,Paramétrages!$G22,IF(CS$3=3,Paramétrages!$I22,IF(CS$3=4,Paramétrages!$K22,IF(CS$3=5,Paramétrages!$M22,0))))) -> 3.25 | CU184: =IF(CU$3=1,Paramétrages!$D22,IF(CU$3=2,Paramétrages!$F22,IF(CU$3=3,Paramétrages!$H22,IF(CU$3=4,Paramétrages!$J22,IF(CU$3=5,Paramétrages!$L22,0))))) -> 0 | CV184: =IF(CU$3=1,Paramétrages!$E22,IF(CU$3=2,Paramétrages!$G22,IF(CU$3=3,Paramétrages!$I22,IF(CU$3=4,Paramétrages!$K22,IF(CU$3=5,Paramétrages!$M22,0))))) -> 0 | CW184: =IF(CW$3=1,Paramétrages!$D22,IF(CW$3=2,Paramétrages!$F22,IF(CW$3=3,Paramétrages!$H22,IF(CW$3=4,Paramétrages!$J22,IF(CW$3=5,Paramétrages!$L22,0))))) -> 0 | CX184: =IF(CW$3=1,Paramétrages!$E22,IF(CW$3=2,Paramétrages!$G22,IF(CW$3=3,Paramétrages!$I22,IF(CW$3=4,Paramétrages!$K22,IF(CW$3=5,Paramétrages!$M22,0))))) -> 0 | CY184: =IF(CY$3=1,Paramétrages!$D22,IF(CY$3=2,Paramétrages!$F22,IF(CY$3=3,Paramétrages!$H22,IF(CY$3=4,Paramétrages!$J22,IF(CY$3=5,Paramétrages!$L22,0))))) -> 3.25 | CZ184: =IF(CY$3=1,Paramétrages!$E22,IF(CY$3=2,Paramétrages!$G22,IF(CY$3=3,Paramétrages!$I22,IF(CY$3=4,Paramétrages!$K22,IF(CY$3=5,Paramétrages!$M22,0))))) -> 3.25 | DA184: =IF(DA$3=1,Paramétrages!$D22,IF(DA$3=2,Paramétrages!$F22,IF(DA$3=3,Paramétrages!$H22,IF(DA$3=4,Paramétrages!$J22,IF(DA$3=5,Paramétrages!$L22,0))))) -> 3.25 | DB184: =IF(DA$3=1,Paramétrages!$E22,IF(DA$3=2,Paramétrages!$G22,IF(DA$3=3,Paramétrages!$I22,IF(DA$3=4,Paramétrages!$K22,IF(DA$3=5,Paramétrages!$M22,0))))) -> 3.25 | DC184: =IF(DC$3=1,Paramétrages!$D22,IF(DC$3=2,Paramétrages!$F22,IF(DC$3=3,Paramétrages!$H22,IF(DC$3=4,Paramétrages!$J22,IF(DC$3=5,Paramétrages!$L22,0))))) -> 3.25 | DD184: =IF(DC$3=1,Paramétrages!$E22,IF(DC$3=2,Paramétrages!$G22,IF(DC$3=3,Paramétrages!$I22,IF(DC$3=4,Paramétrages!$K22,IF(DC$3=5,Paramétrages!$M22,0))))) -> 3.25 | DE184: =IF(DE$3=1,Paramétrages!$D22,IF(DE$3=2,Paramétrages!$F22,IF(DE$3=3,Paramétrages!$H22,IF(DE$3=4,Paramétrages!$J22,IF(DE$3=5,Paramétrages!$L22,0))))) -> 3.25 | DF184: =IF(DE$3=1,Paramétrages!$E22,IF(DE$3=2,Paramétrages!$G22,IF(DE$3=3,Paramétrages!$I22,IF(DE$3=4,Paramétrages!$K22,IF(DE$3=5,Paramétrages!$M22,0))))) -> 3.25 | DG184: =IF(DG$3=1,Paramétrages!$D22,IF(DG$3=2,Paramétrages!$F22,IF(DG$3=3,Paramétrages!$H22,IF(DG$3=4,Paramétrages!$J22,IF(DG$3=5,Paramétrages!$L22,0))))) -> 3.25 | DH184: =IF(DG$3=1,Paramétrages!$E22,IF(DG$3=2,Paramétrages!$G22,IF(DG$3=3,Paramétrages!$I22,IF(DG$3=4,Paramétrages!$K22,IF(DG$3=5,Paramétrages!$M22,0))))) -> 3.25 | DI184: =IF(DI$3=1,Paramétrages!$D22,IF(DI$3=2,Paramétrages!$F22,IF(DI$3=3,Paramétrages!$H22,IF(DI$3=4,Paramétrages!$J22,IF(DI$3=5,Paramétrages!$L22,0))))) -> 0 | DJ184: =IF(DI$3=1,Paramétrages!$E22,IF(DI$3=2,Paramétrages!$G22,IF(DI$3=3,Paramétrages!$I22,IF(DI$3=4,Paramétrages!$K22,IF(DI$3=5,Paramétrages!$M22,0))))) -> 0 | DK184: =IF(DK$3=1,Paramétrages!$D22,IF(DK$3=2,Paramétrages!$F22,IF(DK$3=3,Paramétrages!$H22,IF(DK$3=4,Paramétrages!$J22,IF(DK$3=5,Paramétrages!$L22,0))))) -> 0 | DL184: =IF(DK$3=1,Paramétrages!$E22,IF(DK$3=2,Paramétrages!$G22,IF(DK$3=3,Paramétrages!$I22,IF(DK$3=4,Paramétrages!$K22,IF(DK$3=5,Paramétrages!$M22,0))))) -> 0 | DM184: =IF(DM$3=1,Paramétrages!$D22,IF(DM$3=2,Paramétrages!$F22,IF(DM$3=3,Paramétrages!$H22,IF(DM$3=4,Paramétrages!$J22,IF(DM$3=5,Paramétrages!$L22,0))))) -> 3.25 | DN184: =IF(DM$3=1,Paramétrages!$E22,IF(DM$3=2,Paramétrages!$G22,IF(DM$3=3,Paramétrages!$I22,IF(DM$3=4,Paramétrages!$K22,IF(DM$3=5,Paramétrages!$M22,0))))) -> 3.25 | DO184: =IF(DO$3=1,Paramétrages!$D22,IF(DO$3=2,Paramétrages!$F22,IF(DO$3=3,Paramétrages!$H22,IF(DO$3=4,Paramétrages!$J22,IF(DO$3=5,Paramétrages!$L22,0))))) -> 3.25 | DP184: =IF(DO$3=1,Paramétrages!$E22,IF(DO$3=2,Paramétrages!$G22,IF(DO$3=3,Paramétrages!$I22,IF(DO$3=4,Paramétrages!$K22,IF(DO$3=5,Paramétrages!$M22,0))))) -> 3.25 | DQ184: =IF(DQ$3=1,Paramétrages!$D22,IF(DQ$3=2,Paramétrages!$F22,IF(DQ$3=3,Paramétrages!$H22,IF(DQ$3=4,Paramétrages!$J22,IF(DQ$3=5,Paramétrages!$L22,0))))) -> 3.25 | DR184: =IF(DQ$3=1,Paramétrages!$E22,IF(DQ$3=2,Paramétrages!$G22,IF(DQ$3=3,Paramétrages!$I22,IF(DQ$3=4,Paramétrages!$K22,IF(DQ$3=5,Paramétrages!$M22,0))))) -> 3.25 | DS184: =IF(DS$3=1,Paramétrages!$D22,IF(DS$3=2,Paramétrages!$F22,IF(DS$3=3,Paramétrages!$H22,IF(DS$3=4,Paramétrages!$J22,IF(DS$3=5,Paramétrages!$L22,0))))) -> 3.25 | DT184: =IF(DS$3=1,Paramétrages!$E22,IF(DS$3=2,Paramétrages!$G22,IF(DS$3=3,Paramétrages!$I22,IF(DS$3=4,Paramétrages!$K22,IF(DS$3=5,Paramétrages!$M22,0))))) -> 3.25 | DU184: =IF(DU$3=1,Paramétrages!$D22,IF(DU$3=2,Paramétrages!$F22,IF(DU$3=3,Paramétrages!$H22,IF(DU$3=4,Paramétrages!$J22,IF(DU$3=5,Paramétrages!$L22,0))))) -> 3.25 | DV184: =IF(DU$3=1,Paramétrages!$E22,IF(DU$3=2,Paramétrages!$G22,IF(DU$3=3,Paramétrages!$I22,IF(DU$3=4,Paramétrages!$K22,IF(DU$3=5,Paramétrages!$M22,0))))) -> 3.25 | DW184: =IF(DW$3=1,Paramétrages!$D22,IF(DW$3=2,Paramétrages!$F22,IF(DW$3=3,Paramétrages!$H22,IF(DW$3=4,Paramétrages!$J22,IF(DW$3=5,Paramétrages!$L22,0))))) -> 0 | DX184: =IF(DW$3=1,Paramétrages!$E22,IF(DW$3=2,Paramétrages!$G22,IF(DW$3=3,Paramétrages!$I22,IF(DW$3=4,Paramétrages!$K22,IF(DW$3=5,Paramétrages!$M22,0))))) -> 0 | DY184: =IF(DY$3=1,Paramétrages!$D22,IF(DY$3=2,Paramétrages!$F22,IF(DY$3=3,Paramétrages!$H22,IF(DY$3=4,Paramétrages!$J22,IF(DY$3=5,Paramétrages!$L22,0))))) -> 0 | DZ184: =IF(DY$3=1,Paramétrages!$E22,IF(DY$3=2,Paramétrages!$G22,IF(DY$3=3,Paramétrages!$I22,IF(DY$3=4,Paramétrages!$K22,IF(DY$3=5,Paramétrages!$M22,0))))) -> 0 | EA184: =IF(EA$3=1,Paramétrages!$D22,IF(EA$3=2,Paramétrages!$F22,IF(EA$3=3,Paramétrages!$H22,IF(EA$3=4,Paramétrages!$J22,IF(EA$3=5,Paramétrages!$L22,0))))) -> 3.25 | EB184: =IF(EA$3=1,Paramétrages!$E22,IF(EA$3=2,Paramétrages!$G22,IF(EA$3=3,Paramétrages!$I22,IF(EA$3=4,Paramétrages!$K22,IF(EA$3=5,Paramétrages!$M22,0))))) -> 3.25 | EC184: =IF(EC$3=1,Paramétrages!$D22,IF(EC$3=2,Paramétrages!$F22,IF(EC$3=3,Paramétrages!$H22,IF(EC$3=4,Paramétrages!$J22,IF(EC$3=5,Paramétrages!$L22,0))))) -> 3.25 | ED184: =IF(EC$3=1,Paramétrages!$E22,IF(EC$3=2,Paramétrages!$G22,IF(EC$3=3,Paramétrages!$I22,IF(EC$3=4,Paramétrages!$K22,IF(EC$3=5,Paramétrages!$M22,0))))) -> 3.25 | EE184: =IF(EE$3=1,Paramétrages!$D22,IF(EE$3=2,Paramétrages!$F22,IF(EE$3=3,Paramétrages!$H22,IF(EE$3=4,Paramétrages!$J22,IF(EE$3=5,Paramétrages!$L22,0))))) -> 3.25 | EF184: =IF(EE$3=1,Paramétrages!$E22,IF(EE$3=2,Paramétrages!$G22,IF(EE$3=3,Paramétrages!$I22,IF(EE$3=4,Paramétrages!$K22,IF(EE$3=5,Paramétrages!$M22,0))))) -> 3.25 | EG184: =IF(EG$3=1,Paramétrages!$D22,IF(EG$3=2,Paramétrages!$F22,IF(EG$3=3,Paramétrages!$H22,IF(EG$3=4,Paramétrages!$J22,IF(EG$3=5,Paramétrages!$L22,0))))) -> 3.25 | EH184: =IF(EG$3=1,Paramétrages!$E22,IF(EG$3=2,Paramétrages!$G22,IF(EG$3=3,Paramétrages!$I22,IF(EG$3=4,Paramétrages!$K22,IF(EG$3=5,Paramétrages!$M22,0))))) -> 3.25 | EI184: =IF(EI$3=1,Paramétrages!$D22,IF(EI$3=2,Paramétrages!$F22,IF(EI$3=3,Paramétrages!$H22,IF(EI$3=4,Paramétrages!$J22,IF(EI$3=5,Paramétrages!$L22,0))))) -> 3.25 | EJ184: =IF(EI$3=1,Paramétrages!$E22,IF(EI$3=2,Paramétrages!$G22,IF(EI$3=3,Paramétrages!$I22,IF(EI$3=4,Paramétrages!$K22,IF(EI$3=5,Paramétrages!$M22,0))))) -> 3.25 | EK184: =IF(EK$3=1,Paramétrages!$D22,IF(EK$3=2,Paramétrages!$F22,IF(EK$3=3,Paramétrages!$H22,IF(EK$3=4,Paramétrages!$J22,IF(EK$3=5,Paramétrages!$L22,0))))) -> 0 | EL184: =IF(EK$3=1,Paramétrages!$E22,IF(EK$3=2,Paramétrages!$G22,IF(EK$3=3,Paramétrages!$I22,IF(EK$3=4,Paramétrages!$K22,IF(EK$3=5,Paramétrages!$M22,0))))) -> 0 | EM184: =IF(EM$3=1,Paramétrages!$D22,IF(EM$3=2,Paramétrages!$F22,IF(EM$3=3,Paramétrages!$H22,IF(EM$3=4,Paramétrages!$J22,IF(EM$3=5,Paramétrages!$L22,0))))) -> 0 | EN184: =IF(EM$3=1,Paramétrages!$E22,IF(EM$3=2,Paramétrages!$G22,IF(EM$3=3,Paramétrages!$I22,IF(EM$3=4,Paramétrages!$K22,IF(EM$3=5,Paramétrages!$M22,0))))) -> 0 | EO184: =IF(EO$3=1,Paramétrages!$D22,IF(EO$3=2,Paramétrages!$F22,IF(EO$3=3,Paramétrages!$H22,IF(EO$3=4,Paramétrages!$J22,IF(EO$3=5,Paramétrages!$L22,0))))) -> 3.25 | EP184: =IF(EO$3=1,Paramétrages!$E22,IF(EO$3=2,Paramétrages!$G22,IF(EO$3=3,Paramétrages!$I22,IF(EO$3=4,Paramétrages!$K22,IF(EO$3=5,Paramétrages!$M22,0))))) -> 3.25 | EQ184: =IF(EQ$3=1,Paramétrages!$D22,IF(EQ$3=2,Paramétrages!$F22,IF(EQ$3=3,Paramétrages!$H22,IF(EQ$3=4,Paramétrages!$J22,IF(EQ$3=5,Paramétrages!$L22,0))))) -> 3.25 | ER184: =IF(EQ$3=1,Paramétrages!$E22,IF(EQ$3=2,Paramétrages!$G22,IF(EQ$3=3,Paramétrages!$I22,IF(EQ$3=4,Paramétrages!$K22,IF(EQ$3=5,Paramétrages!$M22,0))))) -> 3.25 | ES184: =IF(ES$3=1,Paramétrages!$D22,IF(ES$3=2,Paramétrages!$F22,IF(ES$3=3,Paramétrages!$H22,IF(ES$3=4,Paramétrages!$J22,IF(ES$3=5,Paramétrages!$L22,0))))) -> 3.25 | ET184: =IF(ES$3=1,Paramétrages!$E22,IF(ES$3=2,Paramétrages!$G22,IF(ES$3=3,Paramétrages!$I22,IF(ES$3=4,Paramétrages!$K22,IF(ES$3=5,Paramétrages!$M22,0))))) -> 3.25 | EU184: =IF(EU$3=1,Paramétrages!$D22,IF(EU$3=2,Paramétrages!$F22,IF(EU$3=3,Paramétrages!$H22,IF(EU$3=4,Paramétrages!$J22,IF(EU$3=5,Paramétrages!$L22,0))))) -> 3.25 | EV184: =IF(EU$3=1,Paramétrages!$E22,IF(EU$3=2,Paramétrages!$G22,IF(EU$3=3,Paramétrages!$I22,IF(EU$3=4,Paramétrages!$K22,IF(EU$3=5,Paramétrages!$M22,0))))) -> 3.25 | EW184: =IF(EW$3=1,Paramétrages!$D22,IF(EW$3=2,Paramétrages!$F22,IF(EW$3=3,Paramétrages!$H22,IF(EW$3=4,Paramétrages!$J22,IF(EW$3=5,Paramétrages!$L22,0))))) -> 3.25 | EX184: =IF(EW$3=1,Paramétrages!$E22,IF(EW$3=2,Paramétrages!$G22,IF(EW$3=3,Paramétrages!$I22,IF(EW$3=4,Paramétrages!$K22,IF(EW$3=5,Paramétrages!$M22,0))))) -> 3.25 | EY184: =IF(EY$3=1,Paramétrages!$D22,IF(EY$3=2,Paramétrages!$F22,IF(EY$3=3,Paramétrages!$H22,IF(EY$3=4,Paramétrages!$J22,IF(EY$3=5,Paramétrages!$L22,0))))) -> 0 | EZ184: =IF(EY$3=1,Paramétrages!$E22,IF(EY$3=2,Paramétrages!$G22,IF(EY$3=3,Paramétrages!$I22,IF(EY$3=4,Paramétrages!$K22,IF(EY$3=5,Paramétrages!$M22,0))))) -> 0 | FA184: =IF(FA$3=1,Paramétrages!$D22,IF(FA$3=2,Paramétrages!$F22,IF(FA$3=3,Paramétrages!$H22,IF(FA$3=4,Paramétrages!$J22,IF(FA$3=5,Paramétrages!$L22,0))))) -> 0 | FB184: =IF(FA$3=1,Paramétrages!$E22,IF(FA$3=2,Paramétrages!$G22,IF(FA$3=3,Paramétrages!$I22,IF(FA$3=4,Paramétrages!$K22,IF(FA$3=5,Paramétrages!$M22,0))))) -> 0 | FC184: =IF(FC$3=1,Paramétrages!$D22,IF(FC$3=2,Paramétrages!$F22,IF(FC$3=3,Paramétrages!$H22,IF(FC$3=4,Paramétrages!$J22,IF(FC$3=5,Paramétrages!$L22,0))))) -> 3.25 | FD184: =IF(FC$3=1,Paramétrages!$E22,IF(FC$3=2,Paramétrages!$G22,IF(FC$3=3,Paramétrages!$I22,IF(FC$3=4,Paramétrages!$K22,IF(FC$3=5,Paramétrages!$M22,0))))) -> 3.25 | FE184: =IF(FE$3=1,Paramétrages!$D22,IF(FE$3=2,Paramétrages!$F22,IF(FE$3=3,Paramétrages!$H22,IF(FE$3=4,Paramétrages!$J22,IF(FE$3=5,Paramétrages!$L22,0))))) -> 3.25 | FF184: =IF(FE$3=1,Paramétrages!$E22,IF(FE$3=2,Paramétrages!$G22,IF(FE$3=3,Paramétrages!$I22,IF(FE$3=4,Paramétrages!$K22,IF(FE$3=5,Paramétrages!$M22,0))))) -> 3.25 | FG184: =IF(FG$3=1,Paramétrages!$D22,IF(FG$3=2,Paramétrages!$F22,IF(FG$3=3,Paramétrages!$H22,IF(FG$3=4,Paramétrages!$J22,IF(FG$3=5,Paramétrages!$L22,0))))) -> 3.25 | FH184: =IF(FG$3=1,Paramétrages!$E22,IF(FG$3=2,Paramétrages!$G22,IF(FG$3=3,Paramétrages!$I22,IF(FG$3=4,Paramétrages!$K22,IF(FG$3=5,Paramétrages!$M22,0))))) -> 3.25 | FI184: =IF(FI$3=1,Paramétrages!$D22,IF(FI$3=2,Paramétrages!$F22,IF(FI$3=3,Paramétrages!$H22,IF(FI$3=4,Paramétrages!$J22,IF(FI$3=5,Paramétrages!$L22,0))))) -> 3.25 | FJ184: =IF(FI$3=1,Paramétrages!$E22,IF(FI$3=2,Paramétrages!$G22,IF(FI$3=3,Paramétrages!$I22,IF(FI$3=4,Paramétrages!$K22,IF(FI$3=5,Paramétrages!$M22,0))))) -> 3.25 | FK184: =IF(FK$3=1,Paramétrages!$D22,IF(FK$3=2,Paramétrages!$F22,IF(FK$3=3,Paramétrages!$H22,IF(FK$3=4,Paramétrages!$J22,IF(FK$3=5,Paramétrages!$L22,0))))) -> 3.25 | FL184: =IF(FK$3=1,Paramétrages!$E22,IF(FK$3=2,Paramétrages!$G22,IF(FK$3=3,Paramétrages!$I22,IF(FK$3=4,Paramétrages!$K22,IF(FK$3=5,Paramétrages!$M22,0))))) -> 3.25 | FM184: =IF(FM$3=1,Paramétrages!$D22,IF(FM$3=2,Paramétrages!$F22,IF(FM$3=3,Paramétrages!$H22,IF(FM$3=4,Paramétrages!$J22,IF(FM$3=5,Paramétrages!$L22,0))))) -> 0 | FN184: =IF(FM$3=1,Paramétrages!$E22,IF(FM$3=2,Paramétrages!$G22,IF(FM$3=3,Paramétrages!$I22,IF(FM$3=4,Paramétrages!$K22,IF(FM$3=5,Paramétrages!$M22,0))))) -> 0 | FO184: =IF(FO$3=1,Paramétrages!$D22,IF(FO$3=2,Paramétrages!$F22,IF(FO$3=3,Paramétrages!$H22,IF(FO$3=4,Paramétrages!$J22,IF(FO$3=5,Paramétrages!$L22,0))))) -> 0 | FP184: =IF(FO$3=1,Paramétrages!$E22,IF(FO$3=2,Paramétrages!$G22,IF(FO$3=3,Paramétrages!$I22,IF(FO$3=4,Paramétrages!$K22,IF(FO$3=5,Paramétrages!$M22,0))))) -> 0 | FQ184: =IF(FQ$3=1,Paramétrages!$D22,IF(FQ$3=2,Paramétrages!$F22,IF(FQ$3=3,Paramétrages!$H22,IF(FQ$3=4,Paramétrages!$J22,IF(FQ$3=5,Paramétrages!$L22,0))))) -> 3.25 | FR184: =IF(FQ$3=1,Paramétrages!$E22,IF(FQ$3=2,Paramétrages!$G22,IF(FQ$3=3,Paramétrages!$I22,IF(FQ$3=4,Paramétrages!$K22,IF(FQ$3=5,Paramétrages!$M22,0))))) -> 3.25 | FS184: =IF(FS$3=1,Paramétrages!$D22,IF(FS$3=2,Paramétrages!$F22,IF(FS$3=3,Paramétrages!$H22,IF(FS$3=4,Paramétrages!$J22,IF(FS$3=5,Paramétrages!$L22,0))))) -> 3.25 | FT184: =IF(FS$3=1,Paramétrages!$E22,IF(FS$3=2,Paramétrages!$G22,IF(FS$3=3,Paramétrages!$I22,IF(FS$3=4,Paramétrages!$K22,IF(FS$3=5,Paramétrages!$M22,0))))) -> 3.25 | FU184: =IF(FU$3=1,Paramétrages!$D22,IF(FU$3=2,Paramétrages!$F22,IF(FU$3=3,Paramétrages!$H22,IF(FU$3=4,Paramétrages!$J22,IF(FU$3=5,Paramétrages!$L22,0))))) -> 3.25 | FV184: =IF(FU$3=1,Paramétrages!$E22,IF(FU$3=2,Paramétrages!$G22,IF(FU$3=3,Paramétrages!$I22,IF(FU$3=4,Paramétrages!$K22,IF(FU$3=5,Paramétrages!$M22,0))))) -> 3.25 | FW184: =IF(FW$3=1,Paramétrages!$D22,IF(FW$3=2,Paramétrages!$F22,IF(FW$3=3,Paramétrages!$H22,IF(FW$3=4,Paramétrages!$J22,IF(FW$3=5,Paramétrages!$L22,0))))) -> 3.25 | FX184: =IF(FW$3=1,Paramétrages!$E22,IF(FW$3=2,Paramétrages!$G22,IF(FW$3=3,Paramétrages!$I22,IF(FW$3=4,Paramétrages!$K22,IF(FW$3=5,Paramétrages!$M22,0))))) -> 3.25 | FY184: =IF(FY$3=1,Paramétrages!$D22,IF(FY$3=2,Paramétrages!$F22,IF(FY$3=3,Paramétrages!$H22,IF(FY$3=4,Paramétrages!$J22,IF(FY$3=5,Paramétrages!$L22,0))))) -> 3.25 | FZ184: =IF(FY$3=1,Paramétrages!$E22,IF(FY$3=2,Paramétrages!$G22,IF(FY$3=3,Paramétrages!$I22,IF(FY$3=4,Paramétrages!$K22,IF(FY$3=5,Paramétrages!$M22,0))))) -> 3.25 | GA184: =IF(GA$3=1,Paramétrages!$D22,IF(GA$3=2,Paramétrages!$F22,IF(GA$3=3,Paramétrages!$H22,IF(GA$3=4,Paramétrages!$J22,IF(GA$3=5,Paramétrages!$L22,0))))) -> 0 | GB184: =IF(GA$3=1,Paramétrages!$E22,IF(GA$3=2,Paramétrages!$G22,IF(GA$3=3,Paramétrages!$I22,IF(GA$3=4,Paramétrages!$K22,IF(GA$3=5,Paramétrages!$M22,0))))) -> 0 | GC184: =IF(GC$3=1,Paramétrages!$D22,IF(GC$3=2,Paramétrages!$F22,IF(GC$3=3,Paramétrages!$H22,IF(GC$3=4,Paramétrages!$J22,IF(GC$3=5,Paramétrages!$L22,0))))) -> 0 | GD184: =IF(GC$3=1,Paramétrages!$E22,IF(GC$3=2,Paramétrages!$G22,IF(GC$3=3,Paramétrages!$I22,IF(GC$3=4,Paramétrages!$K22,IF(GC$3=5,Paramétrages!$M22,0))))) -> 0 | GE184: =IF(GE$3=1,Paramétrages!$D22,IF(GE$3=2,Paramétrages!$F22,IF(GE$3=3,Paramétrages!$H22,IF(GE$3=4,Paramétrages!$J22,IF(GE$3=5,Paramétrages!$L22,0))))) -> 3.25 | GF184: =IF(GE$3=1,Paramétrages!$E22,IF(GE$3=2,Paramétrages!$G22,IF(GE$3=3,Paramétrages!$I22,IF(GE$3=4,Paramétrages!$K22,IF(GE$3=5,Paramétrages!$M22,0))))) -> 3.25 | GK184: =D186 -> 0 | GL184: =COUNTIF(E184:BN184,">0")/2 -> 23 | GM184: =IF(GL184>0,GL185/GL184," ") -> 0.5652173913 | GN184: =IF($DS$2=$GI$3,COUNTIF($BO184:$DX184,">0")/2,COUNTIF($BO184:$DX184,">0")/2) -> 22 | GO184: =IF(GN184>0,GN185/GN184," ") -> 0.2272727273 | GP184: =IF($DS$2=$GI$3,COUNTIF($DY184:$GF184,">0")/2,COUNTIF($DY184:$GF184,">0")/2) -> 21 | GQ184: =IF(GP184>0,GP185/GP184," ") -> 0.02380952381 | GR184: =COUNTIF(E184:BN184,"ad")/2 -> 0 | GT184: =IF($DS$2=$GI$3,COUNTIF($BO84:$DX184,"ad")/2,COUNTIF($BO84:$DX184,"ad")/2) -> 0 | GV184: =IF($DS$2=$GI$3,COUNTIF($DY184:$GF184,"ad")/2,COUNTIF($DY184:$GF184,"ad")/2) -> 0 | HE184: =Paramétrages!$B$52 -> NOM | HF184: =COUNTIF(E214:GF215,"A2")/2 -> 0 | HG184: =COUNTIF(F214:GG215,"cp")/2 -> 0 | HH184: =COUNTIF(G214:GH215,"css")/2 -> 0 | HI184: =COUNTIF(H214:GI215,"ma")/2 -> 0 | HJ184: =COUNTIF(I214:GJ215,"at")/2 -> 0 | HK184: =COUNTIF(J214:GK215,"aj")/2 -> 0 | HL184: =COUNTIF(K214:GL215,"ai")/2 -> 0 | HM184: =COUNTIF(L214:GM215,"ad")/2 -> 0 | HN184: =COUNTIF(M214:GN215,"st")/2 -> 0 | HO184: =COUNTIF(N214:GO215,"di")/2 -> 0
B185: 2 | BW185: R | BY185: R | CK185: 1 | CM185: 1 | CO185: 1 | CQ185: 1 | CS185: 1 | CU185: 1 | CW185: 1 | CY185: 1 | DA185: 1 | DC185: 1 | DE185: 1 | DG185: 1 | GH185: =COUNTIF(E185:GF185,"R") -> 2 | GL185: =(SUM(E186:BP186)+COUNTIF(E186:BP186,"ad"))/2 -> 13 | GN185: =IF($GI$3=$DS$2,(SUM(BQ186:DT186)+COUNTIF(BQ186:DT186,"ad"))/2, (SUM(BQ186:DX186)+COUNTIF(BQ186:DX186,"ad"))/2) -> 5 | GP185: =IF($GI$3=$DS$2,(SUM(DU186:GF186)+COUNTIF(DU186:GF186,"ad"))/2, (SUM(DY186:GF186)+COUNTIF(DY186:GF186,"ad"))/2) -> 0.5 | HE185: =Paramétrages!$B$55 -> NOM | HF185: =COUNTIF(E217:GF218,"A2")/2 -> 0 | HG185: =COUNTIF(F217:GG218,"cp")/2 -> 0 | HH185: =COUNTIF(G217:GH218,"css")/2 -> 0 | HI185: =COUNTIF(H217:GI218,"ma")/2 -> 0 | HJ185: =COUNTIF(I217:GJ218,"at")/2 -> 0 | HK185: =COUNTIF(J217:GK218,"aj")/2 -> 0 | HL185: =COUNTIF(K217:GL218,"ai")/2 -> 0 | HM185: =COUNTIF(L217:GM218,"ad")/2 -> 0 | HN185: =COUNTIF(M217:GN218,"st")/2 -> 0 | HO185: =COUNTIF(N217:GO218,"di")/2 -> 0
A186: =Paramétrages!B22 -> NOM | B186: 3 | F186: 1 | G186: 1 | H186: 1 | I186: 1 | J186: 1 | K186: 1 | M186: 1 | X186: 1 | Y186: 1 | Z186: 1 | AG186: 1 | AH186: 1 | AI186: 1 | AJ186: 1 | AK186: 1 | AL186: 1 | AU186: 1 | AV186: 1 | AW186: 1 | AX186: 1 | AY186: 1 | BI186: 1 | BJ186: 1 | BK186: 1 | BL186: 1 | BO186: 1 | DM186: 1 | DN186: 1 | DO186: 1 | DP186: 1 | DQ186: 1 | DR186: 1 | DS186: 1 | DT186: 1 | DU186: 1 | DV186: 1 | EE186: 1 | GO186: =IF(GN186>0,GN187/GN186," ") ->  | HE186: =Paramétrages!$B$58 -> NOM | HF186: =COUNTIF(E220:GF221,"A2")/2 -> 0 | HG186: =COUNTIF(F220:GG221,"cp")/2 -> 0 | HH186: =COUNTIF(G220:GH221,"css")/2 -> 0 | HI186: =COUNTIF(H220:GI221,"ma")/2 -> 0 | HJ186: =COUNTIF(I220:GJ221,"at")/2 -> 0 | HK186: =COUNTIF(J220:GK221,"aj")/2 -> 0 | HL186: =COUNTIF(K220:GL221,"ai")/2 -> 0 | HM186: =COUNTIF(L220:GM221,"ad")/2 -> 0 | HN186: =COUNTIF(M220:GN221,"st")/2 -> 0 | HO186: =COUNTIF(N220:GO221,"di")/2 -> 0
B187: 1 | C187: 7 | E187: =IF(E$3=1,Paramétrages!$D25,IF(E$3=2,Paramétrages!$F25,IF(E$3=3,Paramétrages!$H25,IF(E$3=4,Paramétrages!$J25,IF(E$3=5,Paramétrages!$L25,0))))) -> 3.25 | F187: =IF(E$3=1,Paramétrages!$E25,IF(E$3=2,Paramétrages!$G25,IF(E$3=3,Paramétrages!$I25,IF(E$3=4,Paramétrages!$K25,IF(E$3=5,Paramétrages!$M25,0))))) -> SAESAT | G187: =IF(G$3=1,Paramétrages!$D25,IF(G$3=2,Paramétrages!$F25,IF(G$3=3,Paramétrages!$H25,IF(G$3=4,Paramétrages!$J25,IF(G$3=5,Paramétrages!$L25,0))))) -> 3.25 | H187: =IF(G$3=1,Paramétrages!$E25,IF(G$3=2,Paramétrages!$G25,IF(G$3=3,Paramétrages!$I25,IF(G$3=4,Paramétrages!$K25,IF(G$3=5,Paramétrages!$M25,0))))) -> 3.25 | I187: =IF(I$3=1,Paramétrages!$D25,IF(I$3=2,Paramétrages!$F25,IF(I$3=3,Paramétrages!$H25,IF(I$3=4,Paramétrages!$J25,IF(I$3=5,Paramétrages!$L25,0))))) -> SAESAT | J187: =IF(I$3=1,Paramétrages!$E25,IF(I$3=2,Paramétrages!$G25,IF(I$3=3,Paramétrages!$I25,IF(I$3=4,Paramétrages!$K25,IF(I$3=5,Paramétrages!$M25,0))))) -> SAESAT | K187: =IF(K$3=1,Paramétrages!$D25,IF(K$3=2,Paramétrages!$F25,IF(K$3=3,Paramétrages!$H25,IF(K$3=4,Paramétrages!$J25,IF(K$3=5,Paramétrages!$L25,0))))) -> 3.25 | L187: =IF(K$3=1,Paramétrages!$E25,IF(K$3=2,Paramétrages!$G25,IF(K$3=3,Paramétrages!$I25,IF(K$3=4,Paramétrages!$K25,IF(K$3=5,Paramétrages!$M25,0))))) -> SAESAT | M187: =IF(M$3=1,Paramétrages!$D25,IF(M$3=2,Paramétrages!$F25,IF(M$3=3,Paramétrages!$H25,IF(M$3=4,Paramétrages!$J25,IF(M$3=5,Paramétrages!$L25,0))))) -> SAESAT | N187: =IF(M$3=1,Paramétrages!$E25,IF(M$3=2,Paramétrages!$G25,IF(M$3=3,Paramétrages!$I25,IF(M$3=4,Paramétrages!$K25,IF(M$3=5,Paramétrages!$M25,0))))) -> SAESAT | O187: =IF(O$3=1,Paramétrages!$D25,IF(O$3=2,Paramétrages!$F25,IF(O$3=3,Paramétrages!$H25,IF(O$3=4,Paramétrages!$J25,IF(O$3=5,Paramétrages!$L25,0))))) -> 0 | P187: =IF(O$3=1,Paramétrages!$E25,IF(O$3=2,Paramétrages!$G25,IF(O$3=3,Paramétrages!$I25,IF(O$3=4,Paramétrages!$K25,IF(O$3=5,Paramétrages!$M25,0))))) -> 0 | Q187: =IF(Q$3=1,Paramétrages!$D25,IF(Q$3=2,Paramétrages!$F25,IF(Q$3=3,Paramétrages!$H25,IF(Q$3=4,Paramétrages!$J25,IF(Q$3=5,Paramétrages!$L25,0))))) -> 0 | R187: =IF(Q$3=1,Paramétrages!$E25,IF(Q$3=2,Paramétrages!$G25,IF(Q$3=3,Paramétrages!$I25,IF(Q$3=4,Paramétrages!$K25,IF(Q$3=5,Paramétrages!$M25,0))))) -> 0 | S187: =IF(S$3=1,Paramétrages!$D25,IF(S$3=2,Paramétrages!$F25,IF(S$3=3,Paramétrages!$H25,IF(S$3=4,Paramétrages!$J25,IF(S$3=5,Paramétrages!$L25,0))))) -> 3.25 | T187: =IF(S$3=1,Paramétrages!$E25,IF(S$3=2,Paramétrages!$G25,IF(S$3=3,Paramétrages!$I25,IF(S$3=4,Paramétrages!$K25,IF(S$3=5,Paramétrages!$M25,0))))) -> SAESAT | U187: =IF(U$3=1,Paramétrages!$D25,IF(U$3=2,Paramétrages!$F25,IF(U$3=3,Paramétrages!$H25,IF(U$3=4,Paramétrages!$J25,IF(U$3=5,Paramétrages!$L25,0))))) -> 3.25 | V187: =IF(U$3=1,Paramétrages!$E25,IF(U$3=2,Paramétrages!$G25,IF(U$3=3,Paramétrages!$I25,IF(U$3=4,Paramétrages!$K25,IF(U$3=5,Paramétrages!$M25,0))))) -> 3.25 | W187: =IF(W$3=1,Paramétrages!$D25,IF(W$3=2,Paramétrages!$F25,IF(W$3=3,Paramétrages!$H25,IF(W$3=4,Paramétrages!$J25,IF(W$3=5,Paramétrages!$L25,0))))) -> SAESAT | X187: =IF(W$3=1,Paramétrages!$E25,IF(W$3=2,Paramétrages!$G25,IF(W$3=3,Paramétrages!$I25,IF(W$3=4,Paramétrages!$K25,IF(W$3=5,Paramétrages!$M25,0))))) -> SAESAT | Y187: =IF(Y$3=1,Paramétrages!$D25,IF(Y$3=2,Paramétrages!$F25,IF(Y$3=3,Paramétrages!$H25,IF(Y$3=4,Paramétrages!$J25,IF(Y$3=5,Paramétrages!$L25,0))))) -> 3.25 | Z187: =IF(Y$3=1,Paramétrages!$E25,IF(Y$3=2,Paramétrages!$G25,IF(Y$3=3,Paramétrages!$I25,IF(Y$3=4,Paramétrages!$K25,IF(Y$3=5,Paramétrages!$M25,0))))) -> SAESAT | AA187: =IF(AA$3=1,Paramétrages!$D25,IF(AA$3=2,Paramétrages!$F25,IF(AA$3=3,Paramétrages!$H25,IF(AA$3=4,Paramétrages!$J25,IF(AA$3=5,Paramétrages!$L25,0))))) -> SAESAT | AB187: =IF(AA$3=1,Paramétrages!$E25,IF(AA$3=2,Paramétrages!$G25,IF(AA$3=3,Paramétrages!$I25,IF(AA$3=4,Paramétrages!$K25,IF(AA$3=5,Paramétrages!$M25,0))))) -> SAESAT | AC187: =IF(AC$3=1,Paramétrages!$D25,IF(AC$3=2,Paramétrages!$F25,IF(AC$3=3,Paramétrages!$H25,IF(AC$3=4,Paramétrages!$J25,IF(AC$3=5,Paramétrages!$L25,0))))) -> 0 | AD187: =IF(AC$3=1,Paramétrages!$E25,IF(AC$3=2,Paramétrages!$G25,IF(AC$3=3,Paramétrages!$I25,IF(AC$3=4,Paramétrages!$K25,IF(AC$3=5,Paramétrages!$M25,0))))) -> 0 | AE187: =IF(AE$3=1,Paramétrages!$D25,IF(AE$3=2,Paramétrages!$F25,IF(AE$3=3,Paramétrages!$H25,IF(AE$3=4,Paramétrages!$J25,IF(AE$3=5,Paramétrages!$L25,0))))) -> 0 | AF187: =IF(AE$3=1,Paramétrages!$E25,IF(AE$3=2,Paramétrages!$G25,IF(AE$3=3,Paramétrages!$I25,IF(AE$3=4,Paramétrages!$K25,IF(AE$3=5,Paramétrages!$M25,0))))) -> 0 | AG187: =IF(AG$3=1,Paramétrages!$D25,IF(AG$3=2,Paramétrages!$F25,IF(AG$3=3,Paramétrages!$H25,IF(AG$3=4,Paramétrages!$J25,IF(AG$3=5,Paramétrages!$L25,0))))) -> 3.25 | AH187: =IF(AG$3=1,Paramétrages!$E25,IF(AG$3=2,Paramétrages!$G25,IF(AG$3=3,Paramétrages!$I25,IF(AG$3=4,Paramétrages!$K25,IF(AG$3=5,Paramétrages!$M25,0))))) -> SAESAT | AI187: =IF(AI$3=1,Paramétrages!$D25,IF(AI$3=2,Paramétrages!$F25,IF(AI$3=3,Paramétrages!$H25,IF(AI$3=4,Paramétrages!$J25,IF(AI$3=5,Paramétrages!$L25,0))))) -> 3.25 | AJ187: =IF(AI$3=1,Paramétrages!$E25,IF(AI$3=2,Paramétrages!$G25,IF(AI$3=3,Paramétrages!$I25,IF(AI$3=4,Paramétrages!$K25,IF(AI$3=5,Paramétrages!$M25,0))))) -> 3.25 | AK187: =IF(AK$3=1,Paramétrages!$D25,IF(AK$3=2,Paramétrages!$F25,IF(AK$3=3,Paramétrages!$H25,IF(AK$3=4,Paramétrages!$J25,IF(AK$3=5,Paramétrages!$L25,0))))) -> SAESAT | AL187: =IF(AK$3=1,Paramétrages!$E25,IF(AK$3=2,Paramétrages!$G25,IF(AK$3=3,Paramétrages!$I25,IF(AK$3=4,Paramétrages!$K25,IF(AK$3=5,Paramétrages!$M25,0))))) -> SAESAT | AM187: =IF(AM$3=1,Paramétrages!$D25,IF(AM$3=2,Paramétrages!$F25,IF(AM$3=3,Paramétrages!$H25,IF(AM$3=4,Paramétrages!$J25,IF(AM$3=5,Paramétrages!$L25,0))))) -> 3.25 | AN187: =IF(AM$3=1,Paramétrages!$E25,IF(AM$3=2,Paramétrages!$G25,IF(AM$3=3,Paramétrages!$I25,IF(AM$3=4,Paramétrages!$K25,IF(AM$3=5,Paramétrages!$M25,0))))) -> SAESAT | AO187: =IF(AO$3=1,Paramétrages!$D25,IF(AO$3=2,Paramétrages!$F25,IF(AO$3=3,Paramétrages!$H25,IF(AO$3=4,Paramétrages!$J25,IF(AO$3=5,Paramétrages!$L25,0))))) -> SAESAT | AP187: =IF(AO$3=1,Paramétrages!$E25,IF(AO$3=2,Paramétrages!$G25,IF(AO$3=3,Paramétrages!$I25,IF(AO$3=4,Paramétrages!$K25,IF(AO$3=5,Paramétrages!$M25,0))))) -> SAESAT | AQ187: =IF(AQ$3=1,Paramétrages!$D25,IF(AQ$3=2,Paramétrages!$F25,IF(AQ$3=3,Paramétrages!$H25,IF(AQ$3=4,Paramétrages!$J25,IF(AQ$3=5,Paramétrages!$L25,0))))) -> 0 | AR187: =IF(AQ$3=1,Paramétrages!$E25,IF(AQ$3=2,Paramétrages!$G25,IF(AQ$3=3,Paramétrages!$I25,IF(AQ$3=4,Paramétrages!$K25,IF(AQ$3=5,Paramétrages!$M25,0))))) -> 0 | AS187: =IF(AS$3=1,Paramétrages!$D25,IF(AS$3=2,Paramétrages!$F25,IF(AS$3=3,Paramétrages!$H25,IF(AS$3=4,Paramétrages!$J25,IF(AS$3=5,Paramétrages!$L25,0))))) -> 0 | AT187: =IF(AS$3=1,Paramétrages!$E25,IF(AS$3=2,Paramétrages!$G25,IF(AS$3=3,Paramétrages!$I25,IF(AS$3=4,Paramétrages!$K25,IF(AS$3=5,Paramétrages!$M25,0))))) -> 0 | AU187: =IF(AU$3=1,Paramétrages!$D25,IF(AU$3=2,Paramétrages!$F25,IF(AU$3=3,Paramétrages!$H25,IF(AU$3=4,Paramétrages!$J25,IF(AU$3=5,Paramétrages!$L25,0))))) -> 3.25 | AV187: =IF(AU$3=1,Paramétrages!$E25,IF(AU$3=2,Paramétrages!$G25,IF(AU$3=3,Paramétrages!$I25,IF(AU$3=4,Paramétrages!$K25,IF(AU$3=5,Paramétrages!$M25,0))))) -> SAESAT | AW187: =IF(AW$3=1,Paramétrages!$D25,IF(AW$3=2,Paramétrages!$F25,IF(AW$3=3,Paramétrages!$H25,IF(AW$3=4,Paramétrages!$J25,IF(AW$3=5,Paramétrages!$L25,0))))) -> 3.25 | AX187: =IF(AW$3=1,Paramétrages!$E25,IF(AW$3=2,Paramétrages!$G25,IF(AW$3=3,Paramétrages!$I25,IF(AW$3=4,Paramétrages!$K25,IF(AW$3=5,Paramétrages!$M25,0))))) -> 3.25 | AY187: =IF(AY$3=1,Paramétrages!$D25,IF(AY$3=2,Paramétrages!$F25,IF(AY$3=3,Paramétrages!$H25,IF(AY$3=4,Paramétrages!$J25,IF(AY$3=5,Paramétrages!$L25,0))))) -> SAESAT | AZ187: =IF(AY$3=1,Paramétrages!$E25,IF(AY$3=2,Paramétrages!$G25,IF(AY$3=3,Paramétrages!$I25,IF(AY$3=4,Paramétrages!$K25,IF(AY$3=5,Paramétrages!$M25,0))))) -> SAESAT | BA187: =IF(BA$3=1,Paramétrages!$D25,IF(BA$3=2,Paramétrages!$F25,IF(BA$3=3,Paramétrages!$H25,IF(BA$3=4,Paramétrages!$J25,IF(BA$3=5,Paramétrages!$L25,0))))) -> 3.25 | BB187: =IF(BA$3=1,Paramétrages!$E25,IF(BA$3=2,Paramétrages!$G25,IF(BA$3=3,Paramétrages!$I25,IF(BA$3=4,Paramétrages!$K25,IF(BA$3=5,Paramétrages!$M25,0))))) -> SAESAT | BC187: =IF(BC$3=1,Paramétrages!$D25,IF(BC$3=2,Paramétrages!$F25,IF(BC$3=3,Paramétrages!$H25,IF(BC$3=4,Paramétrages!$J25,IF(BC$3=5,Paramétrages!$L25,0))))) -> SAESAT | BD187: =IF(BC$3=1,Paramétrages!$E25,IF(BC$3=2,Paramétrages!$G25,IF(BC$3=3,Paramétrages!$I25,IF(BC$3=4,Paramétrages!$K25,IF(BC$3=5,Paramétrages!$M25,0))))) -> SAESAT | BE187: =IF(BE$3=1,Paramétrages!$D25,IF(BE$3=2,Paramétrages!$F25,IF(BE$3=3,Paramétrages!$H25,IF(BE$3=4,Paramétrages!$J25,IF(BE$3=5,Paramétrages!$L25,0))))) -> 0 | BF187: =IF(BE$3=1,Paramétrages!$E25,IF(BE$3=2,Paramétrages!$G25,IF(BE$3=3,Paramétrages!$I25,IF(BE$3=4,Paramétrages!$K25,IF(BE$3=5,Paramétrages!$M25,0))))) -> 0 | BG187: =IF(BG$3=1,Paramétrages!$D25,IF(BG$3=2,Paramétrages!$F25,IF(BG$3=3,Paramétrages!$H25,IF(BG$3=4,Paramétrages!$J25,IF(BG$3=5,Paramétrages!$L25,0))))) -> 0 | BH187: =IF(BG$3=1,Paramétrages!$E25,IF(BG$3=2,Paramétrages!$G25,IF(BG$3=3,Paramétrages!$I25,IF(BG$3=4,Paramétrages!$K25,IF(BG$3=5,Paramétrages!$M25,0))))) -> 0 | BI187: =IF(BI$3=1,Paramétrages!$D25,IF(BI$3=2,Paramétrages!$F25,IF(BI$3=3,Paramétrages!$H25,IF(BI$3=4,Paramétrages!$J25,IF(BI$3=5,Paramétrages!$L25,0))))) -> 3.25 | BJ187: =IF(BI$3=1,Paramétrages!$E25,IF(BI$3=2,Paramétrages!$G25,IF(BI$3=3,Paramétrages!$I25,IF(BI$3=4,Paramétrages!$K25,IF(BI$3=5,Paramétrages!$M25,0))))) -> SAESAT | BK187: =IF(BK$3=1,Paramétrages!$D25,IF(BK$3=2,Paramétrages!$F25,IF(BK$3=3,Paramétrages!$H25,IF(BK$3=4,Paramétrages!$J25,IF(BK$3=5,Paramétrages!$L25,0))))) -> 3.25 | BL187: =IF(BK$3=1,Paramétrages!$E25,IF(BK$3=2,Paramétrages!$G25,IF(BK$3=3,Paramétrages!$I25,IF(BK$3=4,Paramétrages!$K25,IF(BK$3=5,Paramétrages!$M25,0))))) -> 3.25 | BM187: =IF(BM$3=1,Paramétrages!$D25,IF(BM$3=2,Paramétrages!$F25,IF(BM$3=3,Paramétrages!$H25,IF(BM$3=4,Paramétrages!$J25,IF(BM$3=5,Paramétrages!$L25,0))))) -> SAESAT | BN187: =IF(BM$3=1,Paramétrages!$E25,IF(BM$3=2,Paramétrages!$G25,IF(BM$3=3,Paramétrages!$I25,IF(BM$3=4,Paramétrages!$K25,IF(BM$3=5,Paramétrages!$M25,0))))) -> SAESAT | BO187: =IF(BO$3=1,Paramétrages!$D25,IF(BO$3=2,Paramétrages!$F25,IF(BO$3=3,Paramétrages!$H25,IF(BO$3=4,Paramétrages!$J25,IF(BO$3=5,Paramétrages!$L25,0))))) -> 3.25 | BP187: =IF(BO$3=1,Paramétrages!$E25,IF(BO$3=2,Paramétrages!$G25,IF(BO$3=3,Paramétrages!$I25,IF(BO$3=4,Paramétrages!$K25,IF(BO$3=5,Paramétrages!$M25,0))))) -> SAESAT | BQ187: =IF(BQ$3=1,Paramétrages!$D25,IF(BQ$3=2,Paramétrages!$F25,IF(BQ$3=3,Paramétrages!$H25,IF(BQ$3=4,Paramétrages!$J25,IF(BQ$3=5,Paramétrages!$L25,0))))) -> SAESAT | BR187: =IF(BQ$3=1,Paramétrages!$E25,IF(BQ$3=2,Paramétrages!$G25,IF(BQ$3=3,Paramétrages!$I25,IF(BQ$3=4,Paramétrages!$K25,IF(BQ$3=5,Paramétrages!$M25,0))))) -> SAESAT | BS187: =IF(BS$3=1,Paramétrages!$D25,IF(BS$3=2,Paramétrages!$F25,IF(BS$3=3,Paramétrages!$H25,IF(BS$3=4,Paramétrages!$J25,IF(BS$3=5,Paramétrages!$L25,0))))) -> 0 | BT187: =IF(BS$3=1,Paramétrages!$E25,IF(BS$3=2,Paramétrages!$G25,IF(BS$3=3,Paramétrages!$I25,IF(BS$3=4,Paramétrages!$K25,IF(BS$3=5,Paramétrages!$M25,0))))) -> 0 | BU187: =IF(BU$3=1,Paramétrages!$D25,IF(BU$3=2,Paramétrages!$F25,IF(BU$3=3,Paramétrages!$H25,IF(BU$3=4,Paramétrages!$J25,IF(BU$3=5,Paramétrages!$L25,0))))) -> 0 | BV187: =IF(BU$3=1,Paramétrages!$E25,IF(BU$3=2,Paramétrages!$G25,IF(BU$3=3,Paramétrages!$I25,IF(BU$3=4,Paramétrages!$K25,IF(BU$3=5,Paramétrages!$M25,0))))) -> 0 | BW187: =IF(BW$3=1,Paramétrages!$D25,IF(BW$3=2,Paramétrages!$F25,IF(BW$3=3,Paramétrages!$H25,IF(BW$3=4,Paramétrages!$J25,IF(BW$3=5,Paramétrages!$L25,0))))) -> 3.25 | BX187: =IF(BW$3=1,Paramétrages!$E25,IF(BW$3=2,Paramétrages!$G25,IF(BW$3=3,Paramétrages!$I25,IF(BW$3=4,Paramétrages!$K25,IF(BW$3=5,Paramétrages!$M25,0))))) -> SAESAT | BY187: =IF(BY$3=1,Paramétrages!$D25,IF(BY$3=2,Paramétrages!$F25,IF(BY$3=3,Paramétrages!$H25,IF(BY$3=4,Paramétrages!$J25,IF(BY$3=5,Paramétrages!$L25,0))))) -> 3.25 | BZ187: =IF(BY$3=1,Paramétrages!$E25,IF(BY$3=2,Paramétrages!$G25,IF(BY$3=3,Paramétrages!$I25,IF(BY$3=4,Paramétrages!$K25,IF(BY$3=5,Paramétrages!$M25,0))))) -> 3.25 | CA187: =IF(CA$3=1,Paramétrages!$D25,IF(CA$3=2,Paramétrages!$F25,IF(CA$3=3,Paramétrages!$H25,IF(CA$3=4,Paramétrages!$J25,IF(CA$3=5,Paramétrages!$L25,0))))) -> SAESAT | CB187: =IF(CA$3=1,Paramétrages!$E25,IF(CA$3=2,Paramétrages!$G25,IF(CA$3=3,Paramétrages!$I25,IF(CA$3=4,Paramétrages!$K25,IF(CA$3=5,Paramétrages!$M25,0))))) -> SAESAT | CC187: =IF(CC$3=1,Paramétrages!$D25,IF(CC$3=2,Paramétrages!$F25,IF(CC$3=3,Paramétrages!$H25,IF(CC$3=4,Paramétrages!$J25,IF(CC$3=5,Paramétrages!$L25,0))))) -> 3.25 | CD187: =IF(CC$3=1,Paramétrages!$E25,IF(CC$3=2,Paramétrages!$G25,IF(CC$3=3,Paramétrages!$I25,IF(CC$3=4,Paramétrages!$K25,IF(CC$3=5,Paramétrages!$M25,0))))) -> SAESAT | CE187: =IF(CE$3=1,Paramétrages!$D25,IF(CE$3=2,Paramétrages!$F25,IF(CE$3=3,Paramétrages!$H25,IF(CE$3=4,Paramétrages!$J25,IF(CE$3=5,Paramétrages!$L25,0))))) -> SAESAT | CF187: =IF(CE$3=1,Paramétrages!$E25,IF(CE$3=2,Paramétrages!$G25,IF(CE$3=3,Paramétrages!$I25,IF(CE$3=4,Paramétrages!$K25,IF(CE$3=5,Paramétrages!$M25,0))))) -> SAESAT | CG187: =IF(CG$3=1,Paramétrages!$D25,IF(CG$3=2,Paramétrages!$F25,IF(CG$3=3,Paramétrages!$H25,IF(CG$3=4,Paramétrages!$J25,IF(CG$3=5,Paramétrages!$L25,0))))) -> 0 | CH187: =IF(CG$3=1,Paramétrages!$E25,IF(CG$3=2,Paramétrages!$G25,IF(CG$3=3,Paramétrages!$I25,IF(CG$3=4,Paramétrages!$K25,IF(CG$3=5,Paramétrages!$M25,0))))) -> 0 | CI187: =IF(CI$3=1,Paramétrages!$D25,IF(CI$3=2,Paramétrages!$F25,IF(CI$3=3,Paramétrages!$H25,IF(CI$3=4,Paramétrages!$J25,IF(CI$3=5,Paramétrages!$L25,0))))) -> 0 | CJ187: =IF(CI$3=1,Paramétrages!$E25,IF(CI$3=2,Paramétrages!$G25,IF(CI$3=3,Paramétrages!$I25,IF(CI$3=4,Paramétrages!$K25,IF(CI$3=5,Paramétrages!$M25,0))))) -> 0 | CK187: =IF(CK$3=1,Paramétrages!$D25,IF(CK$3=2,Paramétrages!$F25,IF(CK$3=3,Paramétrages!$H25,IF(CK$3=4,Paramétrages!$J25,IF(CK$3=5,Paramétrages!$L25,0))))) -> 3.25 | CL187: =IF(CK$3=1,Paramétrages!$E25,IF(CK$3=2,Paramétrages!$G25,IF(CK$3=3,Paramétrages!$I25,IF(CK$3=4,Paramétrages!$K25,IF(CK$3=5,Paramétrages!$M25,0))))) -> SAESAT | CM187: =IF(CM$3=1,Paramétrages!$D25,IF(CM$3=2,Paramétrages!$F25,IF(CM$3=3,Paramétrages!$H25,IF(CM$3=4,Paramétrages!$J25,IF(CM$3=5,Paramétrages!$L25,0))))) -> 3.25 | CN187: =IF(CM$3=1,Paramétrages!$E25,IF(CM$3=2,Paramétrages!$G25,IF(CM$3=3,Paramétrages!$I25,IF(CM$3=4,Paramétrages!$K25,IF(CM$3=5,Paramétrages!$M25,0))))) -> 3.25 | CO187: =IF(CO$3=1,Paramétrages!$D25,IF(CO$3=2,Paramétrages!$F25,IF(CO$3=3,Paramétrages!$H25,IF(CO$3=4,Paramétrages!$J25,IF(CO$3=5,Paramétrages!$L25,0))))) -> SAESAT | CP187: =IF(CO$3=1,Paramétrages!$E25,IF(CO$3=2,Paramétrages!$G25,IF(CO$3=3,Paramétrages!$I25,IF(CO$3=4,Paramétrages!$K25,IF(CO$3=5,Paramétrages!$M25,0))))) -> SAESAT | CQ187: =IF(CQ$3=1,Paramétrages!$D25,IF(CQ$3=2,Paramétrages!$F25,IF(CQ$3=3,Paramétrages!$H25,IF(CQ$3=4,Paramétrages!$J25,IF(CQ$3=5,Paramétrages!$L25,0))))) -> 3.25 | CR187: =IF(CQ$3=1,Paramétrages!$E25,IF(CQ$3=2,Paramétrages!$G25,IF(CQ$3=3,Paramétrages!$I25,IF(CQ$3=4,Paramétrages!$K25,IF(CQ$3=5,Paramétrages!$M25,0))))) -> SAESAT | CS187: =IF(CS$3=1,Paramétrages!$D25,IF(CS$3=2,Paramétrages!$F25,IF(CS$3=3,Paramétrages!$H25,IF(CS$3=4,Paramétrages!$J25,IF(CS$3=5,Paramétrages!$L25,0))))) -> SAESAT | CT187: =IF(CS$3=1,Paramétrages!$E25,IF(CS$3=2,Paramétrages!$G25,IF(CS$3=3,Paramétrages!$I25,IF(CS$3=4,Paramétrages!$K25,IF(CS$3=5,Paramétrages!$M25,0))))) -> SAESAT | CU187: =IF(CU$3=1,Paramétrages!$D25,IF(CU$3=2,Paramétrages!$F25,IF(CU$3=3,Paramétrages!$H25,IF(CU$3=4,Paramétrages!$J25,IF(CU$3=5,Paramétrages!$L25,0))))) -> 0 | CV187: =IF(CU$3=1,Paramétrages!$E25,IF(CU$3=2,Paramétrages!$G25,IF(CU$3=3,Paramétrages!$I25,IF(CU$3=4,Paramétrages!$K25,IF(CU$3=5,Paramétrages!$M25,0))))) -> 0 | CW187: =IF(CW$3=1,Paramétrages!$D25,IF(CW$3=2,Paramétrages!$F25,IF(CW$3=3,Paramétrages!$H25,IF(CW$3=4,Paramétrages!$J25,IF(CW$3=5,Paramétrages!$L25,0))))) -> 0 | CX187: =IF(CW$3=1,Paramétrages!$E25,IF(CW$3=2,Paramétrages!$G25,IF(CW$3=3,Paramétrages!$I25,IF(CW$3=4,Paramétrages!$K25,IF(CW$3=5,Paramétrages!$M25,0))))) -> 0 | CY187: =IF(CY$3=1,Paramétrages!$D25,IF(CY$3=2,Paramétrages!$F25,IF(CY$3=3,Paramétrages!$H25,IF(CY$3=4,Paramétrages!$J25,IF(CY$3=5,Paramétrages!$L25,0))))) -> 3.25 | CZ187: =IF(CY$3=1,Paramétrages!$E25,IF(CY$3=2,Paramétrages!$G25,IF(CY$3=3,Paramétrages!$I25,IF(CY$3=4,Paramétrages!$K25,IF(CY$3=5,Paramétrages!$M25,0))))) -> SAESAT | DA187: =IF(DA$3=1,Paramétrages!$D25,IF(DA$3=2,Paramétrages!$F25,IF(DA$3=3,Paramétrages!$H25,IF(DA$3=4,Paramétrages!$J25,IF(DA$3=5,Paramétrages!$L25,0))))) -> 3.25 | DB187: =IF(DA$3=1,Paramétrages!$E25,IF(DA$3=2,Paramétrages!$G25,IF(DA$3=3,Paramétrages!$I25,IF(DA$3=4,Paramétrages!$K25,IF(DA$3=5,Paramétrages!$M25,0))))) -> 3.25 | DC187: =IF(DC$3=1,Paramétrages!$D25,IF(DC$3=2,Paramétrages!$F25,IF(DC$3=3,Paramétrages!$H25,IF(DC$3=4,Paramétrages!$J25,IF(DC$3=5,Paramétrages!$L25,0))))) -> SAESAT | DD187: =IF(DC$3=1,Paramétrages!$E25,IF(DC$3=2,Paramétrages!$G25,IF(DC$3=3,Paramétrages!$I25,IF(DC$3=4,Paramétrages!$K25,IF(DC$3=5,Paramétrages!$M25,0))))) -> SAESAT | DE187: =IF(DE$3=1,Paramétrages!$D25,IF(DE$3=2,Paramétrages!$F25,IF(DE$3=3,Paramétrages!$H25,IF(DE$3=4,Paramétrages!$J25,IF(DE$3=5,Paramétrages!$L25,0))))) -> 3.25 | DF187: =IF(DE$3=1,Paramétrages!$E25,IF(DE$3=2,Paramétrages!$G25,IF(DE$3=3,Paramétrages!$I25,IF(DE$3=4,Paramétrages!$K25,IF(DE$3=5,Paramétrages!$M25,0))))) -> SAESAT | DG187: =IF(DG$3=1,Paramétrages!$D25,IF(DG$3=2,Paramétrages!$F25,IF(DG$3=3,Paramétrages!$H25,IF(DG$3=4,Paramétrages!$J25,IF(DG$3=5,Paramétrages!$L25,0))))) -> SAESAT | DH187: =IF(DG$3=1,Paramétrages!$E25,IF(DG$3=2,Paramétrages!$G25,IF(DG$3=3,Paramétrages!$I25,IF(DG$3=4,Paramétrages!$K25,IF(DG$3=5,Paramétrages!$M25,0))))) -> SAESAT | DI187: =IF(DI$3=1,Paramétrages!$D25,IF(DI$3=2,Paramétrages!$F25,IF(DI$3=3,Paramétrages!$H25,IF(DI$3=4,Paramétrages!$J25,IF(DI$3=5,Paramétrages!$L25,0))))) -> 0 | DJ187: =IF(DI$3=1,Paramétrages!$E25,IF(DI$3=2,Paramétrages!$G25,IF(DI$3=3,Paramétrages!$I25,IF(DI$3=4,Paramétrages!$K25,IF(DI$3=5,Paramétrages!$M25,0))))) -> 0 | DK187: =IF(DK$3=1,Paramétrages!$D25,IF(DK$3=2,Paramétrages!$F25,IF(DK$3=3,Paramétrages!$H25,IF(DK$3=4,Paramétrages!$J25,IF(DK$3=5,Paramétrages!$L25,0))))) -> 0 | DL187: =IF(DK$3=1,Paramétrages!$E25,IF(DK$3=2,Paramétrages!$G25,IF(DK$3=3,Paramétrages!$I25,IF(DK$3=4,Paramétrages!$K25,IF(DK$3=5,Paramétrages!$M25,0))))) -> 0 | DM187: =IF(DM$3=1,Paramétrages!$D25,IF(DM$3=2,Paramétrages!$F25,IF(DM$3=3,Paramétrages!$H25,IF(DM$3=4,Paramétrages!$J25,IF(DM$3=5,Paramétrages!$L25,0))))) -> 3.25 | DN187: =IF(DM$3=1,Paramétrages!$E25,IF(DM$3=2,Paramétrages!$G25,IF(DM$3=3,Paramétrages!$I25,IF(DM$3=4,Paramétrages!$K25,IF(DM$3=5,Paramétrages!$M25,0))))) -> SAESAT | DO187: =IF(DO$3=1,Paramétrages!$D25,IF(DO$3=2,Paramétrages!$F25,IF(DO$3=3,Paramétrages!$H25,IF(DO$3=4,Paramétrages!$J25,IF(DO$3=5,Paramétrages!$L25,0))))) -> 3.25 | DP187: =IF(DO$3=1,Paramétrages!$E25,IF(DO$3=2,Paramétrages!$G25,IF(DO$3=3,Paramétrages!$I25,IF(DO$3=4,Paramétrages!$K25,IF(DO$3=5,Paramétrages!$M25,0))))) -> 3.25 | DQ187: =IF(DQ$3=1,Paramétrages!$D25,IF(DQ$3=2,Paramétrages!$F25,IF(DQ$3=3,Paramétrages!$H25,IF(DQ$3=4,Paramétrages!$J25,IF(DQ$3=5,Paramétrages!$L25,0))))) -> SAESAT | DR187: =IF(DQ$3=1,Paramétrages!$E25,IF(DQ$3=2,Paramétrages!$G25,IF(DQ$3=3,Paramétrages!$I25,IF(DQ$3=4,Paramétrages!$K25,IF(DQ$3=5,Paramétrages!$M25,0))))) -> SAESAT | DS187: =IF(DS$3=1,Paramétrages!$D25,IF(DS$3=2,Paramétrages!$F25,IF(DS$3=3,Paramétrages!$H25,IF(DS$3=4,Paramétrages!$J25,IF(DS$3=5,Paramétrages!$L25,0))))) -> 3.25 | DT187: =IF(DS$3=1,Paramétrages!$E25,IF(DS$3=2,Paramétrages!$G25,IF(DS$3=3,Paramétrages!$I25,IF(DS$3=4,Paramétrages!$K25,IF(DS$3=5,Paramétrages!$M25,0))))) -> SAESAT | DU187: =IF(DU$3=1,Paramétrages!$D25,IF(DU$3=2,Paramétrages!$F25,IF(DU$3=3,Paramétrages!$H25,IF(DU$3=4,Paramétrages!$J25,IF(DU$3=5,Paramétrages!$L25,0))))) -> SAESAT | DV187: =IF(DU$3=1,Paramétrages!$E25,IF(DU$3=2,Paramétrages!$G25,IF(DU$3=3,Paramétrages!$I25,IF(DU$3=4,Paramétrages!$K25,IF(DU$3=5,Paramétrages!$M25,0))))) -> SAESAT | DW187: =IF(DW$3=1,Paramétrages!$D25,IF(DW$3=2,Paramétrages!$F25,IF(DW$3=3,Paramétrages!$H25,IF(DW$3=4,Paramétrages!$J25,IF(DW$3=5,Paramétrages!$L25,0))))) -> 0 | DX187: =IF(DW$3=1,Paramétrages!$E25,IF(DW$3=2,Paramétrages!$G25,IF(DW$3=3,Paramétrages!$I25,IF(DW$3=4,Paramétrages!$K25,IF(DW$3=5,Paramétrages!$M25,0))))) -> 0 | DY187: =IF(DY$3=1,Paramétrages!$D25,IF(DY$3=2,Paramétrages!$F25,IF(DY$3=3,Paramétrages!$H25,IF(DY$3=4,Paramétrages!$J25,IF(DY$3=5,Paramétrages!$L25,0))))) -> 0 | DZ187: =IF(DY$3=1,Paramétrages!$E25,IF(DY$3=2,Paramétrages!$G25,IF(DY$3=3,Paramétrages!$I25,IF(DY$3=4,Paramétrages!$K25,IF(DY$3=5,Paramétrages!$M25,0))))) -> 0 | EA187: =IF(EA$3=1,Paramétrages!$D25,IF(EA$3=2,Paramétrages!$F25,IF(EA$3=3,Paramétrages!$H25,IF(EA$3=4,Paramétrages!$J25,IF(EA$3=5,Paramétrages!$L25,0))))) -> 3.25 | EB187: =IF(EA$3=1,Paramétrages!$E25,IF(EA$3=2,Paramétrages!$G25,IF(EA$3=3,Paramétrages!$I25,IF(EA$3=4,Paramétrages!$K25,IF(EA$3=5,Paramétrages!$M25,0))))) -> SAESAT | EC187: =IF(EC$3=1,Paramétrages!$D25,IF(EC$3=2,Paramétrages!$F25,IF(EC$3=3,Paramétrages!$H25,IF(EC$3=4,Paramétrages!$J25,IF(EC$3=5,Paramétrages!$L25,0))))) -> 3.25 | ED187: =IF(EC$3=1,Paramétrages!$E25,IF(EC$3=2,Paramétrages!$G25,IF(EC$3=3,Paramétrages!$I25,IF(EC$3=4,Paramétrages!$K25,IF(EC$3=5,Paramétrages!$M25,0))))) -> 3.25 | EE187: =IF(EE$3=1,Paramétrages!$D25,IF(EE$3=2,Paramétrages!$F25,IF(EE$3=3,Paramétrages!$H25,IF(EE$3=4,Paramétrages!$J25,IF(EE$3=5,Paramétrages!$L25,0))))) -> SAESAT | EF187: =IF(EE$3=1,Paramétrages!$E25,IF(EE$3=2,Paramétrages!$G25,IF(EE$3=3,Paramétrages!$I25,IF(EE$3=4,Paramétrages!$K25,IF(EE$3=5,Paramétrages!$M25,0))))) -> SAESAT | EG187: =IF(EG$3=1,Paramétrages!$D25,IF(EG$3=2,Paramétrages!$F25,IF(EG$3=3,Paramétrages!$H25,IF(EG$3=4,Paramétrages!$J25,IF(EG$3=5,Paramétrages!$L25,0))))) -> 3.25 | EH187: =IF(EG$3=1,Paramétrages!$E25,IF(EG$3=2,Paramétrages!$G25,IF(EG$3=3,Paramétrages!$I25,IF(EG$3=4,Paramétrages!$K25,IF(EG$3=5,Paramétrages!$M25,0))))) -> SAESAT | EI187: =IF(EI$3=1,Paramétrages!$D25,IF(EI$3=2,Paramétrages!$F25,IF(EI$3=3,Paramétrages!$H25,IF(EI$3=4,Paramétrages!$J25,IF(EI$3=5,Paramétrages!$L25,0))))) -> SAESAT | EJ187: =IF(EI$3=1,Paramétrages!$E25,IF(EI$3=2,Paramétrages!$G25,IF(EI$3=3,Paramétrages!$I25,IF(EI$3=4,Paramétrages!$K25,IF(EI$3=5,Paramétrages!$M25,0))))) -> SAESAT | EK187: =IF(EK$3=1,Paramétrages!$D25,IF(EK$3=2,Paramétrages!$F25,IF(EK$3=3,Paramétrages!$H25,IF(EK$3=4,Paramétrages!$J25,IF(EK$3=5,Paramétrages!$L25,0))))) -> 0 | EL187: =IF(EK$3=1,Paramétrages!$E25,IF(EK$3=2,Paramétrages!$G25,IF(EK$3=3,Paramétrages!$I25,IF(EK$3=4,Paramétrages!$K25,IF(EK$3=5,Paramétrages!$M25,0))))) -> 0 | EM187: =IF(EM$3=1,Paramétrages!$D25,IF(EM$3=2,Paramétrages!$F25,IF(EM$3=3,Paramétrages!$H25,IF(EM$3=4,Paramétrages!$J25,IF(EM$3=5,Paramétrages!$L25,0))))) -> 0 | EN187: =IF(EM$3=1,Paramétrages!$E25,IF(EM$3=2,Paramétrages!$G25,IF(EM$3=3,Paramétrages!$I25,IF(EM$3=4,Paramétrages!$K25,IF(EM$3=5,Paramétrages!$M25,0))))) -> 0 | EO187: =IF(EO$3=1,Paramétrages!$D25,IF(EO$3=2,Paramétrages!$F25,IF(EO$3=3,Paramétrages!$H25,IF(EO$3=4,Paramétrages!$J25,IF(EO$3=5,Paramétrages!$L25,0))))) -> 3.25 | EP187: =IF(EO$3=1,Paramétrages!$E25,IF(EO$3=2,Paramétrages!$G25,IF(EO$3=3,Paramétrages!$I25,IF(EO$3=4,Paramétrages!$K25,IF(EO$3=5,Paramétrages!$M25,0))))) -> SAESAT | EQ187: =IF(EQ$3=1,Paramétrages!$D25,IF(EQ$3=2,Paramétrages!$F25,IF(EQ$3=3,Paramétrages!$H25,IF(EQ$3=4,Paramétrages!$J25,IF(EQ$3=5,Paramétrages!$L25,0))))) -> 3.25 | ER187: =IF(EQ$3=1,Paramétrages!$E25,IF(EQ$3=2,Paramétrages!$G25,IF(EQ$3=3,Paramétrages!$I25,IF(EQ$3=4,Paramétrages!$K25,IF(EQ$3=5,Paramétrages!$M25,0))))) -> 3.25 | ES187: =IF(ES$3=1,Paramétrages!$D25,IF(ES$3=2,Paramétrages!$F25,IF(ES$3=3,Paramétrages!$H25,IF(ES$3=4,Paramétrages!$J25,IF(ES$3=5,Paramétrages!$L25,0))))) -> SAESAT | ET187: =IF(ES$3=1,Paramétrages!$E25,IF(ES$3=2,Paramétrages!$G25,IF(ES$3=3,Paramétrages!$I25,IF(ES$3=4,Paramétrages!$K25,IF(ES$3=5,Paramétrages!$M25,0))))) -> SAESAT | EU187: =IF(EU$3=1,Paramétrages!$D25,IF(EU$3=2,Paramétrages!$F25,IF(EU$3=3,Paramétrages!$H25,IF(EU$3=4,Paramétrages!$J25,IF(EU$3=5,Paramétrages!$L25,0))))) -> 3.25 | EV187: =IF(EU$3=1,Paramétrages!$E25,IF(EU$3=2,Paramétrages!$G25,IF(EU$3=3,Paramétrages!$I25,IF(EU$3=4,Paramétrages!$K25,IF(EU$3=5,Paramétrages!$M25,0))))) -> SAESAT | EW187: =IF(EW$3=1,Paramétrages!$D25,IF(EW$3=2,Paramétrages!$F25,IF(EW$3=3,Paramétrages!$H25,IF(EW$3=4,Paramétrages!$J25,IF(EW$3=5,Paramétrages!$L25,0))))) -> SAESAT | EX187: =IF(EW$3=1,Paramétrages!$E25,IF(EW$3=2,Paramétrages!$G25,IF(EW$3=3,Paramétrages!$I25,IF(EW$3=4,Paramétrages!$K25,IF(EW$3=5,Paramétrages!$M25,0))))) -> SAESAT | EY187: =IF(EY$3=1,Paramétrages!$D25,IF(EY$3=2,Paramétrages!$F25,IF(EY$3=3,Paramétrages!$H25,IF(EY$3=4,Paramétrages!$J25,IF(EY$3=5,Paramétrages!$L25,0))))) -> 0 | EZ187: =IF(EY$3=1,Paramétrages!$E25,IF(EY$3=2,Paramétrages!$G25,IF(EY$3=3,Paramétrages!$I25,IF(EY$3=4,Paramétrages!$K25,IF(EY$3=5,Paramétrages!$M25,0))))) -> 0 | FA187: =IF(FA$3=1,Paramétrages!$D25,IF(FA$3=2,Paramétrages!$F25,IF(FA$3=3,Paramétrages!$H25,IF(FA$3=4,Paramétrages!$J25,IF(FA$3=5,Paramétrages!$L25,0))))) -> 0 | FB187: =IF(FA$3=1,Paramétrages!$E25,IF(FA$3=2,Paramétrages!$G25,IF(FA$3=3,Paramétrages!$I25,IF(FA$3=4,Paramétrages!$K25,IF(FA$3=5,Paramétrages!$M25,0))))) -> 0 | FC187: =IF(FC$3=1,Paramétrages!$D25,IF(FC$3=2,Paramétrages!$F25,IF(FC$3=3,Paramétrages!$H25,IF(FC$3=4,Paramétrages!$J25,IF(FC$3=5,Paramétrages!$L25,0))))) -> 3.25 | FD187: =IF(FC$3=1,Paramétrages!$E25,IF(FC$3=2,Paramétrages!$G25,IF(FC$3=3,Paramétrages!$I25,IF(FC$3=4,Paramétrages!$K25,IF(FC$3=5,Paramétrages!$M25,0))))) -> SAESAT | FE187: =IF(FE$3=1,Paramétrages!$D25,IF(FE$3=2,Paramétrages!$F25,IF(FE$3=3,Paramétrages!$H25,IF(FE$3=4,Paramétrages!$J25,IF(FE$3=5,Paramétrages!$L25,0))))) -> 3.25 | FF187: =IF(FE$3=1,Paramétrages!$E25,IF(FE$3=2,Paramétrages!$G25,IF(FE$3=3,Paramétrages!$I25,IF(FE$3=4,Paramétrages!$K25,IF(FE$3=5,Paramétrages!$M25,0))))) -> 3.25 | FG187: =IF(FG$3=1,Paramétrages!$D25,IF(FG$3=2,Paramétrages!$F25,IF(FG$3=3,Paramétrages!$H25,IF(FG$3=4,Paramétrages!$J25,IF(FG$3=5,Paramétrages!$L25,0))))) -> SAESAT | FH187: =IF(FG$3=1,Paramétrages!$E25,IF(FG$3=2,Paramétrages!$G25,IF(FG$3=3,Paramétrages!$I25,IF(FG$3=4,Paramétrages!$K25,IF(FG$3=5,Paramétrages!$M25,0))))) -> SAESAT | FI187: =IF(FI$3=1,Paramétrages!$D25,IF(FI$3=2,Paramétrages!$F25,IF(FI$3=3,Paramétrages!$H25,IF(FI$3=4,Paramétrages!$J25,IF(FI$3=5,Paramétrages!$L25,0))))) -> 3.25 | FJ187: =IF(FI$3=1,Paramétrages!$E25,IF(FI$3=2,Paramétrages!$G25,IF(FI$3=3,Paramétrages!$I25,IF(FI$3=4,Paramétrages!$K25,IF(FI$3=5,Paramétrages!$M25,0))))) -> SAESAT | FK187: =IF(FK$3=1,Paramétrages!$D25,IF(FK$3=2,Paramétrages!$F25,IF(FK$3=3,Paramétrages!$H25,IF(FK$3=4,Paramétrages!$J25,IF(FK$3=5,Paramétrages!$L25,0))))) -> SAESAT | FL187: =IF(FK$3=1,Paramétrages!$E25,IF(FK$3=2,Paramétrages!$G25,IF(FK$3=3,Paramétrages!$I25,IF(FK$3=4,Paramétrages!$K25,IF(FK$3=5,Paramétrages!$M25,0))))) -> SAESAT | FM187: =IF(FM$3=1,Paramétrages!$D25,IF(FM$3=2,Paramétrages!$F25,IF(FM$3=3,Paramétrages!$H25,IF(FM$3=4,Paramétrages!$J25,IF(FM$3=5,Paramétrages!$L25,0))))) -> 0 | FN187: =IF(FM$3=1,Paramétrages!$E25,IF(FM$3=2,Paramétrages!$G25,IF(FM$3=3,Paramétrages!$I25,IF(FM$3=4,Paramétrages!$K25,IF(FM$3=5,Paramétrages!$M25,0))))) -> 0 | FO187: =IF(FO$3=1,Paramétrages!$D25,IF(FO$3=2,Paramétrages!$F25,IF(FO$3=3,Paramétrages!$H25,IF(FO$3=4,Paramétrages!$J25,IF(FO$3=5,Paramétrages!$L25,0))))) -> 0 | FP187: =IF(FO$3=1,Paramétrages!$E25,IF(FO$3=2,Paramétrages!$G25,IF(FO$3=3,Paramétrages!$I25,IF(FO$3=4,Paramétrages!$K25,IF(FO$3=5,Paramétrages!$M25,0))))) -> 0 | FQ187: =IF(FQ$3=1,Paramétrages!$D25,IF(FQ$3=2,Paramétrages!$F25,IF(FQ$3=3,Paramétrages!$H25,IF(FQ$3=4,Paramétrages!$J25,IF(FQ$3=5,Paramétrages!$L25,0))))) -> 3.25 | FR187: =IF(FQ$3=1,Paramétrages!$E25,IF(FQ$3=2,Paramétrages!$G25,IF(FQ$3=3,Paramétrages!$I25,IF(FQ$3=4,Paramétrages!$K25,IF(FQ$3=5,Paramétrages!$M25,0))))) -> SAESAT | FS187: =IF(FS$3=1,Paramétrages!$D25,IF(FS$3=2,Paramétrages!$F25,IF(FS$3=3,Paramétrages!$H25,IF(FS$3=4,Paramétrages!$J25,IF(FS$3=5,Paramétrages!$L25,0))))) -> 3.25 | FT187: =IF(FS$3=1,Paramétrages!$E25,IF(FS$3=2,Paramétrages!$G25,IF(FS$3=3,Paramétrages!$I25,IF(FS$3=4,Paramétrages!$K25,IF(FS$3=5,Paramétrages!$M25,0))))) -> 3.25 | FU187: =IF(FU$3=1,Paramétrages!$D25,IF(FU$3=2,Paramétrages!$F25,IF(FU$3=3,Paramétrages!$H25,IF(FU$3=4,Paramétrages!$J25,IF(FU$3=5,Paramétrages!$L25,0))))) -> SAESAT | FV187: =IF(FU$3=1,Paramétrages!$E25,IF(FU$3=2,Paramétrages!$G25,IF(FU$3=3,Paramétrages!$I25,IF(FU$3=4,Paramétrages!$K25,IF(FU$3=5,Paramétrages!$M25,0))))) -> SAESAT | FW187: =IF(FW$3=1,Paramétrages!$D25,IF(FW$3=2,Paramétrages!$F25,IF(FW$3=3,Paramétrages!$H25,IF(FW$3=4,Paramétrages!$J25,IF(FW$3=5,Paramétrages!$L25,0))))) -> 3.25 | FX187: =IF(FW$3=1,Paramétrages!$E25,IF(FW$3=2,Paramétrages!$G25,IF(FW$3=3,Paramétrages!$I25,IF(FW$3=4,Paramétrages!$K25,IF(FW$3=5,Paramétrages!$M25,0))))) -> SAESAT | FY187: =IF(FY$3=1,Paramétrages!$D25,IF(FY$3=2,Paramétrages!$F25,IF(FY$3=3,Paramétrages!$H25,IF(FY$3=4,Paramétrages!$J25,IF(FY$3=5,Paramétrages!$L25,0))))) -> SAESAT | FZ187: =IF(FY$3=1,Paramétrages!$E25,IF(FY$3=2,Paramétrages!$G25,IF(FY$3=3,Paramétrages!$I25,IF(FY$3=4,Paramétrages!$K25,IF(FY$3=5,Paramétrages!$M25,0))))) -> SAESAT | GA187: =IF(GA$3=1,Paramétrages!$D25,IF(GA$3=2,Paramétrages!$F25,IF(GA$3=3,Paramétrages!$H25,IF(GA$3=4,Paramétrages!$J25,IF(GA$3=5,Paramétrages!$L25,0))))) -> 0 | GB187: =IF(GA$3=1,Paramétrages!$E25,IF(GA$3=2,Paramétrages!$G25,IF(GA$3=3,Paramétrages!$I25,IF(GA$3=4,Paramétrages!$K25,IF(GA$3=5,Paramétrages!$M25,0))))) -> 0 | GC187: =IF(GC$3=1,Paramétrages!$D25,IF(GC$3=2,Paramétrages!$F25,IF(GC$3=3,Paramétrages!$H25,IF(GC$3=4,Paramétrages!$J25,IF(GC$3=5,Paramétrages!$L25,0))))) -> 0 | GD187: =IF(GC$3=1,Paramétrages!$E25,IF(GC$3=2,Paramétrages!$G25,IF(GC$3=3,Paramétrages!$I25,IF(GC$3=4,Paramétrages!$K25,IF(GC$3=5,Paramétrages!$M25,0))))) -> 0 | GE187: =IF(GE$3=1,Paramétrages!$D25,IF(GE$3=2,Paramétrages!$F25,IF(GE$3=3,Paramétrages!$H25,IF(GE$3=4,Paramétrages!$J25,IF(GE$3=5,Paramétrages!$L25,0))))) -> 3.25 | GF187: =IF(GE$3=1,Paramétrages!$E25,IF(GE$3=2,Paramétrages!$G25,IF(GE$3=3,Paramétrages!$I25,IF(GE$3=4,Paramétrages!$K25,IF(GE$3=5,Paramétrages!$M25,0))))) -> SAESAT | GK187: =D188 -> 0 | GL187: =COUNTIF(E187:BN187,">0")/2 -> 9.5 | GM187: =IF(GL187>0,GL188/GL187," ") -> 0.3157894737 | GN187: =IF($DS$2=$GI$3,COUNTIF($BO187:$DX187,">0")/2,COUNTIF($BO187:$DX187,">0")/2) -> 8.5 | GO187: =IF(GN187>0,GN188/GN187," ") -> 0 | GP187: =IF($DS$2=$GI$3,COUNTIF($DY187:$GF187,">0")/2,COUNTIF($DY187:$GF187,">0")/2) -> 8.5 | GQ187: =IF(GP187>0,GP188/GP187," ") -> 0 | GR187: =COUNTIF(E187:BN187,"ad")/2 -> 0 | GT187: =IF($DS$2=$GI$3,COUNTIF($BO87:$DX187,"ad")/2,COUNTIF($BO87:$DX187,"ad")/2) -> 0 | GV187: =IF($DS$2=$GI$3,COUNTIF($DY187:$GF187,"ad")/2,COUNTIF($DY187:$GF187,"ad")/2) -> 0 | HE187: =Paramétrages!$B$61 -> NOM | HF187: =COUNTIF(E223:GF224,"A2")/2 -> 0 | HG187: =COUNTIF(F223:GG224,"cp")/2 -> 0 | HH187: =COUNTIF(G223:GH224,"css")/2 -> 0 | HI187: =COUNTIF(H223:GI224,"ma")/2 -> 0 | HJ187: =COUNTIF(I223:GJ224,"at")/2 -> 0 | HK187: =COUNTIF(J223:GK224,"aj")/2 -> 0 | HL187: =COUNTIF(K223:GL224,"ai")/2 -> 0 | HM187: =COUNTIF(L223:GM224,"ad")/2 -> 0 | HN187: =COUNTIF(M223:GN224,"st")/2 -> 0 | HO187: =COUNTIF(N223:GO224,"di")/2 -> 0
B188: 2 | BW188: R | BY188: R | CC188: R | GH188: =COUNTIF(E188:GF188,"R") -> 3 | GL188: =(SUM(E189:BP189)+COUNTIF(E189:BP189,"ad"))/2 -> 3 | GN188: =IF($GI$3=$DS$2,(SUM(BQ189:DT189)+COUNTIF(BQ189:DT189,"ad"))/2, (SUM(BQ189:DX189)+COUNTIF(BQ189:DX189,"ad"))/2) -> 0 | GP188: =IF($GI$3=$DS$2,(SUM(DU189:GF189)+COUNTIF(DU189:GF189,"ad"))/2, (SUM(DY189:GF189)+COUNTIF(DY189:GF189,"ad"))/2) -> 0 | HE188: =Paramétrages!$B$64 -> NOM | HF188: =COUNTIF(E226:GF227,"A2")/2 -> 0 | HG188: =COUNTIF(F226:GG227,"cp")/2 -> 0 | HH188: =COUNTIF(G226:GH227,"css")/2 -> 0 | HI188: =COUNTIF(H226:GI227,"ma")/2 -> 0 | HJ188: =COUNTIF(I226:GJ227,"at")/2 -> 0 | HK188: =COUNTIF(J226:GK227,"aj")/2 -> 0 | HL188: =COUNTIF(K226:GL227,"ai")/2 -> 0 | HM188: =COUNTIF(L226:GM227,"ad")/2 -> 0 | HN188: =COUNTIF(M226:GN227,"st")/2 -> 0 | HO188: =COUNTIF(N226:GO227,"di")/2 -> 0
A189: =Paramétrages!B25 -> NOM | B189: 3 | G189: 1 | K189: 1 | Y189: 1 | AI189: 1 | BK189: 1 | BO189: 1 | GO189: =IF(GN189>0,GN190/GN189," ") ->  | HE189: =Paramétrages!$B$67 -> NOM | HF189: =COUNTIF(E229:GF230,"A2")/2 -> 0 | HG189: =COUNTIF(F229:GG230,"cp")/2 -> 0 | HH189: =COUNTIF(G229:GH230,"css")/2 -> 0 | HI189: =COUNTIF(H229:GI230,"ma")/2 -> 0 | HJ189: =COUNTIF(I229:GJ230,"at")/2 -> 0 | HK189: =COUNTIF(J229:GK230,"aj")/2 -> 0 | HL189: =COUNTIF(K229:GL230,"ai")/2 -> 0 | HM189: =COUNTIF(L229:GM230,"ad")/2 -> 0 | HN189: =COUNTIF(M229:GN230,"st")/2 -> 0 | HO189: =COUNTIF(N229:GO230,"di")/2 -> 0
